{"text_format":"1","workbook":"xlsx","n_sheets":12,"sheets":["TeamLogos","Schedule","Introduction","Data Entry Instructions","NHL Rosters","Game Summary","All Goals 2018_19","Teams","All Penalties 2018_19","All Shootouts 2018_19","All Goalies 2018_19","Pens Roster"],"not_rendered":{"charts":0,"images":127,"macros":1,"external_links":0,"defined_names":23,"comments":0,"pivot_tables":0},"unopened":[],"bounds":{"document_bytes":16777216,"sheet_cells":100000,"rows_first":2000,"rows_last":500,"rows_between":2000,"halvings":0,"cell_chars":16384,"cell_head_chars":4096},"cells_cut":0,"cells_raw":0,"read":"whole","date_system":"1900"}

{"sheet":"TeamLogos","index":0,"n_rows":26,"n_cols":14,"rows_kept":26,"cut":false,"hidden":true,"merged":[]}
[]
[]
[]
[]
[]
[null,"ANAlogo",null,"ARIlogo",null,"BOSlogo",null,"BUFlogo",null,"CARlogo",null,"CBJlogo"]
[]
[]
[]
[]
[null,"CGYlogo",null,"CHIlogo",null,"COLlogo",null,"DALlogo",null,"DETlogo",null,"EDMlogo"]
[]
[]
[]
[]
[null,"FLAlogo",null,"LAKlogo",null,"MINlogo",null,"MTLlogo",null,"NJDlogo",null,"NSHlogo"]
[]
[]
[]
[]
[null,"NYIlogo",null,"NYRlogo",null,"OTTlogo",null,"PHIlogo",null,"PITlogo",null,"SJSlogo"]
[]
[]
[]
[]
[null,"STLlogo",null,"TBLlogo",null,"TORlogo",null,"VANlogo",null,"VEGlogo",null,"WPGlogo",null,"WSHlogo"]

{"sheet":"Schedule","index":1,"n_rows":783,"n_cols":44,"rows_kept":783,"cut":false,"hidden":true,"merged":[[0,1,0,5],[0,23,0,26],[0,35,0,37],[0,39,0,41]]}
[null,"2017-18 Season Schedule",null,null,null,null,null,null,null,null,null,null,null,null,null,null,null,null,null,null,null,null,null,"2017-18 Season Record",null,null,null,null,null,null,null,null,null,null,null,"Pens League Game Dates ",null,null,null,"Web Query Variables for Game Dates "]
["GP","Date","Time (EST)","Home/Away","H/ASymbol","Opponent",null,"GameDates",null,null,null,"GDNoDate",null,null,"TeamAbr",null,"TeamCity",null,"TeamName",null,"ScheduleTeamName",null,"GP","Date","Home/Away","Opponent","Pens","Opp","OT","SO","PensPen","OppPen","SOSPens","SOSOpp",null,"Date","Visitor","Home",null,"Game_Date","Num_Games","HTML_Input","GameNum","HRLink"]
[1,"2018-10-04","19:00:00","Home",null,"Washington Capitals",null,{"$f":"TEXT(B3,\"mm/dd/yyyy\")&\" \"&E3&F3&\" (\"&O3&\")\"","v":"10/04/2018 Washington Capitals (WSH)"},null,null,null,{"$f":"TRIM(RIGHT(H3,LEN(H3)-11))","v":"Washington Capitals (WSH)"},null,null,"WSH",null,{"$f":"LEFT(L3,FIND(\" \",L3)-1)","v":"Washington"},null,{"$f":"IF(LEN(L3)-LEN(SUBSTITUTE(L3,\" \",\"\"))=2,RIGHT(F3,LEN(F3)-FIND(\" \",F3)),RIGHT(F3,LEN(F3)-FIND(\" \",F3,FIND(\" \",F3)+1)))","v":"Capitals"},null,{"$f":"IF(E3=\"Away\",\"@\",\"\")&F3","v":"Washington Capitals"},null,1,"10/04/2018 Washington Capitals (WSH)","Home",{"$f":"LEFT(L3,LEN(L3)-6)","v":"Washington Capitals"},7,6,1,null,2,6,0,0,null,"2018-10-04","Boston Bruins","Buffalo Sabres",null,"2018-10-04",{"$f":"COUNTIF(PensGameDates[Date],AN3)+1","v":11},"201810040PIT.html",1,{"$f":"\"https://www.hockey-reference.com/boxscores/\" & AP3","v":"https://www.hockey-reference.com/boxscores/201810040PIT.html"}]
[2,"2018-10-06","19:00:00","Home",null,"Montreal Canadiens",null,"10/06/2018 Montreal Canadiens (MTL)",null,null,null,{"$f":"TRIM(RIGHT(H4,LEN(H4)-11))","v":"Montreal Canadiens (MTL)"},null,null,"MTL",null,"Montreal",null,"Canadiens",null,"Montreal Canadiens",null,2,"10/06/2018 Montreal Canadiens (MTL)","Home","Montreal Canadiens",1,5,null,null,0,0,0,0,null,"2018-10-04","New York Islanders","Carolina Hurricanes",null,"2018-10-06",{"$f":"COUNTIF(PensGameDates[Date],AN4)+1","v":13},"201810060PIT.html",{"$f":"AQ3+1","v":2},"https://www.hockey-reference.com/boxscores/201810060PIT.html"]
[3,"2018-10-11","19:00:00","Home",null,"Vegas Golden Knights",null,"10/11/2018 Vegas Golden Knights (VEG)",null,null,null,{"$f":"TRIM(RIGHT(H5,LEN(H5)-10))","v":"Vegas Golden Knights (VEG)"},null,null,"VEG",null,"Vegas",null,"Knights",null,"Vegas Golden Knights",null,3,"10/11/2018 Vegas Golden Knights (VEG)","Home","Vegas Golden Knights",4,2,null,1,0,0,2,1,null,"2018-10-04","Minnesota Wild","Colorado Avalanche",null,"2018-10-11",{"$f":"COUNTIF(PensGameDates[Date],AN5)+1","v":13},"201810110PIT.html",{"$f":"AQ4+1","v":3},"https://www.hockey-reference.com/boxscores/201810110PIT.html"]
[4,"2018-10-13","19:00:00","Away","@","Montreal Canadiens",null,"10/13/2018 @Montreal Canadiens (MTL)",null,null,null,"@Montreal Canadiens (MTL)",null,null,"MTL",null,"@Montreal",null,"Canadiens",null,"Montreal Canadiens",null,4,"10/13/2018 @Montreal Canadiens (MTL)","Away","@Montreal Canadiens",3,4,1,1,6,2,2,2,null,"2018-10-04","Arizona Coyotes","Dallas Stars",null,"2018-10-13",{"$f":"COUNTIF(PensGameDates[Date],AN6)+1","v":15},"201810130MTL.html",4,"https://www.hockey-reference.com/boxscores/201810130MTL.html"]
[5,"2018-10-16","19:00:00","Home",null,"Vancouver Canucks",null,"10/16/2018 Vancouver Canucks (VAN)",null,null,null,"Vancouver Canucks (VAN)",null,null,"VAN",null,"Vancouver",null,"Canucks",null,"Vancouver Canucks",null,5,"10/16/2018 Vancouver Canucks (VAN)","Home","Vancouver Canucks",2,3,1,null,1,2,0,0,null,"2018-10-04","Columbus Blue Jackets","Detroit Red Wings",null,"2018-10-16",{"$f":"COUNTIF(PensGameDates[Date],AN7)+1","v":9},"201810160PIT.html",5,"https://www.hockey-reference.com/boxscores/201810160PIT.html"]
[6,"2018-10-18","19:00:00","Away","@","Toronto Maple Leafs",null,"10/18/2018 @Toronto Maple Leafs (TOR)",null,null,null,"@Toronto Maple Leafs (TOR)",null,null,"TOR",null,"@Toronto",null,"Leafs",null,"Toronto Maple Leafs",null,6,"10/18/2018 @Toronto Maple Leafs (TOR)","Away","@Toronto Maple Leafs",3,0,null,null,1,2,0,0,null,"2018-10-04","Nashville Predators","New York Rangers",null,"2018-10-18",{"$f":"COUNTIF(PensGameDates[Date],AN8)+1","v":10},"201810180TOR.html",6,"https://www.hockey-reference.com/boxscores/201810180TOR.html"]
[7,"2018-10-23","21:00:00","Away","@","Edmonton Oilers",null,"10/23/2018 @Edmonton Oilers (EDM)",null,null,null,"@Edmonton Oilers (EDM)",null,null,"EDM",null,"@Edmonton",null,"Oilers",null,"Edmonton Oilers",null,7,"10/23/2018 @Edmonton Oilers (EDM)","Away","@Edmonton Oilers",6,5,1,null,6,4,0,0,null,"2018-10-04","Chicago Blackhawks","Ottawa Senators",null,"2018-10-23",{"$f":"COUNTIF(PensGameDates[Date],AN9)+1","v":9},"201810230EDM.html",7,"https://www.hockey-reference.com/boxscores/201810230EDM.html"]
[8,"2018-10-25","21:00:00","Away","@","Calgary Flames",null,"10/25/2018 @Calgary Flames (CGY)",null,null,null,"@Calgary Flames (CGY)",null,null,"CGY",null,"@Calgary",null,"Flames",null,"Calgary Flames",null,8,"10/25/2018 @Calgary Flames (CGY)","Away","@Calgary Flames",9,1,null,null,3,2,0,0,null,"2018-10-04","Washington Capitals","Pittsburgh Penguins",null,"2018-10-25",{"$f":"COUNTIF(PensGameDates[Date],AN10)+1","v":11},"201810250CGY.html",8,"https://www.hockey-reference.com/boxscores/201810250CGY.html"]
[9,"2018-10-27","22:00:00","Away","@","Vancouver Canucks",null,"10/27/2018 @Vancouver Canucks (VAN)",null,null,null,"@Vancouver Canucks (VAN)",null,null,"VAN",null,"@Vancouver",null,"Canucks",null,"Vancouver Canucks",null,9,"10/27/2018 @Vancouver Canucks (VAN)","Away","@Vancouver Canucks",5,0,null,null,4,3,0,0,null,"2018-10-04","Winnipeg Jets","St. Louis Blues",null,"2018-10-27",{"$f":"COUNTIF(PensGameDates[Date],AN11)+1","v":12},"201810270VAN.html",9,"https://www.hockey-reference.com/boxscores/201810270VAN.html"]
[10,"2018-10-30","19:00:00","Home",null,"New York Islanders",null,"10/30/2018 New York Islanders (NYI)",null,null,null,"New York Islanders (NYI)",null,null,"NYI",null,"New",null,"Islanders",null,"New York Islanders",null,10,"10/30/2018 New York Islanders (NYI)","Home","New York Islanders",3,6,null,null,3,3,0,0,null,"2018-10-04","Philadelphia Flyers","Vegas Golden Knights",null,"2018-10-30",{"$f":"COUNTIF(PensGameDates[Date],AN12)+1","v":12},"201810300PIT.html",10,"https://www.hockey-reference.com/boxscores/201810300PIT.html"]
[11,"2018-11-01","19:00:00","Home","@","New York Islanders",null,"11/01/2018 @New York Islanders (NYI)",null,null,null,"@New York Islanders (NYI)",null,null,"NYI",null,"@New",null,"Islanders",null,"New York Islanders",null,11,"11/01/2018 @New York Islanders (NYI)","Home","@New York Islanders",2,3,null,1,3,5,3,3,null,"2018-10-06","Anaheim Ducks","Arizona Coyotes",null,"2018-11-01",{"$f":"COUNTIF(PensGameDates[Date],AN13)+1","v":14},"201811010NYI.html",11,"https://www.hockey-reference.com/boxscores/201811010NYI.html"]
[12,"2018-11-03","19:00:00","Home",null,"Toronto Maple Leafs",null,"11/03/2018 Toronto Maple Leafs (TOR)",null,null,null,"Toronto Maple Leafs (TOR)",null,null,"TOR",null,"Toronto",null,"Leafs",null,"Toronto Maple Leafs",null,12,"11/03/2018 Toronto Maple Leafs (TOR)","Home","Toronto Maple Leafs",0,5,null,null,3,5,0,0,null,"2018-10-06","New York Rangers","Buffalo Sabres",null,"2018-11-03",{"$f":"COUNTIF(PensGameDates[Date],AN14)+1","v":13},"201811030PIT.html",12,"https://www.hockey-reference.com/boxscores/201811030PIT.html"]
[13,"2018-11-05","19:00:00","Home",null,"New Jersey Devils",null,"11/05/2018 New Jersey Devils (NJD)",null,null,null,"New Jersey Devils (NJD)",null,null,"NJD",null,"New",null,"Devils",null,"New Jersey Devils",null,13,"11/05/2018 New Jersey Devils (NJD)","Home","New Jersey Devils",1,5,null,null,5,4,0,0,null,"2018-10-06","Vancouver Canucks","Calgary Flames",null,"2018-11-05",{"$f":"COUNTIF(PensGameDates[Date],AN15)+1","v":6},"201811050PIT.html",13,"https://www.hockey-reference.com/boxscores/201811050PIT.html"]
[14,"2018-11-07","19:30:00","Away","@","Washington Capitals",null,"11/07/2018 @Washington Capitals (WSH)",null,null,null,"@Washington Capitals (WSH)",null,null,"WSH",null,"@Washington",null,"Capitals",null,"Washington Capitals",null,14,"11/07/2018 @Washington Capitals (WSH)","Away","@Washington Capitals",1,2,null,null,6,3,0,0,null,"2018-10-06","Philadelphia Flyers","Colorado Avalanche",null,"2018-11-07",{"$f":"COUNTIF(PensGameDates[Date],AN16)+1","v":4},"201811070WSH.html",14,"https://www.hockey-reference.com/boxscores/201811070WSH.html"]
[15,"2018-11-10","19:00:00","Home",null,"Arizona Coyotes",null,"11/10/2018 Arizona Coyotes (ARI)",null,null,null,"Arizona Coyotes (ARI)",null,null,"ARI",null,"Arizona",null,"Coyotes",null,"Arizona Coyotes",null,15,"11/10/2018 Arizona Coyotes (ARI)","Home","Arizona Coyotes",4,0,null,null,4,3,0,0,null,"2018-10-06","Winnipeg Jets","Dallas Stars",null,"2018-11-10",{"$f":"COUNTIF(PensGameDates[Date],AN17)+1","v":12},"2018111050PIT.html",15,"https://www.hockey-reference.com/boxscores/2018111050PIT.html"]
[16,"2018-11-13","19:00:00","Away","@","New Jersey Devils",null,"11/13/2018 @New Jersey Devils (NJD)",null,null,null,"@New Jersey Devils (NJD)",null,null,"NJD",null,"@New",null,"Devils",null,"New Jersey Devils",null,16,"11/13/2018 @New Jersey Devils (NJD)","Away","@New Jersey Devils",2,4,null,null,3,4,0,0,null,"2018-10-06","Vegas Golden Knights","Minnesota Wild",null,"2018-11-13",{"$f":"COUNTIF(PensGameDates[Date],AN18)+1","v":10},"201811130NJD.html",16,"https://www.hockey-reference.com/boxscores/201811130NJD.html"]
[17,"2018-11-15","19:00:00","Home",null,"Tampa Bay Lightning",null,"11/15/2018 Tampa Bay Lightning (TBL)",null,null,null,"Tampa Bay Lightning (TBL)",null,null,"TBL",null,"Tampa",null,"Lightning",null,"Tampa Bay Lightning",null,17,"11/15/2018 Tampa Bay Lightning (TBL)","Home","Tampa Bay Lightning",3,4,null,null,9,6,0,0,null,"2018-10-06","Edmonton Oilers","New Jersey Devils",null,"2018-11-15",{"$f":"COUNTIF(PensGameDates[Date],AN19)+1","v":10},"201811150PIT.html",17,"https://www.hockey-reference.com/boxscores/201811150PIT.html"]
[18,"2018-11-17","19:00:00","Away","@","Ottawa Senators",null,"11/17/2018 @Ottawa Senators (OTT)",null,null,null,"@Ottawa Senators (OTT)",null,null,"OTT",null,"@Ottawa",null,"Senators",null,"Ottawa Senators",null,18,"11/17/2018 @Ottawa Senators (OTT)","Away","@Ottawa Senators",4,6,null,null,4,5,0,0,null,"2018-10-06","Nashville Predators","New York Islanders",null,"2018-11-17",{"$f":"COUNTIF(PensGameDates[Date],AN20)+1","v":12},"201811170OTT.html",18,"https://www.hockey-reference.com/boxscores/201811170OTT.html"]
[19,"2018-11-19","19:00:00","Home",null,"Buffalo Sabres",null,"11/19/2018 Buffalo Sabres (BUF)",null,null,null,"Buffalo Sabres (BUF)",null,null,"BUF",null,"Buffalo",null,"Sabres",null,"Buffalo Sabres",null,19,"11/19/2018 Buffalo Sabres (BUF)","Home","Buffalo Sabres",4,5,1,null,4,4,0,0,null,"2018-10-06","Montreal Canadiens","Pittsburgh Penguins",null,"2018-11-19",{"$f":"COUNTIF(PensGameDates[Date],AN21)+1","v":10},"201811190PIT.html",19,"https://www.hockey-reference.com/boxscores/201811190PIT.html"]
[20,"2018-11-21","19:00:00","Home",null,"Dallas Stars",null,"11/21/2018 Dallas Stars (DAL)",null,null,null,"Dallas Stars (DAL)",null,null,"DAL",null,"Dallas",null,"Stars",null,"Dallas Stars",null,20,"11/21/2018 Dallas Stars (DAL)","Home","Dallas Stars",5,1,null,null,2,3,0,0,null,"2018-10-06","Chicago Blackhawks","St. Louis Blues",null,"2018-11-21",{"$f":"COUNTIF(PensGameDates[Date],AN22)+1","v":15},"201811210PIT.html",20,"https://www.hockey-reference.com/boxscores/201811210PIT.html"]
[21,"2018-11-23","19:30:00","Away","@","Boston Bruins",null,"11/23/2018 @Boston Bruins (BOS)",null,null,null,"@Boston Bruins (BOS)",null,null,"BOS",null,"@Boston",null,"Bruins",null,"Boston Bruins",null,21,"11/23/2018 @Boston Bruins (BOS)","Away","@Boston Bruins",1,2,1,null,0,2,0,0,null,"2018-10-06","Florida Panthers","Tampa Bay Lightning",null,"2018-11-23",{"$f":"COUNTIF(PensGameDates[Date],AN23)+1","v":16},"201811230BOS.html",21,"https://www.hockey-reference.com/boxscores/201811230BOS.html"]
[22,"2018-11-24","19:00:00","Home",null,"Columbus Blue Jackets",null,"11/24/2018 Columbus Blue Jackets (CBJ)",null,null,null,"Columbus Blue Jackets (CBJ)",null,null,"CBJ",null,"Columbus",null,"Jackets",null,"Columbus Blue Jackets",null,22,"11/24/2018 Columbus Blue Jackets (CBJ)","Home","Columbus Blue Jackets",4,2,null,null,1,1,0,0,null,"2018-10-06","Ottawa Senators","Toronto Maple Leafs",null,"2018-11-24",{"$f":"COUNTIF(PensGameDates[Date],AN24)+1","v":12},"201811240PIT.html",22,"https://www.hockey-reference.com/boxscores/201811240PIT.html"]
[23,"2018-11-27","20:00:00","Away","@","Winnipeg Jets",null,"11/27/2018 @Winnipeg Jets (WPG)",null,null,null,"@Winnipeg Jets (WPG)",null,null,"WPG",null,"@Winnipeg",null,"Jets",null,"Winnipeg Jets",null,23,"11/27/2018 @Winnipeg Jets (WPG)","Away","@Winnipeg Jets",4,3,null,null,2,1,0,0,null,"2018-10-11","Edmonton Oilers","Boston Bruins",null,"2018-11-27",{"$f":"COUNTIF(PensGameDates[Date],AN25)+1","v":11},"201811270WPG.html",23,"https://www.hockey-reference.com/boxscores/201811270WPG.html"]
[24,"2018-11-28","21:30:00","Away","@","Colorado Avalanche",null,"11/28/2018 @Colorado Avalanche (COL)",null,null,null,"@Colorado Avalanche (COL)",null,null,"COL",null,"@Colorado",null,"Avalanche",null,"Colorado Avalanche",null,24,"11/28/2018 @Colorado Avalanche (COL)","Away","@Colorado Avalanche",3,6,null,null,1,4,0,0,null,"2018-10-11","Colorado Avalanche","Buffalo Sabres",null,"2018-11-28",{"$f":"COUNTIF(PensGameDates[Date],AN26)+1","v":6},"201811280COL.html",24,"https://www.hockey-reference.com/boxscores/201811280COL.html"]
[25,"2018-12-01","19:00:00","Home",null,"Philadelphia Flyers",null,"12/01/2018 Philadelphia Flyers (PHI)",null,null,null,"Philadelphia Flyers (PHI)",null,null,"PHI",null,"Philadelphia",null,"Flyers",null,"Philadelphia Flyers",null,25,"12/01/2018 Philadelphia Flyers (PHI)","Home","Philadelphia Flyers",2,4,null,null,3,3,0,0,null,"2018-10-11","Toronto Maple Leafs","Detroit Red Wings",null,"2018-12-01",{"$f":"COUNTIF(PensGameDates[Date],AN27)+1","v":13},"201812010PIT.html",25,"https://www.hockey-reference.com/boxscores/201812010PIT.html"]
[26,"2018-12-04","19:00:00","Home",null,"Colorado Avalanche",null,"12/04/2018 Colorado Avalanche (COL)",null,null,null,"Colorado Avalanche (COL)",null,null,"COL",null,"Colorado",null,"Avalanche",null,"Colorado Avalanche",null,26,"12/04/2018 Colorado Avalanche (COL)","Home","Colorado Avalanche",6,3,null,null,4,4,0,0,null,"2018-10-11","Columbus Blue Jackets","Florida Panthers",null,"2018-12-04",{"$f":"COUNTIF(PensGameDates[Date],AN28)+1","v":11},"201812040PIT.html",26,"https://www.hockey-reference.com/boxscores/201812040PIT.html"]
[27,"2018-12-06","19:00:00","Home",null,"New York Islanders",null,"12/06/2018 New York Islanders (NYI)",null,null,null,"New York Islanders (NYI)",null,null,"NYI",null,"New",null,"Islanders",null,"New York Islanders",null,27,"12/06/2018 New York Islanders (NYI)","Home","New York Islanders",6,2,null,null,3,4,0,0,null,"2018-10-11","Chicago Blackhawks","Minnesota Wild",null,"2018-12-06",{"$f":"COUNTIF(PensGameDates[Date],AN29)+1","v":12},"201812060PIT.html",27,"https://www.hockey-reference.com/boxscores/201812060PIT.html"]
[28,"2018-12-08","19:00:00","Away","@","Ottawa Senators",null,"12/08/2018 @Ottawa Senators (OTT)",null,null,null,"@Ottawa Senators (OTT)",null,null,"OTT",null,"@Ottawa",null,"Senators",null,"Ottawa Senators",null,28,"12/08/2018 @Ottawa Senators (OTT)","Away","@Ottawa Senators",1,2,1,null,6,3,0,0,null,"2018-10-11","Los Angeles Kings","Montreal Canadiens",null,"2018-12-08",{"$f":"COUNTIF(PensGameDates[Date],AN30)+1","v":11},"201812080OTT.html",28,"https://www.hockey-reference.com/boxscores/201812080OTT.html"]
[29,"2018-12-10","19:00:00","Away","@","New York Islanders",null,"12/10/2018 @New York Islanders (NYI)",null,null,null,"@New York Islanders (NYI)",null,null,"NYI",null,"@New",null,"Islanders",null,"New York Islanders",null,29,"12/10/2018 @New York Islanders (NYI)","Away","@New York Islanders",2,1,null,1,5,4,5,5,null,"2018-10-11","Washington Capitals","New Jersey Devils",null,"2018-12-10",{"$f":"COUNTIF(PensGameDates[Date],AN31)+1","v":5},"201812100NYI.html",29,"https://www.hockey-reference.com/boxscores/201812100NYI.html"]
[30,"2018-12-12","20:00:00","Away","@","Chicago Blackhawks",null,"12/12/2018 @Chicago Blackhawks (CHI)",null,null,null,"@Chicago Blackhawks (CHI)",null,null,"CHI",null,"@Chicago",null,"Blackhawks",null,"Chicago Blackhawks",null,30,"12/12/2018 @Chicago Blackhawks (CHI)","Away","@Chicago Blackhawks",3,6,null,null,2,2,0,0,null,"2018-10-11","Winnipeg Jets","Nashville Predators",null,"2018-12-12",{"$f":"COUNTIF(PensGameDates[Date],AN32)+1","v":5},"201812120CHI.html",30,"https://www.hockey-reference.com/boxscores/201812120CHI.html"]
[31,"2018-12-14","19:00:00","Home",null,"Boston Bruins",null,"12/14/2018 Boston Bruins (BOS)",null,null,null,"Boston Bruins (BOS)",null,null,"BOS",null,"Boston",null,"Bruins",null,"Boston Bruins",null,31,"12/14/2018 Boston Bruins (BOS)","Home","Boston Bruins",5,3,null,null,2,1,0,0,null,"2018-10-11","San Jose Sharks","New York Rangers",null,"2018-12-14",{"$f":"COUNTIF(PensGameDates[Date],AN33)+1","v":9},"201812140PIT.html",31,"https://www.hockey-reference.com/boxscores/201812140PIT.html"]
[32,"2018-12-15","19:00:00","Home",null,"Los Angeles Kings",null,"12/15/2018 Los Angeles Kings (LAK)",null,null,null,"Los Angeles Kings (LAK)",null,null,"LAK",null,"Los",null,"Kings",null,"Los Angeles Kings",null,32,"12/15/2018 Los Angeles Kings (LAK)","Home","Los Angeles Kings",4,3,1,null,3,3,0,0,null,"2018-10-11","Vegas Golden Knights","Pittsburgh Penguins",null,"2018-12-15",{"$f":"COUNTIF(PensGameDates[Date],AN34)+1","v":11},"201812150PIT.html",32,"https://www.hockey-reference.com/boxscores/201812150PIT.html"]
[33,"2018-12-17","19:00:00","Home",null,"Anaheim Ducks",null,"12/17/2018 Anaheim Ducks (ANA)",null,null,null,"Anaheim Ducks (ANA)",null,null,"ANA",null,"Anaheim",null,"Ducks",null,"Anaheim Ducks",null,33,"12/17/2018 Anaheim Ducks (ANA)","Home","Anaheim Ducks",2,4,null,null,2,4,0,0,null,"2018-10-11","Calgary Flames","St. Louis Blues",null,"2018-12-17",{"$f":"COUNTIF(PensGameDates[Date],AN35)+1","v":6},"201812170PIT.html",33,{"$f":"\"https://www.hockey-reference.com/boxscores/\" & AP35","v":"https://www.hockey-reference.com/boxscores/201812170PIT.html"}]
[34,"2018-12-19","20:00:00","Away","@","Washington Capitals",null,"12/19/2018 @Washington Capitals (WSH)",null,null,null,"@Washington Capitals (WSH)",null,null,"WSH",null,"@Washington",null,"Capitals",null,"Washington Capitals",null,34,"12/19/2018 @Washington Capitals (WSH)","Away","@Washington Capitals",2,1,null,null,7,6,0,0,null,"2018-10-11","Vancouver Canucks","Tampa Bay Lightning",null,"2018-12-19",{"$f":"COUNTIF(PensGameDates[Date],AN36)+1","v":3},"201812190WSH.html",34,"https://www.hockey-reference.com/boxscores/201812190WSH.html"]
[35,"2018-12-20","19:00:00","Home",null,"Minnesota Wild",null,"12/20/2018 Minnesota Wild (MIN)",null,null,null,"Minnesota Wild (MIN)",null,null,"MIN",null,"Minnesota",null,"Wild",null,"Minnesota Wild",null,35,"12/20/2018 Minnesota Wild (MIN)","Home","Minnesota Wild",2,1,null,null,3,4,0,0,null,"2018-10-13","Buffalo Sabres","Arizona Coyotes",null,"2018-12-20",{"$f":"COUNTIF(PensGameDates[Date],AN37)+1","v":13},"201812200PIT.html",35,"https://www.hockey-reference.com/boxscores/201812200PIT.html"]
[36,"2018-12-22","19:00:00","Away","@","Carolina Hurricanes",null,"12/22/2018 @Carolina Hurricanes (CAR)",null,null,null,"@Carolina Hurricanes (CAR)",null,null,"CAR",null,"@Carolina",null,"Hurricanes",null,"Carolina Hurricanes",null,36,"12/22/2018 @Carolina Hurricanes (CAR)","Away","@Carolina Hurricanes",3,0,null,null,4,2,0,0,null,"2018-10-13","Detroit Red Wings","Boston Bruins",null,"2018-12-22",{"$f":"COUNTIF(PensGameDates[Date],AN38)+1","v":15},"201812220CAR.html",36,"https://www.hockey-reference.com/boxscores/201812220CAR.html"]
[37,"2018-12-27","19:00:00","Home",null,"Detroit Red Wings",null,"12/27/2018 Detroit Red Wings (DET)",null,null,null,"Detroit Red Wings (DET)",null,null,"DET",null,"Detroit",null,"Wings",null,"Detroit Red Wings",null,37,"12/27/2018 Detroit Red Wings (DET)","Home","Detroit Red Wings",5,2,null,null,1,3,0,0,null,"2018-10-13","St. Louis Blues","Chicago Blackhawks",null,"2018-12-27",{"$f":"COUNTIF(PensGameDates[Date],AN39)+1","v":14},"201812270PIT.html",37,"https://www.hockey-reference.com/boxscores/201812270PIT.html"]
[38,"2018-12-29","20:00:00","Away","@","St. Louis Blues",null,"12/29/2018 @St. Louis Blues (STL)",null,null,null,"@St. Louis Blues (STL)",null,null,"STL",null,"@St.",null,"Blues",null,"St. Louis Blues",null,38,"12/29/2018 @St. Louis Blues (STL)","Away","@St. Louis Blues",1,6,null,null,3,5,0,0,null,"2018-10-13","Calgary Flames","Colorado Avalanche",null,"2018-12-29",{"$f":"COUNTIF(PensGameDates[Date],AN40)+1","v":16},"201812290STL.html",38,"https://www.hockey-reference.com/boxscores/201812290STL.html"]
[39,"2018-12-31","18:00:00","Away","@","Minnesota Wild",null,"12/31/2018 @Minnesota Wild (MIN)",null,null,null,"@Minnesota Wild (MIN)",null,null,"MIN",null,"@Minnesota",null,"Wild",null,"Minnesota Wild",null,39,"12/31/2018 @Minnesota Wild (MIN)","Away","@Minnesota Wild",3,2,null,null,2,2,0,0,null,"2018-10-13","Anaheim Ducks","Dallas Stars",null,"2018-12-31",{"$f":"COUNTIF(PensGameDates[Date],AN41)+1","v":14},"201812310MIN.html",39,"https://www.hockey-reference.com/boxscores/201812310MIN.html"]
[40,"2019-01-02","19:00:00","Away","@","New York Rangers",null,"01/02/2019 @New York Rangers (NYR)",null,null,null,"@New York Rangers (NYR)",null,null,"NYR",null,"@New",null,"Rangers",null,"New York Rangers",null,40,"01/02/2019 @New York Rangers (NYR)","Away","@New York Rangers",7,2,null,null,2,2,0,0,null,"2018-10-13","Vancouver Canucks","Florida Panthers",null,"2019-01-02",{"$f":"COUNTIF(PensGameDates[Date],AN42)+1","v":7},"201901020NYR.html",40,"https://www.hockey-reference.com/boxscores/201901020NYR.html"]
[41,"2019-01-04","19:00:00","Home",null,"Winnipeg Jets",null,"01/04/2019 Winnipeg Jets (WPG)",null,null,null,"Winnipeg Jets (WPG)",null,null,"WPG",null,"Winnipeg",null,"Jets",null,"Winnipeg Jets",null,41,"01/04/2019 Winnipeg Jets (WPG)","Home","Winnipeg Jets",4,0,null,null,1,3,0,0,null,"2018-10-13","Carolina Hurricanes","Minnesota Wild",null,"2019-01-04",{"$f":"COUNTIF(PensGameDates[Date],AN43)+1","v":8},"201901040PIT.html",41,"https://www.hockey-reference.com/boxscores/201901040PIT.html"]
[42,"2019-01-06","20:00:00","Home",null,"Chicago Blackhawks",null,"01/06/2019 Chicago Blackhawks (CHI)",null,null,null,"Chicago Blackhawks (CHI)",null,null,"CHI",null,"Chicago",null,"Blackhawks",null,"Chicago Blackhawks",null,42,"01/06/2019 Chicago Blackhawks (CHI)","Home","Chicago Blackhawks",3,5,null,null,3,3,0,0,null,"2018-10-13","Pittsburgh Penguins","Montreal Canadiens",null,"2019-01-06",{"$f":"COUNTIF(PensGameDates[Date],AN44)+1","v":8},"201901060PIT.html",42,"https://www.hockey-reference.com/boxscores/201901060PIT.html"]
[43,"2019-01-08","19:00:00","Home",null,"Florida Panthers",null,"01/08/2019 Florida Panthers (FLA)",null,null,null,"Florida Panthers (FLA)",null,null,"FLA",null,"Florida",null,"Panthers",null,"Florida Panthers",null,43,"01/08/2019 Florida Panthers (FLA)","Home","Florida Panthers",5,1,null,null,7,7,0,0,null,"2018-10-13","New York Islanders","Nashville Predators",null,"2019-01-08",{"$f":"COUNTIF(PensGameDates[Date],AN45)+1","v":12},"201901080PIT.html",43,"https://www.hockey-reference.com/boxscores/201901080PIT.html"]
[44,"2019-01-11","22:00:00","Away","@","Anaheim Ducks",null,"01/11/2019 @Anaheim Ducks (ANA)",null,null,null,"@Anaheim Ducks (ANA)",null,null,"ANA",null,"@Anaheim",null,"Ducks",null,"Anaheim Ducks",null,44,"01/11/2019 @Anaheim Ducks (ANA)","Away","@Anaheim Ducks",7,4,null,null,2,3,0,0,null,"2018-10-13","Edmonton Oilers","New York Rangers",null,"2019-01-11",{"$f":"COUNTIF(PensGameDates[Date],AN46)+1","v":5},"201901110ANA.html",44,"https://www.hockey-reference.com/boxscores/201901110ANA.html"]
[45,"2019-01-12","22:30:00","Away","@","Los Angeles Kings",null,"01/12/2019 @Los Angeles Kings (LAK)",null,null,null,"@Los Angeles Kings (LAK)",null,null,"LAK",null,"@Los",null,"Kings",null,"Los Angeles Kings",null,45,"01/12/2019 @Los Angeles Kings (LAK)","Away","@Los Angeles Kings",2,5,null,null,4,5,0,0,null,"2018-10-13","Los Angeles Kings","Ottawa Senators",null,"2019-01-12",{"$f":"COUNTIF(PensGameDates[Date],AN47)+1","v":13},"201901120LAK.html",45,"https://www.hockey-reference.com/boxscores/201901120LAK.html"]
[46,"2019-01-15","22:00:00","Away","@","San Jose Sharks",null,"01/15/2019 @San Jose Sharks (SJS)",null,null,null,"@San Jose Sharks (SJS)",null,null,"SJS",null,"@San",null,"Sharks",null,"San Jose Sharks",null,46,"01/15/2019 @San Jose Sharks (SJS)","Away","@San Jose Sharks",2,5,null,null,2,2,0,0,null,"2018-10-13","Vegas Golden Knights","Philadelphia Flyers",null,"2019-01-15",{"$f":"COUNTIF(PensGameDates[Date],AN48)+1","v":11},"201901150SJS.html",46,"https://www.hockey-reference.com/boxscores/201901150SJS.html"]
[47,"2019-01-18","21:00:00","Away","@","Arizona Coyotes",null,"01/18/2019 @Arizona Coyotes (ARI)",null,null,null,"@Arizona Coyotes (ARI)",null,null,"ARI",null,"@Arizona",null,"Coyotes",null,"Arizona Coyotes",null,47,"01/18/2019 @Arizona Coyotes (ARI)","Away","@Arizona Coyotes",3,2,1,null,4,4,0,0,null,"2018-10-13","Columbus Blue Jackets","Tampa Bay Lightning",null,"2019-01-18",{"$f":"COUNTIF(PensGameDates[Date],AN49)+1","v":8},"201901180ARI.html",47,"https://www.hockey-reference.com/boxscores/201901180ARI.html"]
[48,"2019-01-19","22:00:00","Away","@","Vegas Golden Knights",null,"01/19/2019 @Vegas Golden Knights (VEG)",null,null,null,"@Vegas Golden Knights (VEG)",null,null,"VEG",null,"@Vegas",null,"Knights",null,"Vegas Golden Knights",null,48,"01/19/2019 @Vegas Golden Knights (VEG)","Away","@Vegas Golden Knights",3,7,null,null,2,2,0,0,null,"2018-10-13","Toronto Maple Leafs","Washington Capitals",null,"2019-01-19",{"$f":"COUNTIF(PensGameDates[Date],AN50)+1","v":12},"201901190VEG.html",48,"https://www.hockey-reference.com/boxscores/201901190VEG.html"]
[49,"2019-01-28","19:00:00","Home",null,"New Jersey Devils",null,"01/28/2019 New Jersey Devils (NJD)",null,null,null,"New Jersey Devils (NJD)",null,null,"NJD",null,"New",null,"Devils",null,"New Jersey Devils",null,49,"01/28/2019 New Jersey Devils (NJD)","Home","New Jersey Devils",3,6,null,null,4,5,0,0,null,"2018-10-16","Arizona Coyotes","Minnesota Wild",null,"2019-01-28",{"$f":"COUNTIF(PensGameDates[Date],AN51)+1","v":3},"201901280PIT.html",49,"https://www.hockey-reference.com/boxscores/201901280PIT.html"]
[50,"2019-01-30","20:00:00","Home",null,"Tampa Bay Lightning",null,"01/30/2019 Tampa Bay Lightning (TBL)",null,null,null,"Tampa Bay Lightning (TBL)",null,null,"TBL",null,"Tampa",null,"Lightning",null,"Tampa Bay Lightning",null,50,"01/30/2019 Tampa Bay Lightning (TBL)","Home","Tampa Bay Lightning",4,2,null,null,5,6,0,0,null,"2018-10-16","Dallas Stars","New Jersey Devils",null,"2019-01-30",{"$f":"COUNTIF(PensGameDates[Date],AN52)+1","v":3},"201901300PIT.html",50,"https://www.hockey-reference.com/boxscores/201901300PIT.html"]
[51,"2019-02-01","19:00:00","Home",null,"Ottawa Senators",null,"02/01/2019 Ottawa Senators (OTT)",null,null,null,"Ottawa Senators (OTT)",null,null,"OTT",null,"Ottawa",null,"Senators",null,"Ottawa Senators",null,51,"02/01/2019 Ottawa Senators (OTT)","Home","Ottawa Senators",5,3,null,null,3,3,0,0,null,"2018-10-16","Colorado Avalanche","New York Rangers",null,"2019-02-01",{"$f":"COUNTIF(PensGameDates[Date],AN53)+1","v":9},"201902010PIT.html",51,"https://www.hockey-reference.com/boxscores/201902010PIT.html"]
[52,"2019-02-02","19:00:00","Away","@","Toronto Maple Leafs",null,"02/02/2019 @Toronto Maple Leafs (TOR)",null,null,null,"@Toronto Maple Leafs (TOR)",null,null,"TOR",null,"@Toronto",null,"Leafs",null,"Toronto Maple Leafs",null,52,"02/02/2019 @Toronto Maple Leafs (TPR)","Away","@Toronto Maple Leafs",2,3,null,null,2,1,0,0,null,"2018-10-16","Florida Panthers","Philadelphia Flyers",null,"2019-02-02",{"$f":"COUNTIF(PensGameDates[Date],AN54)+1","v":14},"201902020TOR.html",52,"https://www.hockey-reference.com/boxscores/201902020TOR.html"]
[53,"2019-02-05","19:00:00","Home",null,"Carolina Hurricanes",null,"02/05/2019 Carolina Hurricanes (CAR)",null,null,null,"Carolina Hurricanes (CAR)",null,null,"CAR",null,"Carolina",null,"Hurricanes",null,"Carolina Hurricanes",null,53,"02/05/2019 Carolina Hurricanes (CAR)","Home","Carolina Hurricanes",0,4,null,null,2,2,0,0,null,"2018-10-16","Vancouver Canucks","Pittsburgh Penguins",null,"2019-02-05",{"$f":"COUNTIF(PensGameDates[Date],AN55)+1","v":13},"201902050PIT.html",53,"https://www.hockey-reference.com/boxscores/201902050PIT.html"]
[54,"2019-02-07","19:00:00","Away","@","Florida Panthers",null,"02/07/2019 @Florida Panthers (FLA)",null,null,null,"@Florida Panthers (FLA)",null,null,"FLA",null,"@Florida",null,"Panthers",null,"Florida Panthers",null,54,"02/07/2019 @Florida Panthers (FLA)","Away","@Florida Panthers",2,3,1,null,3,3,0,0,null,"2018-10-16","Carolina Hurricanes","Tampa Bay Lightning",null,"2019-02-07",{"$f":"COUNTIF(PensGameDates[Date],AN56)+1","v":15},"201902070FLA.html",54,"https://www.hockey-reference.com/boxscores/201902070FLA.html"]
[55,"2019-02-09","19:00:00","Away","@","Tampa Bay Lightning",null,"02/09/2019 @Tampa Bay Lightning (TBL)",null,null,null,"@Tampa Bay Lightning (TBL)",null,null,"TBL",null,"@Tampa",null,"Lightning",null,"Tampa Bay Lightning",null,55,"02/09/2019 @Tampa Bay Lightning (TBL)","Away","@Tampa Bay Lightning",4,5,null,null,5,5,0,0,null,"2018-10-16","Buffalo Sabres","Vegas Golden Knights",null,"2019-02-09",{"$f":"COUNTIF(PensGameDates[Date],AN57)+1","v":15},"201902090TBL.html",55,"https://www.hockey-reference.com/boxscores/201902090TBL.html"]
[56,"2019-02-11","19:00:00","Away","@","Philadelphia Flyers",null,"02/11/2019 @Philadelphia Flyers (PHI)",null,null,null,"@Philadelphia Flyers (PHI)",null,null,"PHI",null,"@Philadelphia",null,"Flyers",null,"Philadelphia Flyers",null,56,"02/11/2019 @Philadelphia Flyers (PHI)","Away","@Philadelphia Flyers",4,1,null,null,5,2,0,0,null,"2018-10-16","Edmonton Oilers","Winnipeg Jets",null,"2019-02-11",{"$f":"COUNTIF(PensGameDates[Date],AN58)+1","v":4},"201902110PHI.html",56,"https://www.hockey-reference.com/boxscores/201902110PHI.html"]
[57,"2019-02-13","20:00:00","Home",null,"Edmonton Oilers",null,"02/13/2019 Edmonton Oilers (EMD)",null,null,null,"Edmonton Oilers (EMD)",null,null,"EMD",null,"Edmonton",null,"Oilers",null,"Edmonton Oilers",null,57,"02/13/2019 Edmonton Oilers (EMD)","Home","Edmonton Oilers",3,1,null,null,2,1,0,0,null,"2018-10-18","Philadelphia Flyers","Columbus Blue Jackets",null,"2019-02-13",{"$f":"COUNTIF(PensGameDates[Date],AN59)+1","v":3},"201902130PIT.html",57,"https://www.hockey-reference.com/boxscores/201902130PIT.html"]
[58,"2019-02-16","13:00:00","Home",null,"Calgary Flames",null,"02/16/2019 Calgary Flames (CGY)",null,null,null,"Calgary Flames (CGY)",null,null,"CGY",null,"Calgary",null,"Flames",null,"Calgary Flames",null,58,"02/16/2019 Calgary Flames (CGY)","Home","Calgary Flames",4,5,null,null,6,7,0,0,null,"2018-10-18","Arizona Coyotes","Chicago Blackhawks",null,"2019-02-16",{"$f":"COUNTIF(PensGameDates[Date],AN60)+1","v":13},"201902160PIT.html",58,"https://www.hockey-reference.com/boxscores/201902160PIT.html"]
[59,"2019-02-17","12:30:00","Home",null,"New York Rangers",null,"02/17/2019 New York Rangers (NYR)",null,null,null,"New York Rangers (NYR)",null,null,"NYR",null,"New",null,"Rangers",null,"New York Rangers",null,59,"02/17/2019 New York Rangers (NYR)","Home","New York Rangers",6,5,null,null,2,4,0,0,null,"2018-10-18","Boston Bruins","Edmonton Oilers",null,"2019-02-17",{"$f":"COUNTIF(PensGameDates[Date],AN61)+1","v":7},"201902170PIT.html",59,"https://www.hockey-reference.com/boxscores/201902170PIT.html"]
[60,"2019-02-19","19:00:00","Away","@","New Jersey Devils",null,"02/19/2019 @New Jersey Devils (NJD)",null,null,null,"@New Jersey Devils (NJD)",null,null,"NJD",null,"@New",null,"Devils",null,"New Jersey Devils",null,60,"02/19/2019 @New Jersey Devils (NJD)","Away","@New Jersey Devils",4,3,null,null,2,2,0,0,null,"2018-10-18","New York Islanders","Los Angeles Kings",null,"2019-02-19",{"$f":"COUNTIF(PensGameDates[Date],AN62)+1","v":10},"201902190NJD.html",60,"https://www.hockey-reference.com/boxscores/201902190NJD.html"]
[61,"2019-02-21","19:00:00","Home",null,"San Jose Sharks",null,"02/21/2019 San Jose Sharks (SJS)",null,null,null,"San Jose Sharks (SJS)",null,null,"SJS",null,"San",null,"Sharks",null,"San Jose Sharks",null,61,"02/21/2019 San Jose Sharks (SJS)","Home","San Jose Sharks",0,4,null,null,12,6,0,0,null,"2018-10-18","Colorado Avalanche","New Jersey Devils",null,"2019-02-21",{"$f":"COUNTIF(PensGameDates[Date],AN63)+1","v":12},"201902210PIT.html",61,"https://www.hockey-reference.com/boxscores/201902210PIT.html"]
[62,"2019-02-23","20:00:00","Away","@","Philadelphia Flyers",null,"02/23/2019 @Philadelphia Flyers (PHI)",null,null,null,"@Philadelphia Flyers (PHI)",null,null,"PHI",null,"@Philadelphia",null,"Flyers",null,"Philadelphia Flyers",null,62,"02/23/2019 @Philadelphia Flyers (PHI)","Away","@Philadelphia Flyers",3,4,1,null,5,3,0,0,null,"2018-10-18","Buffalo Sabres","San Jose Sharks",null,"2019-02-23",{"$f":"COUNTIF(PensGameDates[Date],AN64)+1","v":12},"201902230PHI.html",62,"https://www.hockey-reference.com/boxscores/201902230PHI.html"]
[63,"2019-02-26","19:00:00","Away","@","Columbus Blue Jackets",null,"02/26/2019 @Columbus Blue Jackets (CBJ)",null,null,null,"@Columbus Blue Jackets (CBJ)",null,null,"CBJ",null,"@Columbus",null,"Jackets",null,"Columbus Blue Jackets",null,63,"02/26/2019 @Columbus Blue Jackets (CBJ)","Away","@Columbus Blue Jackets",5,2,null,null,3,2,0,0,null,"2018-10-18","Detroit Red Wings","Tampa Bay Lightning",null,"2019-02-26",{"$f":"COUNTIF(PensGameDates[Date],AN65)+1","v":12},"201902260CBJ.html",63,"https://www.hockey-reference.com/boxscores/201902260CBJ.html"]
[64,"2019-03-01","19:00:00","Away","@","Buffalo Sabres",null,"03/01/2019 @Buffalo Sabres (BUF)",null,null,null,"@Buffalo Sabres (BUF)",null,null,"BUF",null,"@Buffalo",null,"Sabres",null,"Buffalo Sabres",null,64,"03/01/2019 @Buffalo Sabres (BUF)","Away","@Buffalo Sabres",3,4,1,null,3,4,0,0,null,"2018-10-18","Pittsburgh Penguins","Toronto Maple Leafs",null,"2019-03-01",{"$f":"COUNTIF(PensGameDates[Date],AN66)+1","v":9},"201903010BUF.html",64,"https://www.hockey-reference.com/boxscores/201903010BUF.html"]
[65,"2019-03-02","19:00:00","Away","@","Montreal Canadiens",null,{"$f":"TEXT(B67,\"mm/dd/yyyy\")&\" \"&E67&F67&\" (\"&O67&\")\"","v":"03/02/2019 @Montreal Canadiens (MTL)"},null,null,null,"@Montreal Canadiens (MTL)",null,null,"MTL",null,{"$f":"LEFT(L67,FIND(\" \",L67)-1)","v":"@Montreal"},null,{"$f":"IF(LEN(L67)-LEN(SUBSTITUTE(L67,\" \",\"\"))=2,RIGHT(F67,LEN(F67)-FIND(\" \",F67)),RIGHT(F67,LEN(F67)-FIND(\" \",F67,FIND(\" \",F67)+1)))","v":"Canadiens"},null,{"$f":"IF(E67=\"Away\",\"@\",\"\")&F67","v":"Montreal Canadiens"},null,65,"03/02/2019 @Montreal Canadiens (MTL)","Away",{"$f":"LEFT(L67,LEN(L67)-6)","v":"@Montreal Canadiens"},5,1,null,null,3,3,0,0,null,"2018-10-18","Vancouver Canucks","Winnipeg Jets",null,"2019-03-02",{"$f":"COUNTIF(PensGameDates[Date],AN67)+1","v":11},"201903020MTL.html",65,{"$f":"\"https://www.hockey-reference.com/boxscores/\" & AP67","v":"https://www.hockey-reference.com/boxscores/201903020MTL.html"}]
[66,"2019-03-05","19:00:00","Home",null,"Florida Panthers",null,"03/05/2019 Florida Panthers (FLA)",null,null,null,"Florida Panthers (FLA)",null,null,"FLA",null,"Florida",null,"Panthers",null,"Florida Panthers",null,66,"03/05/2019 Florida Panthers (FLA)","Home","Florida Panthers",3,2,1,null,0,0,0,0,null,"2018-10-23","Arizona Coyotes","Columbus Blue Jackets",null,"2019-03-05",{"$f":"COUNTIF(PensGameDates[Date],AN68)+1","v":11},"201903050PIT.html",66,"https://www.hockey-reference.com/boxscores/201903050PIT.html"]
[67,"2019-03-07","19:00:00","Home",null,"Columbus Blue Jackets",null,"03/07/2019 Columbus Blue Jackets (CBJ)",null,null,null,{"$f":"TRIM(RIGHT(H69,LEN(H69)-10))","v":"Columbus Blue Jackets (CBJ)"},null,null,"CBJ",null,"Columbus",null,"Jackets",null,"Columbus Blue Jackets",null,67,"03/07/2019 Columbus Blue Jackets (CBJ)","Home","Columbus Blue Jackets",3,0,null,null,5,6,0,0,null,"2018-10-23","Anaheim Ducks","Chicago Blackhawks",null,"2019-03-07",{"$f":"COUNTIF(PensGameDates[Date],AN69)+1","v":12},"201903070PIT.html",{"$f":"AQ68+1","v":67},"https://www.hockey-reference.com/boxscores/201903070PIT.html"]
[68,"2019-03-09","19:00:00","Away","@","Columbus Blue Jackets",null,"03/09/2019 @Columbus Blue Jackets (CBJ)",null,null,null,"@Columbus Blue Jackets (CBJ)",null,null,"CBJ",null,"@Columbus",null,"Jackets",null,"Columbus Blue Jackets",null,68,"03/09/2019 @Columbus Blue Jackets (CBJ)","Away","@Columbus Blue Jackets",1,4,null,null,0,0,0,0,null,"2018-10-23","Los Angeles Kings","Dallas Stars",null,"2019-03-09",{"$f":"COUNTIF(PensGameDates[Date],AN70)+1","v":13},"201903090CBJ.html",68,"https://www.hockey-reference.com/boxscores/201903090CBJ.html"]
[69,"2019-03-10","19:30:00","Home",null,"Boston Bruins",null,"03/10/2019 Boston Bruins (BOS)",null,null,null,"Boston Bruins (BOS)",null,null,"BOS",null,"Boston",null,"Bruins",null,"Boston Bruins",null,69,"03/10/2019 Boston Bruins (BOS)","Home","Boston Bruins",4,2,null,null,5,5,0,0,null,"2018-10-23","Pittsburgh Penguins","Edmonton Oilers",null,"2019-03-10",{"$f":"COUNTIF(PensGameDates[Date],AN71)+1","v":6},"201903100PIT.html",69,"https://www.hockey-reference.com/boxscores/201903100PIT.html"]
[70,"2019-03-12","19:00:00","Home",null,"Washington Capitals",null,"03/12/2019 Washington Capitals (WSH)",null,null,null,"Washington Capitals (WSH)",null,null,"WSH",null,"Washington",null,"Capitals",null,"Washington Capitals",null,70,"03/12/2019 Washington Capitals (WSH)","Home","Washington Capitals",5,3,null,null,3,5,0,0,null,"2018-10-23","Calgary Flames","Montreal Canadiens",null,"2019-03-12",{"$f":"COUNTIF(PensGameDates[Date],AN72)+1","v":9},"201903120PIT.html",70,"https://www.hockey-reference.com/boxscores/201903120PIT.html"]
[71,"2019-03-14","19:00:00","Away","@","Buffalo Sabres",null,"03/14/2019 @Buffalo Sabres (BUF)",null,null,null,"@Buffalo Sabres (BUF)",null,null,"BUF",null,"@Buffalo",null,"Sabres",null,"Buffalo Sabres",null,71,"03/14/2019 @Buffalo Sabres (BUF)","Away","@Buffalo Sabres",5,0,null,null,3,5,0,0,null,"2018-10-23","San Jose Sharks","Nashville Predators",null,"2019-03-14",{"$f":"COUNTIF(PensGameDates[Date],AN73)+1","v":11},"201903140BUF.html",71,"https://www.hockey-reference.com/boxscores/201903140BUF.html"]
[72,"2019-03-16","13:00:00","Home",null,"St. Louis Blues",null,"03/16/2019 St. Louis Blues (STL)",null,null,null,"St. Louis Blues (STL)",null,null,"STL",null,"St.",null,"Blues",null,"St. Louis Blues",null,72,"03/16/2019 St. Louis Blues (STL)","Home","St. Louis Blues",1,5,null,null,2,4,0,0,null,"2018-10-23","Florida Panthers","New York Rangers",null,"2019-03-16",{"$f":"COUNTIF(PensGameDates[Date],AN74)+1","v":13},"201903160PIT.html",72,"https://www.hockey-reference.com/boxscores/201903160PIT.html"]
[73,"2019-03-17","19:30:00","Home",null,"Philadelphia Flyers",null,"03/17/2019 Philadelphia Flyers (PHI)",null,null,null,"Philadelphia Flyers (PHI)",null,null,"PHI",null,"Philadelphia",null,"Flyers",null,"Philadelphia Flyers",null,73,"03/17/2019 Philadelphia Flyers (PHI)","Home","Philadelphia Flyers",1,2,1,null,3,4,0,0,null,"2018-10-23","Boston Bruins","Ottawa Senators",null,"2019-03-17",{"$f":"COUNTIF(PensGameDates[Date],AN75)+1","v":8},"201903170PIT.html",73,"https://www.hockey-reference.com/boxscores/201903170PIT.html"]
[74,"2019-03-19","19:00:00","Away","@","Carolina Hurricanes",null,"03/19/2019 @Carolina Hurricanes (CAR)",null,null,null,"@Carolina Hurricanes (CAR)",null,null,"CAR",null,"@Carolina",null,"Hurricanes",null,"Carolina Hurricanes",null,74,"03/19/2019 @Carolina Hurricanes (CAR)","Away","@Carolina Hurricanes",2,3,null,1,5,3,3,3,null,"2018-10-25","Vancouver Canucks","Arizona Coyotes",null,"2019-03-19",{"$f":"COUNTIF(PensGameDates[Date],AN76)+1","v":11},"201903190CAR.html",74,"https://www.hockey-reference.com/boxscores/201903190CAR.html"]
[75,"2019-03-21","20:00:00","Away","@","Nashville Predators",null,"03/21/2019 @Nashville Predators (NSH)",null,null,null,"@Nashville Predators (NSH)",null,null,"NSH",null,"@Nashville",null,"Predators",null,"Nashville Predators",null,75,"03/21/2019 @Nashville Predators (NSH)","Away","@Nashville Predators",2,1,null,1,3,2,2,3,null,"2018-10-25","Philadelphia Flyers","Boston Bruins",null,"2019-03-21",{"$f":"COUNTIF(PensGameDates[Date],AN77)+1","v":13},"201903210NSH.html",75,"https://www.hockey-reference.com/boxscores/201903210NSH.html"]
[76,"2019-03-23","20:00:00","Away","@","Dallas Stars",null,"03/23/2019 @Dallas Stars (DAL)",null,null,null,"@Dallas Stars (DAL)",null,null,"DAL",null,"@Dallas",null,"Stars",null,"Dallas Stars",null,76,"03/23/2019 @Dallas Stars (DAL)","Away","@Dallas Stars",3,2,null,null,3,1,0,0,null,"2018-10-25","Montreal Canadiens","Buffalo Sabres",null,"2019-03-23",{"$f":"COUNTIF(PensGameDates[Date],AN78)+1","v":15},"201903230DAL.html",76,"https://www.hockey-reference.com/boxscores/201903230DAL.html"]
[77,"2019-03-25","19:00:00","Away","@","New York Rangers",null,"03/25/2019 @New York Rangers (NYR)",null,null,null,"@New York Rangers (NYR)",null,null,"NYR",null,"@New",null,"Rangers",null,"New York Rangers",null,77,"03/25/2019 @New York Rangers (NYR)","Away","@New York Rangers",5,2,null,null,3,3,0,0,null,"2018-10-25","Pittsburgh Penguins","Calgary Flames",null,"2019-03-25",{"$f":"COUNTIF(PensGameDates[Date],AN79)+1","v":10},"201903250NYR.html",77,"https://www.hockey-reference.com/boxscores/201903250NYR.html"]
[78,"2019-03-29","19:00:00","Home",null,"Nashville Predators",null,"03/29/2019 Nashville Predators (NSH)",null,null,null,"Nashville Predators (NSH)",null,null,"NSH",null,"Nashville",null,"Predators",null,"Nashville Predators",null,78,"03/29/2019 Nashville Predators (NSH)","Home","Nashville Predators",1,3,null,null,2,4,0,0,null,"2018-10-25","New York Rangers","Chicago Blackhawks",null,"2019-03-29",{"$f":"COUNTIF(PensGameDates[Date],AN80)+1","v":7},"201903290PIT.html",78,"https://www.hockey-reference.com/boxscores/201903290PIT.html"]
[79,"2019-03-31","17:00:00","Home",null,"Carolina Hurricanes",null,"03/31/2019 Carolina Hurricanes (CAR)",null,null,null,"Carolina Hurricanes (CAR)",null,null,"CAR",null,"Carolina",null,"Hurricanes",null,"Carolina Hurricanes",null,79,"03/31/2019 Carolina Hurricanes (CAR)","Home","Carolina Hurricanes",3,1,null,null,4,3,0,0,null,"2018-10-25","Anaheim Ducks","Dallas Stars",null,"2019-03-31",{"$f":"COUNTIF(PensGameDates[Date],AN81)+1","v":7},"201903310PIT.html",79,"https://www.hockey-reference.com/boxscores/201903310PIT.html"]
[80,"2019-04-02","19:30:00","Away","@","Detroit Red Wings",null,"04/02/2019 @Detroit Red Wings (DET)",null,null,null,"@Detroit Red Wings (DET)",null,null,"DET",null,"@Detroit",null,"Wings",null,"Detroit Red Wings",null,80,"04/02/2019 @Detroit Red Wings (DET)","Away","@Detroit Red Wings",null,null,null,null,null,null,null,null,null,"2018-10-25","Washington Capitals","Edmonton Oilers",null,"2019-04-02",{"$f":"COUNTIF(PensGameDates[Date],AN82)+1","v":11},"201904020DET.html",80,"https://www.hockey-reference.com/boxscores/201904020DET.html"]
[81,"2019-04-04","19:00:00","Home",null,"Detroit Red Wings",null,"04/04/2019 Detroit Red Wings (DET)",null,null,null,"Detroit Red Wings (DET)",null,null,"DET",null,"Detroit",null,"Wings",null,"Detroit Red Wings",null,81,"04/04/2019 Detroit Red Wings (DET)","Home","Detroit Red Wings",null,null,null,null,null,null,null,null,null,"2018-10-25","Los Angeles Kings","Minnesota Wild",null,"2019-04-04",{"$f":"COUNTIF(PensGameDates[Date],AN83)+1","v":13},"201904040PIT.html",81,"https://www.hockey-reference.com/boxscores/201904040PIT.html"]
[82,"2019-04-06","19:00:00","Home",null,"New York Rangers",null,"04/06/2019 New York Rangers (NYR)",null,null,null,"New York Rangers (NYR)",null,null,"NYR",null,"New",null,"Rangers",null,"New York Rangers",null,82,"04/06/2019 New York Rangers (NYR)","Home","New York Rangers",null,null,null,null,null,null,null,null,null,"2018-10-25","Nashville Predators","New Jersey Devils",null,"2019-04-06",{"$f":"COUNTIF(PensGameDates[Date],AN84)+1","v":16},"201904060PIT.html",82,"https://www.hockey-reference.com/boxscores/201904060PIT.html"]
[null,null,null,null,null,null,null,null,null,null,null,null,null,null,null,null,null,null,null,null,null,null,null,null,null,null,null,null,null,null,null,null,null,null,null,"2018-10-25","Columbus Blue Jackets","St. Louis Blues"]
[null,null,null,null,null,null,null,null,null,null,null,null,null,null,null,null,null,null,null,null,null,null,null,null,null,null,null,null,null,null,null,null,null,null,null,"2018-10-27","Tampa Bay Lightning","Arizona Coyotes"]
[null,null,null,null,null,null,null,null,null,null,null,null,null,null,null,null,null,null,null,null,null,null,null,null,null,null,null,null,null,null,null,null,null,null,null,"2018-10-27","Montreal Canadiens","Boston Bruins"]
[null,null,null,null,null,null,null,null,null,null,null,null,null,null,null,null,null,null,null,null,null,null,null,null,null,null,null,null,null,null,null,null,null,null,null,"2018-10-27","Buffalo Sabres","Columbus Blue Jackets"]
[null,null,null,null,null,null,null,null,null,null,null,null,null,null,null,null,null,null,null,null,null,null,null,null,null,null,null,null,null,null,null,null,null,null,null,"2018-10-27","Washington Capitals","Calgary Flames"]
[null,null,null,null,null,null,null,null,null,null,null,null,null,null,null,null,null,null,null,null,null,null,null,null,null,null,null,null,null,null,null,null,null,null,null,"2018-10-27","Colorado Avalanche","Minnesota Wild"]
[null,null,null,null,null,null,null,null,null,null,null,null,null,null,null,null,null,null,null,null,null,null,null,null,null,null,null,null,null,null,null,null,null,null,null,"2018-10-27","Florida Panthers","New Jersey Devils"]
[null,null,null,null,null,null,null,null,null,null,null,null,null,null,null,null,null,null,null,null,null,null,null,null,null,null,null,null,null,null,null,null,null,null,null,"2018-10-27","Edmonton Oilers","Nashville Predators"]
[null,null,null,null,null,null,null,null,null,null,null,null,null,null,null,null,null,null,null,null,null,null,null,null,null,null,null,null,null,null,null,null,null,null,null,"2018-10-27","New York Islanders","Philadelphia Flyers"]
[null,null,null,null,null,null,null,null,null,null,null,null,null,null,null,null,null,null,null,null,null,null,null,null,null,null,null,null,null,null,null,null,null,null,null,"2018-10-27","Chicago Blackhawks","St. Louis Blues"]
[null,null,null,null,null,null,null,null,null,null,null,null,null,null,null,null,null,null,null,null,null,null,null,null,null,null,null,null,null,null,null,null,null,null,null,"2018-10-27","Winnipeg Jets","Toronto Maple Leafs"]
[null,null,null,null,null,null,null,null,null,null,null,null,null,null,null,null,null,null,null,null,null,null,null,null,null,null,null,null,null,null,null,null,null,null,null,"2018-10-27","Pittsburgh Penguins","Vancouver Canucks"]
[null,null,null,null,null,null,null,null,null,null,null,null,null,null,null,null,null,null,null,null,null,null,null,null,null,null,null,null,null,null,null,null,null,null,null,"2018-10-30","Philadelphia Flyers","Anaheim Ducks"]
[null,null,null,null,null,null,null,null,null,null,null,null,null,null,null,null,null,null,null,null,null,null,null,null,null,null,null,null,null,null,null,null,null,null,null,"2018-10-30","Ottawa Senators","Arizona Coyotes"]
[null,null,null,null,null,null,null,null,null,null,null,null,null,null,null,null,null,null,null,null,null,null,null,null,null,null,null,null,null,null,null,null,null,null,null,"2018-10-30","Calgary Flames","Buffalo Sabres"]
[null,null,null,null,null,null,null,null,null,null,null,null,null,null,null,null,null,null,null,null,null,null,null,null,null,null,null,null,null,null,null,null,null,null,null,"2018-10-30","Boston Bruins","Carolina Hurricanes"]
[null,null,null,null,null,null,null,null,null,null,null,null,null,null,null,null,null,null,null,null,null,null,null,null,null,null,null,null,null,null,null,null,null,null,null,"2018-10-30","Detroit Red Wings","Columbus Blue Jackets"]
[null,null,null,null,null,null,null,null,null,null,null,null,null,null,null,null,null,null,null,null,null,null,null,null,null,null,null,null,null,null,null,null,null,null,null,"2018-10-30","Minnesota Wild","Edmonton Oilers"]
[null,null,null,null,null,null,null,null,null,null,null,null,null,null,null,null,null,null,null,null,null,null,null,null,null,null,null,null,null,null,null,null,null,null,null,"2018-10-30","Dallas Stars","Montreal Canadiens"]
[null,null,null,null,null,null,null,null,null,null,null,null,null,null,null,null,null,null,null,null,null,null,null,null,null,null,null,null,null,null,null,null,null,null,null,"2018-10-30","Vegas Golden Knights","Nashville Predators"]
[null,null,null,null,null,null,null,null,null,null,null,null,null,null,null,null,null,null,null,null,null,null,null,null,null,null,null,null,null,null,null,null,null,null,null,"2018-10-30","New York Islanders","Pittsburgh Penguins"]
[null,null,null,null,null,null,null,null,null,null,null,null,null,null,null,null,null,null,null,null,null,null,null,null,null,null,null,null,null,null,null,null,null,null,null,"2018-10-30","New York Rangers","San Jose Sharks"]
[null,null,null,null,null,null,null,null,null,null,null,null,null,null,null,null,null,null,null,null,null,null,null,null,null,null,null,null,null,null,null,null,null,null,null,"2018-10-30","New Jersey Devils","Tampa Bay Lightning"]
[null,null,null,null,null,null,null,null,null,null,null,null,null,null,null,null,null,null,null,null,null,null,null,null,null,null,null,null,null,null,null,null,null,null,null,"2018-11-01","New York Rangers","Anaheim Ducks"]
[null,null,null,null,null,null,null,null,null,null,null,null,null,null,null,null,null,null,null,null,null,null,null,null,null,null,null,null,null,null,null,null,null,null,null,"2018-11-01","Colorado Avalanche","Calgary Flames"]
[null,null,null,null,null,null,null,null,null,null,null,null,null,null,null,null,null,null,null,null,null,null,null,null,null,null,null,null,null,null,null,null,null,null,null,"2018-11-01","New Jersey Devils","Detroit Red Wings"]
[null,null,null,null,null,null,null,null,null,null,null,null,null,null,null,null,null,null,null,null,null,null,null,null,null,null,null,null,null,null,null,null,null,null,null,"2018-11-01","Chicago Blackhawks","Edmonton Oilers"]
[null,null,null,null,null,null,null,null,null,null,null,null,null,null,null,null,null,null,null,null,null,null,null,null,null,null,null,null,null,null,null,null,null,null,null,"2018-11-01","Winnipeg Jets","Florida Panthers"]
[null,null,null,null,null,null,null,null,null,null,null,null,null,null,null,null,null,null,null,null,null,null,null,null,null,null,null,null,null,null,null,null,null,null,null,"2018-11-01","Philadelphia Flyers","Los Angeles Kings"]
[null,null,null,null,null,null,null,null,null,null,null,null,null,null,null,null,null,null,null,null,null,null,null,null,null,null,null,null,null,null,null,null,null,null,null,"2018-11-01","Washington Capitals","Montreal Canadiens"]
[null,null,null,null,null,null,null,null,null,null,null,null,null,null,null,null,null,null,null,null,null,null,null,null,null,null,null,null,null,null,null,null,null,null,null,"2018-11-01","Pittsburgh Penguins","New York Islanders"]
[null,null,null,null,null,null,null,null,null,null,null,null,null,null,null,null,null,null,null,null,null,null,null,null,null,null,null,null,null,null,null,null,null,null,null,"2018-11-01","Buffalo Sabres","Ottawa Senators"]
[null,null,null,null,null,null,null,null,null,null,null,null,null,null,null,null,null,null,null,null,null,null,null,null,null,null,null,null,null,null,null,null,null,null,null,"2018-11-01","Columbus Blue Jackets","San Jose Sharks"]
[null,null,null,null,null,null,null,null,null,null,null,null,null,null,null,null,null,null,null,null,null,null,null,null,null,null,null,null,null,null,null,null,null,null,null,"2018-11-01","Vegas Golden Knights","St. Louis Blues"]
[null,null,null,null,null,null,null,null,null,null,null,null,null,null,null,null,null,null,null,null,null,null,null,null,null,null,null,null,null,null,null,null,null,null,null,"2018-11-01","Nashville Predators","Tampa Bay Lightning"]
[null,null,null,null,null,null,null,null,null,null,null,null,null,null,null,null,null,null,null,null,null,null,null,null,null,null,null,null,null,null,null,null,null,null,null,"2018-11-01","Dallas Stars","Toronto Maple Leafs"]
[null,null,null,null,null,null,null,null,null,null,null,null,null,null,null,null,null,null,null,null,null,null,null,null,null,null,null,null,null,null,null,null,null,null,null,"2018-11-03","Ottawa Senators","Buffalo Sabres"]
[null,null,null,null,null,null,null,null,null,null,null,null,null,null,null,null,null,null,null,null,null,null,null,null,null,null,null,null,null,null,null,null,null,null,null,"2018-11-03","Chicago Blackhawks","Calgary Flames"]
[null,null,null,null,null,null,null,null,null,null,null,null,null,null,null,null,null,null,null,null,null,null,null,null,null,null,null,null,null,null,null,null,null,null,null,"2018-11-03","Edmonton Oilers","Detroit Red Wings"]
[null,null,null,null,null,null,null,null,null,null,null,null,null,null,null,null,null,null,null,null,null,null,null,null,null,null,null,null,null,null,null,null,null,null,null,"2018-11-03","Columbus Blue Jackets","Los Angeles Kings"]
[null,null,null,null,null,null,null,null,null,null,null,null,null,null,null,null,null,null,null,null,null,null,null,null,null,null,null,null,null,null,null,null,null,null,null,"2018-11-03","Tampa Bay Lightning","Montreal Canadiens"]
[null,null,null,null,null,null,null,null,null,null,null,null,null,null,null,null,null,null,null,null,null,null,null,null,null,null,null,null,null,null,null,null,null,null,null,"2018-11-03","Boston Bruins","Nashville Predators"]
[null,null,null,null,null,null,null,null,null,null,null,null,null,null,null,null,null,null,null,null,null,null,null,null,null,null,null,null,null,null,null,null,null,null,null,"2018-11-03","New Jersey Devils","New York Islanders"]
[null,null,null,null,null,null,null,null,null,null,null,null,null,null,null,null,null,null,null,null,null,null,null,null,null,null,null,null,null,null,null,null,null,null,null,"2018-11-03","Toronto Maple Leafs","Pittsburgh Penguins"]
[null,null,null,null,null,null,null,null,null,null,null,null,null,null,null,null,null,null,null,null,null,null,null,null,null,null,null,null,null,null,null,null,null,null,null,"2018-11-03","Philadelphia Flyers","San Jose Sharks"]
[null,null,null,null,null,null,null,null,null,null,null,null,null,null,null,null,null,null,null,null,null,null,null,null,null,null,null,null,null,null,null,null,null,null,null,"2018-11-03","Minnesota Wild","St. Louis Blues"]
[null,null,null,null,null,null,null,null,null,null,null,null,null,null,null,null,null,null,null,null,null,null,null,null,null,null,null,null,null,null,null,null,null,null,null,"2018-11-03","Carolina Hurricanes","Vegas Golden Knights"]
[null,null,null,null,null,null,null,null,null,null,null,null,null,null,null,null,null,null,null,null,null,null,null,null,null,null,null,null,null,null,null,null,null,null,null,"2018-11-03","Dallas Stars","Washington Capitals"]
[null,null,null,null,null,null,null,null,null,null,null,null,null,null,null,null,null,null,null,null,null,null,null,null,null,null,null,null,null,null,null,null,null,null,null,"2018-11-05","Philadelphia Flyers","Arizona Coyotes"]
[null,null,null,null,null,null,null,null,null,null,null,null,null,null,null,null,null,null,null,null,null,null,null,null,null,null,null,null,null,null,null,null,null,null,null,"2018-11-05","Dallas Stars","Boston Bruins"]
[null,null,null,null,null,null,null,null,null,null,null,null,null,null,null,null,null,null,null,null,null,null,null,null,null,null,null,null,null,null,null,null,null,null,null,"2018-11-05","Montreal Canadiens","New York Islanders"]
[null,null,null,null,null,null,null,null,null,null,null,null,null,null,null,null,null,null,null,null,null,null,null,null,null,null,null,null,null,null,null,null,null,null,null,"2018-11-05","New Jersey Devils","Pittsburgh Penguins"]
[null,null,null,null,null,null,null,null,null,null,null,null,null,null,null,null,null,null,null,null,null,null,null,null,null,null,null,null,null,null,null,null,null,null,null,"2018-11-05","Edmonton Oilers","Washington Capitals"]
[null,null,null,null,null,null,null,null,null,null,null,null,null,null,null,null,null,null,null,null,null,null,null,null,null,null,null,null,null,null,null,null,null,null,null,"2018-11-07","Calgary Flames","Anaheim Ducks"]
[null,null,null,null,null,null,null,null,null,null,null,null,null,null,null,null,null,null,null,null,null,null,null,null,null,null,null,null,null,null,null,null,null,null,null,"2018-11-07","Nashville Predators","Colorado Avalanche"]
[null,null,null,null,null,null,null,null,null,null,null,null,null,null,null,null,null,null,null,null,null,null,null,null,null,null,null,null,null,null,null,null,null,null,null,"2018-11-07","Pittsburgh Penguins","Washington Capitals"]
[null,null,null,null,null,null,null,null,null,null,null,null,null,null,null,null,null,null,null,null,null,null,null,null,null,null,null,null,null,null,null,null,null,null,null,"2018-11-10","Toronto Maple Leafs","Boston Bruins"]
[null,null,null,null,null,null,null,null,null,null,null,null,null,null,null,null,null,null,null,null,null,null,null,null,null,null,null,null,null,null,null,null,null,null,null,"2018-11-10","Vancouver Canucks","Buffalo Sabres"]
[null,null,null,null,null,null,null,null,null,null,null,null,null,null,null,null,null,null,null,null,null,null,null,null,null,null,null,null,null,null,null,null,null,null,null,"2018-11-10","Detroit Red Wings","Carolina Hurricanes"]
[null,null,null,null,null,null,null,null,null,null,null,null,null,null,null,null,null,null,null,null,null,null,null,null,null,null,null,null,null,null,null,null,null,null,null,"2018-11-10","New York Rangers","Columbus Blue Jackets"]
[null,null,null,null,null,null,null,null,null,null,null,null,null,null,null,null,null,null,null,null,null,null,null,null,null,null,null,null,null,null,null,null,null,null,null,"2018-11-10","Nashville Predators","Dallas Stars"]
[null,null,null,null,null,null,null,null,null,null,null,null,null,null,null,null,null,null,null,null,null,null,null,null,null,null,null,null,null,null,null,null,null,null,null,"2018-11-10","New York Islanders","Florida Panthers"]
[null,null,null,null,null,null,null,null,null,null,null,null,null,null,null,null,null,null,null,null,null,null,null,null,null,null,null,null,null,null,null,null,null,null,null,"2018-11-10","Calgary Flames","Los Angeles Kings"]
[null,null,null,null,null,null,null,null,null,null,null,null,null,null,null,null,null,null,null,null,null,null,null,null,null,null,null,null,null,null,null,null,null,null,null,"2018-11-10","Vegas Golden Knights","Montreal Canadiens"]
[null,null,null,null,null,null,null,null,null,null,null,null,null,null,null,null,null,null,null,null,null,null,null,null,null,null,null,null,null,null,null,null,null,null,null,"2018-11-10","Chicago Blackhawks","Philadelphia Flyers"]
[null,null,null,null,null,null,null,null,null,null,null,null,null,null,null,null,null,null,null,null,null,null,null,null,null,null,null,null,null,null,null,null,null,null,null,"2018-11-10","Arizona Coyotes","Pittsburgh Penguins"]
[null,null,null,null,null,null,null,null,null,null,null,null,null,null,null,null,null,null,null,null,null,null,null,null,null,null,null,null,null,null,null,null,null,null,null,"2018-11-10","Ottawa Senators","Tampa Bay Lightning"]
[null,null,null,null,null,null,null,null,null,null,null,null,null,null,null,null,null,null,null,null,null,null,null,null,null,null,null,null,null,null,null,null,null,null,null,"2018-11-13","Tampa Bay Lightning","Buffalo Sabres"]
[null,null,null,null,null,null,null,null,null,null,null,null,null,null,null,null,null,null,null,null,null,null,null,null,null,null,null,null,null,null,null,null,null,null,null,"2018-11-13","Arizona Coyotes","Detroit Red Wings"]
[null,null,null,null,null,null,null,null,null,null,null,null,null,null,null,null,null,null,null,null,null,null,null,null,null,null,null,null,null,null,null,null,null,null,null,"2018-11-13","Montreal Canadiens","Edmonton Oilers"]
[null,null,null,null,null,null,null,null,null,null,null,null,null,null,null,null,null,null,null,null,null,null,null,null,null,null,null,null,null,null,null,null,null,null,null,"2018-11-13","Toronto Maple Leafs","Los Angeles Kings"]
[null,null,null,null,null,null,null,null,null,null,null,null,null,null,null,null,null,null,null,null,null,null,null,null,null,null,null,null,null,null,null,null,null,null,null,"2018-11-13","Washington Capitals","Minnesota Wild"]
[null,null,null,null,null,null,null,null,null,null,null,null,null,null,null,null,null,null,null,null,null,null,null,null,null,null,null,null,null,null,null,null,null,null,null,"2018-11-13","Pittsburgh Penguins","New Jersey Devils"]
[null,null,null,null,null,null,null,null,null,null,null,null,null,null,null,null,null,null,null,null,null,null,null,null,null,null,null,null,null,null,null,null,null,null,null,"2018-11-13","Vancouver Canucks","New York Islanders"]
[null,null,null,null,null,null,null,null,null,null,null,null,null,null,null,null,null,null,null,null,null,null,null,null,null,null,null,null,null,null,null,null,null,null,null,"2018-11-13","Florida Panthers","Philadelphia Flyers"]
[null,null,null,null,null,null,null,null,null,null,null,null,null,null,null,null,null,null,null,null,null,null,null,null,null,null,null,null,null,null,null,null,null,null,null,"2018-11-13","Nashville Predators","San Jose Sharks"]
[null,null,null,null,null,null,null,null,null,null,null,null,null,null,null,null,null,null,null,null,null,null,null,null,null,null,null,null,null,null,null,null,null,null,null,"2018-11-15","Nashville Predators","Arizona Coyotes"]
[null,null,null,null,null,null,null,null,null,null,null,null,null,null,null,null,null,null,null,null,null,null,null,null,null,null,null,null,null,null,null,null,null,null,null,"2018-11-15","Florida Panthers","Columbus Blue Jackets"]
[null,null,null,null,null,null,null,null,null,null,null,null,null,null,null,null,null,null,null,null,null,null,null,null,null,null,null,null,null,null,null,null,null,null,null,"2018-11-15","Montreal Canadiens","Calgary Flames"]
[null,null,null,null,null,null,null,null,null,null,null,null,null,null,null,null,null,null,null,null,null,null,null,null,null,null,null,null,null,null,null,null,null,null,null,"2018-11-15","Vancouver Canucks","Minnesota Wild"]
[null,null,null,null,null,null,null,null,null,null,null,null,null,null,null,null,null,null,null,null,null,null,null,null,null,null,null,null,null,null,null,null,null,null,null,"2018-11-15","New York Rangers","New York Islanders"]
[null,null,null,null,null,null,null,null,null,null,null,null,null,null,null,null,null,null,null,null,null,null,null,null,null,null,null,null,null,null,null,null,null,null,null,"2018-11-15","Detroit Red Wings","Ottawa Senators"]
[null,null,null,null,null,null,null,null,null,null,null,null,null,null,null,null,null,null,null,null,null,null,null,null,null,null,null,null,null,null,null,null,null,null,null,"2018-11-15","New Jersey Devils","Philadelphia Flyers"]
[null,null,null,null,null,null,null,null,null,null,null,null,null,null,null,null,null,null,null,null,null,null,null,null,null,null,null,null,null,null,null,null,null,null,null,"2018-11-15","Tampa Bay Lightning","Pittsburgh Penguins"]
[null,null,null,null,null,null,null,null,null,null,null,null,null,null,null,null,null,null,null,null,null,null,null,null,null,null,null,null,null,null,null,null,null,null,null,"2018-11-15","Toronto Maple Leafs","San Jose Sharks"]
[null,null,null,null,null,null,null,null,null,null,null,null,null,null,null,null,null,null,null,null,null,null,null,null,null,null,null,null,null,null,null,null,null,null,null,"2018-11-17","Boston Bruins","Arizona Coyotes"]
[null,null,null,null,null,null,null,null,null,null,null,null,null,null,null,null,null,null,null,null,null,null,null,null,null,null,null,null,null,null,null,null,null,null,null,"2018-11-17","Columbus Blue Jackets","Carolina Hurricanes"]
[null,null,null,null,null,null,null,null,null,null,null,null,null,null,null,null,null,null,null,null,null,null,null,null,null,null,null,null,null,null,null,null,null,null,null,"2018-11-17","Edmonton Oilers","Calgary Flames"]
[null,null,null,null,null,null,null,null,null,null,null,null,null,null,null,null,null,null,null,null,null,null,null,null,null,null,null,null,null,null,null,null,null,null,null,"2018-11-17","Buffalo Sabres","Minnesota Wild"]
[null,null,null,null,null,null,null,null,null,null,null,null,null,null,null,null,null,null,null,null,null,null,null,null,null,null,null,null,null,null,null,null,null,null,null,"2018-11-17","Detroit Red Wings","New Jersey Devils"]
[null,null,null,null,null,null,null,null,null,null,null,null,null,null,null,null,null,null,null,null,null,null,null,null,null,null,null,null,null,null,null,null,null,null,null,"2018-11-17","Los Angeles Kings","Nashville Predators"]
[null,null,null,null,null,null,null,null,null,null,null,null,null,null,null,null,null,null,null,null,null,null,null,null,null,null,null,null,null,null,null,null,null,null,null,"2018-11-17","Florida Panthers","New York Rangers"]
[null,null,null,null,null,null,null,null,null,null,null,null,null,null,null,null,null,null,null,null,null,null,null,null,null,null,null,null,null,null,null,null,null,null,null,"2018-11-17","Pittsburgh Penguins","Ottawa Senators"]
[null,null,null,null,null,null,null,null,null,null,null,null,null,null,null,null,null,null,null,null,null,null,null,null,null,null,null,null,null,null,null,null,null,null,null,"2018-11-17","Tampa Bay Lightning","Philadelphia Flyers"]
[null,null,null,null,null,null,null,null,null,null,null,null,null,null,null,null,null,null,null,null,null,null,null,null,null,null,null,null,null,null,null,null,null,null,null,"2018-11-17","St. Louis Blues","San Jose Sharks"]
[null,null,null,null,null,null,null,null,null,null,null,null,null,null,null,null,null,null,null,null,null,null,null,null,null,null,null,null,null,null,null,null,null,null,null,"2018-11-17","Montreal Canadiens","Vancouver Canucks"]
[null,null,null,null,null,null,null,null,null,null,null,null,null,null,null,null,null,null,null,null,null,null,null,null,null,null,null,null,null,null,null,null,null,null,null,"2018-11-19","Vegas Golden Knights","Calgary Flames"]
[null,null,null,null,null,null,null,null,null,null,null,null,null,null,null,null,null,null,null,null,null,null,null,null,null,null,null,null,null,null,null,null,null,null,null,"2018-11-19","Washington Capitals","Montreal Canadiens"]
[null,null,null,null,null,null,null,null,null,null,null,null,null,null,null,null,null,null,null,null,null,null,null,null,null,null,null,null,null,null,null,null,null,null,null,"2018-11-19","Tampa Bay Lightning","Nashville Predators"]
[null,null,null,null,null,null,null,null,null,null,null,null,null,null,null,null,null,null,null,null,null,null,null,null,null,null,null,null,null,null,null,null,null,null,null,"2018-11-19","Dallas Stars","New York Rangers"]
[null,null,null,null,null,null,null,null,null,null,null,null,null,null,null,null,null,null,null,null,null,null,null,null,null,null,null,null,null,null,null,null,null,null,null,"2018-11-19","Florida Panthers","Ottawa Senators"]
[null,null,null,null,null,null,null,null,null,null,null,null,null,null,null,null,null,null,null,null,null,null,null,null,null,null,null,null,null,null,null,null,null,null,null,"2018-11-19","Buffalo Sabres","Pittsburgh Penguins"]
[null,null,null,null,null,null,null,null,null,null,null,null,null,null,null,null,null,null,null,null,null,null,null,null,null,null,null,null,null,null,null,null,null,null,null,"2018-11-19","Los Angeles Kings","St. Louis Blues"]
[null,null,null,null,null,null,null,null,null,null,null,null,null,null,null,null,null,null,null,null,null,null,null,null,null,null,null,null,null,null,null,null,null,null,null,"2018-11-19","Columbus Blue Jackets","Toronto Maple Leafs"]
[null,null,null,null,null,null,null,null,null,null,null,null,null,null,null,null,null,null,null,null,null,null,null,null,null,null,null,null,null,null,null,null,null,null,null,"2018-11-19","Winnipeg Jets","Vancouver Canucks"]
[null,null,null,null,null,null,null,null,null,null,null,null,null,null,null,null,null,null,null,null,null,null,null,null,null,null,null,null,null,null,null,null,null,null,null,"2018-11-21","Vancouver Canucks","Anaheim Ducks"]
[null,null,null,null,null,null,null,null,null,null,null,null,null,null,null,null,null,null,null,null,null,null,null,null,null,null,null,null,null,null,null,null,null,null,null,"2018-11-21","Vegas Golden Knights","Arizona Coyotes"]
[null,null,null,null,null,null,null,null,null,null,null,null,null,null,null,null,null,null,null,null,null,null,null,null,null,null,null,null,null,null,null,null,null,null,null,"2018-11-21","Philadelphia Flyers","Buffalo Sabres"]
[null,null,null,null,null,null,null,null,null,null,null,null,null,null,null,null,null,null,null,null,null,null,null,null,null,null,null,null,null,null,null,null,null,null,null,"2018-11-21","Toronto Maple Leafs","Carolina Hurricanes"]
[null,null,null,null,null,null,null,null,null,null,null,null,null,null,null,null,null,null,null,null,null,null,null,null,null,null,null,null,null,null,null,null,null,null,null,"2018-11-21","Winnipeg Jets","Calgary Flames"]
[null,null,null,null,null,null,null,null,null,null,null,null,null,null,null,null,null,null,null,null,null,null,null,null,null,null,null,null,null,null,null,null,null,null,null,"2018-11-21","Boston Bruins","Detroit Red Wings"]
[null,null,null,null,null,null,null,null,null,null,null,null,null,null,null,null,null,null,null,null,null,null,null,null,null,null,null,null,null,null,null,null,null,null,null,"2018-11-21","Colorado Avalanche","Los Angeles Kings"]
[null,null,null,null,null,null,null,null,null,null,null,null,null,null,null,null,null,null,null,null,null,null,null,null,null,null,null,null,null,null,null,null,null,null,null,"2018-11-21","Ottawa Senators","Minnesota Wild"]
[null,null,null,null,null,null,null,null,null,null,null,null,null,null,null,null,null,null,null,null,null,null,null,null,null,null,null,null,null,null,null,null,null,null,null,"2018-11-21","Montreal Canadiens","New Jersey Devils"]
[null,null,null,null,null,null,null,null,null,null,null,null,null,null,null,null,null,null,null,null,null,null,null,null,null,null,null,null,null,null,null,null,null,null,null,"2018-11-21","St. Louis Blues","Nashville Predators"]
[null,null,null,null,null,null,null,null,null,null,null,null,null,null,null,null,null,null,null,null,null,null,null,null,null,null,null,null,null,null,null,null,null,null,null,"2018-11-21","New York Islanders","New York Rangers"]
[null,null,null,null,null,null,null,null,null,null,null,null,null,null,null,null,null,null,null,null,null,null,null,null,null,null,null,null,null,null,null,null,null,null,null,"2018-11-21","Dallas Stars","Pittsburgh Penguins"]
[null,null,null,null,null,null,null,null,null,null,null,null,null,null,null,null,null,null,null,null,null,null,null,null,null,null,null,null,null,null,null,null,null,null,null,"2018-11-21","Florida Panthers","Tampa Bay Lightning"]
[null,null,null,null,null,null,null,null,null,null,null,null,null,null,null,null,null,null,null,null,null,null,null,null,null,null,null,null,null,null,null,null,null,null,null,"2018-11-21","Chicago Blackhawks","Washington Capitals"]
[null,null,null,null,null,null,null,null,null,null,null,null,null,null,null,null,null,null,null,null,null,null,null,null,null,null,null,null,null,null,null,null,null,null,null,"2018-11-23","Edmonton Oilers","Anaheim Ducks"]
[null,null,null,null,null,null,null,null,null,null,null,null,null,null,null,null,null,null,null,null,null,null,null,null,null,null,null,null,null,null,null,null,null,null,null,"2018-11-23","Colorado Avalanche","Arizona Coyotes"]
[null,null,null,null,null,null,null,null,null,null,null,null,null,null,null,null,null,null,null,null,null,null,null,null,null,null,null,null,null,null,null,null,null,null,null,"2018-11-23","Pittsburgh Penguins","Boston Bruins"]
[null,null,null,null,null,null,null,null,null,null,null,null,null,null,null,null,null,null,null,null,null,null,null,null,null,null,null,null,null,null,null,null,null,null,null,"2018-11-23","Montreal Canadiens","Buffalo Sabres"]
[null,null,null,null,null,null,null,null,null,null,null,null,null,null,null,null,null,null,null,null,null,null,null,null,null,null,null,null,null,null,null,null,null,null,null,"2018-11-23","Florida Panthers","Carolina Hurricanes"]
[null,null,null,null,null,null,null,null,null,null,null,null,null,null,null,null,null,null,null,null,null,null,null,null,null,null,null,null,null,null,null,null,null,null,null,"2018-11-23","Toronto Maple Leafs","Columbus Blue Jackets"]
[null,null,null,null,null,null,null,null,null,null,null,null,null,null,null,null,null,null,null,null,null,null,null,null,null,null,null,null,null,null,null,null,null,null,null,"2018-11-23","Ottawa Senators","Dallas Stars"]
[null,null,null,null,null,null,null,null,null,null,null,null,null,null,null,null,null,null,null,null,null,null,null,null,null,null,null,null,null,null,null,null,null,null,null,"2018-11-23","Winnipeg Jets","Minnesota Wild"]
[null,null,null,null,null,null,null,null,null,null,null,null,null,null,null,null,null,null,null,null,null,null,null,null,null,null,null,null,null,null,null,null,null,null,null,"2018-11-23","New York Islanders","New Jersey Devils"]
[null,null,null,null,null,null,null,null,null,null,null,null,null,null,null,null,null,null,null,null,null,null,null,null,null,null,null,null,null,null,null,null,null,null,null,"2018-11-23","New York Rangers","Philadelphia Flyers"]
[null,null,null,null,null,null,null,null,null,null,null,null,null,null,null,null,null,null,null,null,null,null,null,null,null,null,null,null,null,null,null,null,null,null,null,"2018-11-23","Vancouver Canucks","San Jose Sharks"]
[null,null,null,null,null,null,null,null,null,null,null,null,null,null,null,null,null,null,null,null,null,null,null,null,null,null,null,null,null,null,null,null,null,null,null,"2018-11-23","Nashville Predators","St. Louis Blues"]
[null,null,null,null,null,null,null,null,null,null,null,null,null,null,null,null,null,null,null,null,null,null,null,null,null,null,null,null,null,null,null,null,null,null,null,"2018-11-23","Chicago Blackhawks","Tampa Bay Lightning"]
[null,null,null,null,null,null,null,null,null,null,null,null,null,null,null,null,null,null,null,null,null,null,null,null,null,null,null,null,null,null,null,null,null,null,null,"2018-11-23","Calgary Flames","Vegas Golden Knights"]
[null,null,null,null,null,null,null,null,null,null,null,null,null,null,null,null,null,null,null,null,null,null,null,null,null,null,null,null,null,null,null,null,null,null,null,"2018-11-23","Detroit Red Wings","Washington Capitals"]
[null,null,null,null,null,null,null,null,null,null,null,null,null,null,null,null,null,null,null,null,null,null,null,null,null,null,null,null,null,null,null,null,null,null,null,"2018-11-24","Dallas Stars","Colorado Avalanche"]
[null,null,null,null,null,null,null,null,null,null,null,null,null,null,null,null,null,null,null,null,null,null,null,null,null,null,null,null,null,null,null,null,null,null,null,"2018-11-24","Buffalo Sabres","Detroit Red Wings"]
[null,null,null,null,null,null,null,null,null,null,null,null,null,null,null,null,null,null,null,null,null,null,null,null,null,null,null,null,null,null,null,null,null,null,null,"2018-11-24","Chicago Blackhawks","Florida Panthers"]
[null,null,null,null,null,null,null,null,null,null,null,null,null,null,null,null,null,null,null,null,null,null,null,null,null,null,null,null,null,null,null,null,null,null,null,"2018-11-24","Vancouver Canucks","Los Angeles Kings"]
[null,null,null,null,null,null,null,null,null,null,null,null,null,null,null,null,null,null,null,null,null,null,null,null,null,null,null,null,null,null,null,null,null,null,null,"2018-11-24","Boston Bruins","Montreal Canadiens"]
[null,null,null,null,null,null,null,null,null,null,null,null,null,null,null,null,null,null,null,null,null,null,null,null,null,null,null,null,null,null,null,null,null,null,null,"2018-11-24","Carolina Hurricanes","New York Islanders"]
[null,null,null,null,null,null,null,null,null,null,null,null,null,null,null,null,null,null,null,null,null,null,null,null,null,null,null,null,null,null,null,null,null,null,null,"2018-11-24","Washington Capitals","New York Rangers"]
[null,null,null,null,null,null,null,null,null,null,null,null,null,null,null,null,null,null,null,null,null,null,null,null,null,null,null,null,null,null,null,null,null,null,null,"2018-11-24","Columbus Blue Jackets","Pittsburgh Penguins"]
[null,null,null,null,null,null,null,null,null,null,null,null,null,null,null,null,null,null,null,null,null,null,null,null,null,null,null,null,null,null,null,null,null,null,null,"2018-11-24","Winnipeg Jets","St. Louis Blues"]
[null,null,null,null,null,null,null,null,null,null,null,null,null,null,null,null,null,null,null,null,null,null,null,null,null,null,null,null,null,null,null,null,null,null,null,"2018-11-24","Philadelphia Flyers","Toronto Maple Leafs"]
[null,null,null,null,null,null,null,null,null,null,null,null,null,null,null,null,null,null,null,null,null,null,null,null,null,null,null,null,null,null,null,null,null,null,null,"2018-11-24","San Jose Sharks","Vegas Golden Knights"]
[null,null,null,null,null,null,null,null,null,null,null,null,null,null,null,null,null,null,null,null,null,null,null,null,null,null,null,null,null,null,null,null,null,null,null,"2018-11-27","San Jose Sharks","Buffalo Sabres"]
[null,null,null,null,null,null,null,null,null,null,null,null,null,null,null,null,null,null,null,null,null,null,null,null,null,null,null,null,null,null,null,null,null,null,null,"2018-11-27","Vegas Golden Knights","Chicago Blackhawks"]
[null,null,null,null,null,null,null,null,null,null,null,null,null,null,null,null,null,null,null,null,null,null,null,null,null,null,null,null,null,null,null,null,null,null,null,"2018-11-27","Dallas Stars","Edmonton Oilers"]
[null,null,null,null,null,null,null,null,null,null,null,null,null,null,null,null,null,null,null,null,null,null,null,null,null,null,null,null,null,null,null,null,null,null,null,"2018-11-27","Arizona Coyotes","Minnesota Wild"]
[null,null,null,null,null,null,null,null,null,null,null,null,null,null,null,null,null,null,null,null,null,null,null,null,null,null,null,null,null,null,null,null,null,null,null,"2018-11-27","Carolina Hurricanes","Montreal Canadiens"]
[null,null,null,null,null,null,null,null,null,null,null,null,null,null,null,null,null,null,null,null,null,null,null,null,null,null,null,null,null,null,null,null,null,null,null,"2018-11-27","Colorado Avalanche","Nashville Predators"]
[null,null,null,null,null,null,null,null,null,null,null,null,null,null,null,null,null,null,null,null,null,null,null,null,null,null,null,null,null,null,null,null,null,null,null,"2018-11-27","Ottawa Senators","Philadelphia Flyers"]
[null,null,null,null,null,null,null,null,null,null,null,null,null,null,null,null,null,null,null,null,null,null,null,null,null,null,null,null,null,null,null,null,null,null,null,"2018-11-27","Anaheim Ducks","Tampa Bay Lightning"]
[null,null,null,null,null,null,null,null,null,null,null,null,null,null,null,null,null,null,null,null,null,null,null,null,null,null,null,null,null,null,null,null,null,null,null,"2018-11-27","Los Angeles Kings","Vancouver Canucks"]
[null,null,null,null,null,null,null,null,null,null,null,null,null,null,null,null,null,null,null,null,null,null,null,null,null,null,null,null,null,null,null,null,null,null,null,"2018-11-27","Pittsburgh Penguins","Winnipeg Jets"]
[null,null,null,null,null,null,null,null,null,null,null,null,null,null,null,null,null,null,null,null,null,null,null,null,null,null,null,null,null,null,null,null,null,null,null,"2018-11-28","Dallas Stars","Calgary Flames"]
[null,null,null,null,null,null,null,null,null,null,null,null,null,null,null,null,null,null,null,null,null,null,null,null,null,null,null,null,null,null,null,null,null,null,null,"2018-11-28","Pittsburgh Penguins","Colorado Avalanche"]
[null,null,null,null,null,null,null,null,null,null,null,null,null,null,null,null,null,null,null,null,null,null,null,null,null,null,null,null,null,null,null,null,null,null,null,"2018-11-28","St. Louis Blues","Detroit Red Wings"]
[null,null,null,null,null,null,null,null,null,null,null,null,null,null,null,null,null,null,null,null,null,null,null,null,null,null,null,null,null,null,null,null,null,null,null,"2018-11-28","Anaheim Ducks","Florida Panthers"]
[null,null,null,null,null,null,null,null,null,null,null,null,null,null,null,null,null,null,null,null,null,null,null,null,null,null,null,null,null,null,null,null,null,null,null,"2018-11-28","San Jose Sharks","Toronto Maple Leafs"]
[null,null,null,null,null,null,null,null,null,null,null,null,null,null,null,null,null,null,null,null,null,null,null,null,null,null,null,null,null,null,null,null,null,null,null,"2018-12-01","St. Louis Blues","Arizona Coyotes"]
[null,null,null,null,null,null,null,null,null,null,null,null,null,null,null,null,null,null,null,null,null,null,null,null,null,null,null,null,null,null,null,null,null,null,null,"2018-12-01","Detroit Red Wings","Boston Bruins"]
[null,null,null,null,null,null,null,null,null,null,null,null,null,null,null,null,null,null,null,null,null,null,null,null,null,null,null,null,null,null,null,null,null,null,null,"2018-12-01","Vegas Golden Knights","Edmonton Oilers"]
[null,null,null,null,null,null,null,null,null,null,null,null,null,null,null,null,null,null,null,null,null,null,null,null,null,null,null,null,null,null,null,null,null,null,null,"2018-12-01","Tampa Bay Lightning","Florida Panthers"]
[null,null,null,null,null,null,null,null,null,null,null,null,null,null,null,null,null,null,null,null,null,null,null,null,null,null,null,null,null,null,null,null,null,null,null,"2018-12-01","Toronto Maple Leafs","Minnesota Wild"]
[null,null,null,null,null,null,null,null,null,null,null,null,null,null,null,null,null,null,null,null,null,null,null,null,null,null,null,null,null,null,null,null,null,null,null,"2018-12-01","New York Rangers","Montreal Canadiens"]
[null,null,null,null,null,null,null,null,null,null,null,null,null,null,null,null,null,null,null,null,null,null,null,null,null,null,null,null,null,null,null,null,null,null,null,"2018-12-01","Winnipeg Jets","New Jersey Devils"]
[null,null,null,null,null,null,null,null,null,null,null,null,null,null,null,null,null,null,null,null,null,null,null,null,null,null,null,null,null,null,null,null,null,null,null,"2018-12-01","Chicago Blackhawks","Nashville Predators"]
[null,null,null,null,null,null,null,null,null,null,null,null,null,null,null,null,null,null,null,null,null,null,null,null,null,null,null,null,null,null,null,null,null,null,null,"2018-12-01","Columbus Blue Jackets","New York Islanders"]
[null,null,null,null,null,null,null,null,null,null,null,null,null,null,null,null,null,null,null,null,null,null,null,null,null,null,null,null,null,null,null,null,null,null,null,"2018-12-01","San Jose Sharks","Ottawa Senators"]
[null,null,null,null,null,null,null,null,null,null,null,null,null,null,null,null,null,null,null,null,null,null,null,null,null,null,null,null,null,null,null,null,null,null,null,"2018-12-01","Philadelphia Flyers","Pittsburgh Penguins"]
[null,null,null,null,null,null,null,null,null,null,null,null,null,null,null,null,null,null,null,null,null,null,null,null,null,null,null,null,null,null,null,null,null,null,null,"2018-12-01","Dallas Stars","Vancouver Canucks"]
[null,null,null,null,null,null,null,null,null,null,null,null,null,null,null,null,null,null,null,null,null,null,null,null,null,null,null,null,null,null,null,null,null,null,null,"2018-12-04","Toronto Maple Leafs","Buffalo Sabres"]
[null,null,null,null,null,null,null,null,null,null,null,null,null,null,null,null,null,null,null,null,null,null,null,null,null,null,null,null,null,null,null,null,null,null,null,"2018-12-04","Calgary Flames","Columbus Blue Jackets"]
[null,null,null,null,null,null,null,null,null,null,null,null,null,null,null,null,null,null,null,null,null,null,null,null,null,null,null,null,null,null,null,null,null,null,null,"2018-12-04","Tampa Bay Lightning","Detroit Red Wings"]
[null,null,null,null,null,null,null,null,null,null,null,null,null,null,null,null,null,null,null,null,null,null,null,null,null,null,null,null,null,null,null,null,null,null,null,"2018-12-04","Boston Bruins","Florida Panthers"]
[null,null,null,null,null,null,null,null,null,null,null,null,null,null,null,null,null,null,null,null,null,null,null,null,null,null,null,null,null,null,null,null,null,null,null,"2018-12-04","Arizona Coyotes","Los Angeles Kings"]
[null,null,null,null,null,null,null,null,null,null,null,null,null,null,null,null,null,null,null,null,null,null,null,null,null,null,null,null,null,null,null,null,null,null,null,"2018-12-04","Ottawa Senators","Montreal Canadiens"]
[null,null,null,null,null,null,null,null,null,null,null,null,null,null,null,null,null,null,null,null,null,null,null,null,null,null,null,null,null,null,null,null,null,null,null,"2018-12-04","Winnipeg Jets","New York Islanders"]
[null,null,null,null,null,null,null,null,null,null,null,null,null,null,null,null,null,null,null,null,null,null,null,null,null,null,null,null,null,null,null,null,null,null,null,"2018-12-04","Colorado Avalanche","Pittsburgh Penguins"]
[null,null,null,null,null,null,null,null,null,null,null,null,null,null,null,null,null,null,null,null,null,null,null,null,null,null,null,null,null,null,null,null,null,null,null,"2018-12-04","Minnesota Wild","Vancouver Canucks"]
[null,null,null,null,null,null,null,null,null,null,null,null,null,null,null,null,null,null,null,null,null,null,null,null,null,null,null,null,null,null,null,null,null,null,null,"2018-12-04","Washington Capitals","Vegas Golden Knights"]
[null,null,null,null,null,null,null,null,null,null,null,null,null,null,null,null,null,null,null,null,null,null,null,null,null,null,null,null,null,null,null,null,null,null,null,"2018-12-06","Washington Capitals","Arizona Coyotes"]
[null,null,null,null,null,null,null,null,null,null,null,null,null,null,null,null,null,null,null,null,null,null,null,null,null,null,null,null,null,null,null,null,null,null,null,"2018-12-06","Minnesota Wild","Calgary Flames"]
[null,null,null,null,null,null,null,null,null,null,null,null,null,null,null,null,null,null,null,null,null,null,null,null,null,null,null,null,null,null,null,null,null,null,null,"2018-12-06","Colorado Avalanche","Florida Panthers"]
[null,null,null,null,null,null,null,null,null,null,null,null,null,null,null,null,null,null,null,null,null,null,null,null,null,null,null,null,null,null,null,null,null,null,null,"2018-12-06","New Jersey Devils","Los Angeles Kings"]
[null,null,null,null,null,null,null,null,null,null,null,null,null,null,null,null,null,null,null,null,null,null,null,null,null,null,null,null,null,null,null,null,null,null,null,"2018-12-06","Montreal Canadiens","Ottawa Senators"]
[null,null,null,null,null,null,null,null,null,null,null,null,null,null,null,null,null,null,null,null,null,null,null,null,null,null,null,null,null,null,null,null,null,null,null,"2018-12-06","Columbus Blue Jackets","Philadelphia Flyers"]
[null,null,null,null,null,null,null,null,null,null,null,null,null,null,null,null,null,null,null,null,null,null,null,null,null,null,null,null,null,null,null,null,null,null,null,"2018-12-06","New York Islanders","Pittsburgh Penguins"]
[null,null,null,null,null,null,null,null,null,null,null,null,null,null,null,null,null,null,null,null,null,null,null,null,null,null,null,null,null,null,null,null,null,null,null,"2018-12-06","Boston Bruins","Tampa Bay Lightning"]
[null,null,null,null,null,null,null,null,null,null,null,null,null,null,null,null,null,null,null,null,null,null,null,null,null,null,null,null,null,null,null,null,null,null,null,"2018-12-06","Detroit Red Wings","Toronto Maple Leafs"]
[null,null,null,null,null,null,null,null,null,null,null,null,null,null,null,null,null,null,null,null,null,null,null,null,null,null,null,null,null,null,null,null,null,null,null,"2018-12-06","Nashville Predators","Vancouver Canucks"]
[null,null,null,null,null,null,null,null,null,null,null,null,null,null,null,null,null,null,null,null,null,null,null,null,null,null,null,null,null,null,null,null,null,null,null,"2018-12-06","Chicago Blackhawks","Vegas Golden Knights"]
[null,null,null,null,null,null,null,null,null,null,null,null,null,null,null,null,null,null,null,null,null,null,null,null,null,null,null,null,null,null,null,null,null,null,null,"2018-12-08","San Jose Sharks","Arizona Coyotes"]
[null,null,null,null,null,null,null,null,null,null,null,null,null,null,null,null,null,null,null,null,null,null,null,null,null,null,null,null,null,null,null,null,null,null,null,"2018-12-08","Toronto Maple Leafs","Boston Bruins"]
[null,null,null,null,null,null,null,null,null,null,null,null,null,null,null,null,null,null,null,null,null,null,null,null,null,null,null,null,null,null,null,null,null,null,null,"2018-12-08","Philadelphia Flyers","Buffalo Sabres"]
[null,null,null,null,null,null,null,null,null,null,null,null,null,null,null,null,null,null,null,null,null,null,null,null,null,null,null,null,null,null,null,null,null,null,null,"2018-12-08","Washington Capitals","Columbus Blue Jackets"]
[null,null,null,null,null,null,null,null,null,null,null,null,null,null,null,null,null,null,null,null,null,null,null,null,null,null,null,null,null,null,null,null,null,null,null,"2018-12-08","Nashville Predators","Calgary Flames"]
[null,null,null,null,null,null,null,null,null,null,null,null,null,null,null,null,null,null,null,null,null,null,null,null,null,null,null,null,null,null,null,null,null,null,null,"2018-12-08","New York Islanders","Detroit Red Wings"]
[null,null,null,null,null,null,null,null,null,null,null,null,null,null,null,null,null,null,null,null,null,null,null,null,null,null,null,null,null,null,null,null,null,null,null,"2018-12-08","New York Rangers","Florida Panthers"]
[null,null,null,null,null,null,null,null,null,null,null,null,null,null,null,null,null,null,null,null,null,null,null,null,null,null,null,null,null,null,null,null,null,null,null,"2018-12-08","Vegas Golden Knights","Los Angeles Kings"]
[null,null,null,null,null,null,null,null,null,null,null,null,null,null,null,null,null,null,null,null,null,null,null,null,null,null,null,null,null,null,null,null,null,null,null,"2018-12-08","Pittsburgh Penguins","Ottawa Senators"]
[null,null,null,null,null,null,null,null,null,null,null,null,null,null,null,null,null,null,null,null,null,null,null,null,null,null,null,null,null,null,null,null,null,null,null,"2018-12-08","Colorado Avalanche","Tampa Bay Lightning"]
[null,null,null,null,null,null,null,null,null,null,null,null,null,null,null,null,null,null,null,null,null,null,null,null,null,null,null,null,null,null,null,null,null,null,null,"2018-12-10","Los Angeles Kings","Detroit Red Wings"]
[null,null,null,null,null,null,null,null,null,null,null,null,null,null,null,null,null,null,null,null,null,null,null,null,null,null,null,null,null,null,null,null,null,null,null,"2018-12-10","Pittsburgh Penguins","New York Islanders"]
[null,null,null,null,null,null,null,null,null,null,null,null,null,null,null,null,null,null,null,null,null,null,null,null,null,null,null,null,null,null,null,null,null,null,null,"2018-12-10","New Jersey Devils","San Jose Sharks"]
[null,null,null,null,null,null,null,null,null,null,null,null,null,null,null,null,null,null,null,null,null,null,null,null,null,null,null,null,null,null,null,null,null,null,null,"2018-12-10","New York Rangers","Tampa Bay Lightning"]
[null,null,null,null,null,null,null,null,null,null,null,null,null,null,null,null,null,null,null,null,null,null,null,null,null,null,null,null,null,null,null,null,null,null,null,"2018-12-12","Dallas Stars","Anaheim Ducks"]
[null,null,null,null,null,null,null,null,null,null,null,null,null,null,null,null,null,null,null,null,null,null,null,null,null,null,null,null,null,null,null,null,null,null,null,"2018-12-12","Philadelphia Flyers","Calgary Flames"]
[null,null,null,null,null,null,null,null,null,null,null,null,null,null,null,null,null,null,null,null,null,null,null,null,null,null,null,null,null,null,null,null,null,null,null,"2018-12-12","Pittsburgh Penguins","Chicago Blackhawks"]
[null,null,null,null,null,null,null,null,null,null,null,null,null,null,null,null,null,null,null,null,null,null,null,null,null,null,null,null,null,null,null,null,null,null,null,"2018-12-12","Vegas Golden Knights","New York Islanders"]
[null,null,null,null,null,null,null,null,null,null,null,null,null,null,null,null,null,null,null,null,null,null,null,null,null,null,null,null,null,null,null,null,null,null,null,"2018-12-14","Washington Capitals","Carolina Hurricanes"]
[null,null,null,null,null,null,null,null,null,null,null,null,null,null,null,null,null,null,null,null,null,null,null,null,null,null,null,null,null,null,null,null,null,null,null,"2018-12-14","Winnipeg Jets","Chicago Blackhawks"]
[null,null,null,null,null,null,null,null,null,null,null,null,null,null,null,null,null,null,null,null,null,null,null,null,null,null,null,null,null,null,null,null,null,null,null,"2018-12-14","Ottawa Senators","Detroit Red Wings"]
[null,null,null,null,null,null,null,null,null,null,null,null,null,null,null,null,null,null,null,null,null,null,null,null,null,null,null,null,null,null,null,null,null,null,null,"2018-12-14","Philadelphia Flyers","Edmonton Oilers"]
[null,null,null,null,null,null,null,null,null,null,null,null,null,null,null,null,null,null,null,null,null,null,null,null,null,null,null,null,null,null,null,null,null,null,null,"2018-12-14","Vegas Golden Knights","New Jersey Devils"]
[null,null,null,null,null,null,null,null,null,null,null,null,null,null,null,null,null,null,null,null,null,null,null,null,null,null,null,null,null,null,null,null,null,null,null,"2018-12-14","Arizona Coyotes","New York Rangers"]
[null,null,null,null,null,null,null,null,null,null,null,null,null,null,null,null,null,null,null,null,null,null,null,null,null,null,null,null,null,null,null,null,null,null,null,"2018-12-14","Boston Bruins","Pittsburgh Penguins"]
[null,null,null,null,null,null,null,null,null,null,null,null,null,null,null,null,null,null,null,null,null,null,null,null,null,null,null,null,null,null,null,null,null,null,null,"2018-12-14","Colorado Avalanche","St. Louis Blues"]
[null,null,null,null,null,null,null,null,null,null,null,null,null,null,null,null,null,null,null,null,null,null,null,null,null,null,null,null,null,null,null,null,null,null,null,"2018-12-15","Anaheim Ducks","Columbus Blue Jackets"]
[null,null,null,null,null,null,null,null,null,null,null,null,null,null,null,null,null,null,null,null,null,null,null,null,null,null,null,null,null,null,null,null,null,null,null,"2018-12-15","Dallas Stars","Colorado Avalanche"]
[null,null,null,null,null,null,null,null,null,null,null,null,null,null,null,null,null,null,null,null,null,null,null,null,null,null,null,null,null,null,null,null,null,null,null,"2018-12-15","Toronto Maple Leafs","Florida Panthers"]
[null,null,null,null,null,null,null,null,null,null,null,null,null,null,null,null,null,null,null,null,null,null,null,null,null,null,null,null,null,null,null,null,null,null,null,"2018-12-15","Calgary Flames","Minnesota Wild"]
[null,null,null,null,null,null,null,null,null,null,null,null,null,null,null,null,null,null,null,null,null,null,null,null,null,null,null,null,null,null,null,null,null,null,null,"2018-12-15","Ottawa Senators","Montreal Canadiens"]
[null,null,null,null,null,null,null,null,null,null,null,null,null,null,null,null,null,null,null,null,null,null,null,null,null,null,null,null,null,null,null,null,null,null,null,"2018-12-15","New Jersey Devils","Nashville Predators"]
[null,null,null,null,null,null,null,null,null,null,null,null,null,null,null,null,null,null,null,null,null,null,null,null,null,null,null,null,null,null,null,null,null,null,null,"2018-12-15","Detroit Red Wings","New York Islanders"]
[null,null,null,null,null,null,null,null,null,null,null,null,null,null,null,null,null,null,null,null,null,null,null,null,null,null,null,null,null,null,null,null,null,null,null,"2018-12-15","Los Angeles Kings","Pittsburgh Penguins"]
[null,null,null,null,null,null,null,null,null,null,null,null,null,null,null,null,null,null,null,null,null,null,null,null,null,null,null,null,null,null,null,null,null,null,null,"2018-12-15","Philadelphia Flyers","Vancouver Canucks"]
[null,null,null,null,null,null,null,null,null,null,null,null,null,null,null,null,null,null,null,null,null,null,null,null,null,null,null,null,null,null,null,null,null,null,null,"2018-12-15","Buffalo Sabres","Washington Capitals"]
[null,null,null,null,null,null,null,null,null,null,null,null,null,null,null,null,null,null,null,null,null,null,null,null,null,null,null,null,null,null,null,null,null,null,null,"2018-12-17","Vegas Golden Knights","Columbus Blue Jackets"]
[null,null,null,null,null,null,null,null,null,null,null,null,null,null,null,null,null,null,null,null,null,null,null,null,null,null,null,null,null,null,null,null,null,null,null,"2018-12-17","New York Islanders","Colorado Avalanche"]
[null,null,null,null,null,null,null,null,null,null,null,null,null,null,null,null,null,null,null,null,null,null,null,null,null,null,null,null,null,null,null,null,null,null,null,"2018-12-17","Boston Bruins","Montreal Canadiens"]
[null,null,null,null,null,null,null,null,null,null,null,null,null,null,null,null,null,null,null,null,null,null,null,null,null,null,null,null,null,null,null,null,null,null,null,"2018-12-17","Nashville Predators","Ottawa Senators"]
[null,null,null,null,null,null,null,null,null,null,null,null,null,null,null,null,null,null,null,null,null,null,null,null,null,null,null,null,null,null,null,null,null,null,null,"2018-12-17","Anaheim Ducks","Pittsburgh Penguins"]
[null,null,null,null,null,null,null,null,null,null,null,null,null,null,null,null,null,null,null,null,null,null,null,null,null,null,null,null,null,null,null,null,null,null,null,"2018-12-19","Montreal Canadiens","Colorado Avalanche"]
[null,null,null,null,null,null,null,null,null,null,null,null,null,null,null,null,null,null,null,null,null,null,null,null,null,null,null,null,null,null,null,null,null,null,null,"2018-12-19","Pittsburgh Penguins","Washington Capitals"]
[null,null,null,null,null,null,null,null,null,null,null,null,null,null,null,null,null,null,null,null,null,null,null,null,null,null,null,null,null,null,null,null,null,null,null,"2018-12-20","Montreal Canadiens","Arizona Coyotes"]
[null,null,null,null,null,null,null,null,null,null,null,null,null,null,null,null,null,null,null,null,null,null,null,null,null,null,null,null,null,null,null,null,null,null,null,"2018-12-20","Anaheim Ducks","Boston Bruins"]
[null,null,null,null,null,null,null,null,null,null,null,null,null,null,null,null,null,null,null,null,null,null,null,null,null,null,null,null,null,null,null,null,null,null,null,"2018-12-20","Detroit Red Wings","Carolina Hurricanes"]
[null,null,null,null,null,null,null,null,null,null,null,null,null,null,null,null,null,null,null,null,null,null,null,null,null,null,null,null,null,null,null,null,null,null,null,"2018-12-20","New Jersey Devils","Columbus Blue Jackets"]
[null,null,null,null,null,null,null,null,null,null,null,null,null,null,null,null,null,null,null,null,null,null,null,null,null,null,null,null,null,null,null,null,null,null,null,"2018-12-20","Tampa Bay Lightning","Calgary Flames"]
[null,null,null,null,null,null,null,null,null,null,null,null,null,null,null,null,null,null,null,null,null,null,null,null,null,null,null,null,null,null,null,null,null,null,null,"2018-12-20","Chicago Blackhawks","Dallas Stars"]
[null,null,null,null,null,null,null,null,null,null,null,null,null,null,null,null,null,null,null,null,null,null,null,null,null,null,null,null,null,null,null,null,null,null,null,"2018-12-20","Nashville Predators","Philadelphia Flyers"]
[null,null,null,null,null,null,null,null,null,null,null,null,null,null,null,null,null,null,null,null,null,null,null,null,null,null,null,null,null,null,null,null,null,null,null,"2018-12-20","Minnesota Wild","Pittsburgh Penguins"]
[null,null,null,null,null,null,null,null,null,null,null,null,null,null,null,null,null,null,null,null,null,null,null,null,null,null,null,null,null,null,null,null,null,null,null,"2018-12-20","Winnipeg Jets","San Jose Sharks"]
[null,null,null,null,null,null,null,null,null,null,null,null,null,null,null,null,null,null,null,null,null,null,null,null,null,null,null,null,null,null,null,null,null,null,null,"2018-12-20","Florida Panthers","Toronto Maple Leafs"]
[null,null,null,null,null,null,null,null,null,null,null,null,null,null,null,null,null,null,null,null,null,null,null,null,null,null,null,null,null,null,null,null,null,null,null,"2018-12-20","St. Louis Blues","Vancouver Canucks"]
[null,null,null,null,null,null,null,null,null,null,null,null,null,null,null,null,null,null,null,null,null,null,null,null,null,null,null,null,null,null,null,null,null,null,null,"2018-12-20","New York Islanders","Vegas Golden Knights"]
[null,null,null,null,null,null,null,null,null,null,null,null,null,null,null,null,null,null,null,null,null,null,null,null,null,null,null,null,null,null,null,null,null,null,null,"2018-12-22","Colorado Avalanche","Arizona Coyotes"]
[null,null,null,null,null,null,null,null,null,null,null,null,null,null,null,null,null,null,null,null,null,null,null,null,null,null,null,null,null,null,null,null,null,null,null,"2018-12-22","Nashville Predators","Boston Bruins"]
[null,null,null,null,null,null,null,null,null,null,null,null,null,null,null,null,null,null,null,null,null,null,null,null,null,null,null,null,null,null,null,null,null,null,null,"2018-12-22","Anaheim Ducks","Buffalo Sabres"]
[null,null,null,null,null,null,null,null,null,null,null,null,null,null,null,null,null,null,null,null,null,null,null,null,null,null,null,null,null,null,null,null,null,null,null,"2018-12-22","Pittsburgh Penguins","Carolina Hurricanes"]
[null,null,null,null,null,null,null,null,null,null,null,null,null,null,null,null,null,null,null,null,null,null,null,null,null,null,null,null,null,null,null,null,null,null,null,"2018-12-22","St. Louis Blues","Calgary Flames"]
[null,null,null,null,null,null,null,null,null,null,null,null,null,null,null,null,null,null,null,null,null,null,null,null,null,null,null,null,null,null,null,null,null,null,null,"2018-12-22","Florida Panthers","Detroit Red Wings"]
[null,null,null,null,null,null,null,null,null,null,null,null,null,null,null,null,null,null,null,null,null,null,null,null,null,null,null,null,null,null,null,null,null,null,null,"2018-12-22","Tampa Bay Lightning","Edmonton Oilers"]
[null,null,null,null,null,null,null,null,null,null,null,null,null,null,null,null,null,null,null,null,null,null,null,null,null,null,null,null,null,null,null,null,null,null,null,"2018-12-22","Dallas Stars","Minnesota Wild"]
[null,null,null,null,null,null,null,null,null,null,null,null,null,null,null,null,null,null,null,null,null,null,null,null,null,null,null,null,null,null,null,null,null,null,null,"2018-12-22","Washington Capitals","Ottawa Senators"]
[null,null,null,null,null,null,null,null,null,null,null,null,null,null,null,null,null,null,null,null,null,null,null,null,null,null,null,null,null,null,null,null,null,null,null,"2018-12-22","Columbus Blue Jackets","Philadelphia Flyers"]
[null,null,null,null,null,null,null,null,null,null,null,null,null,null,null,null,null,null,null,null,null,null,null,null,null,null,null,null,null,null,null,null,null,null,null,"2018-12-22","Los Angeles Kings","San Jose Sharks"]
[null,null,null,null,null,null,null,null,null,null,null,null,null,null,null,null,null,null,null,null,null,null,null,null,null,null,null,null,null,null,null,null,null,null,null,"2018-12-22","New York Rangers","Toronto Maple Leafs"]
[null,null,null,null,null,null,null,null,null,null,null,null,null,null,null,null,null,null,null,null,null,null,null,null,null,null,null,null,null,null,null,null,null,null,null,"2018-12-22","Winnipeg Jets","Vancouver Canucks"]
[null,null,null,null,null,null,null,null,null,null,null,null,null,null,null,null,null,null,null,null,null,null,null,null,null,null,null,null,null,null,null,null,null,null,null,"2018-12-22","Montreal Canadiens","Vegas Golden Knights"]
[null,null,null,null,null,null,null,null,null,null,null,null,null,null,null,null,null,null,null,null,null,null,null,null,null,null,null,null,null,null,null,null,null,null,null,"2018-12-27","New Jersey Devils","Boston Bruins"]
[null,null,null,null,null,null,null,null,null,null,null,null,null,null,null,null,null,null,null,null,null,null,null,null,null,null,null,null,null,null,null,null,null,null,null,"2018-12-27","Minnesota Wild","Chicago Blackhawks"]
[null,null,null,null,null,null,null,null,null,null,null,null,null,null,null,null,null,null,null,null,null,null,null,null,null,null,null,null,null,null,null,null,null,null,null,"2018-12-27","Vancouver Canucks","Edmonton Oilers"]
[null,null,null,null,null,null,null,null,null,null,null,null,null,null,null,null,null,null,null,null,null,null,null,null,null,null,null,null,null,null,null,null,null,null,null,"2018-12-27","Arizona Coyotes","Los Angeles Kings"]
[null,null,null,null,null,null,null,null,null,null,null,null,null,null,null,null,null,null,null,null,null,null,null,null,null,null,null,null,null,null,null,null,null,null,null,"2018-12-27","Dallas Stars","Nashville Predators"]
[null,null,null,null,null,null,null,null,null,null,null,null,null,null,null,null,null,null,null,null,null,null,null,null,null,null,null,null,null,null,null,null,null,null,null,"2018-12-27","Columbus Blue Jackets","New York Rangers"]
[null,null,null,null,null,null,null,null,null,null,null,null,null,null,null,null,null,null,null,null,null,null,null,null,null,null,null,null,null,null,null,null,null,null,null,"2018-12-27","Detroit Red Wings","Pittsburgh Penguins"]
[null,null,null,null,null,null,null,null,null,null,null,null,null,null,null,null,null,null,null,null,null,null,null,null,null,null,null,null,null,null,null,null,null,null,null,"2018-12-27","Anaheim Ducks","San Jose Sharks"]
[null,null,null,null,null,null,null,null,null,null,null,null,null,null,null,null,null,null,null,null,null,null,null,null,null,null,null,null,null,null,null,null,null,null,null,"2018-12-27","Buffalo Sabres","St. Louis Blues"]
[null,null,null,null,null,null,null,null,null,null,null,null,null,null,null,null,null,null,null,null,null,null,null,null,null,null,null,null,null,null,null,null,null,null,null,"2018-12-27","Philadelphia Flyers","Tampa Bay Lightning"]
[null,null,null,null,null,null,null,null,null,null,null,null,null,null,null,null,null,null,null,null,null,null,null,null,null,null,null,null,null,null,null,null,null,null,null,"2018-12-27","Colorado Avalanche","Vegas Golden Knights"]
[null,null,null,null,null,null,null,null,null,null,null,null,null,null,null,null,null,null,null,null,null,null,null,null,null,null,null,null,null,null,null,null,null,null,null,"2018-12-27","Calgary Flames","Winnipeg Jets"]
[null,null,null,null,null,null,null,null,null,null,null,null,null,null,null,null,null,null,null,null,null,null,null,null,null,null,null,null,null,null,null,null,null,null,null,"2018-12-27","Carolina Hurricanes","Washington Capitals"]
[null,null,null,null,null,null,null,null,null,null,null,null,null,null,null,null,null,null,null,null,null,null,null,null,null,null,null,null,null,null,null,null,null,null,null,"2018-12-29","Arizona Coyotes","Anaheim Ducks"]
[null,null,null,null,null,null,null,null,null,null,null,null,null,null,null,null,null,null,null,null,null,null,null,null,null,null,null,null,null,null,null,null,null,null,null,"2018-12-29","Boston Bruins","Buffalo Sabres"]
[null,null,null,null,null,null,null,null,null,null,null,null,null,null,null,null,null,null,null,null,null,null,null,null,null,null,null,null,null,null,null,null,null,null,null,"2018-12-29","Vancouver Canucks","Calgary Flames"]
[null,null,null,null,null,null,null,null,null,null,null,null,null,null,null,null,null,null,null,null,null,null,null,null,null,null,null,null,null,null,null,null,null,null,null,"2018-12-29","Chicago Blackhawks","Colorado Avalanche"]
[null,null,null,null,null,null,null,null,null,null,null,null,null,null,null,null,null,null,null,null,null,null,null,null,null,null,null,null,null,null,null,null,null,null,null,"2018-12-29","Detroit Red Wings","Dallas Stars"]
[null,null,null,null,null,null,null,null,null,null,null,null,null,null,null,null,null,null,null,null,null,null,null,null,null,null,null,null,null,null,null,null,null,null,null,"2018-12-29","San Jose Sharks","Edmonton Oilers"]
[null,null,null,null,null,null,null,null,null,null,null,null,null,null,null,null,null,null,null,null,null,null,null,null,null,null,null,null,null,null,null,null,null,null,null,"2018-12-29","Philadelphia Flyers","Florida Panthers"]
[null,null,null,null,null,null,null,null,null,null,null,null,null,null,null,null,null,null,null,null,null,null,null,null,null,null,null,null,null,null,null,null,null,null,null,"2018-12-29","Vegas Golden Knights","Los Angeles Kings"]
[null,null,null,null,null,null,null,null,null,null,null,null,null,null,null,null,null,null,null,null,null,null,null,null,null,null,null,null,null,null,null,null,null,null,null,"2018-12-29","Carolina Hurricanes","New Jersey Devils"]
[null,null,null,null,null,null,null,null,null,null,null,null,null,null,null,null,null,null,null,null,null,null,null,null,null,null,null,null,null,null,null,null,null,null,null,"2018-12-29","New York Rangers","Nashville Predators"]
[null,null,null,null,null,null,null,null,null,null,null,null,null,null,null,null,null,null,null,null,null,null,null,null,null,null,null,null,null,null,null,null,null,null,null,"2018-12-29","Washington Capitals","Ottawa Senators"]
[null,null,null,null,null,null,null,null,null,null,null,null,null,null,null,null,null,null,null,null,null,null,null,null,null,null,null,null,null,null,null,null,null,null,null,"2018-12-29","Pittsburgh Penguins","St. Louis Blues"]
[null,null,null,null,null,null,null,null,null,null,null,null,null,null,null,null,null,null,null,null,null,null,null,null,null,null,null,null,null,null,null,null,null,null,null,"2018-12-29","Montreal Canadiens","Tampa Bay Lightning"]
[null,null,null,null,null,null,null,null,null,null,null,null,null,null,null,null,null,null,null,null,null,null,null,null,null,null,null,null,null,null,null,null,null,null,null,"2018-12-29","New York Islanders","Toronto Maple Leafs"]
[null,null,null,null,null,null,null,null,null,null,null,null,null,null,null,null,null,null,null,null,null,null,null,null,null,null,null,null,null,null,null,null,null,null,null,"2018-12-29","Minnesota Wild","Winnipeg Jets"]
[null,null,null,null,null,null,null,null,null,null,null,null,null,null,null,null,null,null,null,null,null,null,null,null,null,null,null,null,null,null,null,null,null,null,null,"2018-12-31","Tampa Bay Lightning","Anaheim Ducks"]
[null,null,null,null,null,null,null,null,null,null,null,null,null,null,null,null,null,null,null,null,null,null,null,null,null,null,null,null,null,null,null,null,null,null,null,"2018-12-31","New York Islanders","Buffalo Sabres"]
[null,null,null,null,null,null,null,null,null,null,null,null,null,null,null,null,null,null,null,null,null,null,null,null,null,null,null,null,null,null,null,null,null,null,null,"2018-12-31","Philadelphia Flyers","Carolina Hurricanes"]
[null,null,null,null,null,null,null,null,null,null,null,null,null,null,null,null,null,null,null,null,null,null,null,null,null,null,null,null,null,null,null,null,null,null,null,"2018-12-31","Ottawa Senators","Columbus Blue Jackets"]
[null,null,null,null,null,null,null,null,null,null,null,null,null,null,null,null,null,null,null,null,null,null,null,null,null,null,null,null,null,null,null,null,null,null,null,"2018-12-31","San Jose Sharks","Calgary Flames"]
[null,null,null,null,null,null,null,null,null,null,null,null,null,null,null,null,null,null,null,null,null,null,null,null,null,null,null,null,null,null,null,null,null,null,null,"2018-12-31","Los Angeles Kings","Colorado Avalanche"]
[null,null,null,null,null,null,null,null,null,null,null,null,null,null,null,null,null,null,null,null,null,null,null,null,null,null,null,null,null,null,null,null,null,null,null,"2018-12-31","Montreal Canadiens","Dallas Stars"]
[null,null,null,null,null,null,null,null,null,null,null,null,null,null,null,null,null,null,null,null,null,null,null,null,null,null,null,null,null,null,null,null,null,null,null,"2018-12-31","Florida Panthers","Detroit Red Wings"]
[null,null,null,null,null,null,null,null,null,null,null,null,null,null,null,null,null,null,null,null,null,null,null,null,null,null,null,null,null,null,null,null,null,null,null,"2018-12-31","Winnipeg Jets","Edmonton Oilers"]
[null,null,null,null,null,null,null,null,null,null,null,null,null,null,null,null,null,null,null,null,null,null,null,null,null,null,null,null,null,null,null,null,null,null,null,"2018-12-31","Pittsburgh Penguins","Minnesota Wild"]
[null,null,null,null,null,null,null,null,null,null,null,null,null,null,null,null,null,null,null,null,null,null,null,null,null,null,null,null,null,null,null,null,null,null,null,"2018-12-31","Vancouver Canucks","New Jersey Devils"]
[null,null,null,null,null,null,null,null,null,null,null,null,null,null,null,null,null,null,null,null,null,null,null,null,null,null,null,null,null,null,null,null,null,null,null,"2018-12-31","New York Rangers","St. Louis Blues"]
[null,null,null,null,null,null,null,null,null,null,null,null,null,null,null,null,null,null,null,null,null,null,null,null,null,null,null,null,null,null,null,null,null,null,null,"2018-12-31","Nashville Predators","Washington Capitals"]
[null,null,null,null,null,null,null,null,null,null,null,null,null,null,null,null,null,null,null,null,null,null,null,null,null,null,null,null,null,null,null,null,null,null,null,"2019-01-02","Edmonton Oilers","Arizona Coyotes"]
[null,null,null,null,null,null,null,null,null,null,null,null,null,null,null,null,null,null,null,null,null,null,null,null,null,null,null,null,null,null,null,null,null,null,null,"2019-01-02","San Jose Sharks","Colorado Avalanche"]
[null,null,null,null,null,null,null,null,null,null,null,null,null,null,null,null,null,null,null,null,null,null,null,null,null,null,null,null,null,null,null,null,null,null,null,"2019-01-02","New Jersey Devils","Dallas Stars"]
[null,null,null,null,null,null,null,null,null,null,null,null,null,null,null,null,null,null,null,null,null,null,null,null,null,null,null,null,null,null,null,null,null,null,null,"2019-01-02","Calgary Flames","Detroit Red Wings"]
[null,null,null,null,null,null,null,null,null,null,null,null,null,null,null,null,null,null,null,null,null,null,null,null,null,null,null,null,null,null,null,null,null,null,null,"2019-01-02","Pittsburgh Penguins","New York Rangers"]
[null,null,null,null,null,null,null,null,null,null,null,null,null,null,null,null,null,null,null,null,null,null,null,null,null,null,null,null,null,null,null,null,null,null,null,"2019-01-02","Vancouver Canucks","Ottawa Senators"]
[null,null,null,null,null,null,null,null,null,null,null,null,null,null,null,null,null,null,null,null,null,null,null,null,null,null,null,null,null,null,null,null,null,null,null,"2019-01-04","Vegas Golden Knights","Anaheim Ducks"]
[null,null,null,null,null,null,null,null,null,null,null,null,null,null,null,null,null,null,null,null,null,null,null,null,null,null,null,null,null,null,null,null,null,null,null,"2019-01-04","New Jersey Devils","Arizona Coyotes"]
[null,null,null,null,null,null,null,null,null,null,null,null,null,null,null,null,null,null,null,null,null,null,null,null,null,null,null,null,null,null,null,null,null,null,null,"2019-01-04","Columbus Blue Jackets","Carolina Hurricanes"]
[null,null,null,null,null,null,null,null,null,null,null,null,null,null,null,null,null,null,null,null,null,null,null,null,null,null,null,null,null,null,null,null,null,null,null,"2019-01-04","New York Rangers","Colorado Avalanche"]
[null,null,null,null,null,null,null,null,null,null,null,null,null,null,null,null,null,null,null,null,null,null,null,null,null,null,null,null,null,null,null,null,null,null,null,"2019-01-04","Washington Capitals","Dallas Stars"]
[null,null,null,null,null,null,null,null,null,null,null,null,null,null,null,null,null,null,null,null,null,null,null,null,null,null,null,null,null,null,null,null,null,null,null,"2019-01-04","Nashville Predators","Detroit Red Wings"]
[null,null,null,null,null,null,null,null,null,null,null,null,null,null,null,null,null,null,null,null,null,null,null,null,null,null,null,null,null,null,null,null,null,null,null,"2019-01-04","Winnipeg Jets","Pittsburgh Penguins"]
[null,null,null,null,null,null,null,null,null,null,null,null,null,null,null,null,null,null,null,null,null,null,null,null,null,null,null,null,null,null,null,null,null,null,null,"2019-01-06","Edmonton Oilers","Anaheim Ducks"]
[null,null,null,null,null,null,null,null,null,null,null,null,null,null,null,null,null,null,null,null,null,null,null,null,null,null,null,null,null,null,null,null,null,null,null,"2019-01-06","New York Rangers","Arizona Coyotes"]
[null,null,null,null,null,null,null,null,null,null,null,null,null,null,null,null,null,null,null,null,null,null,null,null,null,null,null,null,null,null,null,null,null,null,null,"2019-01-06","Washington Capitals","Detroit Red Wings"]
[null,null,null,null,null,null,null,null,null,null,null,null,null,null,null,null,null,null,null,null,null,null,null,null,null,null,null,null,null,null,null,null,null,null,null,"2019-01-06","Carolina Hurricanes","Ottawa Senators"]
[null,null,null,null,null,null,null,null,null,null,null,null,null,null,null,null,null,null,null,null,null,null,null,null,null,null,null,null,null,null,null,null,null,null,null,"2019-01-06","Chicago Blackhawks","Pittsburgh Penguins"]
[null,null,null,null,null,null,null,null,null,null,null,null,null,null,null,null,null,null,null,null,null,null,null,null,null,null,null,null,null,null,null,null,null,null,null,"2019-01-06","New Jersey Devils","Vegas Golden Knights"]
[null,null,null,null,null,null,null,null,null,null,null,null,null,null,null,null,null,null,null,null,null,null,null,null,null,null,null,null,null,null,null,null,null,null,null,"2019-01-06","Dallas Stars","Winnipeg Jets"]
[null,null,null,null,null,null,null,null,null,null,null,null,null,null,null,null,null,null,null,null,null,null,null,null,null,null,null,null,null,null,null,null,null,null,null,"2019-01-08","Minnesota Wild","Boston Bruins"]
[null,null,null,null,null,null,null,null,null,null,null,null,null,null,null,null,null,null,null,null,null,null,null,null,null,null,null,null,null,null,null,null,null,null,null,"2019-01-08","New Jersey Devils","Buffalo Sabres"]
[null,null,null,null,null,null,null,null,null,null,null,null,null,null,null,null,null,null,null,null,null,null,null,null,null,null,null,null,null,null,null,null,null,null,null,"2019-01-08","Montreal Canadiens","Detroit Red Wings"]
[null,null,null,null,null,null,null,null,null,null,null,null,null,null,null,null,null,null,null,null,null,null,null,null,null,null,null,null,null,null,null,null,null,null,null,"2019-01-08","Carolina Hurricanes","New York Islanders"]
[null,null,null,null,null,null,null,null,null,null,null,null,null,null,null,null,null,null,null,null,null,null,null,null,null,null,null,null,null,null,null,null,null,null,null,"2019-01-08","Florida Panthers","Pittsburgh Penguins"]
[null,null,null,null,null,null,null,null,null,null,null,null,null,null,null,null,null,null,null,null,null,null,null,null,null,null,null,null,null,null,null,null,null,null,null,"2019-01-08","Edmonton Oilers","San Jose Sharks"]
[null,null,null,null,null,null,null,null,null,null,null,null,null,null,null,null,null,null,null,null,null,null,null,null,null,null,null,null,null,null,null,null,null,null,null,"2019-01-08","Dallas Stars","St. Louis Blues"]
[null,null,null,null,null,null,null,null,null,null,null,null,null,null,null,null,null,null,null,null,null,null,null,null,null,null,null,null,null,null,null,null,null,null,null,"2019-01-08","Columbus Blue Jackets","Tampa Bay Lightning"]
[null,null,null,null,null,null,null,null,null,null,null,null,null,null,null,null,null,null,null,null,null,null,null,null,null,null,null,null,null,null,null,null,null,null,null,"2019-01-08","New York Rangers","Vegas Golden Knights"]
[null,null,null,null,null,null,null,null,null,null,null,null,null,null,null,null,null,null,null,null,null,null,null,null,null,null,null,null,null,null,null,null,null,null,null,"2019-01-08","Colorado Avalanche","Winnipeg Jets"]
[null,null,null,null,null,null,null,null,null,null,null,null,null,null,null,null,null,null,null,null,null,null,null,null,null,null,null,null,null,null,null,null,null,null,null,"2019-01-08","Philadelphia Flyers","Washington Capitals"]
[null,null,null,null,null,null,null,null,null,null,null,null,null,null,null,null,null,null,null,null,null,null,null,null,null,null,null,null,null,null,null,null,null,null,null,"2019-01-11","Pittsburgh Penguins","Anaheim Ducks"]
[null,null,null,null,null,null,null,null,null,null,null,null,null,null,null,null,null,null,null,null,null,null,null,null,null,null,null,null,null,null,null,null,null,null,null,"2019-01-11","Buffalo Sabres","Carolina Hurricanes"]
[null,null,null,null,null,null,null,null,null,null,null,null,null,null,null,null,null,null,null,null,null,null,null,null,null,null,null,null,null,null,null,null,null,null,null,"2019-01-11","Florida Panthers","Calgary Flames"]
[null,null,null,null,null,null,null,null,null,null,null,null,null,null,null,null,null,null,null,null,null,null,null,null,null,null,null,null,null,null,null,null,null,null,null,"2019-01-11","Detroit Red Wings","Winnipeg Jets"]
[null,null,null,null,null,null,null,null,null,null,null,null,null,null,null,null,null,null,null,null,null,null,null,null,null,null,null,null,null,null,null,null,null,null,null,"2019-01-12","Tampa Bay Lightning","Buffalo Sabres"]
[null,null,null,null,null,null,null,null,null,null,null,null,null,null,null,null,null,null,null,null,null,null,null,null,null,null,null,null,null,null,null,null,null,null,null,"2019-01-12","Vegas Golden Knights","Chicago Blackhawks"]
[null,null,null,null,null,null,null,null,null,null,null,null,null,null,null,null,null,null,null,null,null,null,null,null,null,null,null,null,null,null,null,null,null,null,null,"2019-01-12","St. Louis Blues","Dallas Stars"]
[null,null,null,null,null,null,null,null,null,null,null,null,null,null,null,null,null,null,null,null,null,null,null,null,null,null,null,null,null,null,null,null,null,null,null,"2019-01-12","Arizona Coyotes","Edmonton Oilers"]
[null,null,null,null,null,null,null,null,null,null,null,null,null,null,null,null,null,null,null,null,null,null,null,null,null,null,null,null,null,null,null,null,null,null,null,"2019-01-12","Pittsburgh Penguins","Los Angeles Kings"]
[null,null,null,null,null,null,null,null,null,null,null,null,null,null,null,null,null,null,null,null,null,null,null,null,null,null,null,null,null,null,null,null,null,null,null,"2019-01-12","Detroit Red Wings","Minnesota Wild"]
[null,null,null,null,null,null,null,null,null,null,null,null,null,null,null,null,null,null,null,null,null,null,null,null,null,null,null,null,null,null,null,null,null,null,null,"2019-01-12","Colorado Avalanche","Montreal Canadiens"]
[null,null,null,null,null,null,null,null,null,null,null,null,null,null,null,null,null,null,null,null,null,null,null,null,null,null,null,null,null,null,null,null,null,null,null,"2019-01-12","Philadelphia Flyers","New Jersey Devils"]
[null,null,null,null,null,null,null,null,null,null,null,null,null,null,null,null,null,null,null,null,null,null,null,null,null,null,null,null,null,null,null,null,null,null,null,"2019-01-12","New York Rangers","New York Islanders"]
[null,null,null,null,null,null,null,null,null,null,null,null,null,null,null,null,null,null,null,null,null,null,null,null,null,null,null,null,null,null,null,null,null,null,null,"2019-01-12","Ottawa Senators","San Jose Sharks"]
[null,null,null,null,null,null,null,null,null,null,null,null,null,null,null,null,null,null,null,null,null,null,null,null,null,null,null,null,null,null,null,null,null,null,null,"2019-01-12","Boston Bruins","Toronto Maple Leafs"]
[null,null,null,null,null,null,null,null,null,null,null,null,null,null,null,null,null,null,null,null,null,null,null,null,null,null,null,null,null,null,null,null,null,null,null,"2019-01-12","Columbus Blue Jackets","Washington Capitals"]
[null,null,null,null,null,null,null,null,null,null,null,null,null,null,null,null,null,null,null,null,null,null,null,null,null,null,null,null,null,null,null,null,null,null,null,"2019-01-15","New Jersey Devils","Columbus Blue Jackets"]
[null,null,null,null,null,null,null,null,null,null,null,null,null,null,null,null,null,null,null,null,null,null,null,null,null,null,null,null,null,null,null,null,null,null,null,"2019-01-15","Tampa Bay Lightning","Dallas Stars"]
[null,null,null,null,null,null,null,null,null,null,null,null,null,null,null,null,null,null,null,null,null,null,null,null,null,null,null,null,null,null,null,null,null,null,null,"2019-01-15","Anaheim Ducks","Detroit Red Wings"]
[null,null,null,null,null,null,null,null,null,null,null,null,null,null,null,null,null,null,null,null,null,null,null,null,null,null,null,null,null,null,null,null,null,null,null,"2019-01-15","Los Angeles Kings","Minnesota Wild"]
[null,null,null,null,null,null,null,null,null,null,null,null,null,null,null,null,null,null,null,null,null,null,null,null,null,null,null,null,null,null,null,null,null,null,null,"2019-01-15","Florida Panthers","Montreal Canadiens"]
[null,null,null,null,null,null,null,null,null,null,null,null,null,null,null,null,null,null,null,null,null,null,null,null,null,null,null,null,null,null,null,null,null,null,null,"2019-01-15","Washington Capitals","Nashville Predators"]
[null,null,null,null,null,null,null,null,null,null,null,null,null,null,null,null,null,null,null,null,null,null,null,null,null,null,null,null,null,null,null,null,null,null,null,"2019-01-15","St. Louis Blues","New York Islanders"]
[null,null,null,null,null,null,null,null,null,null,null,null,null,null,null,null,null,null,null,null,null,null,null,null,null,null,null,null,null,null,null,null,null,null,null,"2019-01-15","Carolina Hurricanes","New York Rangers"]
[null,null,null,null,null,null,null,null,null,null,null,null,null,null,null,null,null,null,null,null,null,null,null,null,null,null,null,null,null,null,null,null,null,null,null,"2019-01-15","Pittsburgh Penguins","San Jose Sharks"]
[null,null,null,null,null,null,null,null,null,null,null,null,null,null,null,null,null,null,null,null,null,null,null,null,null,null,null,null,null,null,null,null,null,null,null,"2019-01-15","Vegas Golden Knights","Winnipeg Jets"]
[null,null,null,null,null,null,null,null,null,null,null,null,null,null,null,null,null,null,null,null,null,null,null,null,null,null,null,null,null,null,null,null,null,null,null,"2019-01-18","Pittsburgh Penguins","Arizona Coyotes"]
[null,null,null,null,null,null,null,null,null,null,null,null,null,null,null,null,null,null,null,null,null,null,null,null,null,null,null,null,null,null,null,null,null,null,null,"2019-01-18","Ottawa Senators","Carolina Hurricanes"]
[null,null,null,null,null,null,null,null,null,null,null,null,null,null,null,null,null,null,null,null,null,null,null,null,null,null,null,null,null,null,null,null,null,null,null,"2019-01-18","Montreal Canadiens","Columbus Blue Jackets"]
[null,null,null,null,null,null,null,null,null,null,null,null,null,null,null,null,null,null,null,null,null,null,null,null,null,null,null,null,null,null,null,null,null,null,null,"2019-01-18","Detroit Red Wings","Calgary Flames"]
[null,null,null,null,null,null,null,null,null,null,null,null,null,null,null,null,null,null,null,null,null,null,null,null,null,null,null,null,null,null,null,null,null,null,null,"2019-01-18","Toronto Maple Leafs","Florida Panthers"]
[null,null,null,null,null,null,null,null,null,null,null,null,null,null,null,null,null,null,null,null,null,null,null,null,null,null,null,null,null,null,null,null,null,null,null,"2019-01-18","Buffalo Sabres","Vancouver Canucks"]
[null,null,null,null,null,null,null,null,null,null,null,null,null,null,null,null,null,null,null,null,null,null,null,null,null,null,null,null,null,null,null,null,null,null,null,"2019-01-18","New York Islanders","Washington Capitals"]
[null,null,null,null,null,null,null,null,null,null,null,null,null,null,null,null,null,null,null,null,null,null,null,null,null,null,null,null,null,null,null,null,null,null,null,"2019-01-19","New York Rangers","Boston Bruins"]
[null,null,null,null,null,null,null,null,null,null,null,null,null,null,null,null,null,null,null,null,null,null,null,null,null,null,null,null,null,null,null,null,null,null,null,"2019-01-19","Los Angeles Kings","Colorado Avalanche"]
[null,null,null,null,null,null,null,null,null,null,null,null,null,null,null,null,null,null,null,null,null,null,null,null,null,null,null,null,null,null,null,null,null,null,null,"2019-01-19","Winnipeg Jets","Dallas Stars"]
[null,null,null,null,null,null,null,null,null,null,null,null,null,null,null,null,null,null,null,null,null,null,null,null,null,null,null,null,null,null,null,null,null,null,null,"2019-01-19","Calgary Flames","Edmonton Oilers"]
[null,null,null,null,null,null,null,null,null,null,null,null,null,null,null,null,null,null,null,null,null,null,null,null,null,null,null,null,null,null,null,null,null,null,null,"2019-01-19","Columbus Blue Jackets","Minnesota Wild"]
[null,null,null,null,null,null,null,null,null,null,null,null,null,null,null,null,null,null,null,null,null,null,null,null,null,null,null,null,null,null,null,null,null,null,null,"2019-01-19","Philadelphia Flyers","Montreal Canadiens"]
[null,null,null,null,null,null,null,null,null,null,null,null,null,null,null,null,null,null,null,null,null,null,null,null,null,null,null,null,null,null,null,null,null,null,null,"2019-01-19","Anaheim Ducks","New Jersey Devils"]
[null,null,null,null,null,null,null,null,null,null,null,null,null,null,null,null,null,null,null,null,null,null,null,null,null,null,null,null,null,null,null,null,null,null,null,"2019-01-19","Florida Panthers","Nashville Predators"]
[null,null,null,null,null,null,null,null,null,null,null,null,null,null,null,null,null,null,null,null,null,null,null,null,null,null,null,null,null,null,null,null,null,null,null,"2019-01-19","Ottawa Senators","St. Louis Blues"]
[null,null,null,null,null,null,null,null,null,null,null,null,null,null,null,null,null,null,null,null,null,null,null,null,null,null,null,null,null,null,null,null,null,null,null,"2019-01-19","San Jose Sharks","Tampa Bay Lightning"]
[null,null,null,null,null,null,null,null,null,null,null,null,null,null,null,null,null,null,null,null,null,null,null,null,null,null,null,null,null,null,null,null,null,null,null,"2019-01-19","Pittsburgh Penguins","Vegas Golden Knights"]
[null,null,null,null,null,null,null,null,null,null,null,null,null,null,null,null,null,null,null,null,null,null,null,null,null,null,null,null,null,null,null,null,null,null,null,"2019-01-28","Winnipeg Jets","Philadelphia Flyers"]
[null,null,null,null,null,null,null,null,null,null,null,null,null,null,null,null,null,null,null,null,null,null,null,null,null,null,null,null,null,null,null,null,null,null,null,"2019-01-28","New Jersey Devils","Pittsburgh Penguins"]
[null,null,null,null,null,null,null,null,null,null,null,null,null,null,null,null,null,null,null,null,null,null,null,null,null,null,null,null,null,null,null,null,null,null,null,"2019-01-29","Winnipeg Jets","Boston Bruins"]
[null,null,null,null,null,null,null,null,null,null,null,null,null,null,null,null,null,null,null,null,null,null,null,null,null,null,null,null,null,null,null,null,null,null,null,"2019-01-29","Buffalo Sabres","Columbus Blue Jackets"]
[null,null,null,null,null,null,null,null,null,null,null,null,null,null,null,null,null,null,null,null,null,null,null,null,null,null,null,null,null,null,null,null,null,null,null,"2019-01-29","Philadelphia Flyers","New York Rangers"]
[null,null,null,null,null,null,null,null,null,null,null,null,null,null,null,null,null,null,null,null,null,null,null,null,null,null,null,null,null,null,null,null,null,null,null,"2019-01-30","Buffalo Sabres","Dallas Stars"]
[null,null,null,null,null,null,null,null,null,null,null,null,null,null,null,null,null,null,null,null,null,null,null,null,null,null,null,null,null,null,null,null,null,null,null,"2019-01-30","Tampa Bay Lightning","Pittsburgh Penguins"]
[null,null,null,null,null,null,null,null,null,null,null,null,null,null,null,null,null,null,null,null,null,null,null,null,null,null,null,null,null,null,null,null,null,null,null,"2019-02-01","Chicago Blackhawks","Buffalo Sabres"]
[null,null,null,null,null,null,null,null,null,null,null,null,null,null,null,null,null,null,null,null,null,null,null,null,null,null,null,null,null,null,null,null,null,null,null,"2019-02-01","Vegas Golden Knights","Carolina Hurricanes"]
[null,null,null,null,null,null,null,null,null,null,null,null,null,null,null,null,null,null,null,null,null,null,null,null,null,null,null,null,null,null,null,null,null,null,null,"2019-02-01","Minnesota Wild","Dallas Stars"]
[null,null,null,null,null,null,null,null,null,null,null,null,null,null,null,null,null,null,null,null,null,null,null,null,null,null,null,null,null,null,null,null,null,null,null,"2019-02-01","Toronto Maple Leafs","Detroit Red Wings"]
[null,null,null,null,null,null,null,null,null,null,null,null,null,null,null,null,null,null,null,null,null,null,null,null,null,null,null,null,null,null,null,null,null,null,null,"2019-02-01","Nashville Predators","Florida Panthers"]
[null,null,null,null,null,null,null,null,null,null,null,null,null,null,null,null,null,null,null,null,null,null,null,null,null,null,null,null,null,null,null,null,null,null,null,"2019-02-01","Tampa Bay Lightning","New York Islanders"]
[null,null,null,null,null,null,null,null,null,null,null,null,null,null,null,null,null,null,null,null,null,null,null,null,null,null,null,null,null,null,null,null,null,null,null,"2019-02-01","Ottawa Senators","Pittsburgh Penguins"]
[null,null,null,null,null,null,null,null,null,null,null,null,null,null,null,null,null,null,null,null,null,null,null,null,null,null,null,null,null,null,null,null,null,null,null,"2019-02-01","Calgary Flames","Washington Capitals"]
[null,null,null,null,null,null,null,null,null,null,null,null,null,null,null,null,null,null,null,null,null,null,null,null,null,null,null,null,null,null,null,null,null,null,null,"2019-02-02","St. Louis Blues","Columbus Blue Jackets"]
[null,null,null,null,null,null,null,null,null,null,null,null,null,null,null,null,null,null,null,null,null,null,null,null,null,null,null,null,null,null,null,null,null,null,null,"2019-02-02","Vancouver Canucks","Colorado Avalanche"]
[null,null,null,null,null,null,null,null,null,null,null,null,null,null,null,null,null,null,null,null,null,null,null,null,null,null,null,null,null,null,null,null,null,null,null,"2019-02-02","Vegas Golden Knights","Florida Panthers"]
[null,null,null,null,null,null,null,null,null,null,null,null,null,null,null,null,null,null,null,null,null,null,null,null,null,null,null,null,null,null,null,null,null,null,null,"2019-02-02","Chicago Blackhawks","Minnesota Wild"]
[null,null,null,null,null,null,null,null,null,null,null,null,null,null,null,null,null,null,null,null,null,null,null,null,null,null,null,null,null,null,null,null,null,null,null,"2019-02-02","New Jersey Devils","Montreal Canadiens"]
[null,null,null,null,null,null,null,null,null,null,null,null,null,null,null,null,null,null,null,null,null,null,null,null,null,null,null,null,null,null,null,null,null,null,null,"2019-02-02","Dallas Stars","Nashville Predators"]
[null,null,null,null,null,null,null,null,null,null,null,null,null,null,null,null,null,null,null,null,null,null,null,null,null,null,null,null,null,null,null,null,null,null,null,"2019-02-02","Los Angeles Kings","New York Islanders"]
[null,null,null,null,null,null,null,null,null,null,null,null,null,null,null,null,null,null,null,null,null,null,null,null,null,null,null,null,null,null,null,null,null,null,null,"2019-02-02","Tampa Bay Lightning","New York Rangers"]
[null,null,null,null,null,null,null,null,null,null,null,null,null,null,null,null,null,null,null,null,null,null,null,null,null,null,null,null,null,null,null,null,null,null,null,"2019-02-02","Detroit Red Wings","Ottawa Senators"]
[null,null,null,null,null,null,null,null,null,null,null,null,null,null,null,null,null,null,null,null,null,null,null,null,null,null,null,null,null,null,null,null,null,null,null,"2019-02-02","Edmonton Oilers","Philadelphia Flyers"]
[null,null,null,null,null,null,null,null,null,null,null,null,null,null,null,null,null,null,null,null,null,null,null,null,null,null,null,null,null,null,null,null,null,null,null,"2019-02-02","Arizona Coyotes","San Jose Sharks"]
[null,null,null,null,null,null,null,null,null,null,null,null,null,null,null,null,null,null,null,null,null,null,null,null,null,null,null,null,null,null,null,null,null,null,null,"2019-02-02","Pittsburgh Penguins","Toronto Maple Leafs"]
[null,null,null,null,null,null,null,null,null,null,null,null,null,null,null,null,null,null,null,null,null,null,null,null,null,null,null,null,null,null,null,null,null,null,null,"2019-02-02","Anaheim Ducks","Winnipeg Jets"]
[null,null,null,null,null,null,null,null,null,null,null,null,null,null,null,null,null,null,null,null,null,null,null,null,null,null,null,null,null,null,null,null,null,null,null,"2019-02-05","New York Islanders","Boston Bruins"]
[null,null,null,null,null,null,null,null,null,null,null,null,null,null,null,null,null,null,null,null,null,null,null,null,null,null,null,null,null,null,null,null,null,null,null,"2019-02-05","Minnesota Wild","Buffalo Sabres"]
[null,null,null,null,null,null,null,null,null,null,null,null,null,null,null,null,null,null,null,null,null,null,null,null,null,null,null,null,null,null,null,null,null,null,null,"2019-02-05","Columbus Blue Jackets","Colorado Avalanche"]
[null,null,null,null,null,null,null,null,null,null,null,null,null,null,null,null,null,null,null,null,null,null,null,null,null,null,null,null,null,null,null,null,null,null,null,"2019-02-05","Chicago Blackhawks","Edmonton Oilers"]
[null,null,null,null,null,null,null,null,null,null,null,null,null,null,null,null,null,null,null,null,null,null,null,null,null,null,null,null,null,null,null,null,null,null,null,"2019-02-05","St. Louis Blues","Florida Panthers"]
[null,null,null,null,null,null,null,null,null,null,null,null,null,null,null,null,null,null,null,null,null,null,null,null,null,null,null,null,null,null,null,null,null,null,null,"2019-02-05","Anaheim Ducks","Montreal Canadiens"]
[null,null,null,null,null,null,null,null,null,null,null,null,null,null,null,null,null,null,null,null,null,null,null,null,null,null,null,null,null,null,null,null,null,null,null,"2019-02-05","Los Angeles Kings","New Jersey Devils"]
[null,null,null,null,null,null,null,null,null,null,null,null,null,null,null,null,null,null,null,null,null,null,null,null,null,null,null,null,null,null,null,null,null,null,null,"2019-02-05","Arizona Coyotes","Nashville Predators"]
[null,null,null,null,null,null,null,null,null,null,null,null,null,null,null,null,null,null,null,null,null,null,null,null,null,null,null,null,null,null,null,null,null,null,null,"2019-02-05","Carolina Hurricanes","Pittsburgh Penguins"]
[null,null,null,null,null,null,null,null,null,null,null,null,null,null,null,null,null,null,null,null,null,null,null,null,null,null,null,null,null,null,null,null,null,null,null,"2019-02-05","Vegas Golden Knights","Tampa Bay Lightning"]
[null,null,null,null,null,null,null,null,null,null,null,null,null,null,null,null,null,null,null,null,null,null,null,null,null,null,null,null,null,null,null,null,null,null,null,"2019-02-05","San Jose Sharks","Winnipeg Jets"]
[null,null,null,null,null,null,null,null,null,null,null,null,null,null,null,null,null,null,null,null,null,null,null,null,null,null,null,null,null,null,null,null,null,null,null,"2019-02-05","Vancouver Canucks","Washington Capitals"]
[null,null,null,null,null,null,null,null,null,null,null,null,null,null,null,null,null,null,null,null,null,null,null,null,null,null,null,null,null,null,null,null,null,null,null,"2019-02-07","Columbus Blue Jackets","Arizona Coyotes"]
[null,null,null,null,null,null,null,null,null,null,null,null,null,null,null,null,null,null,null,null,null,null,null,null,null,null,null,null,null,null,null,null,null,null,null,"2019-02-07","Carolina Hurricanes","Buffalo Sabres"]
[null,null,null,null,null,null,null,null,null,null,null,null,null,null,null,null,null,null,null,null,null,null,null,null,null,null,null,null,null,null,null,null,null,null,null,"2019-02-07","San Jose Sharks","Calgary Flames"]
[null,null,null,null,null,null,null,null,null,null,null,null,null,null,null,null,null,null,null,null,null,null,null,null,null,null,null,null,null,null,null,null,null,null,null,"2019-02-07","Vancouver Canucks","Chicago Blackhawks"]
[null,null,null,null,null,null,null,null,null,null,null,null,null,null,null,null,null,null,null,null,null,null,null,null,null,null,null,null,null,null,null,null,null,null,null,"2019-02-07","Vegas Golden Knights","Detroit Red Wings"]
[null,null,null,null,null,null,null,null,null,null,null,null,null,null,null,null,null,null,null,null,null,null,null,null,null,null,null,null,null,null,null,null,null,null,null,"2019-02-07","Pittsburgh Penguins","Florida Panthers"]
[null,null,null,null,null,null,null,null,null,null,null,null,null,null,null,null,null,null,null,null,null,null,null,null,null,null,null,null,null,null,null,null,null,null,null,"2019-02-07","Edmonton Oilers","Minnesota Wild"]
[null,null,null,null,null,null,null,null,null,null,null,null,null,null,null,null,null,null,null,null,null,null,null,null,null,null,null,null,null,null,null,null,null,null,null,"2019-02-07","Winnipeg Jets","Montreal Canadiens"]
[null,null,null,null,null,null,null,null,null,null,null,null,null,null,null,null,null,null,null,null,null,null,null,null,null,null,null,null,null,null,null,null,null,null,null,"2019-02-07","New York Islanders","New Jersey Devils"]
[null,null,null,null,null,null,null,null,null,null,null,null,null,null,null,null,null,null,null,null,null,null,null,null,null,null,null,null,null,null,null,null,null,null,null,"2019-02-07","Dallas Stars","Nashville Predators"]
[null,null,null,null,null,null,null,null,null,null,null,null,null,null,null,null,null,null,null,null,null,null,null,null,null,null,null,null,null,null,null,null,null,null,null,"2019-02-07","Anaheim Ducks","Ottawa Senators"]
[null,null,null,null,null,null,null,null,null,null,null,null,null,null,null,null,null,null,null,null,null,null,null,null,null,null,null,null,null,null,null,null,null,null,null,"2019-02-07","Los Angeles Kings","Philadelphia Flyers"]
[null,null,null,null,null,null,null,null,null,null,null,null,null,null,null,null,null,null,null,null,null,null,null,null,null,null,null,null,null,null,null,null,null,null,null,"2019-02-07","St. Louis Blues","Tampa Bay Lightning"]
[null,null,null,null,null,null,null,null,null,null,null,null,null,null,null,null,null,null,null,null,null,null,null,null,null,null,null,null,null,null,null,null,null,null,null,"2019-02-07","Colorado Avalanche","Washington Capitals"]
[null,null,null,null,null,null,null,null,null,null,null,null,null,null,null,null,null,null,null,null,null,null,null,null,null,null,null,null,null,null,null,null,null,null,null,"2019-02-09","Dallas Stars","Arizona Coyotes"]
[null,null,null,null,null,null,null,null,null,null,null,null,null,null,null,null,null,null,null,null,null,null,null,null,null,null,null,null,null,null,null,null,null,null,null,"2019-02-09","Los Angeles Kings","Boston Bruins"]
[null,null,null,null,null,null,null,null,null,null,null,null,null,null,null,null,null,null,null,null,null,null,null,null,null,null,null,null,null,null,null,null,null,null,null,"2019-02-09","Detroit Red Wings","Buffalo Sabres"]
[null,null,null,null,null,null,null,null,null,null,null,null,null,null,null,null,null,null,null,null,null,null,null,null,null,null,null,null,null,null,null,null,null,null,null,"2019-02-09","San Jose Sharks","Edmonton Oilers"]
[null,null,null,null,null,null,null,null,null,null,null,null,null,null,null,null,null,null,null,null,null,null,null,null,null,null,null,null,null,null,null,null,null,null,null,"2019-02-09","Toronto Maple Leafs","Montreal Canadiens"]
[null,null,null,null,null,null,null,null,null,null,null,null,null,null,null,null,null,null,null,null,null,null,null,null,null,null,null,null,null,null,null,null,null,null,null,"2019-02-09","Minnesota Wild","New Jersey Devils"]
[null,null,null,null,null,null,null,null,null,null,null,null,null,null,null,null,null,null,null,null,null,null,null,null,null,null,null,null,null,null,null,null,null,null,null,"2019-02-09","Colorado Avalanche","New York Islanders"]
[null,null,null,null,null,null,null,null,null,null,null,null,null,null,null,null,null,null,null,null,null,null,null,null,null,null,null,null,null,null,null,null,null,null,null,"2019-02-09","Winnipeg Jets","Ottawa Senators"]
[null,null,null,null,null,null,null,null,null,null,null,null,null,null,null,null,null,null,null,null,null,null,null,null,null,null,null,null,null,null,null,null,null,null,null,"2019-02-09","Anaheim Ducks","Philadelphia Flyers"]
[null,null,null,null,null,null,null,null,null,null,null,null,null,null,null,null,null,null,null,null,null,null,null,null,null,null,null,null,null,null,null,null,null,null,null,"2019-02-09","Nashville Predators","St. Louis Blues"]
[null,null,null,null,null,null,null,null,null,null,null,null,null,null,null,null,null,null,null,null,null,null,null,null,null,null,null,null,null,null,null,null,null,null,null,"2019-02-09","Pittsburgh Penguins","Tampa Bay Lightning"]
[null,null,null,null,null,null,null,null,null,null,null,null,null,null,null,null,null,null,null,null,null,null,null,null,null,null,null,null,null,null,null,null,null,null,null,"2019-02-09","Calgary Flames","Vancouver Canucks"]
[null,null,null,null,null,null,null,null,null,null,null,null,null,null,null,null,null,null,null,null,null,null,null,null,null,null,null,null,null,null,null,null,null,null,null,"2019-02-09","Columbus Blue Jackets","Vegas Golden Knights"]
[null,null,null,null,null,null,null,null,null,null,null,null,null,null,null,null,null,null,null,null,null,null,null,null,null,null,null,null,null,null,null,null,null,null,null,"2019-02-09","Florida Panthers","Washington Capitals"]
[null,null,null,null,null,null,null,null,null,null,null,null,null,null,null,null,null,null,null,null,null,null,null,null,null,null,null,null,null,null,null,null,null,null,null,"2019-02-11","Pittsburgh Penguins","Philadelphia Flyers"]
[null,null,null,null,null,null,null,null,null,null,null,null,null,null,null,null,null,null,null,null,null,null,null,null,null,null,null,null,null,null,null,null,null,null,null,"2019-02-11","San Jose Sharks","Vancouver Canucks"]
[null,null,null,null,null,null,null,null,null,null,null,null,null,null,null,null,null,null,null,null,null,null,null,null,null,null,null,null,null,null,null,null,null,null,null,"2019-02-11","Los Angeles Kings","Washington Capitals"]
[null,null,null,null,null,null,null,null,null,null,null,null,null,null,null,null,null,null,null,null,null,null,null,null,null,null,null,null,null,null,null,null,null,null,null,"2019-02-13","Vancouver Canucks","Anaheim Ducks"]
[null,null,null,null,null,null,null,null,null,null,null,null,null,null,null,null,null,null,null,null,null,null,null,null,null,null,null,null,null,null,null,null,null,null,null,"2019-02-13","Edmonton Oilers","Pittsburgh Penguins"]
[null,null,null,null,null,null,null,null,null,null,null,null,null,null,null,null,null,null,null,null,null,null,null,null,null,null,null,null,null,null,null,null,null,null,null,"2019-02-16","Toronto Maple Leafs","Arizona Coyotes"]
[null,null,null,null,null,null,null,null,null,null,null,null,null,null,null,null,null,null,null,null,null,null,null,null,null,null,null,null,null,null,null,null,null,null,null,"2019-02-16","Dallas Stars","Carolina Hurricanes"]
[null,null,null,null,null,null,null,null,null,null,null,null,null,null,null,null,null,null,null,null,null,null,null,null,null,null,null,null,null,null,null,null,null,null,null,"2019-02-16","Columbus Blue Jackets","Chicago Blackhawks"]
[null,null,null,null,null,null,null,null,null,null,null,null,null,null,null,null,null,null,null,null,null,null,null,null,null,null,null,null,null,null,null,null,null,null,null,"2019-02-16","St. Louis Blues","Colorado Avalanche"]
[null,null,null,null,null,null,null,null,null,null,null,null,null,null,null,null,null,null,null,null,null,null,null,null,null,null,null,null,null,null,null,null,null,null,null,"2019-02-16","Boston Bruins","Los Angeles Kings"]
[null,null,null,null,null,null,null,null,null,null,null,null,null,null,null,null,null,null,null,null,null,null,null,null,null,null,null,null,null,null,null,null,null,null,null,"2019-02-16","Edmonton Oilers","New York Islanders"]
[null,null,null,null,null,null,null,null,null,null,null,null,null,null,null,null,null,null,null,null,null,null,null,null,null,null,null,null,null,null,null,null,null,null,null,"2019-02-16","Detroit Red Wings","Philadelphia Flyers"]
[null,null,null,null,null,null,null,null,null,null,null,null,null,null,null,null,null,null,null,null,null,null,null,null,null,null,null,null,null,null,null,null,null,null,null,"2019-02-16","Calgary Flames","Pittsburgh Penguins"]
[null,null,null,null,null,null,null,null,null,null,null,null,null,null,null,null,null,null,null,null,null,null,null,null,null,null,null,null,null,null,null,null,null,null,null,"2019-02-16","Vancouver Canucks","San Jose Sharks"]
[null,null,null,null,null,null,null,null,null,null,null,null,null,null,null,null,null,null,null,null,null,null,null,null,null,null,null,null,null,null,null,null,null,null,null,"2019-02-16","Montreal Canadiens","Tampa Bay Lightning"]
[null,null,null,null,null,null,null,null,null,null,null,null,null,null,null,null,null,null,null,null,null,null,null,null,null,null,null,null,null,null,null,null,null,null,null,"2019-02-16","Nashville Predators","Vegas Golden Knights"]
[null,null,null,null,null,null,null,null,null,null,null,null,null,null,null,null,null,null,null,null,null,null,null,null,null,null,null,null,null,null,null,null,null,null,null,"2019-02-16","Ottawa Senators","Winnipeg Jets"]
[null,null,null,null,null,null,null,null,null,null,null,null,null,null,null,null,null,null,null,null,null,null,null,null,null,null,null,null,null,null,null,null,null,null,null,"2019-02-17","Washington Capitals","Anaheim Ducks"]
[null,null,null,null,null,null,null,null,null,null,null,null,null,null,null,null,null,null,null,null,null,null,null,null,null,null,null,null,null,null,null,null,null,null,null,"2019-02-17","Philadelphia Flyers","Detroit Red Wings"]
[null,null,null,null,null,null,null,null,null,null,null,null,null,null,null,null,null,null,null,null,null,null,null,null,null,null,null,null,null,null,null,null,null,null,null,"2019-02-17","Montreal Canadiens","Florida Panthers"]
[null,null,null,null,null,null,null,null,null,null,null,null,null,null,null,null,null,null,null,null,null,null,null,null,null,null,null,null,null,null,null,null,null,null,null,"2019-02-17","St. Louis Blues","Minnesota Wild"]
[null,null,null,null,null,null,null,null,null,null,null,null,null,null,null,null,null,null,null,null,null,null,null,null,null,null,null,null,null,null,null,null,null,null,null,"2019-02-17","Buffalo Sabres","New Jersey Devils"]
[null,null,null,null,null,null,null,null,null,null,null,null,null,null,null,null,null,null,null,null,null,null,null,null,null,null,null,null,null,null,null,null,null,null,null,"2019-02-17","New York Rangers","Pittsburgh Penguins"]
[null,null,null,null,null,null,null,null,null,null,null,null,null,null,null,null,null,null,null,null,null,null,null,null,null,null,null,null,null,null,null,null,null,null,null,"2019-02-19","New York Rangers","Carolina Hurricanes"]
[null,null,null,null,null,null,null,null,null,null,null,null,null,null,null,null,null,null,null,null,null,null,null,null,null,null,null,null,null,null,null,null,null,null,null,"2019-02-19","Nashville Predators","Dallas Stars"]
[null,null,null,null,null,null,null,null,null,null,null,null,null,null,null,null,null,null,null,null,null,null,null,null,null,null,null,null,null,null,null,null,null,null,null,"2019-02-19","Arizona Coyotes","Edmonton Oilers"]
[null,null,null,null,null,null,null,null,null,null,null,null,null,null,null,null,null,null,null,null,null,null,null,null,null,null,null,null,null,null,null,null,null,null,null,"2019-02-19","Buffalo Sabres","Florida Panthers"]
[null,null,null,null,null,null,null,null,null,null,null,null,null,null,null,null,null,null,null,null,null,null,null,null,null,null,null,null,null,null,null,null,null,null,null,"2019-02-19","Anaheim Ducks","Minnesota Wild"]
[null,null,null,null,null,null,null,null,null,null,null,null,null,null,null,null,null,null,null,null,null,null,null,null,null,null,null,null,null,null,null,null,null,null,null,"2019-02-19","Columbus Blue Jackets","Montreal Canadiens"]
[null,null,null,null,null,null,null,null,null,null,null,null,null,null,null,null,null,null,null,null,null,null,null,null,null,null,null,null,null,null,null,null,null,null,null,"2019-02-19","Pittsburgh Penguins","New Jersey Devils"]
[null,null,null,null,null,null,null,null,null,null,null,null,null,null,null,null,null,null,null,null,null,null,null,null,null,null,null,null,null,null,null,null,null,null,null,"2019-02-19","Tampa Bay Lightning","Philadelphia Flyers"]
[null,null,null,null,null,null,null,null,null,null,null,null,null,null,null,null,null,null,null,null,null,null,null,null,null,null,null,null,null,null,null,null,null,null,null,"2019-02-19","Toronto Maple Leafs","St. Louis Blues"]
[null,null,null,null,null,null,null,null,null,null,null,null,null,null,null,null,null,null,null,null,null,null,null,null,null,null,null,null,null,null,null,null,null,null,null,"2019-02-21","St. Louis Blues","Dallas Stars"]
[null,null,null,null,null,null,null,null,null,null,null,null,null,null,null,null,null,null,null,null,null,null,null,null,null,null,null,null,null,null,null,null,null,null,null,"2019-02-21","New York Islanders","Edmonton Oilers"]
[null,null,null,null,null,null,null,null,null,null,null,null,null,null,null,null,null,null,null,null,null,null,null,null,null,null,null,null,null,null,null,null,null,null,null,"2019-02-21","Carolina Hurricanes","Florida Panthers"]
[null,null,null,null,null,null,null,null,null,null,null,null,null,null,null,null,null,null,null,null,null,null,null,null,null,null,null,null,null,null,null,null,null,null,null,"2019-02-21","Philadelphia Flyers","Montreal Canadiens"]
[null,null,null,null,null,null,null,null,null,null,null,null,null,null,null,null,null,null,null,null,null,null,null,null,null,null,null,null,null,null,null,null,null,null,null,"2019-02-21","Ottawa Senators","New Jersey Devils"]
[null,null,null,null,null,null,null,null,null,null,null,null,null,null,null,null,null,null,null,null,null,null,null,null,null,null,null,null,null,null,null,null,null,null,null,"2019-02-21","Los Angeles Kings","Nashville Predators"]
[null,null,null,null,null,null,null,null,null,null,null,null,null,null,null,null,null,null,null,null,null,null,null,null,null,null,null,null,null,null,null,null,null,null,null,"2019-02-21","Minnesota Wild","New York Rangers"]
[null,null,null,null,null,null,null,null,null,null,null,null,null,null,null,null,null,null,null,null,null,null,null,null,null,null,null,null,null,null,null,null,null,null,null,"2019-02-21","San Jose Sharks","Pittsburgh Penguins"]
[null,null,null,null,null,null,null,null,null,null,null,null,null,null,null,null,null,null,null,null,null,null,null,null,null,null,null,null,null,null,null,null,null,null,null,"2019-02-21","Buffalo Sabres","Tampa Bay Lightning"]
[null,null,null,null,null,null,null,null,null,null,null,null,null,null,null,null,null,null,null,null,null,null,null,null,null,null,null,null,null,null,null,null,null,null,null,"2019-02-21","Washington Capitals","Toronto Maple Leafs"]
[null,null,null,null,null,null,null,null,null,null,null,null,null,null,null,null,null,null,null,null,null,null,null,null,null,null,null,null,null,null,null,null,null,null,null,"2019-02-21","Arizona Coyotes","Vancouver Canucks"]
[null,null,null,null,null,null,null,null,null,null,null,null,null,null,null,null,null,null,null,null,null,null,null,null,null,null,null,null,null,null,null,null,null,null,null,"2019-02-23","Washington Capitals","Buffalo Sabres"]
[null,null,null,null,null,null,null,null,null,null,null,null,null,null,null,null,null,null,null,null,null,null,null,null,null,null,null,null,null,null,null,null,null,null,null,"2019-02-23","San Jose Sharks","Columbus Blue Jackets"]
[null,null,null,null,null,null,null,null,null,null,null,null,null,null,null,null,null,null,null,null,null,null,null,null,null,null,null,null,null,null,null,null,null,null,null,"2019-02-23","Carolina Hurricanes","Dallas Stars"]
[null,null,null,null,null,null,null,null,null,null,null,null,null,null,null,null,null,null,null,null,null,null,null,null,null,null,null,null,null,null,null,null,null,null,null,"2019-02-23","Anaheim Ducks","Edmonton Oilers"]
[null,null,null,null,null,null,null,null,null,null,null,null,null,null,null,null,null,null,null,null,null,null,null,null,null,null,null,null,null,null,null,null,null,null,null,"2019-02-23","Los Angeles Kings","Florida Panthers"]
[null,null,null,null,null,null,null,null,null,null,null,null,null,null,null,null,null,null,null,null,null,null,null,null,null,null,null,null,null,null,null,null,null,null,null,"2019-02-23","Colorado Avalanche","Nashville Predators"]
[null,null,null,null,null,null,null,null,null,null,null,null,null,null,null,null,null,null,null,null,null,null,null,null,null,null,null,null,null,null,null,null,null,null,null,"2019-02-23","New Jersey Devils","New York Rangers"]
[null,null,null,null,null,null,null,null,null,null,null,null,null,null,null,null,null,null,null,null,null,null,null,null,null,null,null,null,null,null,null,null,null,null,null,"2019-02-23","Pittsburgh Penguins","Philadelphia Flyers"]
[null,null,null,null,null,null,null,null,null,null,null,null,null,null,null,null,null,null,null,null,null,null,null,null,null,null,null,null,null,null,null,null,null,null,null,"2019-02-23","Boston Bruins","St. Louis Blues"]
[null,null,null,null,null,null,null,null,null,null,null,null,null,null,null,null,null,null,null,null,null,null,null,null,null,null,null,null,null,null,null,null,null,null,null,"2019-02-23","Montreal Canadiens","Toronto Maple Leafs"]
[null,null,null,null,null,null,null,null,null,null,null,null,null,null,null,null,null,null,null,null,null,null,null,null,null,null,null,null,null,null,null,null,null,null,null,"2019-02-23","New York Islanders","Vancouver Canucks"]
[null,null,null,null,null,null,null,null,null,null,null,null,null,null,null,null,null,null,null,null,null,null,null,null,null,null,null,null,null,null,null,null,null,null,null,"2019-02-26","Florida Panthers","Arizona Coyotes"]
[null,null,null,null,null,null,null,null,null,null,null,null,null,null,null,null,null,null,null,null,null,null,null,null,null,null,null,null,null,null,null,null,null,null,null,"2019-02-26","San Jose Sharks","Boston Bruins"]
[null,null,null,null,null,null,null,null,null,null,null,null,null,null,null,null,null,null,null,null,null,null,null,null,null,null,null,null,null,null,null,null,null,null,null,"2019-02-26","Los Angeles Kings","Carolina Hurricanes"]
[null,null,null,null,null,null,null,null,null,null,null,null,null,null,null,null,null,null,null,null,null,null,null,null,null,null,null,null,null,null,null,null,null,null,null,"2019-02-26","Pittsburgh Penguins","Columbus Blue Jackets"]
[null,null,null,null,null,null,null,null,null,null,null,null,null,null,null,null,null,null,null,null,null,null,null,null,null,null,null,null,null,null,null,null,null,null,null,"2019-02-26","Montreal Canadiens","Detroit Red Wings"]
[null,null,null,null,null,null,null,null,null,null,null,null,null,null,null,null,null,null,null,null,null,null,null,null,null,null,null,null,null,null,null,null,null,null,null,"2019-02-26","Calgary Flames","New York Islanders"]
[null,null,null,null,null,null,null,null,null,null,null,null,null,null,null,null,null,null,null,null,null,null,null,null,null,null,null,null,null,null,null,null,null,null,null,"2019-02-26","Buffalo Sabres","Philadelphia Flyers"]
[null,null,null,null,null,null,null,null,null,null,null,null,null,null,null,null,null,null,null,null,null,null,null,null,null,null,null,null,null,null,null,null,null,null,null,"2019-02-26","Nashville Predators","St. Louis Blues"]
[null,null,null,null,null,null,null,null,null,null,null,null,null,null,null,null,null,null,null,null,null,null,null,null,null,null,null,null,null,null,null,null,null,null,null,"2019-02-26","Dallas Stars","Vegas Golden Knights"]
[null,null,null,null,null,null,null,null,null,null,null,null,null,null,null,null,null,null,null,null,null,null,null,null,null,null,null,null,null,null,null,null,null,null,null,"2019-02-26","Minnesota Wild","Winnipeg Jets"]
[null,null,null,null,null,null,null,null,null,null,null,null,null,null,null,null,null,null,null,null,null,null,null,null,null,null,null,null,null,null,null,null,null,null,null,"2019-02-26","Ottawa Senators","Washington Capitals"]
[null,null,null,null,null,null,null,null,null,null,null,null,null,null,null,null,null,null,null,null,null,null,null,null,null,null,null,null,null,null,null,null,null,null,null,"2019-03-01","Vegas Golden Knights","Anaheim Ducks"]
[null,null,null,null,null,null,null,null,null,null,null,null,null,null,null,null,null,null,null,null,null,null,null,null,null,null,null,null,null,null,null,null,null,null,null,"2019-03-01","Pittsburgh Penguins","Buffalo Sabres"]
[null,null,null,null,null,null,null,null,null,null,null,null,null,null,null,null,null,null,null,null,null,null,null,null,null,null,null,null,null,null,null,null,null,null,null,"2019-03-01","St. Louis Blues","Carolina Hurricanes"]
[null,null,null,null,null,null,null,null,null,null,null,null,null,null,null,null,null,null,null,null,null,null,null,null,null,null,null,null,null,null,null,null,null,null,null,"2019-03-01","Philadelphia Flyers","New Jersey Devils"]
[null,null,null,null,null,null,null,null,null,null,null,null,null,null,null,null,null,null,null,null,null,null,null,null,null,null,null,null,null,null,null,null,null,null,null,"2019-03-01","Washington Capitals","New York Islanders"]
[null,null,null,null,null,null,null,null,null,null,null,null,null,null,null,null,null,null,null,null,null,null,null,null,null,null,null,null,null,null,null,null,null,null,null,"2019-03-01","Montreal Canadiens","New York Rangers"]
[null,null,null,null,null,null,null,null,null,null,null,null,null,null,null,null,null,null,null,null,null,null,null,null,null,null,null,null,null,null,null,null,null,null,null,"2019-03-01","Colorado Avalanche","San Jose Sharks"]
[null,null,null,null,null,null,null,null,null,null,null,null,null,null,null,null,null,null,null,null,null,null,null,null,null,null,null,null,null,null,null,null,null,null,null,"2019-03-01","Nashville Predators","Winnipeg Jets"]
[null,null,null,null,null,null,null,null,null,null,null,null,null,null,null,null,null,null,null,null,null,null,null,null,null,null,null,null,null,null,null,null,null,null,null,"2019-03-02","Detroit Red Wings","Arizona Coyotes"]
[null,null,null,null,null,null,null,null,null,null,null,null,null,null,null,null,null,null,null,null,null,null,null,null,null,null,null,null,null,null,null,null,null,null,null,"2019-03-02","New Jersey Devils","Boston Bruins"]
[null,null,null,null,null,null,null,null,null,null,null,null,null,null,null,null,null,null,null,null,null,null,null,null,null,null,null,null,null,null,null,null,null,null,null,"2019-03-02","Edmonton Oilers","Columbus Blue Jackets"]
[null,null,null,null,null,null,null,null,null,null,null,null,null,null,null,null,null,null,null,null,null,null,null,null,null,null,null,null,null,null,null,null,null,null,null,"2019-03-02","Minnesota Wild","Calgary Flames"]
[null,null,null,null,null,null,null,null,null,null,null,null,null,null,null,null,null,null,null,null,null,null,null,null,null,null,null,null,null,null,null,null,null,null,null,"2019-03-02","Carolina Hurricanes","Florida Panthers"]
[null,null,null,null,null,null,null,null,null,null,null,null,null,null,null,null,null,null,null,null,null,null,null,null,null,null,null,null,null,null,null,null,null,null,null,"2019-03-02","Chicago Blackhawks","Los Angeles Kings"]
[null,null,null,null,null,null,null,null,null,null,null,null,null,null,null,null,null,null,null,null,null,null,null,null,null,null,null,null,null,null,null,null,null,null,null,"2019-03-02","Pittsburgh Penguins","Montreal Canadiens"]
[null,null,null,null,null,null,null,null,null,null,null,null,null,null,null,null,null,null,null,null,null,null,null,null,null,null,null,null,null,null,null,null,null,null,null,"2019-03-02","Dallas Stars","St. Louis Blues"]
[null,null,null,null,null,null,null,null,null,null,null,null,null,null,null,null,null,null,null,null,null,null,null,null,null,null,null,null,null,null,null,null,null,null,null,"2019-03-02","Ottawa Senators","Tampa Bay Lightning"]
[null,null,null,null,null,null,null,null,null,null,null,null,null,null,null,null,null,null,null,null,null,null,null,null,null,null,null,null,null,null,null,null,null,null,null,"2019-03-02","Buffalo Sabres","Toronto Maple Leafs"]
[null,null,null,null,null,null,null,null,null,null,null,null,null,null,null,null,null,null,null,null,null,null,null,null,null,null,null,null,null,null,null,null,null,null,null,"2019-03-03","Colorado Avalanche","Anaheim Ducks"]
[null,null,null,null,null,null,null,null,null,null,null,null,null,null,null,null,null,null,null,null,null,null,null,null,null,null,null,null,null,null,null,null,null,null,null,"2019-03-05","Anaheim Ducks","Arizona Coyotes"]
[null,null,null,null,null,null,null,null,null,null,null,null,null,null,null,null,null,null,null,null,null,null,null,null,null,null,null,null,null,null,null,null,null,null,null,"2019-03-05","Carolina Hurricanes","Boston Bruins"]
[null,null,null,null,null,null,null,null,null,null,null,null,null,null,null,null,null,null,null,null,null,null,null,null,null,null,null,null,null,null,null,null,null,null,null,"2019-03-05","Detroit Red Wings","Colorado Avalanche"]
[null,null,null,null,null,null,null,null,null,null,null,null,null,null,null,null,null,null,null,null,null,null,null,null,null,null,null,null,null,null,null,null,null,null,null,"2019-03-05","New York Rangers","Dallas Stars"]
[null,null,null,null,null,null,null,null,null,null,null,null,null,null,null,null,null,null,null,null,null,null,null,null,null,null,null,null,null,null,null,null,null,null,null,"2019-03-05","Montreal Canadiens","Los Angeles Kings"]
[null,null,null,null,null,null,null,null,null,null,null,null,null,null,null,null,null,null,null,null,null,null,null,null,null,null,null,null,null,null,null,null,null,null,null,"2019-03-05","Columbus Blue Jackets","New Jersey Devils"]
[null,null,null,null,null,null,null,null,null,null,null,null,null,null,null,null,null,null,null,null,null,null,null,null,null,null,null,null,null,null,null,null,null,null,null,"2019-03-05","Minnesota Wild","Nashville Predators"]
[null,null,null,null,null,null,null,null,null,null,null,null,null,null,null,null,null,null,null,null,null,null,null,null,null,null,null,null,null,null,null,null,null,null,null,"2019-03-05","Ottawa Senators","New York Islanders"]
[null,null,null,null,null,null,null,null,null,null,null,null,null,null,null,null,null,null,null,null,null,null,null,null,null,null,null,null,null,null,null,null,null,null,null,"2019-03-05","Florida Panthers","Pittsburgh Penguins"]
[null,null,null,null,null,null,null,null,null,null,null,null,null,null,null,null,null,null,null,null,null,null,null,null,null,null,null,null,null,null,null,null,null,null,null,"2019-03-05","Winnipeg Jets","Tampa Bay Lightning"]
[null,null,null,null,null,null,null,null,null,null,null,null,null,null,null,null,null,null,null,null,null,null,null,null,null,null,null,null,null,null,null,null,null,null,null,"2019-03-07","Calgary Flames","Arizona Coyotes"]
[null,null,null,null,null,null,null,null,null,null,null,null,null,null,null,null,null,null,null,null,null,null,null,null,null,null,null,null,null,null,null,null,null,null,null,"2019-03-07","Florida Panthers","Boston Bruins"]
[null,null,null,null,null,null,null,null,null,null,null,null,null,null,null,null,null,null,null,null,null,null,null,null,null,null,null,null,null,null,null,null,null,null,null,"2019-03-07","Buffalo Sabres","Chicago Blackhawks"]
[null,null,null,null,null,null,null,null,null,null,null,null,null,null,null,null,null,null,null,null,null,null,null,null,null,null,null,null,null,null,null,null,null,null,null,"2019-03-07","Colorado Avalanche","Dallas Stars"]
[null,null,null,null,null,null,null,null,null,null,null,null,null,null,null,null,null,null,null,null,null,null,null,null,null,null,null,null,null,null,null,null,null,null,null,"2019-03-07","New York Rangers","Detroit Red Wings"]
[null,null,null,null,null,null,null,null,null,null,null,null,null,null,null,null,null,null,null,null,null,null,null,null,null,null,null,null,null,null,null,null,null,null,null,"2019-03-07","Vancouver Canucks","Edmonton Oilers"]
[null,null,null,null,null,null,null,null,null,null,null,null,null,null,null,null,null,null,null,null,null,null,null,null,null,null,null,null,null,null,null,null,null,null,null,"2019-03-07","St. Louis Blues","Los Angeles Kings"]
[null,null,null,null,null,null,null,null,null,null,null,null,null,null,null,null,null,null,null,null,null,null,null,null,null,null,null,null,null,null,null,null,null,null,null,"2019-03-07","New York Islanders","Ottawa Senators"]
[null,null,null,null,null,null,null,null,null,null,null,null,null,null,null,null,null,null,null,null,null,null,null,null,null,null,null,null,null,null,null,null,null,null,null,"2019-03-07","Columbus Blue Jackets","Pittsburgh Penguins"]
[null,null,null,null,null,null,null,null,null,null,null,null,null,null,null,null,null,null,null,null,null,null,null,null,null,null,null,null,null,null,null,null,null,null,null,"2019-03-07","Montreal Canadiens","San Jose Sharks"]
[null,null,null,null,null,null,null,null,null,null,null,null,null,null,null,null,null,null,null,null,null,null,null,null,null,null,null,null,null,null,null,null,null,null,null,"2019-03-07","Minnesota Wild","Tampa Bay Lightning"]
[null,null,null,null,null,null,null,null,null,null,null,null,null,null,null,null,null,null,null,null,null,null,null,null,null,null,null,null,null,null,null,null,null,null,null,"2019-03-09","Los Angeles Kings","Arizona Coyotes"]
[null,null,null,null,null,null,null,null,null,null,null,null,null,null,null,null,null,null,null,null,null,null,null,null,null,null,null,null,null,null,null,null,null,null,null,"2019-03-09","Ottawa Senators","Boston Bruins"]
[null,null,null,null,null,null,null,null,null,null,null,null,null,null,null,null,null,null,null,null,null,null,null,null,null,null,null,null,null,null,null,null,null,null,null,"2019-03-09","Pittsburgh Penguins","Columbus Blue Jackets"]
[null,null,null,null,null,null,null,null,null,null,null,null,null,null,null,null,null,null,null,null,null,null,null,null,null,null,null,null,null,null,null,null,null,null,null,"2019-03-09","Buffalo Sabres","Colorado Avalanche"]
[null,null,null,null,null,null,null,null,null,null,null,null,null,null,null,null,null,null,null,null,null,null,null,null,null,null,null,null,null,null,null,null,null,null,null,"2019-03-09","Chicago Blackhawks","Dallas Stars"]
[null,null,null,null,null,null,null,null,null,null,null,null,null,null,null,null,null,null,null,null,null,null,null,null,null,null,null,null,null,null,null,null,null,null,null,"2019-03-09","Toronto Maple Leafs","Edmonton Oilers"]
[null,null,null,null,null,null,null,null,null,null,null,null,null,null,null,null,null,null,null,null,null,null,null,null,null,null,null,null,null,null,null,null,null,null,null,"2019-03-09","Carolina Hurricanes","Nashville Predators"]
[null,null,null,null,null,null,null,null,null,null,null,null,null,null,null,null,null,null,null,null,null,null,null,null,null,null,null,null,null,null,null,null,null,null,null,"2019-03-09","Philadelphia Flyers","New York Islanders"]
[null,null,null,null,null,null,null,null,null,null,null,null,null,null,null,null,null,null,null,null,null,null,null,null,null,null,null,null,null,null,null,null,null,null,null,"2019-03-09","New Jersey Devils","New York Rangers"]
[null,null,null,null,null,null,null,null,null,null,null,null,null,null,null,null,null,null,null,null,null,null,null,null,null,null,null,null,null,null,null,null,null,null,null,"2019-03-09","St. Louis Blues","San Jose Sharks"]
[null,null,null,null,null,null,null,null,null,null,null,null,null,null,null,null,null,null,null,null,null,null,null,null,null,null,null,null,null,null,null,null,null,null,null,"2019-03-09","Detroit Red Wings","Tampa Bay Lightning"]
[null,null,null,null,null,null,null,null,null,null,null,null,null,null,null,null,null,null,null,null,null,null,null,null,null,null,null,null,null,null,null,null,null,null,null,"2019-03-09","Vegas Golden Knights","Vancouver Canucks"]
[null,null,null,null,null,null,null,null,null,null,null,null,null,null,null,null,null,null,null,null,null,null,null,null,null,null,null,null,null,null,null,null,null,null,null,"2019-03-10","Los Angeles Kings","Anaheim Ducks"]
[null,null,null,null,null,null,null,null,null,null,null,null,null,null,null,null,null,null,null,null,null,null,null,null,null,null,null,null,null,null,null,null,null,null,null,"2019-03-10","Vegas Golden Knights","Calgary Flames"]
[null,null,null,null,null,null,null,null,null,null,null,null,null,null,null,null,null,null,null,null,null,null,null,null,null,null,null,null,null,null,null,null,null,null,null,"2019-03-10","Detroit Red Wings","Florida Panthers"]
[null,null,null,null,null,null,null,null,null,null,null,null,null,null,null,null,null,null,null,null,null,null,null,null,null,null,null,null,null,null,null,null,null,null,null,"2019-03-10","Boston Bruins","Pittsburgh Penguins"]
[null,null,null,null,null,null,null,null,null,null,null,null,null,null,null,null,null,null,null,null,null,null,null,null,null,null,null,null,null,null,null,null,null,null,null,"2019-03-10","Winnipeg Jets","Washington Capitals"]
[null,null,null,null,null,null,null,null,null,null,null,null,null,null,null,null,null,null,null,null,null,null,null,null,null,null,null,null,null,null,null,null,null,null,null,"2019-03-12","Nashville Predators","Anaheim Ducks"]
[null,null,null,null,null,null,null,null,null,null,null,null,null,null,null,null,null,null,null,null,null,null,null,null,null,null,null,null,null,null,null,null,null,null,null,"2019-03-12","Dallas Stars","Buffalo Sabres"]
[null,null,null,null,null,null,null,null,null,null,null,null,null,null,null,null,null,null,null,null,null,null,null,null,null,null,null,null,null,null,null,null,null,null,null,"2019-03-12","Boston Bruins","Columbus Blue Jackets"]
[null,null,null,null,null,null,null,null,null,null,null,null,null,null,null,null,null,null,null,null,null,null,null,null,null,null,null,null,null,null,null,null,null,null,null,"2019-03-12","New Jersey Devils","Calgary Flames"]
[null,null,null,null,null,null,null,null,null,null,null,null,null,null,null,null,null,null,null,null,null,null,null,null,null,null,null,null,null,null,null,null,null,null,null,"2019-03-12","Detroit Red Wings","Montreal Canadiens"]
[null,null,null,null,null,null,null,null,null,null,null,null,null,null,null,null,null,null,null,null,null,null,null,null,null,null,null,null,null,null,null,null,null,null,null,"2019-03-12","Washington Capitals","Pittsburgh Penguins"]
[null,null,null,null,null,null,null,null,null,null,null,null,null,null,null,null,null,null,null,null,null,null,null,null,null,null,null,null,null,null,null,null,null,null,null,"2019-03-12","Arizona Coyotes","St. Louis Blues"]
[null,null,null,null,null,null,null,null,null,null,null,null,null,null,null,null,null,null,null,null,null,null,null,null,null,null,null,null,null,null,null,null,null,null,null,"2019-03-12","San Jose Sharks","Winnipeg Jets"]
[null,null,null,null,null,null,null,null,null,null,null,null,null,null,null,null,null,null,null,null,null,null,null,null,null,null,null,null,null,null,null,null,null,null,null,"2019-03-14","Anaheim Ducks","Arizona Coyotes"]
[null,null,null,null,null,null,null,null,null,null,null,null,null,null,null,null,null,null,null,null,null,null,null,null,null,null,null,null,null,null,null,null,null,null,null,"2019-03-14","Pittsburgh Penguins","Buffalo Sabres"]
[null,null,null,null,null,null,null,null,null,null,null,null,null,null,null,null,null,null,null,null,null,null,null,null,null,null,null,null,null,null,null,null,null,null,null,"2019-03-14","Tampa Bay Lightning","Detroit Red Wings"]
[null,null,null,null,null,null,null,null,null,null,null,null,null,null,null,null,null,null,null,null,null,null,null,null,null,null,null,null,null,null,null,null,null,null,null,"2019-03-14","Nashville Predators","Los Angeles Kings"]
[null,null,null,null,null,null,null,null,null,null,null,null,null,null,null,null,null,null,null,null,null,null,null,null,null,null,null,null,null,null,null,null,null,null,null,"2019-03-14","Dallas Stars","Minnesota Wild"]
[null,null,null,null,null,null,null,null,null,null,null,null,null,null,null,null,null,null,null,null,null,null,null,null,null,null,null,null,null,null,null,null,null,null,null,"2019-03-14","Montreal Canadiens","New York Islanders"]
[null,null,null,null,null,null,null,null,null,null,null,null,null,null,null,null,null,null,null,null,null,null,null,null,null,null,null,null,null,null,null,null,null,null,null,"2019-03-14","St. Louis Blues","Ottawa Senators"]
[null,null,null,null,null,null,null,null,null,null,null,null,null,null,null,null,null,null,null,null,null,null,null,null,null,null,null,null,null,null,null,null,null,null,null,"2019-03-14","Washington Capitals","Philadelphia Flyers"]
[null,null,null,null,null,null,null,null,null,null,null,null,null,null,null,null,null,null,null,null,null,null,null,null,null,null,null,null,null,null,null,null,null,null,null,"2019-03-14","Florida Panthers","San Jose Sharks"]
[null,null,null,null,null,null,null,null,null,null,null,null,null,null,null,null,null,null,null,null,null,null,null,null,null,null,null,null,null,null,null,null,null,null,null,"2019-03-14","Boston Bruins","Winnipeg Jets"]
[null,null,null,null,null,null,null,null,null,null,null,null,null,null,null,null,null,null,null,null,null,null,null,null,null,null,null,null,null,null,null,null,null,null,null,"2019-03-16","Edmonton Oilers","Arizona Coyotes"]
[null,null,null,null,null,null,null,null,null,null,null,null,null,null,null,null,null,null,null,null,null,null,null,null,null,null,null,null,null,null,null,null,null,null,null,"2019-03-16","Columbus Blue Jackets","Boston Bruins"]
[null,null,null,null,null,null,null,null,null,null,null,null,null,null,null,null,null,null,null,null,null,null,null,null,null,null,null,null,null,null,null,null,null,null,null,"2019-03-16","Buffalo Sabres","Carolina Hurricanes"]
[null,null,null,null,null,null,null,null,null,null,null,null,null,null,null,null,null,null,null,null,null,null,null,null,null,null,null,null,null,null,null,null,null,null,null,"2019-03-16","New York Islanders","Detroit Red Wings"]
[null,null,null,null,null,null,null,null,null,null,null,null,null,null,null,null,null,null,null,null,null,null,null,null,null,null,null,null,null,null,null,null,null,null,null,"2019-03-16","Florida Panthers","Los Angeles Kings"]
[null,null,null,null,null,null,null,null,null,null,null,null,null,null,null,null,null,null,null,null,null,null,null,null,null,null,null,null,null,null,null,null,null,null,null,"2019-03-16","New York Rangers","Minnesota Wild"]
[null,null,null,null,null,null,null,null,null,null,null,null,null,null,null,null,null,null,null,null,null,null,null,null,null,null,null,null,null,null,null,null,null,null,null,"2019-03-16","Chicago Blackhawks","Montreal Canadiens"]
[null,null,null,null,null,null,null,null,null,null,null,null,null,null,null,null,null,null,null,null,null,null,null,null,null,null,null,null,null,null,null,null,null,null,null,"2019-03-16","Toronto Maple Leafs","Ottawa Senators"]
[null,null,null,null,null,null,null,null,null,null,null,null,null,null,null,null,null,null,null,null,null,null,null,null,null,null,null,null,null,null,null,null,null,null,null,"2019-03-16","St. Louis Blues","Pittsburgh Penguins"]
[null,null,null,null,null,null,null,null,null,null,null,null,null,null,null,null,null,null,null,null,null,null,null,null,null,null,null,null,null,null,null,null,null,null,null,"2019-03-16","Nashville Predators","San Jose Sharks"]
[null,null,null,null,null,null,null,null,null,null,null,null,null,null,null,null,null,null,null,null,null,null,null,null,null,null,null,null,null,null,null,null,null,null,null,"2019-03-16","Washington Capitals","Tampa Bay Lightning"]
[null,null,null,null,null,null,null,null,null,null,null,null,null,null,null,null,null,null,null,null,null,null,null,null,null,null,null,null,null,null,null,null,null,null,null,"2019-03-16","Calgary Flames","Winnipeg Jets"]
[null,null,null,null,null,null,null,null,null,null,null,null,null,null,null,null,null,null,null,null,null,null,null,null,null,null,null,null,null,null,null,null,null,null,null,"2019-03-17","Florida Panthers","Anaheim Ducks"]
[null,null,null,null,null,null,null,null,null,null,null,null,null,null,null,null,null,null,null,null,null,null,null,null,null,null,null,null,null,null,null,null,null,null,null,"2019-03-17","St. Louis Blues","Buffalo Sabres"]
[null,null,null,null,null,null,null,null,null,null,null,null,null,null,null,null,null,null,null,null,null,null,null,null,null,null,null,null,null,null,null,null,null,null,null,"2019-03-17","New Jersey Devils","Colorado Avalanche"]
[null,null,null,null,null,null,null,null,null,null,null,null,null,null,null,null,null,null,null,null,null,null,null,null,null,null,null,null,null,null,null,null,null,null,null,"2019-03-17","Vancouver Canucks","Dallas Stars"]
[null,null,null,null,null,null,null,null,null,null,null,null,null,null,null,null,null,null,null,null,null,null,null,null,null,null,null,null,null,null,null,null,null,null,null,"2019-03-17","New York Islanders","Minnesota Wild"]
[null,null,null,null,null,null,null,null,null,null,null,null,null,null,null,null,null,null,null,null,null,null,null,null,null,null,null,null,null,null,null,null,null,null,null,"2019-03-17","Philadelphia Flyers","Pittsburgh Penguins"]
[null,null,null,null,null,null,null,null,null,null,null,null,null,null,null,null,null,null,null,null,null,null,null,null,null,null,null,null,null,null,null,null,null,null,null,"2019-03-17","Edmonton Oilers","Vegas Golden Knights"]
[null,null,null,null,null,null,null,null,null,null,null,null,null,null,null,null,null,null,null,null,null,null,null,null,null,null,null,null,null,null,null,null,null,null,null,"2019-03-19","Pittsburgh Penguins","Carolina Hurricanes"]
[null,null,null,null,null,null,null,null,null,null,null,null,null,null,null,null,null,null,null,null,null,null,null,null,null,null,null,null,null,null,null,null,null,null,null,"2019-03-19","Columbus Blue Jackets","Calgary Flames"]
[null,null,null,null,null,null,null,null,null,null,null,null,null,null,null,null,null,null,null,null,null,null,null,null,null,null,null,null,null,null,null,null,null,null,null,"2019-03-19","Florida Panthers","Dallas Stars"]
[null,null,null,null,null,null,null,null,null,null,null,null,null,null,null,null,null,null,null,null,null,null,null,null,null,null,null,null,null,null,null,null,null,null,null,"2019-03-19","Colorado Avalanche","Minnesota Wild"]
[null,null,null,null,null,null,null,null,null,null,null,null,null,null,null,null,null,null,null,null,null,null,null,null,null,null,null,null,null,null,null,null,null,null,null,"2019-03-19","Washington Capitals","New Jersey Devils"]
[null,null,null,null,null,null,null,null,null,null,null,null,null,null,null,null,null,null,null,null,null,null,null,null,null,null,null,null,null,null,null,null,null,null,null,"2019-03-19","Toronto Maple Leafs","Nashville Predators"]
[null,null,null,null,null,null,null,null,null,null,null,null,null,null,null,null,null,null,null,null,null,null,null,null,null,null,null,null,null,null,null,null,null,null,null,"2019-03-19","Boston Bruins","New York Islanders"]
[null,null,null,null,null,null,null,null,null,null,null,null,null,null,null,null,null,null,null,null,null,null,null,null,null,null,null,null,null,null,null,null,null,null,null,"2019-03-19","Detroit Red Wings","New York Rangers"]
[null,null,null,null,null,null,null,null,null,null,null,null,null,null,null,null,null,null,null,null,null,null,null,null,null,null,null,null,null,null,null,null,null,null,null,"2019-03-19","Montreal Canadiens","Philadelphia Flyers"]
[null,null,null,null,null,null,null,null,null,null,null,null,null,null,null,null,null,null,null,null,null,null,null,null,null,null,null,null,null,null,null,null,null,null,null,"2019-03-19","Edmonton Oilers","St. Louis Blues"]
[null,null,null,null,null,null,null,null,null,null,null,null,null,null,null,null,null,null,null,null,null,null,null,null,null,null,null,null,null,null,null,null,null,null,null,"2019-03-21","Tampa Bay Lightning","Carolina Hurricanes"]
[null,null,null,null,null,null,null,null,null,null,null,null,null,null,null,null,null,null,null,null,null,null,null,null,null,null,null,null,null,null,null,null,null,null,null,"2019-03-21","Ottawa Senators","Calgary Flames"]
[null,null,null,null,null,null,null,null,null,null,null,null,null,null,null,null,null,null,null,null,null,null,null,null,null,null,null,null,null,null,null,null,null,null,null,"2019-03-21","Philadelphia Flyers","Chicago Blackhawks"]
[null,null,null,null,null,null,null,null,null,null,null,null,null,null,null,null,null,null,null,null,null,null,null,null,null,null,null,null,null,null,null,null,null,null,null,"2019-03-21","Colorado Avalanche","Dallas Stars"]
[null,null,null,null,null,null,null,null,null,null,null,null,null,null,null,null,null,null,null,null,null,null,null,null,null,null,null,null,null,null,null,null,null,null,null,"2019-03-21","Columbus Blue Jackets","Edmonton Oilers"]
[null,null,null,null,null,null,null,null,null,null,null,null,null,null,null,null,null,null,null,null,null,null,null,null,null,null,null,null,null,null,null,null,null,null,null,"2019-03-21","Arizona Coyotes","Florida Panthers"]
[null,null,null,null,null,null,null,null,null,null,null,null,null,null,null,null,null,null,null,null,null,null,null,null,null,null,null,null,null,null,null,null,null,null,null,"2019-03-21","San Jose Sharks","Los Angeles Kings"]
[null,null,null,null,null,null,null,null,null,null,null,null,null,null,null,null,null,null,null,null,null,null,null,null,null,null,null,null,null,null,null,null,null,null,null,"2019-03-21","New York Islanders","Montreal Canadiens"]
[null,null,null,null,null,null,null,null,null,null,null,null,null,null,null,null,null,null,null,null,null,null,null,null,null,null,null,null,null,null,null,null,null,null,null,"2019-03-21","Boston Bruins","New Jersey Devils"]
[null,null,null,null,null,null,null,null,null,null,null,null,null,null,null,null,null,null,null,null,null,null,null,null,null,null,null,null,null,null,null,null,null,null,null,"2019-03-21","Pittsburgh Penguins","Nashville Predators"]
[null,null,null,null,null,null,null,null,null,null,null,null,null,null,null,null,null,null,null,null,null,null,null,null,null,null,null,null,null,null,null,null,null,null,null,"2019-03-21","Detroit Red Wings","St. Louis Blues"]
[null,null,null,null,null,null,null,null,null,null,null,null,null,null,null,null,null,null,null,null,null,null,null,null,null,null,null,null,null,null,null,null,null,null,null,"2019-03-21","Winnipeg Jets","Vegas Golden Knights"]
[null,null,null,null,null,null,null,null,null,null,null,null,null,null,null,null,null,null,null,null,null,null,null,null,null,null,null,null,null,null,null,null,null,null,null,"2019-03-23","Minnesota Wild","Carolina Hurricanes"]
[null,null,null,null,null,null,null,null,null,null,null,null,null,null,null,null,null,null,null,null,null,null,null,null,null,null,null,null,null,null,null,null,null,null,null,"2019-03-23","Chicago Blackhawks","Colorado Avalanche"]
[null,null,null,null,null,null,null,null,null,null,null,null,null,null,null,null,null,null,null,null,null,null,null,null,null,null,null,null,null,null,null,null,null,null,null,"2019-03-23","Pittsburgh Penguins","Dallas Stars"]
[null,null,null,null,null,null,null,null,null,null,null,null,null,null,null,null,null,null,null,null,null,null,null,null,null,null,null,null,null,null,null,null,null,null,null,"2019-03-23","Ottawa Senators","Edmonton Oilers"]
[null,null,null,null,null,null,null,null,null,null,null,null,null,null,null,null,null,null,null,null,null,null,null,null,null,null,null,null,null,null,null,null,null,null,null,"2019-03-23","Boston Bruins","Florida Panthers"]
[null,null,null,null,null,null,null,null,null,null,null,null,null,null,null,null,null,null,null,null,null,null,null,null,null,null,null,null,null,null,null,null,null,null,null,"2019-03-23","Anaheim Ducks","Los Angeles Kings"]
[null,null,null,null,null,null,null,null,null,null,null,null,null,null,null,null,null,null,null,null,null,null,null,null,null,null,null,null,null,null,null,null,null,null,null,"2019-03-23","Buffalo Sabres","Montreal Canadiens"]
[null,null,null,null,null,null,null,null,null,null,null,null,null,null,null,null,null,null,null,null,null,null,null,null,null,null,null,null,null,null,null,null,null,null,null,"2019-03-23","Arizona Coyotes","New Jersey Devils"]
[null,null,null,null,null,null,null,null,null,null,null,null,null,null,null,null,null,null,null,null,null,null,null,null,null,null,null,null,null,null,null,null,null,null,null,"2019-03-23","New York Islanders","Philadelphia Flyers"]
[null,null,null,null,null,null,null,null,null,null,null,null,null,null,null,null,null,null,null,null,null,null,null,null,null,null,null,null,null,null,null,null,null,null,null,"2019-03-23","Tampa Bay Lightning","St. Louis Blues"]
[null,null,null,null,null,null,null,null,null,null,null,null,null,null,null,null,null,null,null,null,null,null,null,null,null,null,null,null,null,null,null,null,null,null,null,"2019-03-23","New York Rangers","Toronto Maple Leafs"]
[null,null,null,null,null,null,null,null,null,null,null,null,null,null,null,null,null,null,null,null,null,null,null,null,null,null,null,null,null,null,null,null,null,null,null,"2019-03-23","Calgary Flames","Vancouver Canucks"]
[null,null,null,null,null,null,null,null,null,null,null,null,null,null,null,null,null,null,null,null,null,null,null,null,null,null,null,null,null,null,null,null,null,null,null,"2019-03-23","Detroit Red Wings","Vegas Golden Knights"]
[null,null,null,null,null,null,null,null,null,null,null,null,null,null,null,null,null,null,null,null,null,null,null,null,null,null,null,null,null,null,null,null,null,null,null,"2019-03-23","Nashville Predators","Winnipeg Jets"]
[null,null,null,null,null,null,null,null,null,null,null,null,null,null,null,null,null,null,null,null,null,null,null,null,null,null,null,null,null,null,null,null,null,null,null,"2019-03-25","Los Angeles Kings","Calgary Flames"]
[null,null,null,null,null,null,null,null,null,null,null,null,null,null,null,null,null,null,null,null,null,null,null,null,null,null,null,null,null,null,null,null,null,null,null,"2019-03-25","Nashville Predators","Minnesota Wild"]
[null,null,null,null,null,null,null,null,null,null,null,null,null,null,null,null,null,null,null,null,null,null,null,null,null,null,null,null,null,null,null,null,null,null,null,"2019-03-25","Buffalo Sabres","New Jersey Devils"]
[null,null,null,null,null,null,null,null,null,null,null,null,null,null,null,null,null,null,null,null,null,null,null,null,null,null,null,null,null,null,null,null,null,null,null,"2019-03-25","Pittsburgh Penguins","New York Rangers"]
[null,null,null,null,null,null,null,null,null,null,null,null,null,null,null,null,null,null,null,null,null,null,null,null,null,null,null,null,null,null,null,null,null,null,null,"2019-03-25","Detroit Red Wings","San Jose Sharks"]
[null,null,null,null,null,null,null,null,null,null,null,null,null,null,null,null,null,null,null,null,null,null,null,null,null,null,null,null,null,null,null,null,null,null,null,"2019-03-25","Vegas Golden Knights","St. Louis Blues"]
[null,null,null,null,null,null,null,null,null,null,null,null,null,null,null,null,null,null,null,null,null,null,null,null,null,null,null,null,null,null,null,null,null,null,null,"2019-03-25","Boston Bruins","Tampa Bay Lightning"]
[null,null,null,null,null,null,null,null,null,null,null,null,null,null,null,null,null,null,null,null,null,null,null,null,null,null,null,null,null,null,null,null,null,null,null,"2019-03-25","Florida Panthers","Toronto Maple Leafs"]
[null,null,null,null,null,null,null,null,null,null,null,null,null,null,null,null,null,null,null,null,null,null,null,null,null,null,null,null,null,null,null,null,null,null,null,"2019-03-25","Dallas Stars","Winnipeg Jets"]
[null,null,null,null,null,null,null,null,null,null,null,null,null,null,null,null,null,null,null,null,null,null,null,null,null,null,null,null,null,null,null,null,null,null,null,"2019-03-29","Anaheim Ducks","Calgary Flames"]
[null,null,null,null,null,null,null,null,null,null,null,null,null,null,null,null,null,null,null,null,null,null,null,null,null,null,null,null,null,null,null,null,null,null,null,"2019-03-29","Arizona Coyotes","Colorado Avalanche"]
[null,null,null,null,null,null,null,null,null,null,null,null,null,null,null,null,null,null,null,null,null,null,null,null,null,null,null,null,null,null,null,null,null,null,null,"2019-03-29","New Jersey Devils","Detroit Red Wings"]
[null,null,null,null,null,null,null,null,null,null,null,null,null,null,null,null,null,null,null,null,null,null,null,null,null,null,null,null,null,null,null,null,null,null,null,"2019-03-29","St. Louis Blues","New York Rangers"]
[null,null,null,null,null,null,null,null,null,null,null,null,null,null,null,null,null,null,null,null,null,null,null,null,null,null,null,null,null,null,null,null,null,null,null,"2019-03-29","Nashville Predators","Pittsburgh Penguins"]
[null,null,null,null,null,null,null,null,null,null,null,null,null,null,null,null,null,null,null,null,null,null,null,null,null,null,null,null,null,null,null,null,null,null,null,"2019-03-29","Minnesota Wild","Vegas Golden Knights"]
[null,null,null,null,null,null,null,null,null,null,null,null,null,null,null,null,null,null,null,null,null,null,null,null,null,null,null,null,null,null,null,null,null,null,null,"2019-03-31","Minnesota Wild","Arizona Coyotes"]
[null,null,null,null,null,null,null,null,null,null,null,null,null,null,null,null,null,null,null,null,null,null,null,null,null,null,null,null,null,null,null,null,null,null,null,"2019-03-31","Columbus Blue Jackets","Buffalo Sabres"]
[null,null,null,null,null,null,null,null,null,null,null,null,null,null,null,null,null,null,null,null,null,null,null,null,null,null,null,null,null,null,null,null,null,null,null,"2019-03-31","Boston Bruins","Detroit Red Wings"]
[null,null,null,null,null,null,null,null,null,null,null,null,null,null,null,null,null,null,null,null,null,null,null,null,null,null,null,null,null,null,null,null,null,null,null,"2019-03-31","New York Rangers","Philadelphia Flyers"]
[null,null,null,null,null,null,null,null,null,null,null,null,null,null,null,null,null,null,null,null,null,null,null,null,null,null,null,null,null,null,null,null,null,null,null,"2019-03-31","Carolina Hurricanes","Pittsburgh Penguins"]
[null,null,null,null,null,null,null,null,null,null,null,null,null,null,null,null,null,null,null,null,null,null,null,null,null,null,null,null,null,null,null,null,null,null,null,"2019-03-31","Calgary Flames","San Jose Sharks"]
[null,null,null,null,null,null,null,null,null,null,null,null,null,null,null,null,null,null,null,null,null,null,null,null,null,null,null,null,null,null,null,null,null,null,null,"2019-04-02","Los Angeles Kings","Arizona Coyotes"]
[null,null,null,null,null,null,null,null,null,null,null,null,null,null,null,null,null,null,null,null,null,null,null,null,null,null,null,null,null,null,null,null,null,null,null,"2019-04-02","Nashville Predators","Buffalo Sabres"]
[null,null,null,null,null,null,null,null,null,null,null,null,null,null,null,null,null,null,null,null,null,null,null,null,null,null,null,null,null,null,null,null,null,null,null,"2019-04-02","Boston Bruins","Columbus Blue Jackets"]
[null,null,null,null,null,null,null,null,null,null,null,null,null,null,null,null,null,null,null,null,null,null,null,null,null,null,null,null,null,null,null,null,null,null,null,"2019-04-02","Edmonton Oilers","Colorado Avalanche"]
[null,null,null,null,null,null,null,null,null,null,null,null,null,null,null,null,null,null,null,null,null,null,null,null,null,null,null,null,null,null,null,null,null,null,null,"2019-04-02","Philadelphia Flyers","Dallas Stars"]
[null,null,null,null,null,null,null,null,null,null,null,null,null,null,null,null,null,null,null,null,null,null,null,null,null,null,null,null,null,null,null,null,null,null,null,"2019-04-02","Pittsburgh Penguins","Detroit Red Wings"]
[null,null,null,null,null,null,null,null,null,null,null,null,null,null,null,null,null,null,null,null,null,null,null,null,null,null,null,null,null,null,null,null,null,null,null,"2019-04-02","Winnipeg Jets","Minnesota Wild"]
[null,null,null,null,null,null,null,null,null,null,null,null,null,null,null,null,null,null,null,null,null,null,null,null,null,null,null,null,null,null,null,null,null,null,null,"2019-04-02","Tampa Bay Lightning","Montreal Canadiens"]
[null,null,null,null,null,null,null,null,null,null,null,null,null,null,null,null,null,null,null,null,null,null,null,null,null,null,null,null,null,null,null,null,null,null,null,"2019-04-02","Carolina Hurricanes","Toronto Maple Leafs"]
[null,null,null,null,null,null,null,null,null,null,null,null,null,null,null,null,null,null,null,null,null,null,null,null,null,null,null,null,null,null,null,null,null,null,null,"2019-04-02","San Jose Sharks","Vancouver Canucks"]
[null,null,null,null,null,null,null,null,null,null,null,null,null,null,null,null,null,null,null,null,null,null,null,null,null,null,null,null,null,null,null,null,null,null,null,"2019-04-04","Ottawa Senators","Buffalo Sabres"]
[null,null,null,null,null,null,null,null,null,null,null,null,null,null,null,null,null,null,null,null,null,null,null,null,null,null,null,null,null,null,null,null,null,null,null,"2019-04-04","New Jersey Devils","Carolina Hurricanes"]
[null,null,null,null,null,null,null,null,null,null,null,null,null,null,null,null,null,null,null,null,null,null,null,null,null,null,null,null,null,null,null,null,null,null,null,"2019-04-04","Winnipeg Jets","Colorado Avalanche"]
[null,null,null,null,null,null,null,null,null,null,null,null,null,null,null,null,null,null,null,null,null,null,null,null,null,null,null,null,null,null,null,null,null,null,null,"2019-04-04","San Jose Sharks","Edmonton Oilers"]
[null,null,null,null,null,null,null,null,null,null,null,null,null,null,null,null,null,null,null,null,null,null,null,null,null,null,null,null,null,null,null,null,null,null,null,"2019-04-04","New York Islanders","Florida Panthers"]
[null,null,null,null,null,null,null,null,null,null,null,null,null,null,null,null,null,null,null,null,null,null,null,null,null,null,null,null,null,null,null,null,null,null,null,"2019-04-04","Boston Bruins","Minnesota Wild"]
[null,null,null,null,null,null,null,null,null,null,null,null,null,null,null,null,null,null,null,null,null,null,null,null,null,null,null,null,null,null,null,null,null,null,null,"2019-04-04","Vancouver Canucks","Nashville Predators"]
[null,null,null,null,null,null,null,null,null,null,null,null,null,null,null,null,null,null,null,null,null,null,null,null,null,null,null,null,null,null,null,null,null,null,null,"2019-04-04","Detroit Red Wings","Pittsburgh Penguins"]
[null,null,null,null,null,null,null,null,null,null,null,null,null,null,null,null,null,null,null,null,null,null,null,null,null,null,null,null,null,null,null,null,null,null,null,"2019-04-04","Philadelphia Flyers","St. Louis Blues"]
[null,null,null,null,null,null,null,null,null,null,null,null,null,null,null,null,null,null,null,null,null,null,null,null,null,null,null,null,null,null,null,null,null,null,null,"2019-04-04","Tampa Bay Lightning","Toronto Maple Leafs"]
[null,null,null,null,null,null,null,null,null,null,null,null,null,null,null,null,null,null,null,null,null,null,null,null,null,null,null,null,null,null,null,null,null,null,null,"2019-04-04","Arizona Coyotes","Vegas Golden Knights"]
[null,null,null,null,null,null,null,null,null,null,null,null,null,null,null,null,null,null,null,null,null,null,null,null,null,null,null,null,null,null,null,null,null,null,null,"2019-04-04","Montreal Canadiens","Washington Capitals"]
[null,null,null,null,null,null,null,null,null,null,null,null,null,null,null,null,null,null,null,null,null,null,null,null,null,null,null,null,null,null,null,null,null,null,null,"2019-04-06","Winnipeg Jets","Arizona Coyotes"]
[null,null,null,null,null,null,null,null,null,null,null,null,null,null,null,null,null,null,null,null,null,null,null,null,null,null,null,null,null,null,null,null,null,null,null,"2019-04-06","Tampa Bay Lightning","Boston Bruins"]
[null,null,null,null,null,null,null,null,null,null,null,null,null,null,null,null,null,null,null,null,null,null,null,null,null,null,null,null,null,null,null,null,null,null,null,"2019-04-06","Edmonton Oilers","Calgary Flames"]
[null,null,null,null,null,null,null,null,null,null,null,null,null,null,null,null,null,null,null,null,null,null,null,null,null,null,null,null,null,null,null,null,null,null,null,"2019-04-06","Minnesota Wild","Dallas Stars"]
[null,null,null,null,null,null,null,null,null,null,null,null,null,null,null,null,null,null,null,null,null,null,null,null,null,null,null,null,null,null,null,null,null,null,null,"2019-04-06","Buffalo Sabres","Detroit Red Wings"]
[null,null,null,null,null,null,null,null,null,null,null,null,null,null,null,null,null,null,null,null,null,null,null,null,null,null,null,null,null,null,null,null,null,null,null,"2019-04-06","New Jersey Devils","Florida Panthers"]
[null,null,null,null,null,null,null,null,null,null,null,null,null,null,null,null,null,null,null,null,null,null,null,null,null,null,null,null,null,null,null,null,null,null,null,"2019-04-06","Vegas Golden Knights","Los Angeles Kings"]
[null,null,null,null,null,null,null,null,null,null,null,null,null,null,null,null,null,null,null,null,null,null,null,null,null,null,null,null,null,null,null,null,null,null,null,"2019-04-06","Toronto Maple Leafs","Montreal Canadiens"]
[null,null,null,null,null,null,null,null,null,null,null,null,null,null,null,null,null,null,null,null,null,null,null,null,null,null,null,null,null,null,null,null,null,null,null,"2019-04-06","Chicago Blackhawks","Nashville Predators"]
[null,null,null,null,null,null,null,null,null,null,null,null,null,null,null,null,null,null,null,null,null,null,null,null,null,null,null,null,null,null,null,null,null,null,null,"2019-04-06","Columbus Blue Jackets","Ottawa Senators"]
[null,null,null,null,null,null,null,null,null,null,null,null,null,null,null,null,null,null,null,null,null,null,null,null,null,null,null,null,null,null,null,null,null,null,null,"2019-04-06","Carolina Hurricanes","Philadelphia Flyers"]
[null,null,null,null,null,null,null,null,null,null,null,null,null,null,null,null,null,null,null,null,null,null,null,null,null,null,null,null,null,null,null,null,null,null,null,"2019-04-06","New York Rangers","Pittsburgh Penguins"]
[null,null,null,null,null,null,null,null,null,null,null,null,null,null,null,null,null,null,null,null,null,null,null,null,null,null,null,null,null,null,null,null,null,null,null,"2019-04-06","Colorado Avalanche","San Jose Sharks"]
[null,null,null,null,null,null,null,null,null,null,null,null,null,null,null,null,null,null,null,null,null,null,null,null,null,null,null,null,null,null,null,null,null,null,null,"2019-04-06","Vancouver Canucks","St. Louis Blues"]
[null,null,null,null,null,null,null,null,null,null,null,null,null,null,null,null,null,null,null,null,null,null,null,null,null,null,null,null,null,null,null,null,null,null,null,"2019-04-06","New York Islanders","Washington Capitals"]

{"sheet":"Introduction","index":2,"n_rows":62,"n_cols":34,"rows_kept":62,"cut":false,"hidden":false,"merged":[[1,0,1,19],[12,5,12,13],[19,1,19,17],[4,3,4,14],[11,3,11,14]]}
[]
["Pittsburgh Penguins 2018-2019 Season"]
[]
[]
[null,null,null,"(Step 3) - Form Input"]
[]
[]
[]
[]
[]
[]
[null,null,null,"(Step 3) - Paste Input"]
[]
[]
[]
[]
[]
[]
[]
[]
[]
[]
[]
[]
[]
[]
[]
[]
[]
[]
[]
[]
[]
[]
[]
[]
[]
[]
["NYR"]
["PIT"]
["New York Rangers"]
["New York Rangers"]
["Rangers"]
["2019-04-06",{"$f":"TEXT(A44,\"yyyymmdd\")","v":"20190406"}]
[82]
[]
[]
[]
[]
[]
[]
["Win"]
["Loss"]
["OTL"]
["SOL"]
["ND"]
[]
[]
[]
["http://www.hockey-reference.com/boxscores/201904060PIT.html"]
[]
[null,null,null,null,null,null,null,null,null,null,null,null,null,null,null,null,null,null,null,null,null,null,null,null,null,null,null,null,null,null,null,null,null,"Yes"]

{"sheet":"Data Entry Instructions","index":3,"n_rows":673,"n_cols":1,"rows_kept":673,"cut":false,"hidden":false,"merged":[[645,0,645,19],[672,0,672,19],[346,0,346,19],[2,0,2,18],[0,0,0,19],[18,0,18,19],[41,0,41,17],[188,0,188,17],[109,0,109,18],[135,0,135,16],[161,0,161,17],[64,0,64,18],[84,0,84,18],[232,0,232,19],[261,0,261,19],[289,0,289,19],[318,0,318,19],[216,0,216,17],[375,0,375,19],[403,0,403,19],[418,0,418,19],[446,0,446,19],[474,0,474,19],[618,0,618,19],[593,0,593,19],[557,0,557,19],[575,0,575,19],[501,0,501,19],[529,0,529,19]]}
["Instructions for entering game statistics"]
[]
["Step 1.  Selecting a game for data entry"]
[]
[]
[]
[]
[]
[]
[]
[]
[]
[]
[]
[]
[]
[]
[]
["Step 2.  Entering game data and linking to hockey-reference.com"]
[]
[]
[]
[]
[]
[]
[]
[]
[]
[]
[]
[]
[]
[]
[]
[]
[]
[]
[]
[]
[]
[]
["Step 3.  Entering scoring stats (continued)"]
[]
[]
[]
[]
[]
[]
[]
[]
[]
[]
[]
[]
[]
[]
[]
[]
[]
[]
[]
[]
[]
[]
["Step 3.  Entering scoring stats (continued)"]
[]
[]
[]
[]
[]
[]
[]
[]
[]
[]
[]
[]
[]
[]
[]
[]
[]
[]
[]
["Step 3.  Entering scoring stats (continued)"]
[]
[]
[]
[]
[]
[]
[]
[]
[]
[]
[]
[]
[]
[]
[]
[]
[]
[]
[]
[]
[]
[]
[]
[]
["Step 3.  Entering scoring stats (continued)"]
[]
[]
[]
[]
[]
[]
[]
[]
[]
[]
[]
[]
[]
[]
[]
[]
[]
[]
[]
[]
[]
[]
[]
[]
[]
["Step 3.  Entering scoring stats (continued)"]
[]
[]
[]
[]
[]
[]
[]
[]
[]
[]
[]
[]
[]
[]
[]
[]
[]
[]
[]
[]
[]
[]
[]
[]
[]
["Step 3.  Entering scoring stats (continued)"]
[]
[]
[]
[]
[]
[]
[]
[]
[]
[]
[]
[]
[]
[]
[]
[]
[]
[]
[]
[]
[]
[]
[]
[]
[]
[]
["Step 3.  Entering scoring stats (continued)"]
[]
[]
[]
[]
[]
[]
[]
[]
[]
[]
[]
[]
[]
[]
[]
[]
[]
[]
[]
[]
[]
[]
[]
[]
[]
[]
[]
["Step 3.  Entering shootout stats"]
[]
[]
[]
[]
[]
[]
[]
[]
[]
[]
[]
[]
[]
[]
[]
["Step 3.  Entering shootout stats (continued)"]
[]
[]
[]
[]
[]
[]
[]
[]
[]
[]
[]
[]
[]
[]
[]
[]
[]
[]
[]
[]
[]
[]
[]
[]
[]
[]
[]
[]
["Step 3.  Entering shootout stats (continued)"]
[]
[]
[]
[]
[]
[]
[]
[]
[]
[]
[]
[]
[]
[]
[]
[]
[]
[]
[]
[]
[]
[]
[]
[]
[]
[]
[]
["Step 3.  Entering shootout stats (continued)"]
[]
[]
[]
[]
[]
[]
[]
[]
[]
[]
[]
[]
[]
[]
[]
[]
[]
[]
[]
[]
[]
[]
[]
[]
[]
[]
[]
[]
["Step 3.  Entering shootout stats (continued)"]
[]
[]
[]
[]
[]
[]
[]
[]
[]
[]
[]
[]
[]
[]
[]
[]
[]
[]
[]
[]
[]
[]
[]
[]
[]
[]
[]
["Step 3.  Entering shootout stats (continued)"]
[]
[]
[]
[]
[]
[]
[]
[]
[]
[]
[]
[]
[]
[]
[]
[]
[]
[]
[]
[]
[]
[]
[]
[]
[]
[]
[]
[]
["Step 3.  Entering shootout stats (continued)"]
[]
[]
[]
[]
[]
[]
[]
[]
[]
[]
[]
[]
[]
[]
[]
[]
[]
[]
[]
[]
[]
[]
[]
[]
[]
[]
[]
["Step 3.  Entering penalty stats"]
[]
[]
[]
[]
[]
[]
[]
[]
[]
[]
[]
[]
[]
[]
["Step 3.  Entering penalty stats (continued)"]
[]
[]
[]
[]
[]
[]
[]
[]
[]
[]
[]
[]
[]
[]
[]
[]
[]
[]
[]
[]
[]
[]
[]
[]
[]
[]
[]
["Step 3.  Entering penalty stats (continued)"]
[]
[]
[]
[]
[]
[]
[]
[]
[]
[]
[]
[]
[]
[]
[]
[]
[]
[]
[]
[]
[]
[]
[]
[]
[]
[]
[]
["Step 3.  Entering penalty stats (continued)"]
[]
[]
[]
[]
[]
[]
[]
[]
[]
[]
[]
[]
[]
[]
[]
[]
[]
[]
[]
[]
[]
[]
[]
[]
[]
[]
["Step 3.  Entering penalty stats (continued)"]
[]
[]
[]
[]
[]
[]
[]
[]
[]
[]
[]
[]
[]
[]
[]
[]
[]
[]
[]
[]
[]
[]
[]
[]
[]
[]
[]
["Step 3.  Entering penalty stats (continued)"]
[]
[]
[]
[]
[]
[]
[]
[]
[]
[]
[]
[]
[]
[]
[]
[]
[]
[]
[]
[]
[]
[]
[]
[]
[]
[]
[]
["Step 4.  Entering goalie stats"]
[]
[]
[]
[]
[]
[]
[]
[]
[]
[]
[]
[]
[]
[]
[]
[]
[]
["Step 4.  Entering goalie stats (continued)"]
[]
[]
[]
[]
[]
[]
[]
[]
[]
[]
[]
[]
[]
[]
[]
[]
[]
["Step 4.  Entering goalie stats (continued)"]
[]
[]
[]
[]
[]
[]
[]
[]
[]
[]
[]
[]
[]
[]
[]
[]
[]
[]
[]
[]
[]
[]
[]
[]
["Step 4.  Entering goalie stats (continued)"]
[]
[]
[]
[]
[]
[]
[]
[]
[]
[]
[]
[]
[]
[]
[]
[]
[]
[]
[]
[]
[]
[]
[]
[]
[]
[]
["Step 4.  Entering goalie stats (continued)"]
[]
[]
[]
[]
[]
[]
[]
[]
[]
[]
[]
[]
[]
[]
[]
[]
[]
[]
[]
[]
[]
[]
[]
[]
[]
[]
["Step 4.  Entering goalie stats (continued)"]

{"sheet":"NHL Rosters","index":4,"n_rows":100,"n_cols":378,"rows_kept":100,"cut":false,"hidden":true,"merged":[]}
["Anaheim Ducks",null,null,null,null,null,null,null,null,null,null,null,"Arizona Coyotes",null,null,null,null,null,null,null,null,null,null,null,"Boston Bruins",null,null,null,null,null,null,null,null,null,null,null,"Buffalo Sabres",null,null,null,null,null,null,null,null,null,null,null,"Calagary Flames",null,null,null,null,null,null,null,null,null,null,null,"Carolina Panthers",null,null,null,null,null,null,null,null,null,null,null,"Chicago Blawk Hawks",null,null,null,null,null,null,null,null,null,null,null,"Colorado Avalanche",null,null,null,null,null,null,null,null,null,null,null,"Columbus Blue Jackets",null,null,null,null,null,null,null,null,null,null,null,"Dallas Stars",null,null,null,null,null,null,null,null,null,null,null,"Detroit Red Wings",null,null,null,null,null,null,null,null,null,null,null,"Edmonton Oilers",null,null,null,null,null,null,null,null,null,null,null,"Florida Panthers",null,null,null,null,null,null,null,null,null,null,null,"Los Angeles Kings",null,null,null,null,null,null,null,null,null,null,null,"Minnesota Wild",null,null,null,null,null,null,null,null,null,null,null,"Montreal Canadiens",null,null,null,null,null,null,null,null,null,null,null,"Nashville Predators",null,null,null,null,null,null,null,null,null,null,null,"New Jersey Devils",null,null,null,null,null,null,null,null,null,null,null,"New York Islanders",null,null,null,null,null,null,null,null,null,null,null,"New York Rangers",null,null,null,null,null,null,null,null,null,null,null,"Ottawa Senators",null,null,null,null,null,null,null,null,null,null,null,"Philadelphia Flyers",null,null,null,null,null,null,null,null,null,null,null,"Pittsburgh Penguins",null,null,null,null,null,null,null,null,null,null,null,"San Jose Sharks",null,null,null,null,null,null,null,null,null,null,null,"St. Louis Blues",null,null,null,null,null,null,null,null,null,null,null,"Tampa Bay Lightning",null,null,null,null,null,null,null,null,null,null,null,"Toronto Maple Leafs",null,null,null,null,null,null,null,null,null,null,null,"Vancouver Canucks",null,null,null,null,null,null,null,null,null,null,null,"Vegas Black Knights",null,null,null,null,null,null,null,null,null,null,null,"Washington Capitals",null,null,null,null,null,null,null,null,null,null,null,"Winnepeg Jets"]
[]
["No.","Player","Flag","Pos","Age","Ht","Wt","S/C","Exp","Birth Date","Salary",null,"No.","Player","Flag","Pos","Age","Ht","Wt","S/C","Exp","Birth Date","Salary",null,"No.","Player","Flag","Pos","Age","Ht","Wt","S/C","Exp","Birth Date","Salary",null,"No.","Player","Flag","Pos","Age","Ht","Wt","S/C","Exp","Birth Date","Salary",null,"No.","Player","Flag","Pos","Age","Ht","Wt","S/C","Exp","Birth Date","Salary",null,"No.","Player","Flag","Pos","Age","Ht","Wt","S/C","Exp","Birth Date","Salary",null,"No.","Player","Flag","Pos","Age","Ht","Wt","S/C","Exp","Birth Date","Salary",null,"No.","Player","Flag","Pos","Age","Ht","Wt","S/C","Exp","Birth Date","Salary",null,"No.","Player","Flag","Pos","Age","Ht","Wt","S/C","Exp","Birth Date","Salary",null,"No.","Player","Flag","Pos","Age","Ht","Wt","S/C","Exp","Birth Date","Salary",null,"No.","Player","Flag","Pos","Age","Ht","Wt","S/C","Exp","Birth Date","Salary",null,"No.","Player","Flag","Pos","Age","Ht","Wt","S/C","Exp","Birth Date","Salary",null,"No.","Player","Flag","Pos","Age","Ht","Wt","S/C","Exp","Birth Date","Salary",null,"No.","Player","Flag","Pos","Age","Ht","Wt","S/C","Exp","Birth Date","Salary",null,"No.","Player","Flag","Pos","Age","Ht","Wt","S/C","Exp","Birth Date","Salary",null,"No.","Player","Flag","Pos","Age","Ht","Wt","S/C","Exp","Birth Date","Salary",null,"No.","Player","Flag","Pos","Age","Ht","Wt","S/C","Exp","Birth Date","Salary",null,"No.","Player","Flag","Pos","Age","Ht","Wt","S/C","Exp","Birth Date","Salary",null,"No.","Player","Flag","Pos","Age","Ht","Wt","S/C","Exp","Birth Date","Salary",null,"No.","Player","Flag","Pos","Age","Ht","Wt","S/C","Exp","Birth Date","Salary",null,"No.","Player","Flag","Pos","Age","Ht","Wt","S/C","Exp","Birth Date","Salary",null,"No.","Player","Flag","Pos","Age","Ht","Wt","S/C","Exp","Birth Date","Salary",null,"No.","Player","Flag","Pos","Age","Ht","Wt","S/C","Exp","Birth Date","Salary",null,"No.","Player","Flag","Pos","Age","Ht","Wt","S/C","Exp","Birth Date","Salary",null,"No.","Player","Flag","Pos","Age","Ht","Wt","S/C","Exp","Birth Date","Salary",null,"No.","Player","Flag","Pos","Age","Ht","Wt","S/C","Exp","Birth Date","Salary",null,"No.","Player","Flag","Pos","Age","Ht","Wt","S/C","Exp","Birth Date","Salary",null,"No.","Player","Flag","Pos","Age","Ht","Wt","S/C","Exp","Birth Date","Salary",null,"No.","Player","Flag","Pos","Age","Ht","Wt","S/C","Exp","Birth Date","Salary",null,"No.","Player","Flag","Pos","Age","Ht","Wt","S/C","Exp","Birth Date","Salary",null,"No.","Player","Flag","Pos","Age","Ht","Wt","S/C","Exp","Birth Date","Salary",null,null,null,null,null,"Team","PlayerCol"]
[14,"Adam Henrique","ca","C",28,"2000-06-01",197,"L/-",8,"1990-02-06",5500000,null,33,"Alex Goligoski","us","D",33,"2018-05-11",185,"L/-",11,"1985-07-30",6100000,null,10,"Anders Bjork","us","LW",22,"2000-06-01",190,"L/-",1,"1996-08-05",925000,null,40,"Carter Hutton","ca","G",33,"2000-06-01",198,"-/L",6,"1985-12-19",2750000,null,27,"Austin Czarnik","us","C",26,"2018-05-09",170,"R/-",2,"1992-12-12",1250000,null,37,"Andrei Svechnikov","ru","RW",18,"2018-06-02",188,"L/-","R","2000-03-26",925000,null,12,"Alex Debrincat","us","LW",21,"2018-05-07",165,"R/-",1,"1997-12-18",792500,null,13,"Alexander Kerfoot","ca","C",24,"2018-05-10",175,"L/-",1,"1994-08-11",925000,null,6,"Adam Clendening","us","D",26,"2000-06-01",196,"R/-",4,"1992-10-26",300000,null,47,"Alexander Radulov","su","RW",32,"2018-06-01",205,"L/-",5,"1986-07-05",8000000,null,72,"Andreas Athanasiou","ca","LW",24,"2018-06-02",188,"L/-",3,"1994-08-06",3000000,null,6,"Adam Larsson","se","D",26,"2018-06-03",208,"R/-",7,"1992-11-12",4850000,null,5,"Aaron Ekblad","ca","D",22,"2018-06-04",220,"R/-",4,"1996-02-07",7000000,null,9,"Adrian Kempe","se","C",22,"2018-06-02",195,"L/-",2,"1996-09-13",832500,null,32,"Alex Stalock","us","G",31,"2000-06-01",198,"-/L",7,"1987-07-28",650000,null,65,"Andrew Shaw","ca","RW",27,"2018-05-11",182,"R/-",7,"1991-07-20",4000000,null,2,"Anthony Bitetto","us","D",28,"2018-06-01",210,"L/-",4,"1990-07-15",650000,null,6,"Andy Greene","us","D",36,"2018-05-11",190,"L/-",12,"1982-10-30",5000000,null,3,"Adam Pelech","ca","D",24,"2018-06-03",218,"L/-",3,"1994-08-16",1100000,null,54,"Adam McQuaid","ca","D",32,"2018-06-04",210,"R/-",9,"1986-10-12","N/A",null,59,"Alex Formenton","ca","LW",19,"2018-06-02",165,"L/-",1,"1999-09-13",70000,null,47,"Andrew MacDonald","ca","D",32,"2018-06-01",204,"L/-",10,"1986-09-07",5500000,null,8,"Brian Dumoulin","us","D",27,"2018-06-04",207,"L/-",5,"1991-09-06",4100000,null,30,"Aaron Dell","ca","G",29,"2000-06-01",205,"-/L",2,"1989-05-04",2200000,null,27,"Alex Pietrangelo","ca","D",29,"2018-06-03",210,"R/-",10,"1990-01-18",7000000,null,73,"Adam Erne","us","LW",23,"2018-06-01",214,"L/-",2,"1995-04-20",800000,null,18,"Andreas Johnsson","se","LW",24,"2018-05-10",181,"L/-",1,"1994-11-21",787500,null,88,"Adam Gaudette","us","C",22,"2018-06-01",170,"R/-",1,"1996-10-03",925000,null,77,"Brad Hunt","ca","D",30,"2018-05-09",187,"L/-",5,"1988-08-24",650000,null,8,"Alex Ovechkin","su","LW",33,"2018-06-03",235,"R/-",13,"1985-09-17",10000000,null,30,"Laurent Brossoit","ca","G",25,"2018-06-03",204,"-/L",4,"1993-03-23",650000,null,null,null,null,null,"Anaheim Ducks","B"]
[62,"Andrej Sustr","cs","D",28,"2018-06-07",217,"R/-",6,"1990-11-29",1300000,null,32,"Antti Raanta","fi","G",29,"2000-06-01",195,"-/L",5,"1989-05-12",3750000,null,63,"Brad Marchand","ca","LW",30,"2018-05-09",181,"L/-",9,"1988-05-11",8000000,null,37,"Casey Mittelstadt","us","C",20,"2018-06-01",202,"L/-",1,"1998-11-22",925000,null,33,"David Rittich","cs","G",26,"2018-06-03",206,"-/L",2,"1992-08-19","N/A",null,22,"Brett Pesce","us","D",24,"2018-06-03",200,"R/-",3,"1994-11-15",4025000,null,29,"Andreas Martinsen","no","LW",28,"2018-06-03",229,"L/-",3,"1990-06-13",650000,null,34,"Carl Soderberg","se","C",33,"2018-06-03",210,"L/-",6,"1985-10-12",5000000,null,10,"Alexander Wennberg","se","C",24,"2018-06-02",196,"L/-",4,"1994-09-22",4500000,null,35,"Anton Khudobin","su","G",32,"2018-05-11",200,"-/L",9,"1986-05-07",2500000,null,39,"Anthony Mantha","ca","RW",24,"2018-06-05",225,"L/-",3,"1994-09-16",3300000,null,33,"Cam Talbot","ca","G",31,"2018-06-04",196,"-/L",5,"1987-07-05",4200000,null,16,"Aleksander Barkov","fi","C",23,"2018-06-03",213,"L/-",5,"1995-09-02",6250000,null,27,"Alec Martinez","us","D",31,"2018-06-01",208,"L/-",9,"1987-07-26",4050000,null,3,"Charlie Coyle","us","C",26,"2018-06-03",220,"R/-",6,"1992-03-02",3750000,null,37,"Antti Niemi","fi","G",35,"2018-06-02",209,"-/L",10,"1983-08-29",950000,null,19,"Calle Jarnkrok","se","C",27,"2018-05-11",186,"R/-",5,"1991-09-25",2100000,null,12,"Ben Lovejoy","us","D",34,"2018-06-01",205,"R/-",10,"1984-02-20",2750000,null,27,"Anders Lee","us","LW",28,"2018-06-03",231,"L/-",6,"1990-07-03",5000000,null,40,"Alexandar Georgiev","bg","G",22,"2018-06-01",179,"-/L",1,"1996-02-10",70000,null,67,"Ben Harpur","ca","D",24,"2018-06-06",222,"L/-",3,"1995-01-12",650000,null,41,"Anthony Stolarz","us","G",25,"2018-06-06",210,"-/L",1,"1994-01-20","N/A",null,17,"Bryan Rust","us","RW",26,"2018-05-11",192,"R/-",4,"1992-05-11",3500000,null,40,"Antti Suomela","fi","C",24,"2000-06-01",180,"L/-","R","1994-03-17",70000,null,20,"Alexander Steen","ca","LW",34,"2000-06-01",211,"L/-",13,"1984-03-01","N/A",null,17,"Alex Killorn","ca","LW",29,"2018-06-01",196,"L/-",6,"1989-09-14",4450000,null,34,"Auston Matthews","us","C",21,"2018-06-03",223,"L/-",2,"1997-09-17",925000,null,23,"Alexander Edler","se","D",32,"2018-06-03",212,"L/-",12,"1986-04-21",4500000,null,3,"Brayden McNabb","ca","D",28,"2018-06-04",212,"L/-",6,"1991-01-21",3000000,null,65,"Andre Burakovsky","at","LW",23,"2018-06-03",201,"L/-",4,"1995-02-09",3250000,null,33,"Dustin Byfuglien","us","D",33,"2018-06-05",260,"R/-",13,"1985-03-27",8000000,null,null,null,null,null,"Arizona Coyotes","N"]
[7,"Andrew Cogliano","ca","LW",31,"2018-05-10",177,"L/-",11,"1987-06-14",3250000,null,15,"Brad Richardson","ca","C",33,"2000-06-01",190,"L/-",13,"1985-02-04",1100000,null,25,"Brandon Carlo","us","D",22,"2018-06-05",212,"R/-",2,"1996-11-26",832500,null,8,"Casey Nelson","us","D",26,"2018-06-01",185,"R/-",3,"1992-07-18",800000,null,10,"Derek Ryan","us","C",32,"2018-05-10",185,"R/-",3,"1986-12-29",3125000,null,23,"Brock McGinn","ca","LW",24,"2000-06-01",185,"L/-",3,"1994-02-02",900000,null,15,"Artem Anisimov","su","C",30,"2018-06-04",198,"L/-",10,"1988-05-24",5000000,null,22,"Colin Wilson","us","C",29,"2018-06-01",221,"L/-",9,"1989-10-20",4000000,null,91,"Anthony Duclair","ca","LW",23,"2018-05-11",191,"L/-",4,"1995-08-26",650000,null,30,"Ben Bishop","us","G",32,"2018-06-07",215,"-/L",9,"1986-11-21",6500000,null,70,"Christoffer Ehn","se","C",22,"2018-06-03",181,"L/-","R","1996-04-05",62500,null,97,"Connor McDavid","ca","C",22,"2018-06-01",193,"L/-",3,"1997-01-13",15000000,null,6,"Alexander Petrovic","ca","D",26,"2018-06-04",216,"R/-",6,"1992-03-03","N/A",null,19,"Alex Iafallo","us","LW",25,"2000-06-01",185,"L/-",1,"1993-12-21",925000,null,40,"Devan Dubnyk","ca","G",32,"2018-06-06",224,"-/L",9,"1986-05-04",5000000,null,62,"Artturi Lehkonen","fi","LW",23,"2000-06-01",177,"L/-",2,"1995-07-04",925000,null,10,"Colton Sissons","ca","C",25,"2018-06-01",200,"R/-",4,"1993-11-05",650000,null,20,"Blake Coleman","us","C",27,"2018-05-11",200,"L/-",2,"1991-11-28",1800000,null,16,"Andrew Ladd","ca","LW",33,"2018-06-03",192,"L/-",13,"1985-12-12",6000000,null,76,"Brady Skjei","us","D",24,"2018-06-03",214,"L/-",3,"1994-03-26","N/A",null,9,"Bobby Ryan","us","RW",31,"2018-06-02",209,"R/-",11,"1987-03-17",7500000,null,37,"Brian Elliott","ca","G",33,"2018-06-02",209,"-/L",11,"1985-04-09",3000000,null,1,"Casey DeSmith","us","G",27,"2000-06-01",181,"-/L",1,"1991-08-13",650000,null,23,"Barclay Goodrow","ca","RW",25,"2018-06-02",215,"L/-",4,"1993-02-26",650000,null,10,"Brayden Schenn","ca","C",27,"2018-06-01",200,"L/-",9,"1991-08-22",5000000,null,88,"Andrei Vasilevskiy","ru","G",24,"2018-06-03",207,"-/L",4,"1994-07-25",3500000,null,28,"Connor Brown","ca","RW",25,"2000-06-01",183,"R/-",3,"1994-01-14",2100000,null,31,"Anders Nilsson","se","G",28,"2018-06-06",232,"-/L",5,"1990-03-19",2000000,null,21,"Cody Eakin","ca","C",27,"2000-06-01",190,"L/-",7,"1991-05-24",3850000,null,70,"Braden Holtby","ca","G",29,"2018-06-02",211,"-/L",8,"1989-09-16",5000000,null,7,"Ben Chiarot","ca","D",27,"2018-06-03",219,"L/-",5,"1991-05-09",1600000,null,null,null,null,null,"Boston Bruins","Z"]
[46,"Ben Street","ca","C",31,"2000-06-01",190,"L/-",5,"1987-02-13",750000,null,11,"Brendan Perlini","gb","LW",22,"2018-06-03",211,"L/-",2,"1996-04-27",832500,null,73,"Charlie McAvoy","us","D",21,"2000-06-01",208,"R/-",1,"1997-12-21",925000,null,43,"Conor Sheary","us","LW",26,"2018-05-08",176,"L/-",3,"1992-06-08",3000000,null,29,"Dillon Dube","ca","C",20,"2018-05-11",187,"L/-","R","1998-07-20",70000,null,44,"Calvin de Haan","ca","D",27,"2018-06-01",198,"L/-",6,"1991-05-09",4000000,null,22,"Brandon Davidson","ca","D",27,"2018-06-02",208,"L/-",4,"1991-08-21","N/A",null,6,"Erik Johnson","us","D",30,"2018-06-04",225,"R/-",10,"1988-03-21",6000000,null,9,"Artemi Panarin","su","LW",27,"2018-05-11",168,"R/-",3,"1991-10-30",6000000,null,15,"Blake Comeau","ca","LW",32,"2018-06-01",200,"R/-",12,"1986-02-18",2600000,null,65,"Danny DeKeyser","us","D",28,"2018-06-03",192,"L/-",6,"1990-03-07",5500000,null,25,"Darnell Nurse","ca","D",23,"2018-06-04",221,"L/-",4,"1995-02-04","N/A",null,55,"Bogdan Kiselevich","su","D",28,"2000-06-01",202,"L/-","R","1990-02-14",925000,null,11,"Anze Kopitar","si","C",31,"2018-06-03",224,"L/-",12,"1987-08-24",12000000,null,21,"Eric Fehr","ca","C",33,"2018-06-04",209,"R/-",13,"1985-09-07",1000000,null,11,"Brendan Gallagher","ca","RW",26,"2018-05-09",184,"R/-",6,"1992-05-06",3000000,null,15,"Craig Smith","us","RW",29,"2018-06-01",208,"R/-",7,"1989-09-05",4500000,null,11,"Brian Boyle","us","C",34,"2018-06-06",245,"L/-",11,"1984-12-18",2500000,null,18,"Anthony Beauvillier","ca","C",21,"2018-05-11",182,"L/-",2,"1997-06-08",832500,null,42,"Brendan Smith","ca","D",29,"2018-06-02",195,"L/-",7,"1989-02-08",4525000,null,7,"Brady Tkachuk","us","LW",19,"2018-06-03",196,"L/-","R","1999-09-16","N/A",null,33,"Calvin Pickard","ca","G",26,"2018-06-01",207,"-/L",4,"1992-04-15","N/A",null,2,"Chad Ruhwedel","us","D",28,"2018-05-11",191,"R/-",6,"1990-05-07",650000,null,4,"Brenden Dillon","ca","D",28,"2018-06-04",225,"L/-",7,"1990-11-13",3900000,null,31,"Chad Johnson","ca","G",32,"2018-06-03",197,"-/L",8,"1986-06-10",1750000,null,71,"Anthony Cirelli","ca","C",21,"2000-06-01",180,"L/-",1,"1997-07-15",70000,null,31,"Frederik Andersen","dk","G",29,"2018-06-04",230,"-/L",5,"1989-10-02",5000000,null,26,"Antoine Roussel","fr","LW",29,"2018-05-11",199,"L/-",6,"1989-11-21",3800000,null,6,"Colin Miller","ca","D",26,"2018-06-01",196,"R/-",3,"1992-10-29",3875000,null,10,"Brett Connolly","ca","RW",26,"2018-06-03",195,"R/-",7,"1992-05-02",1500000,null,81,"Kyle Connor","us","LW",22,"2018-06-01",182,"L/-",2,"1996-12-09",925000,null,null,null,null,null,"Buffalo Sabres","AL"]
[26,"Brandon Montour","ca","D",24,"2000-06-01",193,"R/-",2,"1994-04-11","N/A",null,36,"Christian Fischer","us","RW",21,"2018-06-02",214,"R/-",2,"1997-04-15",815000,null,14,"Chris Wagner","us","RW",27,"2000-06-01",198,"R/-",4,"1991-05-27",1250000,null,71,"Evan Rodrigues","ca","LW",25,"2018-05-10",176,"R/-",3,"1993-07-28",650000,null,28,"Elias Lindholm","se","C",24,"2018-06-01",195,"R/-",5,"1994-12-02",4850000,null,35,"Curtis McElhinney","ca","G",35,"2018-06-02",203,"-/L",10,"1983-05-23","N/A",null,23,"Brandon Manning","ca","D",28,"2018-06-01",205,"L/-",6,"1990-06-04",2500000,null,57,"Gabriel Bourque","ca","LW",28,"2018-05-10",206,"L/-",7,"1990-09-23",950000,null,38,"Boone Jenner","ca","C",25,"2018-06-02",206,"L/-",5,"1993-06-15",4000000,null,25,"Brett Ritchie","ca","RW",25,"2018-06-04",220,"R/-",4,"1993-07-01",1800000,null,43,"Darren Helm","ca","LW",32,"2000-06-01",196,"L/-",11,"1987-01-21",3750000,null,91,"Drake Caggiula","ca","LW",24,"2018-05-10",176,"L/-",2,"1994-06-20",1500000,null,7,"Colton Sceviour","ca","C",29,"2000-06-01",192,"R/-",7,"1989-04-20",1200000,null,51,"Austin Wagner","ca","LW",21,"2018-06-01",178,"L/-","R","1997-06-23",70000,null,12,"Eric Staal","ca","C",34,"2018-06-04",207,"L/-",14,"1984-10-29",3500000,null,31,"Carey Price","ca","G",31,"2018-06-03",215,"-/L",11,"1987-08-16",15000000,null,5,"Dan Hamhuis","ca","D",36,"2018-06-01",204,"L/-",14,"1982-12-13","N/A",null,28,"Damon Severson","ca","D",24,"2018-06-02",205,"R/-",4,"1994-08-07",3000000,null,29,"Brock Nelson","us","C",27,"2018-06-03",212,"L/-",5,"1991-10-15","N/A",null,21,"Brett Howden","ca","C",20,"2018-06-03",195,"L/-","R","1998-03-29",70000,null,71,"Chris Tierney","ca","C",24,"2018-06-01",195,"L/-",4,"1994-07-01","N/A",null,26,"Christian Folin","se","D",27,"2018-06-03",204,"R/-",5,"1991-02-09",800000,null,41,"Daniel Sprong","nl","RW",21,"2000-06-01",180,"R/-",2,"1997-03-17",750000,null,88,"Brent Burns","ca","D",33,"2018-06-05",230,"R/-",14,"1985-03-09",10000000,null,55,"Colton Parayko","ca","D",25,"2018-06-06",230,"R/-",3,"1993-05-12",6500000,null,6,"Anton Stralman","se","D",32,"2018-05-11",190,"R/-",11,"1986-08-01",4500000,null,33,"Frederik Gauthier","ca","C",23,"2018-06-05",235,"L/-",3,"1995-04-26",100000,null,27,"Ben Hutton","ca","D",25,"2018-06-02",206,"L/-",3,"1993-04-20",2800000,null,5,"Deryk Engelland","ca","D",36,"2018-06-02",214,"R/-",9,"1982-04-03",1500000,null,44,"Brooks Orpik","us","D",38,"2018-06-03",217,"L/-",15,"1980-09-26","N/A",null,9,"Andrew Copp","us","C",24,"2018-06-01",206,"L/-",4,"1994-07-08",1100000,null,null,null,null,null,"Calgary Flames","AX"]
[23,"Brian Gibbons","us","C",30,"2018-05-08",175,"L/-",3,"1988-02-26",1000000,null,9,"Clayton Keller","us","C",20,"2018-05-10",170,"L/-",2,"1998-07-29",925000,null,43,"Danton Heinen","ca","C",23,"2018-06-01",188,"L/-",2,"1995-07-05",925000,null,9,"Jack Eichel","us","C",22,"2018-06-02",200,"R/-",3,"1996-10-28",10000000,null,21,"Garnet Hathaway","us","RW",27,"2018-06-02",210,"R/-",3,"1991-11-23","N/A",null,19,"Dougie Hamilton","ca","D",25,"2018-06-06",210,"R/-",6,"1993-06-17",5750000,null,20,"Brandon Saad","us","LW",26,"2018-06-01",206,"L/-",7,"1992-10-27",6750000,null,92,"Gabriel Landeskog","se","LW",26,"2018-06-01",215,"L/-",7,"1992-11-23",6000000,null,17,"Brandon Dubinsky","us","C",32,"2018-06-02",205,"L/-",12,"1986-04-29",5850000,null,5,"Connor Carrick","us","D",24,"2018-05-11",192,"R/-",4,"1994-04-13","N/A",null,21,"Dennis Cholowski","ca","D",20,"2000-06-01",195,"L/-","R","1998-02-15",70000,null,75,"Evan Bouchard","ca","D",19,"2018-06-03",194,"R/-","R","1999-10-20",70000,null,62,"Denis Malgin","ch","C",22,"2018-05-09",177,"R/-",2,"1997-01-18",715000,null,24,"Derek Forbort","us","D",26,"2018-06-04",215,"L/-",3,"1992-03-04",2250000,null,29,"Greg Pateryn","us","D",28,"2018-06-03",223,"R/-",5,"1990-06-20",1750000,null,54,"Charles Hudon","ca","LW",24,"2018-05-10",196,"L/-",3,"1994-06-23",650000,null,9,"Filip Forsberg","se","LW",24,"2018-06-01",205,"R/-",6,"1994-08-13",6000000,null,10,"Jean-Sebastien Dea","ca","C",24,"2018-05-11",175,"R/-",2,"1994-02-08","N/A",null,15,"Cal Clutterbuck","ca","RW",31,"2018-05-11",216,"R/-",11,"1987-11-18",4000000,null,20,"Chris Kreider","us","LW",27,"2018-06-03",216,"L/-",6,"1991-04-30",4500000,null,6,"Chris Wideman","us","D",29,"2018-05-10",183,"R/-",3,"1990-01-07",1000000,null,28,"Claude Giroux","ca","C",31,"2018-05-11",185,"R/-",11,"1988-01-12",9000000,null,38,"Derek Grant","ca","C",28,"2018-06-03",215,"L/-",5,"1990-04-20",650000,null,65,"Erik Karlsson","se","D",28,"2000-06-01",190,"R/-",9,"1990-05-31","N/A",null,57,"David Perron","ca","LW",30,"2000-06-01",200,"R/-",11,"1988-05-28",4750000,null,21,"Brayden Point","ca","C",22,"2018-05-10",166,"R/-",2,"1996-03-13",650000,null,40,"Garret Sparks","us","G",25,"2018-06-03",201,"-/L",1,"1993-06-28",700000,null,53,"Bo Horvat","ca","C",23,"2000-06-01",215,"L/-",4,"1995-04-05",7000000,null,56,"Erik Haula","fi","LW",27,"2000-06-01",193,"L/-",5,"1991-03-23",2750000,null,18,"Chandler Stephenson","ca","C",24,"2000-06-01",203,"L/-",3,"1994-04-22",650000,null,27,"Nikolaj Ehlers","dk","LW",22,"2000-06-01",172,"L/-",3,"1996-02-14",6250000,null,null,null,null,null,"Carolina Hurricanes","BJ"]
[4,"Cam Fowler","ca","D",27,"2018-06-02",206,"L/-",8,"1991-12-05",7500000,null,35,"Darcy Kuemper","ca","G",28,"2018-06-05",215,"-/L",6,"1990-05-05",1600000,null,42,"David Backes","us","RW",34,"2018-06-03",215,"R/-",12,"1984-05-01",6000000,null,19,"Jake McCabe","us","D",25,"2018-06-01",206,"L/-",5,"1993-10-12",1775000,null,18,"James Neal","ca","LW",31,"2018-06-03",212,"L/-",10,"1987-09-03",5750000,null,74,"Jaccob Slavin","us","D",24,"2018-06-03",205,"L/-",3,"1994-05-01",5500000,null,11,"Brendan Perlini","de","LW",22,"2018-06-03",211,"L/-",2,"1996-04-27",832500,null,28,"Ian Cole","us","D",29,"2018-06-01",219,"L/-",8,"1989-02-21",5000000,null,13,"Cam Atkinson","us","RW",29,"2018-05-08",179,"R/-",7,"1989-06-05",7375000,null,17,"Devin Shore","ca","C",24,"2018-06-01",205,"L/-",3,"1994-07-19",2200000,null,71,"Dylan Larkin","us","C",22,"2018-06-01",198,"L/-",3,"1996-07-30","N/A",null,13,"Jason Garrison","ca","D",34,"2018-06-01",218,"L/-",10,"1984-11-13","N/A",null,17,"Derek MacKenzie","ca","C",37,"2018-05-11",177,"L/-",15,"1981-06-11",1100000,null,3,"Dion Phaneuf","ca","D",33,"2018-06-04",225,"L/-",13,"1985-04-10",4875000,null,23,"J.T. Brown","us","RW",28,"2018-05-10",166,"R/-",6,"1990-07-02",675000,null,26,"Jeff Petry","us","D",31,"2018-06-03",197,"R/-",8,"1987-12-09",5000000,null,89,"Frederick Gaudreau","ca","C",25,"2000-06-01",179,"R/-",2,"1993-05-01",70000,null,47,"John Quenneville","ca","C",22,"2018-06-01",195,"L/-",2,"1996-04-16",70000,null,53,"Casey Cizikas","ca","C",27,"2018-05-11",195,"L/-",7,"1991-02-27",3500000,null,8,"Cody McLeod","ca","LW",34,"2018-06-02",204,"L/-",11,"1984-06-26",750000,null,5,"Cody Ceci","ca","D",25,"2018-06-02",209,"R/-",5,"1993-12-21","N/A",null,22,"Dale Weise","ca","RW",30,"2018-06-02",206,"R/-",8,"1988-08-05",2350000,null,19,"Derick Brassard","ca","C",31,"2018-06-01",202,"L/-",11,"1987-09-22",2100000,null,9,"Evander Kane","ca","LW",27,"2018-06-02",210,"L/-",9,"1991-08-02",9000000,null,49,"Ivan Barbashev","ru","C",23,"2000-06-01",187,"L/-",2,"1995-12-14",832500,null,55,"Braydon Coburn","ca","D",33,"2018-06-05",223,"L/-",2,"1985-02-27",3700000,null,92,"Igor Ozhiganov","ru","D",26,"2018-06-02",210,"R/-","R","1992-10-13",70000,null,20,"Brandon Sutter","us","C",29,"2018-06-03",190,"R/-",10,"1989-02-14",4375000,null,15,"Jon Merrill","us","D",26,"2018-06-03",205,"L/-",5,"1992-02-03","N/A",null,29,"Christian Djoos","se","D",24,"2000-06-01",169,"L/-",1,"1994-08-06","N/A",null,37,"Connor Hellebuyck","us","G",25,"2018-06-04",207,"-/L",3,"1993-05-19",7000000,null,null,null,null,null,"Chicago Blackhawks","BV"]
[24,"Carter Rowney","ca","RW",29,"2018-06-02",206,"R/-",2,"1989-05-10",1400000,null,21,"Derek Stepan","us","C",28,"2000-06-01",196,"R/-",8,"1990-06-18",6000000,null,46,"David Krejci","cs","C",32,"2000-06-01",188,"R/-",12,"1986-04-28",7500000,null,29,"Jason Pominville","ca","RW",36,"2018-05-11",180,"R/-",14,"1982-11-30",5000000,null,13,"Johnny Gaudreau","us","LW",25,"2018-05-09",165,"L/-",5,"1993-08-13",6750000,null,48,"Jordan Martinook","ca","LW",26,"2000-06-01",204,"L/-",4,"1992-07-25",1850000,null,7,"Brent Seabrook","ca","D",33,"2018-06-03",220,"R/-",13,"1985-04-20",9000000,null,37,"J.T. Compher","us","LW",23,"2000-06-01",193,"R/-",2,"1995-04-08",925000,null,58,"David Savard","ca","D",28,"2018-06-02",227,"R/-",7,"1990-10-22",4750000,null,23,"Esa Lindell","fi","D",24,"2018-06-03",215,"L/-",3,"1994-05-23",2200000,null,17,"Filip Hronek","cz","D",21,"2000-06-01",170,"R/-","R","1997-11-02",67500,null,98,"Jesse Puljujarvi","se","RW",20,"2018-06-04",201,"R/-",2,"1998-05-07",925000,null,63,"Evgenii Dadonov","su","RW",29,"2018-05-11",185,"L/-",4,"1989-03-12",3750000,null,8,"Drew Doughty","ca","D",29,"2018-06-01",200,"R/-",10,"1989-12-08",7650000,null,46,"Jared Spurgeon","ca","D",29,"2018-05-09",167,"R/-",8,"1989-11-29",5500000,null,15,"Jesperi Kotkaniemi","fi","C",18,"2018-06-02",184,"L/-","R","2000-07-06",70000,null,74,"Juuse Saros","fi","G",23,"2018-05-11",180,"-/L",3,"1995-04-19",1500000,null,1,"Keith Kinkaid","us","G",29,"2018-06-03",195,"-/L",5,"1989-07-04",1300000,null,55,"Johnny Boychuk","ca","D",35,"2018-06-02",227,"R/-",11,"1984-01-19",6500000,null,72,"Filip Chytil","cz","C",19,"2018-06-02",208,"L/-",1,"1999-09-05",70000,null,36,"Colin White","us","C",22,"2000-06-01",183,"R/-",2,"1997-01-30",925000,null,9,"Ivan Provorov","ru","D",22,"2018-06-01",201,"L/-",2,"1997-01-13",832500,null,12,"Dominik Simon","cz","LW",24,"2018-05-11",190,"L/-",3,"1994-08-08",750000,null,47,"Joakim Ryan","us","D",25,"2018-05-11",185,"L/-",1,"1993-06-17",650000,null,17,"Jaden Schwartz","ca","LW",26,"2018-05-10",190,"L/-",7,"1992-06-25",6250000,null,13,"Cedric Paquette","ca","C",25,"2018-06-01",198,"L/-",5,"1993-08-13",1000000,null,51,"Jake Gardiner","us","D",28,"2018-06-02",203,"L/-",7,"1990-07-04",4050000,null,9,"Brendan Leipsic","ca","LW",24,"2018-05-10",179,"L/-",2,"1994-05-19",650000,null,81,"Jonathan Marchessault","ca","C",28,"2018-05-09",174,"R/-",5,"1990-12-27","N/A",null,25,"Devante Smith-Pelly","ca","RW",26,"2000-06-01",223,"R/-",7,"1992-06-14",1000000,null,5,"Dmitry Kulikov","su","D",28,"2018-06-01",204,"L/-",9,"1990-10-29",4333333,null,null,null,null,null,"Colorado Avalanche","CH"]
[47,"Hampus Lindholm","se","D",25,"2018-06-03",211,"L/-",5,"1994-01-20",6750000,null,20,"Dylan Strome","ca","C",21,"2018-06-03",200,"L/-",2,"1997-03-07",832500,null,88,"David Pastrnak","cz","RW",22,"2000-06-01",194,"R/-",4,"1996-05-25",8000000,null,53,"Jeff Skinner","ca","LW",26,"2018-05-11",187,"L/-",8,"1992-05-16","N/A",null,8,"Juuso Valimaki","fi","D",20,"2018-06-02",212,"L/-","R","1998-10-06",70000,null,11,"Jordan Staal","ca","C",30,"2018-06-04",220,"L/-",12,"1988-09-10",6000000,null,30,"Cam Ward","ca","G",34,"2018-06-01",194,"-/L",13,"1984-02-29",3000000,null,44,"Mark Barberio","ca","D",28,"2018-06-01",200,"L/-",6,"1990-03-23",1450000,null,14,"Dean Kukan","ch","D",25,"2018-06-02",186,"L/-",2,"1993-07-08",700000,null,46,"Gemel Smith","ca","C",24,"2018-05-11",195,"L/-",2,"1994-04-16","N/A",null,51,"Frans Nielsen","dk","C",34,"2018-06-01",188,"L/-",12,"1984-04-24",6000000,null,16,"Jujhar Khaira","ca","LW",24,"2018-06-04",212,"L/-",3,"1994-08-13",700000,null,72,"Frank Vatrano","us","C",24,"2018-05-09",201,"L/-",3,"1994-03-14",925000,null,17,"Ilya Kovalchuk","su","LW",35,"2018-06-03",230,"R/-",11,"1983-04-15",8500000,null,16,"Jason Zucker","us","LW",27,"2018-05-11",183,"L/-",7,"1992-01-16","N/A",null,40,"Joel Armia","fi","RW",25,"2018-06-04",210,"R/-",4,"1993-05-31",1850000,null,22,"Kevin Fiala","ch","LW",22,"2018-05-10",193,"L/-",4,"1996-07-22",832500,null,21,"Kyle Palmieri","us","RW",27,"2018-05-11",185,"R/-",8,"1991-02-01",5000000,null,7,"Jordan Eberle","ca","C",28,"2018-05-11",187,"R/-",8,"1990-05-15",6000000,null,33,"Fredrik Claesson","se","D",26,"2018-06-01",196,"L/-",3,"1992-11-24",700000,null,41,"Craig Anderson","us","G",37,"2018-06-02",185,"-/L",15,"1981-05-21",5500000,null,93,"Jakub Voracek","cs","RW",29,"2018-06-02",214,"L/-",10,"1989-08-15",9250000,null,44,"Erik Gudbranson","ca","D",27,"2019-06-05",217,"R/-",7,"1992-01-07",4500000,null,8,"Joe Pavelski","us","C",34,"2018-05-11",190,"R/-",12,"1984-07-11",6000000,null,34,"Jake Allen","ca","G",28,"2018-06-02",203,"-/L",5,"1990-08-07",4350000,null,89,"Cory Conacher","ca","C",29,"2018-05-08",180,"L/-",5,"1989-12-14",650000,null,91,"John Tavares","ca","C",28,"2018-06-01",209,"L/-",9,"1990-09-20",15900000,null,6,"Brock Boeser","us","RW",21,"2018-06-01",208,"R/-",2,"1997-02-25",925000,null,30,"Malcolm Subban","ca","G",25,"2018-06-02",200,"-/L",3,"1993-12-21",650000,null,23,"Dmitrij Jaskin","ru","RW",25,"2018-06-02",216,"L/-",6,"1993-03-23",1100000,null,29,"Patrik Laine","fi","RW",20,"2018-06-05",206,"R/-",2,"1998-04-19",925000,null,null,null,null,null,"Columbus Blue Jackets","CT"]
[48,"Isac Lundestrom","se","C",19,"2000-06-01",187,"L/-","R","1999-11-06","N/A",null,46,"Ilya Lyubushkin","ru","D",24,"2018-06-02",201,"R/-","R","1994-04-06",70000,null,74,"Jake DeBrusk","ca","LW",22,"2000-06-01",188,"L/-",1,"1996-10-17",832500,null,22,"Johan Larsson","se","C",26,"2018-05-11",202,"L/-",6,"1992-07-25",1550000,null,5,"Mark Giordano","ca","D",35,"2018-06-01",200,"L/-",12,"1983-10-03",6750000,null,27,"Justin Faulk","us","D",26,"2000-06-01",215,"R/-",7,"1992-03-20",6000000,null,63,"Carl Dahlstrom","se","D",24,"2018-06-04",231,"L/-",1,"1995-01-28",817500,null,11,"Matt Calvert","ca","LW",29,"2018-05-11",186,"L/-",8,"1989-12-24",3750000,null,70,"Joonas Korpisalo","fi","G",24,"2018-06-03",182,"-/L",3,"1994-04-28",1100000,null,14,"Jamie Benn","ca","LW",29,"2018-06-02",205,"L/-",9,"1989-07-18",13000000,null,14,"Gustav Nyquist","se","RW",29,"2018-05-11",184,"L/-",7,"1989-09-01",5500000,null,56,"Kailer Yamamoto","us","RW",20,"2018-05-08",153,"R/-",1,"1998-09-29",70000,null,34,"James Reimer","ca","G",30,"2018-06-02",220,"-/L",8,"1988-03-15",3100000,null,36,"Jack Campbell","us","G",27,"2018-06-02",197,"-/L",3,"1992-01-09",650000,null,14,"Joel Eriksson Ek","se","C",22,"2018-06-01",208,"L/-",2,"1997-01-29",832500,null,92,"Jonathan Drouin","ca","C",23,"2000-06-01",193,"L/-",4,"1995-03-28",5500000,null,8,"Kyle Turris","ca","C",29,"2018-06-01",190,"R/-",10,"1989-08-14",6000000,null,90,"Marcus Johansson","se","LW",28,"2018-06-01",205,"L/-",8,"1990-10-06",4750000,null,12,"Josh Bailey","ca","RW",29,"2018-06-01",212,"L/-",10,"1989-10-02",7000000,null,30,"Henrik Lundqvist","se","G",36,"2018-06-01",180,"-/L",13,"1982-03-02",7500000,null,2,"Dylan Demelo","ca","D",25,"2018-06-01",195,"R/-",3,"1993-05-01","N/A",null,25,"James van Riemsdyk","us","LW",29,"2018-06-03",217,"L/-",9,"1989-05-04",8000000,null,71,"Evgeni Malkin","su","C",32,"2018-06-03",195,"L/-",12,"1986-07-31",9500000,null,19,"Joe Thornton","ca","C",39,"2018-06-04",220,"L/-",20,"1979-07-02",5000000,null,28,"Jakub Jerabek","cs","D",27,"2018-05-11",199,"L/-",1,"1991-05-12","N/A",null,5,"Dan Girardi","ca","D",34,"2018-06-01",212,"R/-",12,"1984-04-29",2750000,null,32,"Josh Leivo","ca","LW",25,"2018-06-02",192,"R/-",5,"1993-05-26",925000,null,8,"Christopher Tanev","ca","D",29,"2018-06-02",197,"R/-",8,"1989-12-20","N/A",null,29,"Marc-Andre Fleury","ca","G",34,"2018-06-02",180,"-/L",14,"1984-11-28",5750000,null,9,"Dmitry Orlov","su","D",27,"2018-05-11",212,"L/-",6,"1991-07-23",6500000,null,48,"Brendan Lemieux","us","LW",22,"2018-06-01",210,"L/-",1,"1996-03-15",70000,null,null,null,null,null,"Dallas Stars","DF"]
[33,"Jakob Silfverberg","se","RW",28,"2018-06-01",204,"R/-",6,"1990-10-13",3750000,null,55,"Jason Demers","ca","D",30,"2018-06-01",195,"R/-",9,"1988-06-09",3850000,null,41,"Jaroslav Halak","cs","G",33,"2018-05-11",185,"-/L",12,"1985-05-13",3250000,null,21,"Kyle Okposo","us","RW",30,"2000-06-01",219,"R/-",11,"1988-04-16",6000000,null,77,"Mark Jankowski","ca","C",24,"2018-06-04",212,"L/-",2,"1994-09-13","N/A",null,14,"Justin Williams","ca","RW",37,"2018-06-01",188,"R/-",17,"1981-10-04",4000000,null,14,"Chris Kunitz","ca","LW",39,"2000-06-01",188,"L/-",14,"1979-09-26",1000000,null,83,"Matt Nieto","us","LW",26,"2018-05-11",190,"L/-",5,"1992-11-05","N/A",null,77,"Josh Anderson","ca","RW",24,"2018-06-03",221,"R/-",4,"1994-05-07",1850000,null,16,"Jason Dickinson","ca","C",23,"2018-06-02",200,"L/-",3,"1995-07-04",875000,null,35,"Jimmy Howard","us","G",34,"2018-06-01",218,"-/L",12,"1984-03-26",4250000,null,4,"Kris Russell","ca","D",31,"2018-05-10",170,"L/-",11,"1987-05-02",4500000,null,90,"Jared McCann","ca","C",22,"2018-06-01",185,"L/-",3,"1996-05-31",1250000,null,6,"Jake Muzzin","ca","D",29,"2018-06-03",213,"L/-",7,"1989-02-21",4450000,null,25,"Jonas Brodin","se","D",25,"2018-06-01",198,"L/-",6,"1993-07-12",5750000,null,8,"Jordie Benn","ca","D",31,"2018-06-02",199,"L/-",7,"1987-07-26",1100000,null,14,"Mattias Ekholm","se","D",28,"2018-06-04",215,"L/-",7,"1990-05-24",4000000,null,44,"Miles Wood","us","LW",23,"2018-06-02",195,"L/-",3,"1995-09-13","N/A",null,47,"Leo Komarov","su","C",32,"2018-05-11",209,"L/-",5,"1987-01-23",4000000,null,17,"Jesper Fast","se","RW",27,"2018-06-01",192,"R/-",5,"1991-12-02",1850000,null,56,"Magnus Paajarvi","se","LW",27,"2018-06-03",206,"L/-",8,"1991-04-12",900000,null,40,"Jordan Weal","ca","C",26,"2018-05-10",179,"R/-",3,"1992-04-15",1750000,null,10,"Garrett Wilson","ca","LW",27,"2018-06-02",199,"L/-",3,"1991-03-16",650000,null,27,"Joonas Donskoi","fi","RW",26,"2000-06-01",190,"R/-",3,"1992-04-13",1900000,null,19,"Jay Bouwmeester","ca","D",35,"2018-06-04",206,"L/-",15,"1983-09-27",5400000,null,10,"J.T. Miller","us","C",25,"2018-06-01",218,"L/-",6,"1993-03-14",5250000,null,24,"Kasperi Kapanen","fi","RW",22,"2018-06-01",192,"R/-",3,"1996-07-23",832500,null,5,"Derrick Pouliot","ca","D",25,"2000-06-01",196,"L/-",4,"1994-01-16",1100000,null,67,"Max Pacioretty","us","LW",30,"2018-06-02",206,"L/-",10,"1988-11-20","N/A",null,92,"Evgeny Kuznetsov","ru","C",26,"2018-06-02",204,"L/-",5,"1992-05-19",10000000,null,18,"Bryan Little","ca","C",31,"2000-06-01",191,"R/-",11,"1987-11-12",6500000,null,null,null,null,null,"Detroit Red Wings","DR"]
[36,"John Gibson","us","G",25,"2018-06-02",206,"-/L",5,"1993-07-14",3300000,null,82,"Jordan Oesterle","us","D",26,"2000-06-01",182,"L/-",4,"1992-06-25",650000,null,20,"Joakim Nordstrom","se","C",26,"2018-06-01",194,"L/-",5,"1992-02-25",900000,null,35,"Linus Ullmark","se","G",25,"2018-06-04",213,"-/L",3,"1993-07-31",800000,null,19,"Matthew Tkachuk","us","LW",21,"2018-06-02",202,"L/-",2,"1997-12-11",925000,null,71,"Lucas Wallmark","se","C",23,"2000-06-01",176,"L/-",2,"1995-09-05",70000,null,60,"Collin Delia","us","G",24,"2018-06-02",208,"-/L",1,"1994-06-20",792500,null,96,"Mikko Rantanen","fi","RW",22,"2018-06-04",215,"L/-",3,"1996-10-29",832500,null,45,"Lukas Sedlak","cz","C",25,"2000-06-01",205,"L/-",2,"1993-02-25",850000,null,90,"Jason Spezza","ca","C",35,"2018-06-03",215,"R/-",15,"1983-06-13",7500000,null,2,"Joe Hicketts","ca","D",22,"2018-05-08",180,"L/-",1,"1996-05-04",65000,null,28,"Kyle Brodziak","ca","C",34,"2018-06-02",205,"R/-",13,"1984-05-25",1100000,null,11,"Jonathan Huberdeau","ca","LW",25,"2018-06-01",200,"L/-",6,"1993-06-04",6200000,null,28,"Jaret Anderson-Dolan","ca","C",19,"2018-05-11",188,"L/-","R","1999-09-12",70000,null,18,"Jordan Greenway","us","LW",21,"2018-06-06",227,"L/-",1,"1997-02-16",925000,null,27,"Karl Alzner","ca","D",30,"2018-06-03",219,"L/-",10,"1988-09-24",6000000,null,20,"Miikka Salomaki","fi","RW",25,"2018-05-11",203,"L/-",4,"1993-03-09","N/A",null,25,"Mirco Mueller","ch","D",23,"2018-06-03",210,"L/-",4,"1995-03-21",925000,null,21,"Luca Sbisa","it","D",29,"2018-06-03",204,"L/-",10,"1990-01-30","N/A",null,26,"Jimmy Vesey","us","LW",25,"2018-06-03",199,"L/-",2,"1993-05-26",2200000,null,74,"Mark Borowiecki","ca","D",29,"2018-06-01",207,"L/-",7,"1989-07-12",1200000,null,15,"Jori Lehtera","fi","C",31,"2018-06-02",212,"L/-",4,"1987-12-23",5000000,null,73,"Jack Johnson","us","D",32,"2018-06-01",227,"L/-",12,"1987-01-13",4000000,null,61,"Justin Braun","us","D",31,"2018-06-02",205,"R/-",8,"1987-02-10",3800000,null,6,"Joel Edmundson","ca","D",25,"2018-06-04",215,"L/-",3,"1993-06-28","N/A",null,70,"Louis Domingue","ca","G",26,"2018-06-03",210,"-/R",4,"1992-03-06",1150000,null,52,"Martin Marincin","cs","D",26,"2018-06-05",213,"L/-",5,"1992-02-18",800000,null,40,"Elias Pettersson","se","C",20,"2018-06-02",176,"L/-","R","1998-11-12",70000,null,22,"Nick Holden","ca","D",31,"2018-06-04",214,"L/-",7,"1987-05-15",2600000,null,13,"Jakub Vrana","cz","LW",22,"2000-06-01",197,"L/-",2,"1996-02-28",832500,null,17,"Adam Lowry","us","C",25,"2018-06-05",210,"L/-",4,"1993-03-29","N/A",null,null,null,null,null,"Edmonton Oilers","ED"]
[39,"Joseph Blandisi","ca","C",24,"2018-05-11",187,"L/-",3,"1994-07-18",135000,null,45,"Josh Archibald","ca","RW",26,"2018-05-10",176,"R/-",3,"1992-10-06",700000,null,27,"John Moore","us","D",28,"2018-06-02",210,"L/-",8,"1990-11-19",3250000,null,6,"Marco Scandella","ca","D",28,"2018-06-03",210,"L/-",8,"1990-02-23",4500000,null,67,"Michael Frolik","cs","RW",30,"2018-06-01",190,"L/-",10,"1988-02-17",4000000,null,79,"Micheal Ferland","ca","LW",26,"2018-06-02",208,"L/-",4,"1992-04-20",1800000,null,5,"Connor Murphy","us","D",25,"2018-06-04",212,"R/-",5,"1993-03-26",4500000,null,29,"Nathan MacKinnon","ca","C",23,"2000-06-01",205,"R/-",5,"1995-09-01",6750000,null,65,"Markus Nutivaara","fi","D",24,"2018-06-01",191,"L/-",2,"1994-06-06",2500000,null,3,"John Klingberg","se","D",26,"2018-06-02",180,"R/-",4,"1992-08-14",4500000,null,45,"Jonathan Bernier","ca","G",30,"2000-06-01",184,"-/L",10,"1988-08-07",3250000,null,29,"Leon Draisaitl","de","C",23,"2018-06-02",208,"L/-",4,"1995-10-27",9000000,null,91,"Juho Lammikko","fi","RW",23,"2018-06-02",191,"L/-","R","1996-01-29",70000,null,77,"Jeff Carter","ca","C",34,"2018-06-03",217,"R/-",13,"1985-01-01",5000000,null,17,"Marcus Foligno","us","LW",27,"2018-06-03",228,"L/-",7,"1991-08-10",3000000,null,63,"Matthew Peca","ca","C",25,"2018-05-09",182,"L/-",2,"1993-04-27",1300000,null,13,"Nick Bonino","us","C",30,"2018-06-01",196,"L/-",9,"1988-04-20",4100000,null,13,"Nico Hischier","ch","C",20,"2018-06-01",175,"L/-",1,"1999-01-04",925000,null,13,"Mathew Barzal","ca","C",21,"2000-06-01",187,"R/-",2,"1997-05-26",832500,null,13,"Kevin Hayes","us","C",26,"2018-06-05",216,"L/-",4,"1992-05-08","N/A",null,61,"Mark Stone","ca","RW",26,"2018-06-04",219,"R/-",6,"1992-05-13","N/A",null,12,"Michael Raffl","at","LW",30,"2000-06-01",200,"L/-",5,"1988-12-01",2350000,null,59,"Jake Guentzel","us","LW",24,"2018-05-11",180,"L/-",2,"1994-10-06",792500,null,62,"Kevin Labanc","us","RW",23,"2018-05-11",185,"R/-",2,"1995-12-12",742500,null,33,"Jordan Kyrou","ca","C",20,"2000-06-01",175,"R/-","R","1998-05-05",70000,null,7,"Mathieu Joseph","ca","RW",21,"2018-06-01",190,"L/-","R","1997-02-09",70000,null,16,"Mitchell Marner","ca","C",21,"2000-06-01",175,"R/-",2,"1997-05-05","N/A",null,44,"Erik Gudbranson","ca","D",27,"2018-06-05",217,"R/-",7,"1992-01-07",4500000,null,24,"Oscar Lindberg","se","C",27,"2018-06-01",202,"L/-",4,"1991-10-29",1800000,null,74,"John Carlson","us","D",29,"2018-06-03",218,"R/-",9,"1990-01-10",12000000,null,44,"Josh Morrissey","ca","D",23,"2000-06-01",195,"L/-",3,"1995-03-28","N/A",null,null,null,null,null,"Florida Panthers","EP"]
[42,"Josh Manson","us","D",27,"2018-06-03",216,"R/-",4,"1991-10-07",3250000,null,44,"Kevin Connauton","ca","D",28,"2018-06-02",205,"L/-",5,"1990-02-23",1250000,null,86,"Kevan Miller","us","D",31,"2018-06-02",210,"R/-",5,"1987-11-15",2500000,null,82,"Nathan Beaulieu","ca","D",26,"2018-06-02",200,"L/-",6,"1992-12-05",2500000,null,26,"Michael Stone","ca","D",28,"2018-06-03",210,"R/-",7,"1990-06-07",3500000,null,34,"Petr Mrazek","cs","G",26,"2018-06-02",181,"-/L",6,"1992-02-14",1500000,null,50,"Corey Crawford","ca","G",34,"2018-06-02",216,"-/L",11,"1984-12-31","N/A",null,16,"Nikita Zadorov","ru","D",23,"2018-06-05",230,"L/-",5,"1995-04-16",2200000,null,71,"Nick Foligno","us","LW",31,"2000-06-01",202,"L/-",11,"1987-10-31",5500000,null,6,"Julius Honka","fi","D",23,"2018-05-11",180,"R/-",2,"1995-12-03",832500,null,8,"Justin Abdelkader","us","LW",31,"2018-06-02",214,"L/-",11,"1987-02-25",5000000,null,83,"Matt Benning","ca","D",24,"2018-06-01",203,"R/-",2,"1994-05-25","N/A",null,3,"Keith Yandle","us","D",32,"2018-06-01",191,"L/-",12,"1986-09-09",7500000,null,32,"Jonathan Quick","us","G",33,"2018-06-01",218,"-/L",11,"1986-01-21",7000000,null,24,"Matt Dumba","ca","D",24,"2000-06-01",182,"R/-",5,"1994-07-25","N/A",null,13,"Max Domi","ca","LW",23,"2018-05-10",193,"L/-",3,"1995-03-02",3150000,null,76,"P.K. Subban","ca","D",29,"2000-06-01",210,"R/-",9,"1989-05-13",10000000,null,37,"Pavel Zacha","cz","C",21,"2018-06-03",210,"L/-",3,"1997-04-06",832500,null,17,"Matt Martin","ca","LW",29,"2018-06-03",220,"L/-",9,"1989-05-08",2250000,null,22,"Kevin Shattenkirk","us","D",30,"2000-06-01",206,"R/-",8,"1989-01-29",8000000,null,95,"Matt Duchene","ca","C",28,"2018-05-11",195,"L/-",9,"1991-01-16",6500000,null,24,"Mikhail Vorobyev","ru","C",22,"2018-06-02",194,"L/-","R","1997-01-05","N/A",null,6,"Jamie Oleksiak","ca","D",26,"2018-06-07",255,"L/-",6,"1992-12-21",1950000,null,39,"Logan Couture","ca","C",29,"2018-06-01",200,"L/-",9,"1989-03-28",6000000,null,43,"Jordan Schmaltz","us","D",25,"2018-06-02",190,"R/-",2,"1993-10-08","N/A",null,98,"Mikhail Sergachev","ru","D",20,"2018-06-03",215,"L/-",2,"1998-06-25",925000,null,44,"Morgan Rielly","ca","D",24,"2018-06-01",221,"L/-",5,"1994-03-09",5000000,null,25,"Jacob Markstrom","se","G",29,"2018-06-06",206,"-/L",8,"1990-01-31",3600000,null,26,"Paul Stastny","ca","C",33,"2000-06-01",193,"L/-",12,"1985-12-27",7500000,null,34,"Jonas Siegenthaler","ch","D",21,"2018-06-03",206,"L/-","R","1997-05-06",650000,null,70,"Joe Morrow","ca","D",26,"2000-06-01",196,"L/-",4,"1992-12-09","N/A",null,null,null,null,null,"Los Angeles Kings","FB"]
[64,"Kiefer Sherwood","us","RW",23,"2000-06-01",194,"R/-","R","1995-03-31",70000,null,67,"Lawson Crouse","ca","LW",21,"2018-06-04",220,"L/-",2,"1997-06-23",832500,null,48,"Matt Grzelcyk","us","D",25,"2018-05-09",174,"L/-",2,"1994-01-05",1400000,null,10,"Patrik Berglund","se","C",30,"2018-06-04",215,"L/-",10,"1988-06-02",4700000,null,11,"Mikael Backlund","se","C",29,"2000-06-01",200,"L/-",10,"1989-03-17",5850000,null,7,"Phillip Di Giuseppe","ca","LW",25,"2000-06-01",200,"L/-",3,"1993-10-09",750000,null,64,"David Kampf","cz","C",24,"2018-06-02",188,"L/-",1,"1995-01-12",925000,null,12,"Patrik Nemeth","se","D",26,"2018-06-03",219,"L/-",5,"1992-02-08","N/A",null,28,"Oliver Bjorkstrand","dk","RW",23,"2000-06-01",177,"R/-",3,"1995-04-10",2500000,null,33,"Marc Methot","ca","D",33,"2018-06-04",230,"L/-",12,"1985-06-21",4900000,null,41,"Luke Glendening","us","RW",29,"2018-05-11",192,"R/-",5,"1989-04-28",2000000,null,27,"Milan Lucic","ca","LW",30,"2018-06-03",231,"L/-",11,"1988-06-07",7000000,null,52,"MacKenzie Weegar","ca","D",25,"2000-06-01",200,"R/-",2,"1994-01-07","N/A",null,13,"Kyle Clifford","ca","LW",28,"2018-06-02",211,"L/-",8,"1991-01-13",1800000,null,15,"Matt Hendricks","us","C",37,"2000-06-01",211,"L/-",10,"1981-06-17",700000,null,28,"Mike Reilly","us","D",25,"2018-06-01",195,"L/-",3,"1993-07-13",775000,null,35,"Pekka Rinne","fi","G",36,"2018-06-05",217,"-/L",12,"1982-11-03",7000000,null,45,"Sami Vatanen","fi","D",27,"2018-05-10",185,"R/-",6,"1991-06-03",5000000,null,2,"Nick Leddy","us","D",27,"2000-06-01",207,"L/-",8,"1991-03-20",5500000,null,18,"Marc Staal","ca","D",32,"2018-06-04",213,"L/-",11,"1987-01-13",6000000,null,17,"Max McCormick","us","LW",26,"2018-05-11",188,"L/-",3,"1992-05-01",650000,null,19,"Nolan Patrick","ca","C",20,"2018-06-02",198,"R/-",1,"1998-09-19",925000,null,19,"Jared McCann","ca","C",22,"2019-06-01",185,"L/-",3,"1996-05-31",1250000,null,44,"Marc-Edouard Vlasic","ca","D",31,"2018-06-01",205,"L/-",12,"1987-03-30",7250000,null,7,"Pat Maroon","us","LW",30,"2018-06-03",225,"L/-",7,"1988-04-23","N/A",null,86,"Nikita Kucherov","ru","RW",25,"2018-05-11",178,"L/-",5,"1993-06-17",5550000,null,43,"Nazem Kadri","ca","C",28,"2000-06-01",192,"L/-",9,"1990-10-06",4500000,null,18,"Jake Virtanen","ca","RW",22,"2018-06-01",226,"R/-",3,"1996-08-17","N/A",null,41,"Pierre-Edouard Bellemare","fr","LW",33,"2000-06-01",198,"L/-",4,"1985-03-06",1450000,null,20,"Lars Eller","dk","C",29,"2018-06-02",207,"L/-",9,"1989-05-08",5000000,null,57,"Tyler Myers","us","D",28,"2018-06-08",229,"R/-",9,"1990-02-01",3000000,null,null,null,null,null,"Minnesota Wild","FN"]
[2,"Luke Schenn","ca","D",29,"2018-06-02",221,"R/-",10,"1989-11-02",800000,null,29,"Mario Kempe","se","RW",30,"2000-06-01",185,"L/-",1,"1988-09-19",300000,null,55,"Noel Acciari","us","C",27,"2018-05-10",205,"R/-",3,"1991-12-01",750000,null,26,"Rasmus Dahlin","se","D",18,"2018-06-03",190,"L/-","R","2000-04-13",925000,null,41,"Mike Smith","ca","G",36,"2018-06-05",220,"-/L",12,"1982-03-22",3750000,null,20,"Sebastian Aho","fi","RW",21,"2018-05-11",172,"L/-",2,"1997-07-26",925000,null,24,"Dominik Kahun","cz","C",23,"2018-05-11",175,"L/-","R","1995-07-02",925000,null,31,"Philipp Grubauer","de","G",27,"2018-06-01",191,"-/L",6,"1991-11-25",3350000,null,18,"Pierre-Luc Dubois","ca","C",20,"2018-06-03",207,"L/-",1,"1998-06-24",925000,null,13,"Mattias Janmark","se","C",26,"2018-06-01",195,"L/-",2,"1992-12-08","N/A",null,42,"Martin Frk","cz","RW",25,"2018-06-01",205,"R/-",2,"1993-10-05",1050000,null,77,"Oscar Klefbom","se","D",25,"2018-06-03",216,"L/-",5,"1993-07-20",4000000,null,13,"Mark Pysyk","ca","D",27,"2018-06-01",200,"R/-",6,"1992-01-11",2750000,null,10,"Michael Amadio","ca","C",22,"2018-06-01",204,"R/-",1,"1996-05-13",70000,null,64,"Mikael Granlund","fi","RW",26,"2018-05-10",185,"L/-",6,"1992-02-26",5500000,null,58,"Noah Juulsen","ca","D",21,"2018-06-02",193,"R/-",1,"1997-04-02",832500,null,59,"Roman Josi","ch","D",28,"2018-06-01",201,"L/-",7,"1990-06-01",5250000,null,23,"Stefan Noesen","us","RW",25,"2018-06-01",205,"R/-",4,"1993-02-12",1725000,null,40,"Robin Lehner","se","G",27,"2018-06-04",240,"-/L",8,"1991-07-24",1500000,null,36,"Mats Zuccarello","no","RW",31,"2018-05-08",184,"L/-",8,"1987-09-01",4500000,null,58,"Maxime Lajoie","ca","D",21,"2018-06-01",183,"L/-","R","1997-11-05",60000,null,23,"Oskar Lindblom","se","LW",22,"2018-06-01",191,"L/-",1,"1996-08-15",70000,null,4,"Jean-Sebastien Dea","ca","D",null,null,null,null,null,null,null,null,20,"Marcus Sorensen","se","LW",26,"2018-05-11",175,"L/-",2,"1992-04-07",700000,null,41,"Robert Bortuzzo","ca","D",29,"2018-06-04",216,"R/-",7,"1989-03-18",1150000,null,18,"Ondrej Palat","cs","LW",27,"2000-06-01",188,"L/-",6,"1991-03-28",6855000,null,22,"Nikita Zaitsev","su","D",27,"2018-06-02",193,"R/-",2,"1991-10-29",4500000,null,83,"Jay Beagle","ca","C",33,"2018-06-03",210,"R/-",10,"1985-10-16",4400000,null,19,"Reilly Smith","ca","RW",27,"2000-06-01",185,"L/-",7,"1991-04-01",6000000,null,22,"Madison Bowey","ca","D",23,"2018-06-02",198,"R/-",1,"1995-04-22",1000000,null,85,"Mathieu Perreault","ca","C",31,"2018-05-10",188,"L/-",9,"1988-01-05",4000000,null,null,null,null,null,"Montreal Canadiens","FZ"]
[28,"Marcus Pettersson","se","D",22,"2018-06-03",177,"L/-",1,"1996-05-08",832500,null,40,"Michael Grabner","at","RW",31,"2018-06-01",188,"L/-",9,"1987-10-05",2500000,null,37,"Patrice Bergeron","ca","C",33,"2018-06-01",195,"R/-",14,"1985-07-24",6875000,null,55,"Rasmus Ristolainen","fi","D",24,"2018-06-04",215,"R/-",5,"1994-10-27",5400000,null,55,"Noah Hanifin","us","D",22,"2018-06-03",215,"L/-",3,"1997-01-25","N/A",null,86,"Teuvo Teravainen","fi","LW",24,"2018-05-11",178,"L/-",5,"1994-09-11",2860000,null,2,"Duncan Keith","ca","D",35,"2018-06-01",192,"L/-",13,"1983-07-16",4500000,null,49,"Samuel Girard","ca","D",20,"2018-05-10",162,"L/-",1,"1998-05-12",742500,null,20,"Riley Nash","ca","C",29,"2018-06-01",190,"R/-",7,"1989-05-09",2750000,null,4,"Miro Heiskanen","fi","D",19,"2018-06-01",185,"L/-","R","1999-07-18",70000,null,27,"Michael Rasmussen","ca","C",19,"2018-06-06",221,"L/-","R","1999-04-17",70000,null,93,"Ryan Nugent-Hopkins","ca","C",25,"2000-06-01",184,"L/-",7,"1993-04-12",6000000,null,78,"Maxim Mamin","ru","C",24,"2018-06-02",206,"L/-",1,"1995-01-13",782500,null,44,"Nate Thompson","us","C",34,"2018-06-01",214,"L/-",11,"1984-10-05",1650000,null,9,"Mikko Koivu","fi","C",35,"2018-06-03",219,"L/-",13,"1983-03-12",6000000,null,41,"Paul Byron","ca","LW",29,"2018-05-09",163,"L/-",8,"1989-04-27",1000000,null,4,"Ryan Ellis","ca","D",28,"2018-05-10",180,"R/-",7,"1991-01-03",3500000,null,9,"Taylor Hall","ca","LW",27,"2018-06-01",205,"L/-",8,"1991-11-14",6000000,null,32,"Ross Johnston","ca","LW",24,"2018-06-05",235,"L/-",2,"1994-02-18",1000000,null,93,"Mika Zibanejad","se","C",25,"2018-06-02",213,"R/-",7,"1993-04-18",5500000,null,1,"Mike Condon","us","G",28,"2018-06-02",195,"-/L",3,"1990-04-27",2500000,null,3,"Radko Gudas","cs","D",28,"2000-06-01",204,"R/-",6,"1990-06-05",3400000,null,4,"Justin Schultz","ca","D",28,"2018-06-02",193,"R/-",6,"1990-07-06","N/A",null,31,"Martin Jones","ca","G",29,"2018-06-04",190,"-/L",5,"1990-01-10",6750000,null,18,"Robert Thomas","ca","C",19,"2000-06-01",188,"R/-","R","1999-07-02",70000,null,27,"Ryan McDonagh","us","D",29,"2018-06-01",215,"L/-",8,"1989-06-13",5300000,null,26,"Par Lindholm","se","C",27,"2000-06-01",183,"L/-","R","1991-10-05",70000,null,21,"Loui Eriksson","se","LW",33,"2018-06-02",179,"L/-",12,"1985-07-17",7000000,null,40,"Ryan Carpenter","us","C",28,"2000-06-01",200,"R/-",3,"1991-01-18",650000,null,2,"Matt Niskanen","us","D",32,"2018-06-01",203,"R/-",11,"1986-12-06",5750000,null,28,"Jack Roslovic","us","C",22,"2018-06-01",187,"R/-",2,"1997-01-29",925000,null,null,null,null,null,"Nashville Predators","GL"]
[53,"Max Comtois","ca","LW",20,"2018-06-02",207,"L/-","R","1999-01-08","N/A",null,25,"Nick Cousins","ca","C",25,"2018-05-11",185,"L/-",4,"1993-07-20",1050000,null,17,"Ryan Donato","us","C",22,"2000-06-01",193,"R/-",1,"1996-04-09",925000,null,81,"Remi Elie","ca","LW",23,"2018-06-01",215,"L/-",2,"1995-04-16","N/A",null,4,"Rasmus Andersson","se","D",22,"2018-06-01",214,"R/-",2,"1996-10-27",70000,null,57,"Trevor van Riemsdyk","us","D",27,"2018-06-02",188,"R/-",4,"1991-07-24",2100000,null,95,"Dylan Sikura","ca","RW",23,"2018-05-11",166,"L/-",1,"1995-06-01",925000,null,1,"Semyon Varlamov","su","G",30,"2018-06-02",205,"-/L",10,"1988-04-27",5500000,null,27,"Ryan Murray","ca","D",25,"2018-06-01",205,"L/-",5,"1993-09-27",2825000,null,12,"Radek Faksa","cz","C",25,"2018-06-03",220,"L/-",3,"1994-01-09",2200000,null,3,"Nick Jensen","us","D",28,"2000-06-01",194,"R/-",2,"1990-09-21",825000,null,18,"Ryan Strome","ca","C",25,"2018-06-01",194,"R/-",5,"1993-07-11",3000000,null,39,"Michael Hutchinson","ca","G",28,"2018-06-03",200,"-/R",5,"1990-03-02",1300000,null,7,"Oscar Fantenberg","se","D",27,"2000-06-01",210,"L/-",1,"1991-10-07",350000,null,39,"Nate Prosser","us","D",32,"2018-06-02",201,"R/-",9,"1986-05-07",650000,null,24,"Phillip Danault","ca","C",25,"2018-06-01",198,"L/-",4,"1993-02-24",3000000,null,38,"Ryan Hartman","us","RW",24,"2000-06-01",181,"R/-",4,"1994-09-20",875000,null,19,"Travis Zajac","ca","C",33,"2018-06-02",185,"R/-",12,"1985-05-13",6500000,null,6,"Ryan Pulock","ca","D",24,"2018-06-02",217,"R/-",3,"1994-10-06",1350000,null,44,"Neal Pionk","us","D",23,"2000-06-01",186,"R/-",1,"1995-07-29",925000,null,89,"Mikkel Boedker","dk","LW",29,"2000-06-01",210,"L/-",10,"1989-12-16",3000000,null,8,"Robert Hagg","se","D",23,"2018-06-02",204,"L/-",2,"1995-02-08","N/A",null,50,"Juuso Riikola","fi","D",25,"2000-06-01",189,"L/-","R","1993-11-09",925000,null,68,"Melker Karlsson","se","C",28,"2000-06-01",180,"R/-",4,"1990-07-18",2000000,null,90,"Ryan O'Reilly","ca","C",27,"2018-06-01",216,"L/-",9,"1991-02-07",8500000,null,91,"Steven Stamkos","ca","C",28,"2018-06-01",194,"R/-",10,"1990-02-07",9500000,null,12,"Patrick Marleau","ca","C",39,"2018-06-02",218,"L/-",20,"1979-09-15",6000000,null,60,"Markus Granlund","fi","C",25,"2000-06-01",180,"L/-",5,"1993-04-16",1475000,null,75,"Ryan Reaves","ca","RW",32,"2018-06-01",225,"R/-",8,"1987-01-20",2775000,null,6,"Michal Kempny","cs","D",28,"2000-06-01",194,"L/-",2,"1990-09-08",3300000,null,55,"Mark Scheifele","ca","C",25,"2018-06-03",207,"R/-",7,"1993-03-15",6750000,null,null,null,null,null,"New Jersey Devils","GX"]
[67,"Rickard Rakell","se","C",25,"2018-06-01",202,"R/-",6,"1993-05-05",3800000,null,4,"Niklas Hjalmarsson","se","D",31,"2018-06-03",197,"L/-",11,"1987-06-06",4000000,null,52,"Sean Kuraly","us","C",26,"2018-06-02",213,"L/-",2,"1993-01-20",1300000,null,23,"Sam Reinhart","ca","RW",23,"2018-06-01",192,"R/-",4,"1995-11-06","N/A",null,93,"Sam Bennett","ca","C",22,"2018-06-01",195,"L/-",4,"1996-06-20",1950000,null,73,"Valentin Zykov","ru","LW",23,"2018-06-01",224,"R/-",2,"1995-05-15",650000,null,17,"Dylan Strome","ca","C",21,"2018-06-03",200,"L/-",2,"1997-03-07",832500,null,15,"Sheldon Dries","us","C",24,"2018-05-09",185,"L/-","R","1994-04-23",70000,null,4,"Scott Harrington","ca","D",25,"2018-06-02",207,"L/-",4,"1993-03-10",700000,null,45,"Roman Polak","cs","D",32,"2018-06-02",240,"R/-",12,"1986-04-28",1300000,null,55,"Niklas Kronwall","se","D",38,"2000-06-01",194,"L/-",14,"1981-01-12",1750000,null,22,"Tobias Rieder","de","RW",26,"2018-05-11",186,"L/-",4,"1993-01-10",2000000,null,68,"Mike Hoffman","ca","LW",29,"2000-06-01",180,"L/-",7,"1989-11-24",5650000,null,2,"Paul LaDue","us","D",26,"2018-06-02",198,"R/-",2,"1992-09-06",800000,null,36,"Nick Seeler","us","D",25,"2018-06-02",198,"L/-",1,"1993-06-03",675000,null,14,"Tomas Plekanec","cs","C",36,"2018-05-11",190,"L/-",14,"1982-10-31",2250000,null,92,"Ryan Johansen","ca","C",26,"2018-06-03",218,"R/-",7,"1992-07-31",8000000,null,8,"Will Butcher","us","D",24,"2018-05-10",190,"L/-",1,"1995-01-06",925000,null,24,"Scott Mayfield","us","D",26,"2018-06-05",223,"R/-",4,"1992-10-14",1100000,null,89,"Pavel Buchnevich","ru","RW",23,"2018-06-03",192,"L/-",2,"1995-04-17",925000,null,18,"Ryan Dzingel","us","LW",26,"2000-06-01",190,"L/-",3,"1992-03-09",2100000,null,21,"Scott Laughton","ca","C",24,"2018-06-01",190,"L/-",5,"1994-05-30",1050000,null,58,"Kris Letang","ca","D",31,"2000-06-01",201,"R/-",12,"1987-04-24",7250000,null,60,"Rourke Chartier","ca","C",22,"2018-05-11",190,"L/-","R","1996-04-03",70000,null,9,"Sammy Blais","ca","LW",22,"2018-06-02",205,"L/-",1,"1996-06-17","N/A",null,9,"Tyler Johnson","us","C",28,"2018-05-08",183,"R/-",6,"1990-07-29",6750000,null,2,"Ron Hainsey","us","D",37,"2018-06-03",205,"L/-",15,"1981-03-24",2400000,null,4,"Michael Del Zotto","ca","D",28,"2000-06-01",201,"L/-",9,"1990-06-24",3000000,null,27,"Shea Theodore","ca","D",23,"2018-06-02",195,"L/-",3,"1995-08-03","N/A",null,26,"Nic Dowd","us","C",28,"2018-06-02",197,"R/-",3,"1990-05-27",650000,null,13,"Brandon Tanev","ca","LW",27,"2000-06-01",180,"L/-",3,"1991-12-31","N/A",null,null,null,null,null,"New York Islanders","HJ"]
[15,"Ryan Getzlaf","ca","C",33,"2018-06-04",225,"R/-",13,"1985-05-10",8950000,null,23,"Oliver Ekman-Larsson (C)","se","D",27,"2018-06-02",200,"L/-",8,"1991-07-17",7000000,null,40,"Tuukka Rask","fi","G",31,"2018-06-03",176,"-/L",11,"1987-03-10",7000000,null,72,"Tage Thompson","us","C",21,"2018-06-06",205,"R/-",1,"1997-10-30",925000,null,23,"Sean Monahan","ca","C",24,"2018-06-02",200,"L/-",5,"1994-10-12",6750000,null,13,"Warren Foegele","ca","LW",22,"2018-06-02",190,"L/-",1,"1996-04-01",70000,null,56,"Erik Gustafsson","se","D",26,"2000-06-01",197,"L/-",2,"1992-03-14",1000000,null,4,"Tyson Barrie","ca","D",27,"2018-05-10",190,"R/-",7,"1991-07-26",5750000,null,72,"Sergei Bobrovsky","su","G",30,"2018-06-02",182,"-/L",8,"1988-09-20",6200000,null,24,"Roope Hintz","fi","LW",22,"2018-06-03",215,"L/-","R","1996-11-17",70000,null,26,"Thomas Vanek","at","LW",35,"2018-06-02",214,"R/-",13,"1984-01-19",3000000,null,8,"Ty Rattie","ca","RW",25,"2000-06-01",183,"R/-",5,"1993-02-05",800000,null,19,"Mike Matheson","ca","D",24,"2018-06-02",193,"L/-",3,"1994-02-27","N/A",null,31,"Peter Budaj","cs","G",36,"2018-06-01",196,"-/L",12,"1982-09-18",1025000,null,22,"Nino Niederreiter","ch","RW",26,"2018-06-02",218,"L/-",7,"1992-09-08",6075000,null,90,"Tomas Tatar","cs","LW",28,"2018-05-10",182,"R/-",7,"1990-12-01","N/A",null,33,"Viktor Arvidsson","se","LW",25,"2018-05-09",180,"R/-",4,"1993-04-08",4250000,null,null,null,null,null,null,null,null,null,null,null,null,null,1,"Thomas Greiss","de","G",33,"2018-06-02",232,"-/L",9,"1986-01-29",3250000,null,23,"Ryan Spooner","ca","C",27,"2018-05-11",191,"L/-",6,"1992-01-30","N/A",null,72,"Thomas Chabot","ca","D",22,"2018-06-02",196,"L/-",2,"1997-01-30",832500,null,14,"Sean Couturier","us","C",26,"2018-06-03",211,"L/-",7,"1992-12-07",4250000,null,28,"Marcus Pettersson","se","D",22,"2019-06-03",177,"L/-",1,"1996-05-08",832500,null,28,"Timo Meier","ch","RW",22,"2000-06-01",210,"L/-",2,"1996-10-08",832500,null,21,"Tyler Bozak","ca","C",32,"2018-06-01",199,"R/-",9,"1986-03-19",5500000,null,77,"Victor Hedman","se","D",28,"2018-06-06",223,"L/-",9,"1990-12-18",8000000,null,23,"Travis Dermott","ca","D",22,"2000-06-01",204,"L/-",1,"1996-12-22",832500,null,77,"Nikolay Goldobin","ru","RW",23,"2018-05-11",196,"L/-",3,"1995-10-07",70000,null,38,"Tomas Hyka","cz","RW",25,"2018-05-11",160,"R/-",1,"1993-03-23",250000,null,19,"Nicklas Backstrom","se","C",31,"2018-06-01",210,"L/-",11,"1987-11-23",7500000,null,8,"Jacob Trouba","us","D",24,"2018-06-03",202,"R/-",5,"1994-02-26","N/A",null,null,null,null,null,"New York Rangers","HV"]
[17,"Ryan Kesler","us","C",34,"2018-06-02",206,"R/-",14,"1984-08-31",6675000,null,14,"Richard Panik","cs","RW",27,"2018-06-01",208,"L/-",6,"1991-02-07",2800000,null,33,"Zdeno Chara (C)","cs","D",41,"2018-06-09",250,"L/-",20,"1977-03-18",5000000,null,17,"Vladimir Sobotka","cs","C",31,"2018-05-11",189,"L/-",9,"1987-07-02",3500000,null,7,"TJ Brodie","ca","D",28,"2018-06-01",185,"L/-",8,"1990-06-07","N/A",null,null,"Bench Penalty",null,null,null,null,null,null,null,null,null,null,42,"Gustav Forsling","se","D",22,"2000-06-01",186,"L/-",2,"1996-06-12",925000,null,17,"Tyson Jost","ca","C",20,"2018-05-11",191,"L/-",2,"1998-03-14",925000,null,22,"Sonny Milano","us","LW",22,"2000-06-01",195,"L/-",3,"1996-05-12",832500,null,18,"Tyler Pitlick","us","C",27,"2018-06-02",200,"R/-",4,"1991-11-01",1000000,null,83,"Trevor Daley","ca","D",35,"2018-05-11",195,"L/-",14,"1983-10-09",3300000,null,44,"Zack Kassian","ca","RW",28,"2018-06-03",211,"R/-",7,"1991-01-24",2000000,null,27,"Nick Bjugstad","us","C",26,"2018-06-06",215,"R/-",6,"1992-07-17",4300000,null,70,"Tanner Pearson","ca","LW",26,"2018-06-01",201,"L/-",5,"1992-08-10",3800000,null,20,"Ryan Suter","us","D",34,"2018-06-02",208,"L/-",13,"1985-01-21",9000000,null,53,"Victor Mete","ca","D",20,"2018-05-09",183,"L/-",1,"1998-06-07",742500,null,7,"Yannick Weber","ch","D",30,"2018-05-11",200,"R/-",10,"1988-09-23",650000,null,null,null,null,null,null,null,null,null,null,null,null,null,4,"Thomas Hickey","ca","D",29,"2000-06-01",183,"L/-",6,"1989-02-08",2500000,null,77,"Tony DeAngelo","us","D",23,"2018-05-11",180,"R/-",2,"1995-10-24",832500,null,10,"Tom Pyatt","ca","LW",31,"2018-05-11",185,"L/-",7,"1987-02-14",1200000,null,53,"Shayne Gostisbehere","us","D",25,"2018-05-11",180,"L/-",4,"1993-04-20",6000000,null,7,"Matt Cullen","us","C",42,"2018-06-01",202,"L/-",20,"1976-11-02","N/A",null,48,"Tomas Hertl","cz","C",25,"2018-06-02",215,"L/-",5,"1993-11-12",6000000,null,29,"Vince Dunn","ca","D",22,"2000-06-01",203,"L/-",1,"1996-10-29",650000,null,37,"Yanni Gourde","ca","C",27,"2018-05-09",172,"L/-",3,"1991-12-15",1000000,null,63,"Tyler Ennis","ca","LW",29,"2018-05-09",161,"L/-",9,"1989-10-06",650000,null,7,"Sven Baertschi","ch","LW",26,"2018-05-11",190,"L/-",7,"1992-10-05",4000000,null,92,"Tomas Nosek","cs","LW",26,"2018-06-03",210,"L/-",3,"1992-09-01",962500,null,1,"Pheonix Copley","us","G",27,"2018-06-04",200,"-/L",2,"1992-01-18",650000,null,93,"Kristian Vesalainen","fi","LW",19,"2018-06-03",207,"L/-","R","1999-06-01","N/A",null,null,null,null,null,"Ottawa Senators","IH"]
[30,"Ryan Miller","us","G",38,43253,168,"-/L",15,"1980-07-17",2000000,null,13,"Vinnie Hinostroza","us","C",24,"2018-05-09",173,"R/-",3,"1994-04-03",1500000,null,null,null,null,null,null,null,null,null,null,null,null,null,4,"Zach Bogosian","us","D",28,"2018-06-03",226,"R/-",10,"1990-07-15",6000000,null,24,"Travis Hamonic","ca","D",28,"2018-06-02",205,"R/-",8,"1990-08-16",4875000,null,null,null,null,null,null,null,null,null,null,null,null,null,67,"Jacob Nilsson","se","C",25,"2018-05-10",180,"L/-","R","1993-10-12",925000,null,91,"Vladislav Kamenev","ru","C",22,"2018-06-02",194,"L/-",2,"1996-08-12",70000,null,8,"Zach Werenski","us","D",21,"2018-06-02",209,"L/-",2,"1997-07-19","N/A",null,91,"Tyler Seguin","ca","C",27,"2018-06-01",200,"R/-",8,"1992-01-31",6500000,null,59,"Tyler Bertuzzi","ca","LW",23,"2000-06-01",190,"L/-",2,"1995-02-24",1400000,null,null,null,null,null,null,null,null,null,null,null,null,null,1,"Roberto Luongo","ca","G",39,"2018-06-03",215,"-/L",18,"1979-04-04",2874700,null,22,"Trevor Lewis","us","C",32,"2018-06-01",205,"R/-",10,"1987-01-08",2000000,null,11,"Zach Parise","us","LW",34,"2018-05-11",193,"L/-",13,"1984-07-28",9000000,null,61,"Xavier Ouellet","fr","D",25,"2000-06-01",196,"L/-",5,"1993-07-29",700000,null,36,"Zac Rinaldo","ca","LW",28,"2018-05-10",192,"L/-",6,"1990-06-15",200000,null,null,null,null,null,null,null,null,null,null,null,null,null,14,"Tom Kuhnhackl","de","RW",27,"2018-06-02",196,"L/-",3,"1992-01-21",700000,null,95,"Vinni Lettieri","us","C",23,"2018-05-11",191,"R/-",1,"1995-02-06",70000,null,15,"Zack Smith","ca","LW",30,"2018-06-02",208,"L/-",10,"1988-04-05",3250000,null,11,"Travis Konecny","ca","C",21,"2018-05-10",175,"R/-",2,"1997-03-11",832500,null,30,"Matt Murray","ca","G",24,"2018-06-04",178,"-/R",3,"1994-05-25","N/A",null,null,null,null,null,null,null,null,null,null,null,null,null,91,"Vladimir Tarasenko","su","RW",27,"2000-06-01",225,"L/-",6,"1991-12-13",7000000,null,null,null,null,null,null,null,null,null,null,null,null,null,11,"Zach Hyman","ca","C",26,"2018-06-01",209,"R/-",3,"1992-06-09",2000000,null,59,"Tim Schaller","us","C",28,"2018-06-02",204,"L/-",4,"1990-11-16",1900000,null,28,"William Carrier","ca","LW",24,"2018-06-02",212,"L/-",2,"1994-12-20","N/A",null,77,"T.J. Oshie","us","RW",32,"2018-05-11",195,"R/-",10,"1986-12-23",7500000,null,26,"Blake Wheeler (C)","us","RW",32,"2018-06-05",225,"R/-",10,"1986-08-31",5800000,null,null,null,null,null,"Philadelphia Flyers","IT"]
[34,"Sam Steel","ca","C",20,"2018-05-11",186,"L/-","R","1998-02-03",70000,null,null,null,null,null,null,null,null,null,null,null,null,null,null,null,null,null,null,null,null,null,null,null,null,null,28,"Zemgus Girgensons","lv","C",25,"2018-06-02",211,"L/-",5,"1994-01-05",1600000,null,null,null,null,null,null,null,null,null,null,null,null,null,null,null,null,null,null,null,null,null,null,null,null,null,40,"John Hayden","us","RW",23,"2018-06-03",215,"R/-",2,"1995-02-14",700000,null,null,null,null,null,null,null,null,null,null,null,null,null,null,null,null,null,null,null,null,null,null,null,null,null,43,"Valeri Nichushkin","ru","RW",23,"2018-06-04",210,"L/-",3,"1995-03-04",2700000,null,null,null,null,null,null,null,null,null,null,null,null,null,null,null,null,null,null,null,null,null,null,null,null,null,22,"Troy Brouwer","ca","RW",33,"2018-06-03",213,"R/-",12,"1985-08-17","N/A",null,73,"Tyler Toffoli","ca","RW",26,"2000-06-01",197,"R/-",6,"1992-04-24",4600000,null,null,null,null,null,null,null,null,null,null,null,null,null,null,null,null,null,null,null,null,null,null,null,null,null,null,null,null,null,null,null,null,null,null,null,null,null,null,null,null,null,null,null,null,null,null,null,null,null,51,"Valtteri Filppula","fi","C",34,"2000-06-01",196,"L/-",13,"1984-03-20",2750000,null,90,"Vladislav Namestnikov","ru","C",26,"2000-06-01",184,"L/-",5,"1992-11-22",4000000,null,null,null,null,null,null,null,null,null,null,null,null,null,6,"Travis Sanheim","ca","D",22,"2018-06-03",181,"L/-",1,"1996-03-29",70000,null,27,"Nick Bjugstad","us","C",26,"2019-06-06",215,"R/-",6,"1992-07-17",4300000,null,null,null,null,null,null,null,null,null,null,null,null,null,12,"Zach Sanford","us","LW",24,"2018-06-04",207,"L/-",1,"1994-11-09",70000,null,null,null,null,null,null,null,null,null,null,null,null,null,null,null,null,null,null,null,null,null,null,null,null,null,51,"Troy Stecher","ca","D",24,"2018-05-10",186,"R/-",2,"1994-04-07","N/A",null,71,"William Karlsson","se","C",26,"2018-06-01",189,"L/-",4,"1993-01-08","N/A",null,43,"Tom Wilson","ca","RW",24,"2018-06-04",218,"R/-",5,"1994-03-29",6100000,null,null,null,null,null,null,null,null,null,null,null,null,null,null,null,null,null,"Pittsburgh Penguins","JF"]
[61,"Troy Terry","us","RW",21,"2018-06-01",178,"R/-",1,"1997-09-10",925000,null,null,null,null,null,null,null,null,null,null,null,null,null,null,null,null,null,null,null,null,null,null,null,null,null,null,null,null,null,null,null,null,null,null,null,null,null,null,null,null,null,null,null,null,null,null,null,null,null,null,null,null,null,null,null,null,null,null,null,null,null,19,"Jonathan Toews","ca","C",30,"2018-06-02",201,"L/-",11,"1988-04-29",12000000,null,null,null,null,null,null,null,null,null,null,null,null,null,null,null,null,null,null,null,null,null,null,null,null,null,null,null,null,null,null,null,null,null,null,null,null,null,null,null,null,null,null,null,null,null,null,null,null,null,null,null,null,null,null,null,null,null,null,null,null,null,21,"Vincent Trocheck","us","C",25,"2018-05-10",186,"R/-",5,"1993-07-11",5250000,null,null,null,null,null,null,null,null,null,null,null,null,null,null,null,null,null,null,null,null,null,null,null,null,null,null,null,null,null,null,null,null,null,null,null,null,null,null,null,null,null,null,null,null,null,null,null,null,null,null,null,null,null,null,null,null,null,null,null,null,null,null,null,null,null,null,null,null,null,null,null,null,null,null,null,null,null,null,null,null,null,null,null,null,null,null,null,null,null,null,null,null,null,null,null,null,null,17,"Wayne Simmonds","ca","RW",30,"2018-06-02",185,"R/-",10,"1988-08-26",5000000,null,3,"Olli Maatta","fi","D",24,"2018-06-02",206,"L/-",5,"1994-08-22",4083300,null,null,null,null,null,null,null,null,null,null,null,null,null,null,null,null,null,null,null,null,null,null,null,null,null,null,null,null,null,null,null,null,null,null,null,null,null,null,null,null,null,null,null,null,null,null,null,null,null,64,"Tyler Motte","us","C",23,"2018-05-10",192,"L/-",2,"1995-03-10",70000,null,null,null,null,null,null,null,null,null,null,null,null,null,72,"Travis Boyd","us","C",25,"2018-05-11",185,"L/-",1,"1993-09-14",800000,null,null,null,null,null,null,null,null,null,null,null,null,null,null,null,null,null,"San Jose Sharks","JR"]
[null,null,null,null,null,null,null,null,null,null,null,null,null,null,null,null,null,null,null,null,null,null,null,null,null,null,null,null,null,null,null,null,null,null,null,null,null,null,null,null,null,null,null,null,null,null,null,null,null,null,null,null,null,null,null,null,null,null,null,null,null,null,null,null,null,null,null,null,null,null,null,null,16,"Marcus Kruger","se","C",28,"2000-06-01",186,"L/-",8,"1990-05-27","N/A",null,null,null,null,null,null,null,null,null,null,null,null,null,null,null,null,null,null,null,null,null,null,null,null,null,null,null,null,null,null,null,null,null,null,null,null,null,null,null,null,null,null,null,null,null,null,null,null,null,null,null,null,null,null,null,null,null,null,null,null,null,null,null,null,null,null,null,null,null,null,null,null,null,null,null,null,null,null,null,null,null,null,null,null,null,null,null,null,null,null,null,null,null,null,null,null,null,null,null,null,null,null,null,null,null,null,null,null,null,null,null,null,null,null,null,null,null,null,null,null,null,null,null,null,null,null,null,null,null,null,null,null,null,null,null,null,null,null,null,null,null,null,null,null,null,null,null,null,null,null,null,null,null,null,null,null,null,null,null,null,null,null,null,null,null,null,null,null,null,null,null,null,null,null,null,null,null,null,null,null,null,72,"Patric Hornqvist","se","RW",32,"2018-05-11",189,"R/-",10,"1987-01-01",5300000,null,null,null,null,null,null,null,null,null,null,null,null,null,null,null,null,null,null,null,null,null,null,null,null,null,null,null,null,null,null,null,null,null,null,null,null,null,null,null,null,null,null,null,null,null,null,null,null,null,null,null,null,null,null,null,null,null,null,null,null,null,null,null,null,null,null,null,null,null,null,null,null,null,null,null,null,null,null,null,null,null,null,null,null,null,null,null,null,null,null,null,null,null,null,null,null,null,null,null,null,null,"St. Louis Blues","KD"]
[null,null,null,null,null,null,null,null,null,null,null,null,null,null,null,null,null,null,null,null,null,null,null,null,null,null,null,null,null,null,null,null,null,null,null,null,null,null,null,null,null,null,null,null,null,null,null,null,null,null,null,null,null,null,null,null,null,null,null,null,null,null,null,null,null,null,null,null,null,null,null,null,88,"Patrick Kane","us","RW",30,"2018-05-10",177,"L/-",11,"1988-11-19",12000000,null,null,null,null,null,null,null,null,null,null,null,null,null,null,null,null,null,null,null,null,null,null,null,null,null,null,null,null,null,null,null,null,null,null,null,null,null,null,null,null,null,null,null,null,null,null,null,null,null,null,null,null,null,null,null,null,null,null,null,null,null,null,null,null,null,null,null,null,null,null,null,null,null,null,null,null,null,null,null,null,null,null,null,null,null,null,null,null,null,null,null,null,null,null,null,null,null,null,null,null,null,null,null,null,null,null,null,null,null,null,null,null,null,null,null,null,null,null,null,null,null,null,null,null,null,null,null,null,null,null,null,null,null,null,null,null,null,null,null,null,null,null,null,null,null,null,null,null,null,null,null,null,null,null,null,null,null,null,null,null,null,null,null,null,null,null,null,null,null,null,null,null,null,null,null,null,null,null,null,null,null,81,"Phil Kessel","us","RW",31,"2000-06-01",202,"R/-",12,"1987-10-02",5950000,null,null,null,null,null,null,null,null,null,null,null,null,null,null,null,null,null,null,null,null,null,null,null,null,null,null,null,null,null,null,null,null,null,null,null,null,null,null,null,null,null,null,null,null,null,null,null,null,null,null,null,null,null,null,null,null,null,null,null,null,null,null,null,null,null,null,null,null,null,null,null,null,null,null,null,null,null,null,null,null,null,null,null,null,null,null,null,null,null,null,null,null,null,null,null,null,null,null,null,null,null,"Tampa Bay Lightning","KP"]
[null,null,null,null,null,null,null,null,null,null,null,null,null,null,null,null,null,null,null,null,null,null,null,null,null,null,null,null,null,null,null,null,null,null,null,null,null,null,null,null,null,null,null,null,null,null,null,null,null,null,null,null,null,null,null,null,null,null,null,null,null,null,null,null,null,null,null,null,null,null,null,null,null,null,null,null,null,null,null,null,null,null,null,null,null,null,null,null,null,null,null,null,null,null,null,null,null,null,null,null,null,null,null,null,null,null,null,null,null,null,null,null,null,null,null,null,null,null,null,null,null,null,null,null,null,null,null,null,null,null,null,null,null,null,null,null,null,null,null,null,null,null,null,null,null,null,null,null,null,null,null,null,null,null,null,null,null,null,null,null,null,null,null,null,null,null,null,null,null,null,null,null,null,null,null,null,null,null,null,null,null,null,null,null,null,null,null,null,null,null,null,null,null,null,null,null,null,null,null,null,null,null,null,null,null,null,null,null,null,null,null,null,null,null,null,null,null,null,null,null,null,null,null,null,null,null,null,null,null,null,null,null,null,null,null,null,null,null,null,null,null,null,null,null,null,null,null,null,null,null,null,null,null,null,null,null,null,null,null,null,null,null,null,null,15,"Riley Sheahan","ca","C",27,"2018-06-03",214,"L/-",7,"1991-12-07",2100000,null,null,null,null,null,null,null,null,null,null,null,null,null,null,null,null,null,null,null,null,null,null,null,null,null,null,null,null,null,null,null,null,null,null,null,null,null,null,null,null,null,null,null,null,null,null,null,null,null,null,null,null,null,null,null,null,null,null,null,null,null,null,null,null,null,null,null,null,null,null,null,null,null,null,null,null,null,null,null,null,null,null,null,null,null,null,null,null,null,null,null,null,null,null,null,null,null,null,null,null,null,"Toronto Maple Leafs","LB"]
[null,null,null,null,null,null,null,null,null,null,null,null,null,null,null,null,null,null,null,null,null,null,null,null,null,null,null,null,null,null,null,null,null,null,null,null,null,null,null,null,null,null,null,null,null,null,null,null,null,null,null,null,null,null,null,null,null,null,null,null,null,null,null,null,null,null,null,null,null,null,null,null,null,null,null,null,null,null,null,null,null,null,null,null,null,null,null,null,null,null,null,null,null,null,null,null,null,null,null,null,null,null,null,null,null,null,null,null,null,null,null,null,null,null,null,null,null,null,null,null,null,null,null,null,null,null,null,null,null,null,null,null,null,null,null,null,null,null,null,null,null,null,null,null,null,null,null,null,null,null,null,null,null,null,null,null,null,null,null,null,null,null,null,null,null,null,null,null,null,null,null,null,null,null,null,null,null,null,null,null,null,null,null,null,null,null,null,null,null,null,null,null,null,null,null,null,null,null,null,null,null,null,null,null,null,null,null,null,null,null,null,null,null,null,null,null,null,null,null,null,null,null,null,null,null,null,null,null,null,null,null,null,null,null,null,null,null,null,null,null,null,null,null,null,null,null,null,null,null,null,null,null,null,null,null,null,null,null,null,null,null,null,null,null,87,"Sidney Crosby","ca","C",31,"2018-05-11",200,"L/-",13,"1987-08-07",10000000,null,null,null,null,null,null,null,null,null,null,null,null,null,null,null,null,null,null,null,null,null,null,null,null,null,null,null,null,null,null,null,null,null,null,null,null,null,null,null,null,null,null,null,null,null,null,null,null,null,null,null,null,null,null,null,null,null,null,null,null,null,null,null,null,null,null,null,null,null,null,null,null,null,null,null,null,null,null,null,null,null,null,null,null,null,null,null,null,null,null,null,null,null,null,null,null,null,null,null,null,null,"Vancouver Canucks","LN"]
[null,null,null,null,null,null,null,null,null,null,null,null,null,null,null,null,null,null,null,null,null,null,null,null,null,null,null,null,null,null,null,null,null,null,null,null,null,null,null,null,null,null,null,null,null,null,null,null,null,null,null,null,null,null,null,null,null,null,null,null,null,null,null,null,null,null,null,null,null,null,null,null,null,null,null,null,null,null,null,null,null,null,null,null,null,null,null,null,null,null,null,null,null,null,null,null,null,null,null,null,null,null,null,null,null,null,null,null,null,null,null,null,null,null,null,null,null,null,null,null,null,null,null,null,null,null,null,null,null,null,null,null,null,null,null,null,null,null,null,null,null,null,null,null,null,null,null,null,null,null,null,null,null,null,null,null,null,null,null,null,null,null,null,null,null,null,null,null,null,null,null,null,null,null,null,null,null,null,null,null,null,null,null,null,null,null,null,null,null,null,null,null,null,null,null,null,null,null,null,null,null,null,null,null,null,null,null,null,null,null,null,null,null,null,null,null,null,null,null,null,null,null,null,null,null,null,null,null,null,null,null,null,null,null,null,null,null,null,null,null,null,null,null,null,null,null,null,null,null,null,null,null,null,null,null,null,null,null,null,null,null,null,null,null,14,"Tanner Pearson","ca","LW",26,"2018-06-01",201,"L/-",5,"1992-08-10",28,null,null,null,null,null,null,null,null,null,null,null,null,null,null,null,null,null,null,null,null,null,null,null,null,null,null,null,null,null,null,null,null,null,null,null,null,null,null,null,null,null,null,null,null,null,null,null,null,null,null,null,null,null,null,null,null,null,null,null,null,null,null,null,null,null,null,null,null,null,null,null,null,null,null,null,null,null,null,null,null,null,null,null,null,null,null,null,null,null,null,null,null,null,null,null,null,null,null,null,null,null,"Vegas Black Knights","LZ"]
[null,null,null,null,null,null,null,null,null,null,null,null,null,null,null,null,null,null,null,null,null,null,null,null,null,null,null,null,null,null,null,null,null,null,null,null,null,null,null,null,null,null,null,null,null,null,null,null,null,null,null,null,null,null,null,null,null,null,null,null,null,null,null,null,null,null,null,null,null,null,null,null,null,null,null,null,null,null,null,null,null,null,null,null,null,null,null,null,null,null,null,null,null,null,null,null,null,null,null,null,null,null,null,null,null,null,null,null,null,null,null,null,null,null,null,null,null,null,null,null,null,null,null,null,null,null,null,null,null,null,null,null,null,null,null,null,null,null,null,null,null,null,null,null,null,null,null,null,null,null,null,null,null,null,null,null,null,null,null,null,null,null,null,null,null,null,null,null,null,null,null,null,null,null,null,null,null,null,null,null,null,null,null,null,null,null,null,null,null,null,null,null,null,null,null,null,null,null,null,null,null,null,null,null,null,null,null,null,null,null,null,null,null,null,null,null,null,null,null,null,null,null,null,null,null,null,null,null,null,null,null,null,null,null,null,null,null,null,null,null,null,null,null,null,null,null,null,null,null,null,null,null,null,null,null,null,null,null,null,null,null,null,null,null,53,"Teddy Blueger","lv","C",24,"2000-06-01",185,"L/-","R","1994-08-15",650000,null,null,null,null,null,null,null,null,null,null,null,null,null,null,null,null,null,null,null,null,null,null,null,null,null,null,null,null,null,null,null,null,null,null,null,null,null,null,null,null,null,null,null,null,null,null,null,null,null,null,null,null,null,null,null,null,null,null,null,null,null,null,null,null,null,null,null,null,null,null,null,null,null,null,null,null,null,null,null,null,null,null,null,null,null,null,null,null,null,null,null,null,null,null,null,null,null,null,null,null,null,"Washington Capitals","ML"]
[null,null,null,null,null,null,null,null,null,null,null,null,null,null,null,null,null,null,null,null,null,null,null,null,null,null,null,null,null,null,null,null,null,null,null,null,null,null,null,null,null,null,null,null,null,null,null,null,null,null,null,null,null,null,null,null,null,null,null,null,null,null,null,null,null,null,null,null,null,null,null,null,null,null,null,null,null,null,null,null,null,null,null,null,null,null,null,null,null,null,null,null,null,null,null,null,null,null,null,null,null,null,null,null,null,null,null,null,null,null,null,null,null,null,null,null,null,null,null,null,null,null,null,null,null,null,null,null,null,null,null,null,null,null,null,null,null,null,null,null,null,null,null,null,null,null,null,null,null,null,null,null,null,null,null,null,null,null,null,null,null,null,null,null,null,null,null,null,null,null,null,null,null,null,null,null,null,null,null,null,null,null,null,null,null,null,null,null,null,null,null,null,null,null,null,null,null,null,null,null,null,null,null,null,null,null,null,null,null,null,null,null,null,null,null,null,null,null,null,null,null,null,null,null,null,null,null,null,null,null,null,null,null,null,null,null,null,null,null,null,null,null,null,null,null,null,null,null,null,null,null,null,null,null,null,null,null,null,null,null,null,null,null,null,35,"Tristan Jarry","ca","G",23,"2018-06-02",194,"-/L",2,"1995-04-29",650000,null,null,null,null,null,null,null,null,null,null,null,null,null,null,null,null,null,null,null,null,null,null,null,null,null,null,null,null,null,null,null,null,null,null,null,null,null,null,null,null,null,null,null,null,null,null,null,null,null,null,null,null,null,null,null,null,null,null,null,null,null,null,null,null,null,null,null,null,null,null,null,null,null,null,null,null,null,null,null,null,null,null,null,null,null,null,null,null,null,null,null,null,null,null,null,null,null,null,null,null,null,"Winnipeg Jets","MX"]
[null,null,null,null,null,null,null,null,null,null,null,null,null,null,null,null,null,null,null,null,null,null,null,null,null,null,null,null,null,null,null,null,null,null,null,null,null,null,null,null,null,null,null,null,null,null,null,null,null,null,null,null,null,null,null,null,null,null,null,null,null,null,null,null,null,null,null,null,null,null,null,null,null,null,null,null,null,null,null,null,null,null,null,null,null,null,null,null,null,null,null,null,null,null,null,null,null,null,null,null,null,null,null,null,null,null,null,null,null,null,null,null,null,null,null,null,null,null,null,null,null,null,null,null,null,null,null,null,null,null,null,null,null,null,null,null,null,null,null,null,null,null,null,null,null,null,null,null,null,null,null,null,null,null,null,null,null,null,null,null,null,null,null,null,null,null,null,null,null,null,null,null,null,null,null,null,null,null,null,null,null,null,null,null,null,null,null,null,null,null,null,null,null,null,null,null,null,null,null,null,null,null,null,null,null,null,null,null,null,null,null,null,null,null,null,null,null,null,null,null,null,null,null,null,null,null,null,null,null,null,null,null,null,null,null,null,null,null,null,null,null,null,null,null,null,null,null,null,null,null,null,null,null,null,null,null,null,null,null,null,null,null,null,null,46,"Zach Aston-Reese","us","LW",24,"2000-06-01",204,"L/-",1,"1994-08-10",925000]
[null,null,null,null,null,null,null,null,null,null,null,null,null,null,null,null,null,null,null,null,null,null,null,null,null,null,null,null,null,null,null,null,null,null,null,null,null,null,null,null,null,null,null,null,null,null,null,null,null,null,null,null,null,null,null,null,null,null,null,null,null,null,null,null,null,null,null,null,null,null,null,null,null,null,null,null,null,null,null,null,null,null,null,null,null,null,null,null,null,null,null,null,null,null,null,null,null,null,null,null,null,null,null,null,null,null,null,null,null,null,null,null,null,null,null,null,null,null,null,null,null,null,null,null,null,null,null,null,null,null,null,null,null,null,null,null,null,null,null,null,null,null,null,null,null,null,null,null,null,null,null,null,null,null,null,null,null,null,null,null,null,null,null,null,null,null,null,null,null,null,null,null,null,null,null,null,null,null,null,null,null,null,null,null,null,null,null,null,null,null,null,null,null,null,null,null,null,null,null,null,null,null,null,null,null,null,null,null,null,null,null,null,null,null,null,null,null,null,null,null,null,null,null,null,null,null,null,null,null,null,null,null,null,null,null,null,null,null,null,null,null,null,null,null,null,null,null,null,null,null,null,null,null,null,null,null,null,null,null,null,null,null,null,null,5,"Zach Trotman","us","D",28,"2019-06-03",217,"R/-",4,"1990-08-26",650000]
[null,null,null,null,null,null,null,null,null,null,null,null,null,null,null,null,null,null,null,null,null,null,null,null,null,null,null,null,null,null,null,null,null,null,null,null,null,null,null,null,null,null,null,null,null,null,null,null,null,null,null,null,null,null,null,null,null,null,null,null,null,null,null,null,null,null,null,null,null,null,null,null,null,null,null,null,null,null,null,null,null,null,null,null,null,null,null,null,null,null,null,null,null,null,null,null,null,null,null,null,null,null,null,null,null,null,null,null,null,null,null,null,null,null,null,null,null,null,null,null,null,null,null,null,null,null,null,null,null,null,null,null,null,null,null,null,null,null,null,null,null,null,null,null,null,null,null,null,null,null,null,null,null,null,null,null,null,null,null,null,null,null,null,null,null,null,null,null,null,null,null,null,null,null,null,null,null,null,null,null,null,null,null,null,null,null,null,null,null,null,null,null,null,null,null,null,null,null,null,null,null,null,null,null,null,null,null,null,null,null,null,null,null,null,null,null,null,null,null,null,null,null,null,null,null,null,null,null,null,null,null,null,null,null,null,null,null,null,null,null,null,null,null,null,null,null,null,null,null,null,null,null,null,null,null,null,null,null,null,null,null,null,null,null,null,"Bench Penalty"]
[]
[]
[]
[]
[]
[]
[]
[]
[]
[]
[]
[]
[]
[]
[]
[]
[]
[]
[]
[]
[]
[]
[]
[]
[]
[]
[]
[]
[]
[]
[]
[]
[]
[]
[]
[]
[]
[]
[]
[]
[]
[]
[]
[]
[]
[]
[]
[]
[]
[]
[]
[]
[]
[]
[]
[]
[]
[]
[]
[]
[]
[]
["http://www.hockey-reference.com/boxscores/0PIT.html"]

{"sheet":"Game Summary","index":5,"n_rows":100,"n_cols":207,"rows_kept":100,"cut":false,"hidden":true,"merged":[[0,0,0,7],[1,1,1,7],[1,10,1,15],[1,18,1,21],[1,24,1,31],[0,23,0,31],[0,17,0,21],[0,9,0,15]]}
["Scoring Summary",null,null,null,null,null,null,null,null,"Penalty Summary",null,null,null,null,null,null,null,"Shootout Summary",null,null,null,null,null,"Goalie Summary",null,null,null,null,null,null,null,null,null,"Period List",null,null,"Yes No List",null,null,"Spec Goals",null,null,"Penalties",null,null,"Penalty Minutes"]
[{"$f":"Introduction!$A$44","v":"2019-04-06"},{"$f":"Introduction!$A$42","v":"New York Rangers"},null,null,null,null,null,null,null,{"$f":"Introduction!$A$44","v":"2019-04-06"},{"$f":"Introduction!$A$42","v":"New York Rangers"},null,null,{"$f":"Introduction!$A$42","v":"New York Rangers"},null,null,null,{"$f":"Introduction!$A$44","v":"2019-04-06"},{"$f":"Introduction!$A$42","v":"New York Rangers"},null,null,{"$f":"Introduction!$A$42","v":"New York Rangers"},null,{"$f":"Introduction!$A$44","v":"2019-04-06"},{"$f":"Introduction!$A$42","v":"New York Rangers"},null,null,null,null,null,null,null,null,1]
["No.","Per","Time","Team","SpecG","Goal Scorer","Primary Assist","Secondary Assist",null,"No.","Per","Time","Team","Player","Penalty","Mins",1,"Att","Team","Shooter","Goalie","GorS",null,"Rk","Team","Goalie","DEC","GA","SOG","SV","SO","TOI",null,2,null,null,"Yes",null,null,"PP",null,null,"Boarding",null,null,2]
[null,null,null,null,null,null,null,null,null,null,null,null,null,null,null,null,null,null,null,null,null,null,null,null,null,null,null,null,null,null,null,null,null,3,null,null,"No",null,null,"SH",null,null,"Butt ending",null,null,4]
[null,null,null,null,null,null,null,null,null,null,null,null,null,null,null,null,null,null,null,null,null,null,null,null,null,null,null,null,null,null,null,null,null,4,null,null,null,null,null,"EN",null,null,"Charging",null,null,5]
[null,null,null,null,null,null,null,null,null,null,null,null,null,null,null,null,null,null,null,null,null,null,null,null,null,null,null,null,null,null,null,null,null,null,null,null,null,null,null,"XP",null,null,"Checking from behind",null,null,10]
[null,null,null,null,null,null,null,null,null,null,null,null,null,null,null,null,null,null,null,null,null,null,null,null,null,null,null,null,null,null,null,null,null,null,null,null,null,null,null,null,null,null,"Clipping"]
[null,null,null,null,null,null,null,null,null,null,null,null,null,null,null,null,null,null,null,null,null,null,null,null,null,null,null,null,null,null,null,null,null,null,null,null,null,null,null,null,null,null,"Closing hand on puck"]
[null,null,null,null,null,null,null,null,null,null,null,null,null,null,null,null,null,null,null,null,null,null,null,null,null,null,null,null,null,null,null,null,null,null,null,null,null,null,null,null,null,null,"Cross checking"]
[null,null,null,null,null,null,null,null,null,null,null,null,null,null,null,null,null,null,null,null,null,null,null,null,null,null,null,null,null,null,null,null,null,null,null,null,null,null,null,null,null,null,"Delay of game"]
[null,null,null,null,null,null,null,null,null,null,null,null,null,null,null,null,null,null,null,null,null,null,null,null,null,null,null,null,null,null,null,null,null,null,null,null,null,null,null,null,null,null,"Diving"]
[null,null,null,null,null,null,null,null,null,null,null,null,null,null,null,null,null,null,null,null,null,null,null,null,null,null,null,null,null,null,null,null,null,null,null,null,null,null,null,null,null,null,"Elbowing"]
[null,null,null,null,null,null,null,null,null,null,null,null,null,null,null,null,null,null,null,null,null,null,null,null,null,null,null,null,null,null,null,null,null,null,null,null,null,null,null,null,null,null,"Embellishment"]
[null,null,null,null,null,null,null,null,null,null,null,null,null,null,null,null,null,null,null,null,null,null,null,null,null,null,null,null,null,null,null,null,null,null,null,null,null,null,null,null,null,null,"Face-off Violation"]
[null,null,null,null,null,null,null,null,null,null,null,null,null,null,null,null,null,null,null,null,null,null,null,null,null,null,null,null,null,null,null,null,null,null,null,null,null,null,null,null,null,null,"Fighting"]
[null,null,null,null,null,null,null,null,null,null,null,null,null,null,null,null,null,null,null,null,null,null,null,null,null,null,null,null,null,null,null,null,null,null,null,null,null,null,null,null,null,null,"Goalkeeper interference"]
[null,null,null,null,null,null,null,null,null,null,null,null,null,null,null,null,null,null,null,null,null,null,null,null,null,null,null,null,null,null,null,null,null,null,null,null,null,null,null,null,null,null,"Head butting"]
[null,null,null,null,null,null,null,null,null,null,null,null,null,null,null,null,null,null,null,null,null,null,null,null,null,null,null,null,null,null,null,null,null,null,null,null,null,null,null,null,null,null,"High sticking"]
[null,null,null,null,null,null,null,null,null,null,null,null,null,null,null,null,null,null,null,null,null,null,null,null,null,null,null,null,null,null,null,null,null,null,null,null,null,null,null,null,null,null,"Holding"]
[null,null,null,null,null,null,null,null,null,null,null,null,null,null,null,null,null,null,null,null,null,null,null,null,null,null,null,null,null,null,null,null,null,null,null,null,null,null,null,null,null,null,"Holding the stick"]
[null,null,null,null,null,null,null,null,null,null,null,null,null,null,null,null,null,null,null,null,null,null,null,null,null,null,null,null,null,null,null,null,null,null,null,null,null,null,null,null,null,null,"Hooking"]
[null,null,null,null,null,null,null,null,null,null,null,null,null,null,null,null,null,null,null,null,null,null,null,null,null,null,null,null,null,null,null,null,null,null,null,null,null,null,null,null,null,null,"Illegal check to the head"]
[null,null,null,null,null,null,null,null,null,null,null,null,null,null,null,null,null,null,null,null,null,null,null,null,null,null,null,null,null,null,null,null,null,null,null,null,null,null,null,null,null,null,"Illegal equipment"]
[null,null,null,null,null,null,null,null,null,null,null,null,null,null,null,null,null,null,null,null,null,null,null,null,null,null,null,null,null,null,null,null,null,null,null,null,null,null,null,null,null,null,"Illegal stick"]
[null,null,null,null,null,null,null,null,null,null,null,null,null,null,null,null,null,null,null,null,null,null,null,null,null,null,null,null,null,null,null,null,null,null,null,null,null,null,null,null,null,null,"Illegal substitution"]
[null,null,null,null,null,null,null,null,null,null,null,null,null,null,null,null,null,null,null,null,null,null,null,null,null,null,null,null,null,null,null,null,null,null,null,null,null,null,null,null,null,null,"Instigator"]
[null,null,null,null,null,null,null,null,null,null,null,null,null,null,null,null,null,null,null,null,null,null,null,null,null,null,null,null,null,null,null,null,null,null,null,null,null,null,null,null,null,null,"Interference"]
[null,null,null,null,null,null,null,null,null,null,null,null,null,null,null,null,null,null,null,null,null,null,null,null,null,null,null,null,null,null,null,null,null,null,null,null,null,null,null,null,null,null,"Kneeing"]
[null,null,null,null,null,null,null,null,null,null,null,null,null,null,null,null,null,null,null,null,null,null,null,null,null,null,null,null,null,null,null,null,null,null,null,null,null,null,null,null,null,null,"Leaving the crease"]
[null,null,null,null,null,null,null,null,null,null,null,null,null,null,null,null,null,null,null,null,null,null,null,null,null,null,null,null,null,null,null,null,null,null,null,null,null,null,null,null,null,null,"Misconduct"]
[null,null,null,null,null,null,null,null,null,null,null,null,null,null,null,null,null,null,null,null,null,null,null,null,null,null,null,null,null,null,null,null,null,null,null,null,null,null,null,null,null,null,"Penalty shot awarded"]
[null,null,null,null,null,null,null,null,null,null,null,null,null,null,null,null,null,null,null,null,null,null,null,null,null,null,null,null,null,null,null,null,null,null,null,null,null,null,null,null,null,null,"Roughing"]
[null,null,null,null,null,null,null,null,null,null,null,null,null,null,null,null,null,null,null,null,null,null,null,null,null,null,null,null,null,null,null,null,null,null,null,null,null,null,null,null,null,null,"Slashing"]
[null,null,null,null,null,null,null,null,null,null,null,null,null,null,null,null,null,null,null,null,null,null,null,null,null,null,null,null,null,null,null,null,null,null,null,null,null,null,null,null,null,null,"Spearing"]
[null,null,null,null,null,null,null,null,null,null,null,null,null,null,null,null,null,null,null,null,null,null,null,null,null,null,null,null,null,null,null,null,null,null,null,null,null,null,null,null,null,null,"Too many men on the ice"]
[null,null,null,null,null,null,null,null,null,null,null,null,null,null,null,null,null,null,null,null,null,null,null,null,null,null,null,null,null,null,null,null,null,null,null,null,null,null,null,null,null,null,"Tripping"]
[null,null,null,null,null,null,null,null,null,null,null,null,null,null,null,null,null,null,null,null,null,null,null,null,null,null,null,null,null,null,null,null,null,null,null,null,null,null,null,null,null,null,"Unsportsmanlike conduct"]
[null,null,null,null,null,null,null,null,null,null,null,null,null,null,null,null,null,null,null,null,null,null,null,null,null,null,null,null,null,null,null,null,null,null,null,null,null,null,null,null,null,null,"Slashing"]
[null,null,null,null,null,null,null,null,null,null,null,null,null,null,null,null,null,null,null,null,null,null,null,null,null,null,null,null,null,null,null,null,null,null,null,null,null,null,null,null,null,null,"Spearing"]
[null,null,null,null,null,null,null,null,null,null,null,null,null,null,null,null,null,null,null,null,null,null,null,null,null,null,null,null,null,null,null,null,null,null,null,null,null,null,null,null,null,null,"Too many men on the ice"]
[null,null,null,null,null,null,null,null,null,null,null,null,null,null,null,null,null,null,null,null,null,null,null,null,null,null,null,null,null,null,null,null,null,null,null,null,null,null,null,null,null,null,"Tripping"]
[null,null,null,null,null,null,null,null,null,null,null,null,null,null,null,null,null,null,null,null,null,null,null,null,null,null,null,null,null,null,null,null,null,null,null,null,null,null,null,null,null,null,"Unsportsmanlike conduct"]
[]
[]
[]
[]
[]
[]
[]
[1,2,1,3,4,2,2,null,null,null,null,null,null,null,null,null,null,null,null,null,null,null,null,null,null,null,null,null,null,null,null,null,null,null,null,null,null,null,null,null,null,null,null,null,null,null,null,null,null,null,null,null,null,null,null,null,null,null,null,null,null,null,null,null,null,null,null,null,null,null,null,null,null,null,null,null,null,null,null,null,null,null,null,null,null,null,null,null,null,null,null,null,null,null,null,null,null,null,null,null,null,null,null,null,null,null,null,null,null,null,null,null,null,null,null,null,null,null,null,null,null,null,null,null,null,null,null,null,null,null,null,null,null,null,null,null,null,null,null,null,null,null,null,null,null,null,null,null,null,null,null,null,null,null,null,null,null,null,null,null,null,null,null,null,null,null,null,null,null,null,null,null,null,null,null,null,null,null,null,null,null,null,null,null,null,null,null,null,null,null,null,null,null,null,null,null,null,null,null,null,null,null,null,null,null,null,"Marc-Andre Fleury"]
[null,null,null,null,null,null,null,null,null,null,null,null,null,null,null,null,null,null,null,null,null,null,null,null,null,null,null,null,null,null,null,null,null,null,null,null,null,null,null,null,null,null,null,null,null,null,null,null,null,null,null,null,null,null,null,null,null,null,null,null,null,null,null,null,null,null,null,null,null,null,null,null,null,null,null,null,null,null,null,null,null,null,null,null,null,null,null,null,null,null,null,null,null,null,null,null,null,null,null,null,null,null,null,null,null,null,null,null,null,null,null,null,null,null,null,null,null,null,null,null,null,null,null,null,null,null,null,null,null,null,null,null,null,null,null,null,null,null,null,null,null,null,null,null,null,null,null,null,null,null,null,null,null,null,null,null,null,null,null,null,null,null,null,null,null,null,null,null,null,null,null,null,null,null,null,null,null,null,null,null,null,null,null,null,null,null,null,null,null,null,null,null,null,null,null,null,null,null,null,null,null,null,null,null,null,null,"Matthew Murray"]
[null,null,null,null,null,null,null,null,null,null,null,null,null,null,null,null,null,null,null,null,null,null,null,null,null,null,null,null,null,null,null,null,null,null,null,null,null,null,null,null,null,null,null,null,null,null,null,null,null,null,null,null,null,null,null,null,null,null,null,null,null,null,null,null,null,null,null,null,null,null,null,null,null,null,null,null,null,null,null,null,null,null,null,null,null,null,null,null,null,null,null,null,null,null,null,null,null,null,null,null,null,null,null,null,null,null,null,null,null,null,null,null,null,null,null,null,null,null,null,null,null,null,null,null,null,null,null,null,null,null,null,null,null,null,null,null,null,null,null,null,null,null,null,null,null,null,null,null,null,null,null,null,null,null,null,null,null,null,null,null,null,null,null,null,null,null,null,null,null,null,null,null,null,null,null,null,null,null,null,null,null,null,null,null,null,null,null,null,null,null,null,null,null,null,null,null,null,null,null,null,null,null,null,null,null,null,"Mike Condon"]
[]
[]
[]
[]
[]
[]
[]
["Yes",null,null,null,null,null,null,null,null,null,null,null,null,null,null,null,null,null,null,null,null,null,null,null,null,null,null,null,null,null,null,null,null,null,"Yes","Yes"]
[]
[]
[]
[]
[]
[]
[]
[]
[]
[4,3,1,0,0,4,0]
[]
[]
[]
[]
[]
[]
[]
[]
[]
[]
[]
[]
[]
[]
[]
[]
[]
[]
[]
[]
[]
[]
[]
[]
[]
[]
[]
[]
[]
[null,null,"11:11:00"]

{"sheet":"All Goals 2018_19","index":6,"n_rows":453,"n_cols":9,"rows_kept":453,"cut":false,"hidden":true,"merged":[[0,1,0,8]]}
[null,"Scoring Summary 2016-2017"]
[null,"Date","Per","Time","Team","SpecG","Goal Scorer","Primary Assist","Secondary Assist"]
[null,"2018-10-04",1,"01:49:00","PIT",null,"Jamie Oleksiak","Evgeni Malkin","Phil Kessel"]
[null,"2018-10-04",1,"03:30:00","WSH",null,"Jakub Vrana","Nicklas Backstrom","T.J. Oshie"]
[null,"2018-10-04",1,"04:18:00","WSH",null,"Brooks Orpik"]
[null,"2018-10-04",1,"07:27:00","PIT","PP","Jake Guentzel","Daniel Sprong","Justin Schultz"]
[null,"2018-10-04",1,"08:00:00","WSH",null,"Alex Ovechkin","Christian Djoos","Evgeny Kuznetsov"]
[null,"2018-10-04",2,"00:30:00","PIT",null,"Kris Letang","Sidney Crosby","Brian Dumoulin"]
[null,"2018-10-04",2,"03:54:00","WSH",null,"John Carlson","Brett Connolly"]
[null,"2018-10-04",2,"15:09:00","PIT",null,"Jake Guentzel","Justin Schultz","Patric Hornqvist"]
[null,"2018-10-04",2,"16:58:00","PIT",null,"Derick Brassard","Dominik Simon","Brian Dumoulin"]
[null,"2018-10-04",3,"02:45:00","PIT",null,"Evgeni Malkin","Kris Letang","Sidney Crosby"]
[null,"2018-10-04",3,"13:01:00","WSH",null,"T.J. Oshie"]
[null,"2018-10-04",3,"13:22:00","WSH",null,"T.J. Oshie","John Carlson"]
[null,"2018-10-04",4,"01:20:00","PIT","PP","Kris Letang","Evgeni Malkin","Phil Kessel"]
[null,"2018-10-06",1,"11:08:00","MTL",null,"Brendan Gallagher","Tomas Tatar","Phillip Danault"]
[null,"2018-10-06",1,"15:56:00","MTL",null,"Paul Byron","Artturi Lehkonen","Jeff Petry"]
[null,"2018-10-06",2,"03:43:00","MTL",null,"Paul Byron","Max Domi","Artturi Lehkonen"]
[null,"2018-10-06",2,"14:05:00","MTL","SH","Joel Armia","Paul Byron","Jeff Petry"]
[null,"2018-10-06",2,"17:10:00","PIT",null,"Riley Sheahan","Kris Letang","Daniel Sprong"]
[null,"2018-10-06",3,"10:08:00","MTL",null,"Charles Hudon","Andrew Shaw"]
[null,"2018-10-11",1,"06:28:00","VEG",null,"Tomas Nosek","Jon Marchessault","William Karlsson"]
[null,"2018-10-11",1,"08:03:00","PIT",null,"Phil Kessel","Evgeni Malkin"]
[null,"2018-10-11",1,"09:37:00","PIT",null,"Phil Kessel","Evgeni Malkin","Justin Schultz"]
[null,"2018-10-11",2,"15:43:00","PIT",null,"Phil Kessel","Carl Hagelin","Evgeni Malkin"]
[null,"2018-10-11",2,"16:40:00","PIT",null,"Jake Guentzel","Sidney Crosby","Justin Schultz"]
[null,"2018-10-11",3,"13:35:00","VEG",null,"Reilly Smith","Jon Marchessault"]
[null,"2018-10-13",1,"03:13:00","PIT",null,"Dominik Simon","Daniel Sprong","Kris Letang"]
[null,"2018-10-13",1,"15:16:00","PIT",null,"Kris Letang","Phil Kessel","Evgeni Malkin"]
[null,"2018-10-13",2,"00:11:00","MTL",null,"Tomas Tatar","Brendan Gallagher","Phillip Danault"]
[null,"2018-10-13",2,"07:38:00","MTL",null,"Brendan Gallagher","Jeff Petry","Tomas Tatar"]
[null,"2018-10-13",2,"08:51:00","MTL","PP","Tomas Tatar","Jonathan Drouin","Jeff Petry"]
[null,"2018-10-13",2,"11:14:00","PIT","PP","Phil Kessel","Sidney Crosby","Evgeni Malkin"]
[null,"2018-10-16",1,"06:24:00","PIT",null,"Jake Guentzel"]
[null,"2018-10-16",1,"08:55:00","VAN",null,"Ben Hutton","Tim Schaller","Markus Granlund"]
[null,"2018-10-16",1,"18:56:00","VAN",null,"Brandon Sutter","Tim Schaller","Tyler Motte"]
[null,"2018-10-16",2,"16:46:00","PIT",null,"Carl Hagelin","Phil Kessel","Evgeni Malkin"]
[null,"2018-10-16",4,"00:34:00","VAN",null,"Brock Boeser","Chris Tanev"]
[null,"2018-10-18",1,"18:52:00","PIT","EN","Kris Letang","Evgeni Malkin","Bryan Rust"]
[null,"2018-10-18",3,"17:53:00","PIT","EN","Evgeni Malkin"]
[null,"2018-10-23",1,"10:58:00","PIT","PP","Sidney Crosby","Kris Letang","Phil Kessel"]
[null,"2018-10-23",2,"01:06:00","EDM",null,"Leon Draisaitl","Ryan Nugent-Hopkins","Kris Russell"]
[null,"2018-10-23",2,"03:10:00","EDM",null,"Alex Chiasson","Kris Russell"]
[null,"2018-10-23",2,"07:16:00","PIT",null,"Jamie Oleksiak","Evgeni Malkin","Phil Kessel"]
[null,"2018-10-23",2,"10:24:00","PIT",null,"Patric Hornqvist","Dominik Simon"]
[null,"2018-10-23",2,"15:15:00","EDM",null,"Alex Chiasson","Tobias Rieder","Adam Larsson"]
[null,"2018-10-23",2,"19:05:00","PIT",null,"Patric Hornqvist","Matt Cullen","Brian Dumoulin"]
[null,"2018-10-23",3,"02:47:00","EDM","PP","Connor McDavid","Oscar Klefbom","Milan Lucic"]
[null,"2018-10-23",3,"04:18:00","EDM","PP","Leon Draisaitl","Connor McDavid","Ryan Nugent-Hopkins"]
[null,"2018-10-23",3,"06:51:00","PIT",null,"Jamie Oleksiak","Patric Hornqvist","Matt Cullen"]
[null,"2018-10-23",4,"02:12:00","PIT",null,"Sidney Crosby","Jack Johnson","Derick Brassard"]
[null,"2018-10-25",1,"04:23:00","PIT",null,"Sidney Crosby","Kris Letang","Derick Brassard"]
[null,"2018-10-25",1,"14:19:00","PIT","PP","Patric Hornqvist","Sidney Crosby","Evgeni Malkin"]
[null,"2018-10-25",1,"19:08:00","PIT",null,"Bryan Rust","Dominik Simon","Jamie Oleksiak"]
[null,"2018-10-25",2,"01:17:00","PIT",null,"Phil Kessel","Evgeni Malkin","Derick Brassard"]
[null,"2018-10-25",2,"06:28:00","PIT",null,"Patric Hornqvist","Riley Sheahan","Brian Dumoulin"]
[null,"2018-10-25",2,"09:19:00","PIT",null,"Phil Kessel","Kris Letang","Bryan Rust"]
[null,"2018-10-25",2,"19:39:00","PIT","PP","Jack Johnson","Derick Brassard","Olli Maatta"]
[null,"2018-10-25",3,"13:55:00","PIT",null,"Jake Guentzel","Sidney Crosby"]
[null,"2018-10-25",3,"18:00:00","CGY",null,"James Neal","Sean Monahan","Dillon Dube"]
[null,"2018-10-25",3,"18:34:00","PIT",null,"Matt Cullen","Dominik Simon"]
[null,"2018-10-27",2,"05:50:00","PIT",null,"Phil Kessel","Olli Maatta","Evgeni Malkin"]
[null,"2018-10-27",2,"16:34:00","PIT",null,"Sidney Crosby","Dominik Simon","Jake Guentzel"]
[null,"2018-10-27",3,"14:15:00","PIT",null,"Evgeni Malkin","Daniel Sprong"]
[null,"2018-10-27",3,"15:14:00","PIT",null,"Evgeni Malkin","Phil Kessel","Carl Hagelin"]
[null,"2018-10-27",3,"17:43:00","PIT",null,"Sidney Crosby","Jamie Oleksiak","Jake Guentzel"]
[null,"2018-10-30",1,"10:43:00","NYI",null,"Andrew Ladd","Valtteri Filppula","Ryan Pulock"]
[null,"2018-10-30",1,"12:28:00","NYI",null,"Brock Nelson","Josh Bailey","Matt Martin"]
[null,"2018-10-30",1,"14:24:00","PIT",null,"Dominik Simon","Sidney Crosby","Brian Dumoulin"]
[null,"2018-10-30",1,"17:41:00","PIT",null,"Sidney Crosby","Jamie Oleksiak"]
[null,"2018-10-30",2,"09:32:00","NYI",null,"Matt Martin","Casey Cizikas","Ryan Pulock"]
[null,"2018-10-30",2,"11:56:00","NYI","PP","Jordan Eberle","Mathew Barzal","Nick Leddy"]
[null,"2018-10-30",2,"13:49:00","NYI",null,"Jordan Eberle","Mathew Barzal","Adam Pelech"]
[null,"2018-10-30",3,"01:23:00","PIT",null,"Evgeni Malkin","Phil Kessel","Jamie Oleksiak"]
[null,"2018-10-30",3,"09:44:00","NYI",null,"Tom Kuhnhackl","Nick Leddy","Ryan Pulock"]
[null,"2018-11-01",1,"06:20:00","PIT","PP","Dominik Simon","Jake Guentzel","Olli Maatta"]
[null,"2018-11-01",2,"14:46:00","NYI","SH","Josh Bailey","Casey Cizikas"]
[null,"2018-11-01",3,"10:11:00","NYI",null,"Anders Lee","Thomas Hickey","Brock Nelson"]
[null,"2018-11-01",3,"12:02:00","PIT","PP","Evgeni Malkin","Kris Letang","Phil Kessel"]
[null,"2018-11-03",1,"09:34:00","TOR",null,"John Tavares","Mitch Marner","Ron Hainsey"]
[null,"2018-11-03",2,"00:44:00","TOR",null,"Patrick Marleau","Kasperi Kapanen","Nazem Kadri"]
[null,"2018-11-03",2,"11:49:00","TOR",null,"Morgan Rielly","John Tavares","Kasperi Kapanen"]
[null,"2018-11-03",3,"15:33:00","TOR","PP","Morgan Rielly","Mitch Marner","Jake Gardiner"]
[null,"2018-11-03",3,"19:40:00","TOR","SH","Zach Hyman"]
[null,"2018-11-05",1,"02:24:00","NJD",null,"Will Butcher","Joey Anderson","Jean-Sebastien Dea"]
[null,"2018-11-05",1,"09:24:00","PIT",null,"Jamie Oleksiak","Olli Maatta","Jake Guentzel"]
[null,"2018-11-05",1,"12:27:00","NJD",null,"Brian Boyle","Ben Lovejoy","Jean-Sebastien Dea"]
[null,"2018-11-05",2,"07:38:00","NJD","PP","Brian Boyle","Kyle Palmieri","Will Butcher"]
[null,"2018-11-05",2,"19:40:00","NJD","PP","Brian Boyle","Taylor Hall","Kyle Palmieri"]
[null,"2018-11-05",3,"00:19:00","NJD",null,"Travis Zajac","Damon Severson","Marcus Johansson"]
[null,"2018-11-07",1,"12:16:00","PIT","PP","Sidney Crosby","Jack Johnson"]
[null,"2018-11-07",2,"07:09:00","WSH","PP","Alex Ovechkin","John Carlson","Nicklas Backstrom"]
[null,"2018-11-07",3,"18:46:00","WSH",null,"T.J. Oshie","John Carlson","Evgeny Kuznetsov"]
[null,"2018-11-10",2,"06:42:00","PIT",null,"Sidney Crosby","Phil Kessel","Jake Guentzel"]
[null,"2018-11-10",2,"08:34:00","PIT",null,"Dominik Simon","Bryan Rust","Olli Maatta"]
[null,"2018-11-10",2,"19:44:00","PIT",null,"Patric Hornqvist","Dominik Simon","Jack Johnson"]
[null,"2018-11-10",3,"07:24:00","PIT",null,"Brian Dumoulin","Sidney Crosby","Jake Guentzel"]
[null,"2018-11-13",1,"00:28:00","NJD",null,"Travis Zajac","Taylor Hall","Damon Severson"]
[null,"2018-11-13",1,"13:57:00","PIT","PP","Phil Kessel","Sidney Crosby","Evgeni Malkin"]
[null,"2018-11-13",2,"08:06:00","NJD",null,"Damon Severson","Taylor Hall","Jesper Bratt"]
[null,"2018-11-13",3,"04:04:00","PIT",null,"Jake Guentzel","Sidney Crosby","Phil Kessel"]
[null,"2018-11-13",3,"08:07:00","NJD",null,"Taylor Hall","Travis Zajac","Kyle Palmieri"]
[null,"2018-11-13",3,"19:33:00","NJD","EN","Taylor Hall","Stefan Noesen"]
[null,"2018-11-15",1,"10:33:00","PIT","PP","Patric Hornqvist","Phil Kessel","Kris Letang"]
[null,"2018-11-15",1,"13:49:00","PIT","PP","Phil Kessel","Evgeni Malkin","Patric Hornqvist"]
[null,"2018-11-15",1,"19:57:00","TBL","PP","Brayden Point","Tyler Johnson","Nikita Kucherov"]
[null,"2018-11-15",2,"00:41:00","TBL","PP","Brayden Point","Steven Stamkos","Nikita Kucherov"]
[null,"2018-11-15",2,"01:28:00","TBL","PP","Brayden Point","J.T. Miller","Nikita Kucherov"]
[null,"2018-11-15",2,"04:29:00","PIT",null,"Patric Hornqvist","Evgeni Malkin"]
[null,"2018-11-15",2,"07:56:00","TBL","PP","Yanni Gourde","Mikhail Sergachev","Alex Killor"]
[null,"2018-11-17",1,"11:59:00","PIT","PP","Kris Letang","Phil Kessel","Evgeni Malkin"]
[null,"2018-11-17",1,"14:33:00","OTT",null,"Brady Tkachuk","Colin White"]
[null,"2018-11-17",1,"17:07:00","OTT",null,"Mark Stone","Thomas Chabot","Ryan Dzingel"]
[null,"2018-11-17",1,"18:50:00","OTT",null,"Matt Duchene","Mikkel Boedker","Drake Batherson"]
[null,"2018-11-17",2,"16:35:00","OTT","SH","Mark Stone"]
[null,"2018-11-17",2,"17:21:00","OTT",null,"Cody Ceci","Matt Duchene","Ryan Dzingel"]
[null,"2018-11-17",3,"02:20:00","PIT",null,"Zach Aston-Reese"]
[null,"2018-11-17",3,"05:34:00","PIT",null,"Matt Cullen","Bryan Rust","Jack Johnson"]
[null,"2018-11-17",3,"09:05:00","OTT",null,"Matt Duchene","Drake Batherson","Mikkel Boedker"]
[null,"2018-11-17",3,"16:56:00","PIT",null,"Patric Hornqvist","Phil Kessel","Evgeni Malkin"]
[null,"2018-11-19",1,"08:46:00","PIT",null,"Derick Brassard","Patric Hornqvist"]
[null,"2018-11-19",1,"11:43:00","BUF",null,"Tage Thompson","Sam Reinhart","Rasmus Ristolainen"]
[null,"2018-11-19",1,"16:15:00","PIT",null,"Phil Kessel","Tanner Pearson","Evgeni Malkin"]
[null,"2018-11-19",2,"01:24:00","PIT",null,"Jake Guentzel","Patric Hornqvist"]
[null,"2018-11-19",2,"05:00:00","PIT",null,"Tanner Pearson","Jack Johnson","Evgeni Malkin"]
[null,"2018-11-19",2,"10:39:00","BUF",null,"Zach Bogosian","Jeff Skinner","Jack Eichel"]
[null,"2018-11-19",2,"18:12:00","BUF",null,"Casey Nelson","Kyle Okposo","Conor Sheary"]
[null,"2018-11-19",3,"11:12:00","BUF",null,"Casey Mittelstadt","Kyle Okposo","Zach Bogosian"]
[null,"2018-11-19",4,"00:45:00","BUF",null,"Jack Eichel","Rasmus Ristolainen"]
[null,"2018-11-21",1,"03:58:00","PIT",null,"Jake Guentzel","Sidney Crosby","Jamie Oleksiak"]
[null,"2018-11-21",1,"06:06:00","PIT","PP","Evgeni Malkin","Kris Letang","Phil Kessel"]
[null,"2018-11-21",1,"10:04:00","PIT",null,"Sidney Crosby","Jake Guentzel","Patric Hornqvist"]
[null,"2018-11-21",2,"03:20:00","PIT",null,"Patric Hornqvist","Olli Maatta","Sidney Crosby"]
[null,"2018-11-21",2,"08:52:00","PIT",null,"Tanner Pearson","Derek Grant"]
[null,"2018-11-21",3,"07:55:00","DAL",null,"Roope Hintz","Alexander Radulov","Mattias Janmark"]
[null,"2018-11-23",2,"06:09:00","PIT","PP","Evgeni Malkin","Kris Letang","Phil Kessel"]
[null,"2018-11-23",2,"13:40:00","BOS",null,"Jake DeBrusk","David Krejci","Kevan Miller"]
[null,"2018-11-23",4,"01:57:00","BOS",null,"Joakim Nordstrom","Brad Marchand","David Pastrnak"]
[null,"2018-11-24",1,"05:14:00","CBJ",null,"Scott Harrington","Boone Jenner","Nick Foligno"]
[null,"2018-11-24",1,"05:59:00","PIT",null,"Tanner Pearson","Phil Kessel","Evgeni Malkin"]
[null,"2018-11-24",1,"07:27:00","PIT",null,"Jake Guentzel","Sidney Crosby","Kris Letang"]
[null,"2018-11-24",1,"16:31:00","PIT",null,"Jake Guentzel","Sidney Crosby","Kris Letang"]
[null,"2018-11-24",2,"13:04:00","CBJ",null,"Cam Atkinson","Brandon Dubinsky"]
[null,"2018-11-24",2,"15:54:00","PIT",null,"Jake Guentzel","Dominik Simon","Kris Letang"]
[null,"2018-11-27",1,"07:01:00","WPG","SH","Brandon Tanev","Ben Chiarot","Adam Lowry"]
[null,"2018-11-27",1,"18:13:00","PIT",null,"Sidney Crosby","Dominik Simon","Jake Guentzel"]
[null,"2018-11-27",2,"00:39:00","WPG",null,"Mark Scheifele","Blake Wheeler","Nikolaj Ehlers"]
[null,"2018-11-27",2,"04:40:00","PIT",null,"Riley Sheahan","Derek Grant","Jamie Oleksiak"]
[null,"2018-11-27",2,"16:00:00","WPG",null,"Mark Scheifele","Blake Wheeler","Nikolaj Ehlers"]
[null,"2018-11-27",3,"05:08:00","PIT",null,"Derek Grant","Garrett Wilson","Olli Maatta"]
[null,"2018-11-27",3,"14:48:00","PIT",null,"Zach Aston-Reese","Phil Kessel","Kris Letang"]
[null,"2018-11-28",1,"11:19:00","COL",null,"Samuel Girard","Mikko Rantanen","Nathan MacKinnon"]
[null,"2018-11-28",2,"05:13:00","COL",null,"Erik Johnson","Sven Andrighetto"]
[null,"2018-11-28",2,"07:52:00","COL",null,"Colin Wilson","Nathan MacKinnon","Tyson Jost"]
[null,"2018-11-28",2,"19:08:00","PIT",null,"Sidney Crosby","Jake Guentzel"]
[null,"2018-11-28",2,"19:50:00","PIT","PP","Sidney Crosby"]
[null,"2018-11-28",3,"04:43:00","PIT",null,"Sidney Crosby","Dominik Simon","Juuso Riikola"]
[null,"2018-11-28",3,"10:05:00","COL",null,"Gabriel Landeskog","Nathan MacKinnon","Mikko Rantanen"]
[null,"2018-11-28",3,"19:31:00","COL","EN","Nathan MacKinnon","Gabriel Landeskog"]
[null,"2018-11-28",3,"19:44:00","COL",null,"Carl Soderberg","Matt Calvert","Matthew Nieto"]
[null,"2018-12-01",1,"00:39:00","PIT",null,"Sidney Crosby","Jake Guentzel","Brian Dumoulin"]
[null,"2018-12-01",1,"05:42:00","PHI",null,"Travis Konecny","Robert Hagg","Andrew MacDonald"]
[null,"2018-12-01",2,"05:49:00","PIT",null,"Riley Sheahan","Bryan Rust"]
[null,"2018-12-01",2,"06:52:00","PHI",null,"Claude Giroux","Jakub Voracek","Andrew MacDonald"]
[null,"2018-12-01",3,"00:51:00","PHI","SH","Dale Weise","Scott Laughton","Andrew MacDonald"]
[null,"2018-12-01",3,"19:38:00","PHI","EN","Jakub Voracek","Sean Couturier"]
[null,"2018-12-04",1,"02:46:00","PIT",null,"Jake Guentzel","Kris Letang","Brian Dumoulin"]
[null,"2018-12-04",1,"06:52:00","PIT",null,"Evgeni Malkin","Tanner Pearson","Patric Hornqvist"]
[null,"2018-12-04",1,"07:27:00","PIT",null,"Derick Brassard","Olli Maatta","Zach Aston-Reese"]
[null,"2018-12-04",2,"08:16:00","COL","PP","Tyson Barrie","Mikko Rantanen","Gabriel Landeskog"]
[null,"2018-12-04",2,"09:32:00","COL",null,"Carl Soderberg","Matt Calvert","Ian Cole"]
[null,"2018-12-04",2,"13:17:00","COL","SH","Matthew Nieto","Gabriel Bourque"]
[null,"2018-12-04",3,"06:11:00","PIT","PP","Patric Hornqvist","Kris Letang","Phil Kessel"]
[null,"2018-12-04",3,"07:32:00","PIT",null,"Patric Hornqvist","Evgeni Malkin"]
[null,"2018-12-04",3,"08:58:00","PIT",null,"Patric Hornqvist"]
[null,"2018-12-06",1,"08:34:00","PIT",null,"Kris Letang","Derick Brassard","Phil Kessel"]
[null,"2018-12-06",1,"17:43:00","NYI","SH","Brock Nelson","Tom Kuhnhackl","Thomas Hickey"]
[null,"2018-12-06",1,"19:31:00","PIT",null,"Kris Letang","Bryan Rust","Brian Dumoulin"]
[null,"2018-12-06",2,"07:21:00","PIT",null,"Riley Sheahan","Evgeni Malkin","Jamie Oleksiak"]
[null,"2018-12-06",2,"12:09:00","PIT","PP","Phil Kessel","Sidney Crosby","Jake Guentzel"]
[null,"2018-12-06",2,"17:37:00","PIT",null,"Phil Kessel","Sidney Crosby","Jake Guentzel"]
[null,"2018-12-06",3,"04:23:00","NYI",null,"Anders Lee","Ryan Pulock"]
[null,"2018-12-06",3,"13:00:00","PIT",null,"Sidney Crosby","Phil Kessel","Jake Guentzel"]
[null,"2018-12-08",1,"04:24:00","OTT",null,"Thomas Chabot","Mark Stone"]
[null,"2018-12-08",2,"03:27:00","PIT",null,"Jean-Sebastien Dea"]
[null,"2018-12-08",4,"01:20:00","OTT","PP","Ryan Dzingel","Mark Stone","Thomas Chabot"]
[null,"2018-12-10",2,"06:32:00","NYI",null,"Anthony Beauvillier","Josh Bailey","Mathew Barzal"]
[null,"2018-12-10",3,"02:13:00","PIT",null,"Derick Brassard","Jake Guentzel"]
[null,"2018-12-12",1,"14:14:00","CHI",null,"Andreas Martinsen","Carl Dahlstrom","Marcus Kruger"]
[null,"2018-12-12",1,"17:51:00","CHI",null,"Brent Seabrook","Jonathan Toews"]
[null,"2018-12-12",1,"18:40:00","PIT",null,"Bryan Rust"]
[null,"2018-12-12",2,"05:46:00","PIT",null,"Bryan Rust","Derek Grant"]
[null,"2018-12-12",2,"15:28:00","CHI","PP","Alex DeBrincat","Patrick Kane","Brent Seabrook"]
[null,"2018-12-12",2,"19:03:00","PIT",null,"Bryan Rust","Olli Maatta","Zach Aston-Reese"]
[null,"2018-12-12",3,"03:49:00","CHI",null,"Marcus Kruger","Andreas Martinsen","Duncan Keith"]
[null,"2018-12-12",3,"18:58:00","CHI","EN","Jonathan Toews","Brandon Saad"]
[null,"2018-12-12",3,"19:39:00","CHI","EN","Brandon Saad","Jonathan Toews"]
[null,"2018-12-14",1,"17:48:00","PIT",null,"Derek Grant","Matt Cullen","Garrett Wilson"]
[null,"2018-12-14",2,"01:56:00","PIT",null,"Phil Kessel","Evgeni Malkin","Zach Aston-Reese"]
[null,"2018-12-14",2,"11:53:00","BOS",null,"Brandon Carlo","Chris Wagner","Sean Kuraly"]
[null,"2018-12-14",2,"19:01:00","PIT","SH","Zach Aston-Reese","Riley Sheahan","Brian Dumoulin"]
[null,"2018-12-14",3,"07:08:00","BOS",null,"Chris Wagner","Charlie McAvoy","Sean Kuraly"]
[null,"2018-12-14",3,"08:02:00","BOS",null,"David Krejci","David Pastrnak","Brad Marchand"]
[null,"2018-12-14",3,"10:47:00","PIT",null,"Jake Guentzel","Kris Letang","Sidney Crosby"]
[null,"2018-12-14",3,"19:54:00","PIT","EN","Zach Aston-Reese","Sidney Crosby","Jack Johnson"]
[null,"2018-12-15",1,"06:58:00","PIT","SH","Matt Cullen","Bryan Rust","Jack Johnson"]
[null,"2018-12-15",1,"13:04:00","PIT",null,"Bryan Rust","Sidney Crosby","Jake Guentzel"]
[null,"2018-12-15",2,"03:22:00","LAK",null,"Jake Muzzin","Anze Kopitar","Alex Iafallo"]
[null,"2018-12-15",2,"08:29:00","PIT",null,"Tanner Pearson"]
[null,"2018-12-15",2,"10:06:00","LAK",null,"Matt Luff","Austin Wagner","Drew Doughty"]
[null,"2018-12-15",3,"12:30:00","LAK","PP","Alex Iafallo","Adrian Kempe","Jake Muzzin"]
[null,"2018-12-15",4,"03:59:00","PIT","PP","Phil Kessel","Evgeni Malkin","Olli Maatta"]
[null,"2018-12-17",1,"09:38:00","PIT","PP","Evgeni Malkin","Kris Letang","Phil Kessel"]
[null,"2018-12-17",1,"14:32:00","PIT",null,"Bryan Rust","Sidney Crosby"]
[null,"2018-12-17",2,"02:07:00","ANA","PP","Adam Henrique","Nick Ritchie","Daniel Sprong"]
[null,"2018-12-17",2,"05:33:00","ANA",null,"Kiefer Sherwood","Carter Rowney","Josh Manson"]
[null,"2018-12-17",2,"18:47:00","ANA",null,"Ondrej Kase","Ryan Getzlaf"]
[null,"2018-12-17",3,"19:11:00","ANA","EN","Ryan Getzlaf","Adam Henrique","Pontus Aberg"]
[null,"2018-12-19",2,"06:38:00","WSH",null,"Lars Eller","Tom Wilson"]
[null,"2018-12-19",2,"09:15:00","PIT","PP","Sidney Crosby","Evgeni Malkin","Kris Letang"]
[null,"2018-12-19",2,"18:58:00","PIT",null,"Bryan Rust","Jake Guentzel","Sidney Crosby"]
[null,"2018-12-20",1,"07:13:00","MIN",null,"Jordan Greenway","Charlie Coyle","Jonas Brodin"]
[null,"2018-12-20",1,"13:30:00","PIT",null,"Bryan Rust","Jake Guentzel"]
[null,"2018-12-20",3,"08:12:00","PIT",null,"Bryan Rust","Jake Guentzel"]
[null,"2018-12-22",1,"08:41:00","PIT",null,"Kris Letang","Sidney Crosby","Bryan Rust"]
[null,"2018-12-22",2,"03:00:00","PIT",null,"Jake Guentzel","Sidney Crosby","Bryan Rust"]
[null,"2018-12-22",2,"19:09:00","PIT",null,"Jake Guentzel","Sidney Crosby","Phil Kessel"]
[null,"2018-12-27",1,"11:49:00","DET",null,"Dylan Larkin","Gustav Nyquist","Justin Abdelkader"]
[null,"2018-12-27",2,"07:12:00","PIT","PP","Phil Kessel","Sidney Crosby","Kris Letang"]
[null,"2018-12-27",2,"08:26:00","PIT",null,"Derick Brassard","Phil Kessel","Tanner Pearson"]
[null,"2018-12-27",2,"18:58:00","PIT","PP","Phil Kessel","Evgeni Malkin","Sidney Crosby"]
[null,"2018-12-27",3,"04:45:00","DET",null,"Andreas Athanasiou","Michael Rasmussen","Luke Glendening"]
[null,"2018-12-27",3,"05:55:00","PIT",null,"Patric Hornqvist","Jack Johnson","Marcus Pettersson"]
[null,"2018-12-27",3,"17:35:00","PIT","EN","Derick Brassard","Evgeni Malkin"]
[null,"2018-12-29",1,"00:48:00","PIT","PP","Sidney Crosby","Patric Hornqvist","Phil Kessel"]
[null,"2018-12-29",2,"05:13:00","PIT","PP","Juuso Riikola","Tanner Pearson","Derick Brassard"]
[null,"2018-12-29",2,"07:17:00","PIT",null,"Zach Aston-Reese","Kris Letang","Sidney Crosby"]
[null,"2018-12-29",2,"09:25:00","PIT","PP","Patric Hornqvist","Kris Letang","Phil Kessel"]
[null,"2018-12-29",2,"14:36:00","STL",null,"David Perron","Ryan O'Reilly","Alex Steen"]
[null,"2018-12-29",3,"03:05:00","PIT",null,"Jake Guentzel","Brian Dumoulin","Sidney Crosby"]
[null,"2018-12-29",3,"03:38:00","PIT","PP","Evgeni Malkin","Phil Kessel","Kris Letang"]
[null,"2018-12-31",1,"05:27:00","MIN","PP","Mikko Koivu","Nino Niederreiter","Charlie Coyle"]
[null,"2018-12-31",1,"15:43:00","PIT","PP","Sidney Crosby","Phil Kessel","Kris Letang"]
[null,"2018-12-31",1,"19:39:00","PIT",null,"Phil Kessel","Sidney Crosby","Zach Aston-Reese"]
[null,"2018-12-31",2,"10:19:00","PIT",null,"Riley Sheahan","Phil Kessel","Matt Cullen"]
[null,"2018-12-31",3,"15:55:00","MIN",null,"Zach Parise","Mikko Koivu","Mikael Granlund"]
[null,"2019-01-02",2,"06:29:00","PIT",null,"Zach Aston-Reese","Matt Cullen"]
[null,"2019-01-02",2,"11:11:00","PIT",null,"Jake Guentzel","Sidney Crosby","Marcus Pettersson"]
[null,"2019-01-02",2,"12:20:00","PIT",null,"Kris Letang"]
[null,"2019-01-02",2,"12:46:00","NYR",null,"Ryan Strome","Brady Skjei","Adam McQuaid"]
[null,"2019-01-02",2,"15:45:00","PIT",null,"Dominik Simon","Evgeni Malkin","Patric Hornqvist"]
[null,"2019-01-02",3,"01:03:00","PIT",null,"Evgeni Malkin","Patric Hornqvist","Dominik Simon"]
[null,"2019-01-02",3,"01:22:00","NYR",null,"Pavel Buchnevich","Fredrik Claesson","Kevin Shattenkirk"]
[null,"2019-01-02",3,"04:40:00","PIT","PP","Tanner Pearson","Kris Letang","Jake Guentzel"]
[null,"2019-01-02",3,"13:56:00","PIT",null,"Sidney Crosby"]
[null,"2019-01-04",1,"14:19:00","PIT","PP","Olli Maatta","Marcus Pettersson","Jake Guentzel"]
[null,"2019-01-04",1,"14:52:00","PIT",null,"Matt Cullen","Zach Aston-Reese","Jack Johnson"]
[null,"2019-01-04",2,"14:39:00","PIT",null,"Dominik Simon","Evgeni Malkin"]
[null,"2019-01-04",3,"16:38:00","PIT","EN","Kris Letang","Sidney Crosby","Matt Cullen"]
[null,"2019-01-06",1,"02:43:00","PIT",null,"Patric Hornqvist","Evgeni Malkin","Dominik Simon"]
[null,"2019-01-06",1,"04:33:00","PIT",null,"Jake Guentzel","Kris Letang","Bryan Rust"]
[null,"2019-01-06",1,"16:23:00","CHI","PP","Alex DeBrincat","Patrick Kane","Erik Gustafsson"]
[null,"2019-01-06",2,"06:46:00","CHI",null,"Chris Kunitz","Marcus Kruger","Carl Dahlstrom"]
[null,"2019-01-06",2,"09:49:00","PIT",null,"Derick Brassard","Phil Kessel","Marcus Pettersson"]
[null,"2019-01-06",2,"16:59:00","CHI",null,"Duncan Keith","Brent Seabrook","Patrick Kane"]
[null,"2019-01-06",3,"01:48:00","CHI",null,"Dylan Strome","Patrick Kane","Jonathan Toews"]
[null,"2019-01-06",3,"19:33:00","CHI","EN","Jonathan Toews"]
[null,"2019-01-08",1,"01:29:00","PIT",null,"Tanner Pearson","Marcus Pettersson","Patric Hornqvist"]
[null,"2019-01-08",1,"03:03:00","PIT",null,"Bryan Rust","Jake Guentzel","Sidney Crosby"]
[null,"2019-01-08",2,"03:04:00","PIT","SH","Bryan Rust","Matt Cullen","Brian Dumoulin"]
[null,"2019-01-08",2,"08:56:00","PIT","SH","Riley Sheahan"]
[null,"2019-01-08",2,"19:16:00","FLA",null,"Aleksander Barkov","Aaron Ekblad","Evgenii Dadonov"]
[null,"2019-01-08",3,"13:41:00","PIT",null,"Sidney Crosby","Evgeni Malkin","Marcus Pettersson"]
[null,"2019-01-11",1,"01:27:00","ANA",null,"Nick Ritchie","Ondrej Kase","Adam Henrique"]
[null,"2019-01-11",1,"07:41:00","ANA",null,"Ryan Getzlaf","Andrew Cogliano"]
[null,"2019-01-11",1,"12:23:00","ANA",null,"Daniel Sprong","Rickard Rakell","Ryan Getzlaf"]
[null,"2019-01-11",2,"00:59:00","PIT",null,"Evgeni Malkin","Phil Kessel","Kris Letang"]
[null,"2019-01-11",2,"04:54:00","PIT",null,"Jake Guentzel","Brian Dumoulin"]
[null,"2019-01-11",2,"11:24:00","PIT","PP","Jake Guentzel","Phil Kessel","Evgeni Malkin"]
[null,"2019-01-11",2,"14:39:00","ANA","SH","Jakob Silfverberg","Adam Henrique"]
[null,"2019-01-11",3,"09:33:00","PIT",null,"Tanner Pearson","Evgeni Malkin","Dominik Simon"]
[null,"2019-01-11",3,"10:21:00","PIT",null,"Phil Kessel"]
[null,"2019-01-11",3,"16:35:00","PIT",null,"Tanner Pearson","Evgeni Malkin","Marcus Pettersson"]
[null,"2019-01-11",3,"19:02:00","PIT","EN","Jake Guentzel","Sidney Crosby"]
[null,"2019-01-12",1,"05:30:00","PIT","SH","Jake Guentzel","Sidney Crosby","Jack Johnson"]
[null,"2019-01-12",1,"10:58:00","LAK",null,"Jeff Carter"]
[null,"2019-01-12",2,"08:47:00","LAK",null,"Alex Iafallo","Jeff Carter","Jake Muzzin"]
[null,"2019-01-12",2,"16:05:00","LAK","SH","Anze Kopitar","Jeff Carter"]
[null,"2019-01-12",3,"00:49:00","LAK",null,"Brendan Leipsic","Ilya Kovalchuk","Jake Muzzin"]
[null,"2019-01-12",3,"09:20:00","PIT","PP","Jake Guentzel","Phil Kessel","Evgeni Malkin"]
[null,"2019-01-12",3,"19:13:00","LAK","EN","Anze Kopitar","Dustin Brown"]
[null,"2019-01-15",1,"10:17:00","PIT",null,"Kris Letang","Brian Dumoulin"]
[null,"2019-01-15",1,"12:00:00","SJS",null,"Marcus Sorensen","Erik Karlsson","Brenden Dillon"]
[null,"2019-01-15",1,"14:05:00","SJS",null,"Tomas Hertl","Evander Kane","Brenden Dillon"]
[null,"2019-01-15",2,"03:39:00","SJS",null,"Joe Thornton","Joe Pavelski","Radim Simek"]
[null,"2019-01-15",3,"02:06:00","SJS",null,"Tomas Hertl","Justin Braun","Evander Kane"]
[null,"2019-01-15",3,"18:10:00","PIT",null,"Derick Brassard","Tanner Pearson","Bryan Rust"]
[null,"2019-01-15",3,"19:35:00","SJS","EN","Tomas Hertl","Evander Kane"]
[null,"2019-01-18",1,"12:51:00","ARI","PP","Clayton Keller","Oliver Ekman-Larsson","Conor Garland"]
[null,"2019-01-18",2,"04:58:00","PIT","PP","Juuso Riikola","Marcus Pettersson","Dominik Simon"]
[null,"2019-01-18",2,"05:38:00","PIT",null,"Jake Guentzel","Matt Cullen","Garrett Wilson"]
[null,"2019-01-18",3,"14:34:00","ARI",null,"Derek Stepan","Richard Panik","Niklas Hjalmarsson"]
[null,"2019-01-18",4,"04:10:00","PIT","PP","Phil Kessel","Sidney Crosby","Evgeni Malkin"]
[null,"2019-02-02",1,"10:01:00","PIT","PP","Sidney Crosby","Kris Letang"]
[null,"2019-02-02",1,"13:20:00","PIT",null,"Teddy Blueger","Garrett Wilson","Olli Maatta"]
[null,"2019-02-02",1,"17:25:00","TOR",null,"Auston Matthews","Travis Dermott","Jake Gardiner"]
[null,"2019-02-02",2,"09:36:00","TOR",null,"Travis Dermott","Jake Gardiner","Patrick Marleau"]
[null,"2019-02-02",2,"16:06:00","TOR",null,"Zach Hyman","Morgan Rielly","Mitch Marner"]
[null,"2019-02-05",1,"19:15:00","CAR",null,"Jordan Martinook","Brock McGinn","Jaccob Slavin"]
[null,"2019-02-05",2,"12:58:00","CAR",null,"Brett Pesce","Justin Williams","Jordan Martinook"]
[null,"2019-02-05",3,"18:29:00","CAR","EN","Micheal Ferland","Lucas Wallmark"]
[null,"2019-02-05",3,"19:18:00","CAR",null,"Andrei Svechnikov","Trevor van Riemsdyk"]
[null,"2019-02-07",1,"05:22:00","FLA","PP","Evgenii Dadonov","Mike Matheson","Derick Brassard"]
[null,"2019-02-07",2,"13:51:00","PIT","SH","Jared McCann","Kris Letang","Brian Dumoulin"]
[null,"2019-02-07",2,"17:32:00","FLA",null,"Colton Sceviour","Aleksander Barkov","Riley Sheahan"]
[null,"2019-02-07",3,"08:17:00","PIT",null,"Marcus Pettersson","Kris Letang","Jake Guentzel"]
[null,"2019-02-07",4,"04:14:00","FLA",null,"Mike Matheson","Jonathan Huberdeau","Aleksander Barkov"]
[null,"2019-02-09",1,"13:36:00","PIT",null,"Garrett Wilson","Teddy Blueger","Matt Cullen"]
[null,"2019-02-09",1,"15:02:00","TBL",null,"Yanni Gourde","Brayden Point","Victor Hedman"]
[null,"2019-02-09",1,"15:59:00","TBL",null,"Erik Cernak","Cedric Paquette","Braydon Coburn"]
[null,"2019-02-09",2,"07:42:00","TBL","SH","Anthony Cirelli","Alex Killorn","Ryan McDonagh"]
[null,"2019-02-09",2,"08:31:00","PIT",null,"Jared McCann","Bryan Rust"]
[null,"2019-02-09",2,"15:04:00","PIT",null,"Bryan Rust","Jake Guentzel"]
[null,"2019-02-09",3,"04:54:00","TBL",null,"Tyler Johnson","Ondrej Palat","Steven Stamkos"]
[null,"2019-02-09",3,"14:03:00","TBL",null,"J.T. Miller","Alex Killorn","Anthony Cirelli"]
[null,"2019-02-09",3,"15:22:00","PIT",null,"Tanner Pearson","Sidney Crosby"]
[null,"2019-02-11",1,"08:19:00","PIT",null,"Sidney Crosby","Bryan Rust"]
[null,"2019-02-11",2,"07:04:00","PIT",null,"Nick Bjugstad","Evgeni Malkin","Phil Kessel"]
[null,"2019-02-11",3,"14:46:00","PIT",null,"Jake Guentzel","Kris Letang","Sidney Crosby"]
[null,"2019-02-11",3,"15:26:00","PHI","PP","Jakub Voracek","Shayne Gostisbehere","Claude Giroux"]
[null,"2019-02-11",3,"19:47:00","PIT","SH","Kris Letang","Sidney Crosby"]
[null,"2019-02-13",1,"04:45:00","EDM",null,"Leon Draisaitl","Connor McDavid","Oscar Klefbom"]
[null,"2019-02-13",2,"02:30:00","PIT","SH","Bryan Rust","Matt Cullen","Brian Dumoulin"]
[null,"2019-02-13",2,"06:10:00","PIT",null,"Teddy Blueger","Kris Letang","Sidney Crosby"]
[null,"2019-02-13",3,"19:00:00","PIT","EN","Jared McCann"]
[null,"2019-02-16",1,"07:06:00","CGY",null,"Andrew Mangiapane","Oliver Kylington","Derek Ryan"]
[null,"2019-02-16",1,"17:41:00","PIT",null,"Jake Guentzel","Justin Schultz","Nick Bjugstad"]
[null,"2019-02-16",2,"01:39:00","CGY",null,"Michael Frolik","Matthew Tkachuk","Rasmus Andersson"]
[null,"2019-02-16",2,"03:12:00","CGY",null,"Austin Czarnik","Derek Ryan"]
[null,"2019-02-16",2,"06:52:00","PIT","PP","Sidney Crosby","Evgeni Malkin","Phil Kessel"]
[null,"2019-02-16",2,"16:02:00","CGY",null,"Travis Hamonic","Sean Monahan","Elias Lindholm"]
[null,"2019-02-16",2,"18:31:00","CGY","PP","Sam Bennett","Derek Ryan","Mikael Backlund"]
[null,"2019-02-16",3,"05:42:00","PIT","PP","Evgeni Malkin","Sidney Crosby","Phil Kessel"]
[null,"2019-02-16",3,"14:41:00","PIT","PP","Evgeni Malkin","Kris Letang","Sidney Crosby"]
[null,"2019-02-17",1,"16:11:00","PIT",null,"Kris Letang","Sidney Crosby"]
[null,"2019-02-17",1,"19:20:00","NYR","PP","Mats Zuccarello","Kevin Hayes","Kevin Shattenkirk"]
[null,"2019-02-17",2,"11:41:00","PIT","PP","Marcus Pettersson","Nick Bjugstad","Justin Schultz"]
[null,"2019-02-17",2,"14:09:00","PIT",null,"Brian Dumoulin","Sidney Crosby","Marcus Pettersson"]
[null,"2019-02-17",2,"14:35:00","NYR",null,"Mats Zuccarello","Mika Zibanejad","Chris Kreider"]
[null,"2019-02-17",2,"17:45:00","NYR",null,"Ryan Strome"]
[null,"2019-02-17",3,"04:36:00","PIT",null,"Kris Letang","Sidney Crosby","Jake Guentzel"]
[null,"2019-02-17",3,"07:24:00","PIT",null,"Evgeni Malkin","Phil Kessel","Zach Aston-Reese"]
[null,"2019-02-17",3,"09:55:00","PIT",null,"Evgeni Malkin","Zach Aston-Reese","Phil Kessel"]
[null,"2019-02-17",3,"14:14:00","NYR",null,"Kevin Hayes","Anthony DeAngelo","Marc Staal"]
[null,"2019-02-17",3,"19:42:00","NYR",null,"Mika Zibanejad","Kevin Shattenkirk","Anthony DeAngelo"]
[null,"2019-02-19",1,"02:14:00","NJD",null,"Jesper Bratt","Marcus Johansson","Mirco Mueller"]
[null,"2019-02-19",1,"06:49:00","PIT",null,"Zach Aston-Reese","Sidney Crosby","Brian Dumoulin"]
[null,"2019-02-19",1,"12:12:00","NJD",null,"Marcus Johansson","Mirco Mueller","Jesper Bratt"]
[null,"2019-02-19",1,"18:24:00","PIT","PP","Nick Bjugstad","Marcus Pettersson","Dominik Simon"]
[null,"2019-02-19",2,"10:45:00","PIT",null,"Bryan Rust","Jake Guentzel"]
[null,"2019-02-19",2,"17:29:00","PIT",null,"Chad Ruhwedel","Evgeni Malkin"]
[null,"2019-02-19",3,"15:10:00","NJD",null,"Miles Wood","Damon Severson","Travis Zajac"]
[null,"2019-02-21",1,"00:57:00","SJS","PP","Tomas Hertl","Brent Burns","Kevin Labanc"]
[null,"2019-02-21",1,"10:01:00","SJS","SH","Evander Kane","Brent Burns"]
[null,"2019-02-21",1,"13:19:00","SJS","PP","Tomas Hertl","Kevin Labanc","Joe Pavelski"]
[null,"2019-02-21",3,"16:51:00","SJS","PP","Brent Burns","Erik Karlsson","Joe Thornton"]
[null,"2019-02-26",1,"13:45:00","PIT",null,"Jake Guentzel","Sidney Crosby","Patric Hornqvist"]
[null,"2019-02-26",1,"18:22:00","PIT",null,"Jared McCann","Matt Cullen","Chad Ruhwedel"]
[null,"2019-02-26",2,"01:15:00","PIT",null,"Evgeni Malkin","Zach Aston-Reese","Phil Kessel"]
[null,"2019-02-26",2,"04:55:00","CBJ",null,"Oliver Bjorkstrand","Ryan Dzingel","Scott Harrington"]
[null,"2019-02-26",2,"07:09:00","CBJ","PP","Cam Atkinson","Artemi Panarin","Zach Werenski"]
[null,"2019-02-26",3,"13:27:00","PIT",null,"Jared McCann","Dominik Simon","Justin Schultz"]
[null,"2019-02-26",3,"19:55:00","PIT","EN","Sidney Crosby","Jack Johnson"]
[null,"2019-03-01",1,"03:09:00","BUF",null,"Jack Eichel","Sam Reinhart"]
[null,"2019-03-01",1,"04:05:00","PIT",null,"Nick Bjugstad","Juuso Riikola","Dominik Simon"]
[null,"2019-03-01",1,"12:53:00","BUF","PP","Conor Sheary","Kyle Okposo","Brandon Montour"]
[null,"2019-03-01",2,"17:18:00","PIT","PP","Patric Hornqvist","Justin Schultz","Sidney Crosby"]
[null,"2019-03-01",2,"18:21:00","PIT","PP","Sidney Crosby","Evgeni Malkin","Justin Schultz"]
[null,"2019-03-01",3,"17:28:00","BUF",null,"Brandon Montour","Evan Rodrigues","Conor Sheary"]
[null,"2019-03-01",4,"04:11:00","BUF",null,"Conor Sheary"]
[null,"2019-03-02",1,"00:21:00","PIT",null,"Sidney Crosby","Jake Guentzel","Jared McCann"]
[null,"2019-03-02",1,"04:38:00","PIT","PP","Evgeni Malkin","Sidney Crosby","Phil Kessel"]
[null,"2019-03-02",1,"08:51:00","PIT",null,"Jake Guentzel","Sidney Crosby"]
[null,"2019-03-02",2,"06:24:00","PIT",null,"Jake Guentzel","Sidney Crosby","Erik Gudbranson"]
[null,"2019-03-02",2,"07:20:00","MTL",null,"Brendan Gallagher","Phillip Danault"]
[null,"2019-03-02",3,"18:36:00","PIT","EN","Jared McCann","Marcus Pettersson","Jake Guentzel"]
[null,"2019-03-05",1,"01:45:00","FLA","PP","Henrik Borgström","Mike Hoffman","Aaron Ekblad"]
[null,"2019-03-05",2,"00:16:00","PIT",null,"Jake Guentzel","Jared McCann","Sidney Crosby"]
[null,"2019-03-05",2,"10:01:00","PIT","PP","Sidney Crosby","Phil Kessel","Patric Hornqvist"]
[null,"2019-03-05",2,"17:31:00","FLA",null,"Vincent Trocheck","Mike Hoffman","Frank Vatrano"]
[null,"2019-03-05",4,"02:44:00","PIT",null,"Jake Guentzel","Sidney Crosby"]
[null,"2019-03-07",1,"02:22:00","PIT","PP","Phil Kessel","Evgeni Malkin","Patric Hornqvist"]
[null,"2019-03-07",2,"18:47:00","PIT",null,"Nick Bjugstad","Jared McCann","Justin Schultz"]
[null,"2019-03-07",3,"19:29:00","PIT","EN","Sidney Crosby","Jake Guentzel"]
[null,"2019-03-09",1,"02:31:00","CBJ","","Boone Jenner","Josh Anderson","Nick Foligno"]
[null,"2019-03-09",2,"02:17:00","CBJ","SH","Cam Atkinson"]
[null,"2019-03-09",2,"06:39:00","PIT","","Zach Aston-Reese","Evgeni Malkin","Phil Kessel"]
[null,"2019-03-09",3,"16:59:00","CBJ","","Oliver Bjorkstrand","Ryan Dzingel","Matt Duchene"]
[null,"2019-03-09",3,"18:11:00","CBJ","EN","Cam Atkinson","Zach Werenski","Seth Jones"]
[null,"2019-03-10",1,"01:33:00","PIT","","Nick Bjugstad","Patric Hornqvist","Dominik Simon"]
[null,"2019-03-10",1,"13:54:00","PIT","SH","Jared McCann","Teddy Blueger"]
[null,"2019-03-10",2,"04:32:00","BOS","PP","David Krejci","Danton Heinen","Brad Marchand"]
[null,"2019-03-10",2,"16:32:00","PIT","PP","Jake Guentzel","Sidney Crosby","Marcus Pettersson"]
[null,"2019-03-10",3,"18:59:00","BOS","","John Moore","Charlie Coyle","Danton Heinen"]
[null,"2019-03-10",3,"19:39:00","PIT","EN","Jared McCann","Jake Guentzel"]
[null,"2019-03-12",1,"19:27:00","WSH","","Jakub Vrana","Nicklas Backstrom","T.J. Oshie"]
[null,"2019-03-12",2,"10:24:00","WSH","","Jakub Vrana","Dmitry Orlov","T.J. Oshie"]
[null,"2019-03-12",2,"12:37:00","PIT","","Jake Guentzel","Jared McCann"]
[null,"2019-03-12",2,"13:24:00","PIT","","Sidney Crosby","Justin Schultz"]
[null,"2019-03-12",2,"14:25:00","PIT","PP","Sidney Crosby","Phil Kessel","Evgeni Malkin"]
[null,"2019-03-12",3,"11:56:00","PIT","PP","Phil Kessel","Justin Schultz","Evgeni Malkin"]
[null,"2019-03-12",3,"14:02:00","WSH","PP","John Carlson","Alex Ovechkin","Nicklas Backstrom"]
[null,"2019-03-12",3,"19:04:00","PIT","EN","Jared McCann"]
[null,"2019-03-14",2,"06:40:00","PIT","PP","Phil Kessel","Sidney Crosby","Jake Guentzel"]
[null,"2019-03-14",2,"15:07:00","PIT","","Brian Dumoulin","Evgeni Malkin","Teddy Blueger"]
[null,"2019-03-14",2,"17:08:00","PIT","PP","Patric Hornqvist","Phil Kessel","Sidney Crosby"]
[null,"2019-03-14",3,"10:07:00","PIT","","Nick Bjugstad"]
[null,"2019-03-14",3,"18:02:00","PIT","PP","Jake Guentzel","Zach Trotman","Nick Bjugstad"]
[null,"2019-03-16",1,"04:56:00","STL","","Oskar Sundqvist","Jaden Schwartz","Colton Parayko"]
[null,"2019-03-16",1,"13:34:00","STL","","Vince Dunn","Ryan O'Reilly","David Perron"]
[null,"2019-03-16",2,"01:31:00","STL","","Pat Maroon","Robert Thomas","Tyler Bozak"]
[null,"2019-03-16",2,"02:41:00","STL","","Jay Bouwmeester","Pat Maroon","Zach Sanford"]
[null,"2019-03-16",2,"09:53:00","PIT","","Dominik Simon"]
[null,"2019-03-16",3,"13:57:00","STL","PP","Vince Dunn","Colton Parayko","Robert Thomas"]
[null,"2019-03-17",3,"02:07:00","PIT","","Teddy Blueger","Phil Kessel","Marcus Pettersson"]
[null,"2019-03-17",3,"19:41:00","PHI","","James van Riemsdyk","Travis Konecny","Sean Couturier"]
[null,"2019-03-17",4,"04:56:00","PHI","","Sean Couturier","Shayne Gostisbehere","Claude Giroux"]
[null,"2019-03-19",2,"09:38:00","CAR","","Brock McGinn","Justin Faulk"]
[null,"2019-03-19",2,"10:16:00","PIT","","Jake Guentzel","Sidney Crosby","Bryan Rust"]
[null,"2019-03-19",3,"15:23:00","PIT","","Kris Letang","Bryan Rust","Jake Guentzel"]
[null,"2019-03-19",4,"18:04:00","CAR","","Justin Williams","Dougie Hamilton","Nino Niederreiter"]
[null,"2019-03-21",2,"05:57:00","PIT","","Bryan Rust","Kris Letang"]
[null,"2019-03-21",4,"16:59:00","NSH","","Ryan Ellis"]
[null,"2019-03-23",1,"15:25:00","PIT","PP","Jake Guentzel","Phil Kessel","Kris Letang"]
[null,"2019-03-23",2,"01:03:00","DAL","","Tyler Seguin","Alexander Radulov","Roope Hintz"]
[null,"2019-03-23",2,"14:41:00","PIT","","Jared McCann","Phil Kessel"]
[null,"2019-03-23",2,"18:40:00","DAL","","Andrew Cogliano","John Klingberg","Valeri Nichushkin"]
[null,"2019-03-23",3,"04:20:00","PIT","SH","Jared McCann","Teddy Blueger","Erik Gudbranson"]
[null,"2019-03-25",1,"08:25:00","NYR","","Brendan Lemieux","Pavel Buchnevich","Mika Zibanejad"]
[null,"2019-03-25",1,"15:15:00","NYR","PP","Vinni Lettieri","Anthony DeAngelo","Filip Chytil"]
[null,"2019-03-25",1,"15:41:00","PIT","","Nick Bjugstad","Marcus Pettersson","Dominik Simon"]
[null,"2019-03-25",2,"01:01:00","PIT","PP","Justin Schultz","Sidney Crosby","Phil Kessel"]
[null,"2019-03-25",2,"07:17:00","PIT","","Matt Cullen","Garrett Wilson"]
[null,"2019-03-25",2,"13:12:00","PIT","SH","Teddy Blueger","Bryan Rust","Marcus Pettersson"]
[null,"2019-03-25",3,"07:38:00","PIT","","Teddy Blueger","Jared McCann","Phil Kessel"]
[null,"2019-03-29",1,"01:35:00","NSH","","Craig Smith","Matt Irwin"]
[null,"2019-03-29",2,"17:36:00","NSH","PP","Viktor Arvidsson","P.K. Subban","Ryan Johansen"]
[null,"2019-03-29",3,"17:28:00","NSH","","P.K. Subban","Craig Smith","Mattias Ekholm"]
[null,"2019-03-29",3,"18:57:00","PIT","","Nick Bjugstad","Phil Kessel","Jake Guentzel"]
[null,"2019-03-31",1,"10:45:00","PIT","","Garrett Wilson","Matt Cullen","Adam Johnson"]
[null,"2019-03-31",1,"18:45:00","PIT","","Matt Cullen","Adam Johnson","Brian Dumoulin"]
[null,"2019-03-31",3,"00:46:00","PIT","","Patric Hornqvist","Dominik Simon","Nick Bjugstad"]
[null,"2019-03-31",3,"12:12:00","CAR","PP","Jaccob Slavin","Andrei Svechnikov","Micheal Ferland"]

{"sheet":"Teams","index":7,"n_rows":32,"n_cols":17,"rows_kept":32,"cut":false,"hidden":true,"merged":[]}
["Team","TAbrv","Conference","Division","Logo"]
["Anaheim Ducks","ANA","Western","Pacific"]
["Arizona Coyotes","ARI","Western","Pacific"]
["Boston Bruins","BOS","Eastern","Atlantic",null,null,"ANA",null,"CHI",null,"FLA",null,"NYI",null,"STL"]
["Buffalo Sabres","BUF","Eastern","Atlantic"]
["Calgary Flames","CGY","Western","Pacific"]
["Carolina Hurricanes","CAR","Eastern","Metropolitan"]
["Chicago Blackhawks","CHI","Western","Central",null,null,"ARI",null,"COL",null,"LAK",null,"NYR",null,"TBL"]
["Colorado Avalanche","COL","Western","Central"]
["Columbus Blue Jackets","CBJ","Eastern","Metropolitan"]
["Dallas Stars","DAL","Western","Central"]
["Detroit Red Wings","DET","Eastern","Atlantic",null,null,"BOS",null,"CBJ",null,"MIN",null,"OTT",null,"TOR"]
["Edmonton Oilers","EDM","Western","Pacific"]
["Florida Panthers","FLA","Eastern","Metropolitan"]
["Los Angeles Kings","LAK","Western","Pacific"]
["Minnesota Wild","MIN","Western","Central",null,null,"BUF",null,"DAL",null,"MTL",null,"PHI",null,"VAN"]
["Montreal Canadiens","MTL","Eastern","Atlantic"]
["Nashville Predators","NSH","Western","Central"]
["New Jersey Devils","NJD","Eastern","Metropolitan"]
["New York Islanders","NYI","Eastern","Metropolitan",null,null,"CGY",null,"DET",null,"NSH",null,"PIT",null,"VEG"]
["New York Rangers","NYR","Eastern","Metropolitan"]
["Ottawa Senators","OTT","Eastern","Atlantic"]
["Philadelphia Flyers","PHI","Eastern","Metropolitan"]
["Pittsburgh Penguins","PIT","Eastern","Metropolitan",null,null,"CAR",null,"EDM",null,"NJD",null,"SJS",null,"WSH",null,"WPG"]
["San Jose Sharks","SJS","Western","Pacific"]
["St. Louis Blues","STL","Western","Central"]
["Tampa Bay Lightning","TBL","Eastern","Atlantic"]
["Toronto Maple Leafs","TOR","Eastern","Atlantic"]
["Vancouver Canucks","VAN","Western","Pacific"]
["Vegas Golden Knights","VEG","Western","Pacific"]
["Washington Capitals","WSH","Eastern","Metropolitan"]
["Winnipeg Jets","WPG","Western","Pacific"]

{"sheet":"All Penalties 2018_19","index":8,"n_rows":506,"n_cols":8,"rows_kept":506,"cut":false,"hidden":true,"merged":[[0,1,0,7]]}
[null,"Penalty Statistics"]
[null,"Date","Period","Time","Team","Player","Penalty","Minutes"]
[null,"2018-10-04",1,"05:47:00","WSH","Matt Niskanen","Interference",2]
[null,"2018-10-04",1,"18:11:00","PIT","Carl Hagelin","Interference",2]
[null,"2018-10-04",2,"04:13:00","PIT","Phil Kessel","Slashing",2]
[null,"2018-10-04",2,"07:24:00","WSH","Lars Eller","Hooking",2]
[null,"2018-10-04",3,"00:39:00","WSH","Brett Connolly","Tripping",2]
[null,"2018-10-04",3,"03:53:00","WSH","Madison Bowey","Hooking",2]
[null,"2018-10-04",3,"08:40:00","WSH","Jakub Vrana","Slashing",2]
[null,"2018-10-04",4,"00:19:00","WSH","Evgeny Kuznetsov","Hooking",2]
[null,"2018-10-06",1,"01:59:00","MTL","Jesperi Kotkaniemi","Slashing ",2]
[null,"2018-10-06",1,"06:25:00","PIT","Dominik Simon","Delay of game ",2]
[null,"2018-10-06",2,"07:32:00","MTL","Xavier Ouellet","Tripping ",2]
[null,"2018-10-06",2,"13:16:00","MTL","Jesperi Kotkaniemi","Hooking ",2]
[null,"2018-10-06",2,"18:09:00","PIT","Carl Hagelin","Slashing ",2]
[null,"2018-10-06",3,"18:45:00","PIT","Derick Brassard","Hooking ",2]
[null,"2018-10-11",1,"01:40:00","PIT","Dominik Simon","High sticking ",2]
[null,"2018-10-11",1,"17:34:00","VEG","Jon Marchessault","Slashing ",2]
[null,"2018-10-11",3,"14:56:00","PIT","Derick Brassard","Hooking ",2]
[null,"2018-10-13",2,"01:10:00","PIT","Brian Dumoulin","Hooking ",2]
[null,"2018-10-13",2,"08:29:00","PIT","Evgeni Malkin","Hooking ",2]
[null,"2018-10-13",2,"10:19:00","MTL","Jordie Benn","Slashing ",2]
[null,"2018-10-13",2,"17:28:00","PIT","Dominik Simon","Tripping ",2]
[null,"2018-10-13",2,"17:40:00","PIT","Carl Hagelin","Delay of game ",2]
[null,"2018-10-13",2,"20:00:00","MTL","Bench Penalty","Too many men on ice",2]
[null,"2018-10-13",3,"11:01:00","PIT","Evgeni Malkin","Holding ",2]
[null,"2018-10-13",4,"00:47:00","PIT","Bench Penalty","Too many men on ice",2]
[null,"2018-10-16",2,"03:39:00","VAN","Alexander Edler","Delay of game ",2]
[null,"2018-10-16",2,"11:10:00","PIT","Juuso Riikola","Interference ",2]
[null,"2018-10-16",2,"11:10:00","VAN","Jake Virtanen","Slashing ",2]
[null,"2018-10-18",1,"11:36:00","TOR","Bench Penalty","Too many men on ice",2]
[null,"2018-10-18",2,"08:21:00","TOR","Zach Hyman","Tripping ",2]
[null,"2018-10-18",2,"09:44:00","PIT","Matt Murray","Delay of game ",2]
[null,"2018-10-23",1,"00:47:00","PIT","Bryan Rust","Delay of game ",2]
[null,"2018-10-23",1,"10:11:00","EDM","Ryan Strome","Interference ",2]
[null,"2018-10-23",1,"14:29:00","PIT","Jamie Oleksiak","Fighting ",5]
[null,"2018-10-23",1,"14:29:00","EDM","Zack Kassian","Fighting ",5]
[null,"2018-10-23",1,"17:39:00","EDM","Adam Larsson","Slashing ",2]
[null,"2018-10-23",3,"01:36:00","PIT","Carl Hagelin","Tripping ",2]
[null,"2018-10-23",3,"03:38:00","PIT","Olli Maatta","Holding ",2]
[null,"2018-10-23",3,"08:33:00","PIT","Jamie Oleksiak","Tripping ",2]
[null,"2018-10-23",3,"09:51:00","EDM","Kailer Yamamoto","Hooking ",2]
[null,"2018-10-23",3,"14:39:00","PIT","Bench Penalty","Too many men on ice",2]
[null,"2018-10-25",1,"00:53:00","PIT","Kris Letang","Slashing ",2]
[null,"2018-10-25",1,"13:07:00","CGY","Mark Jankowski","Hooking ",2]
[null,"2018-10-25",2,"07:10:00","PIT","Phil Kessel","Slashing ",2]
[null,"2018-10-25",2,"13:47:00","PIT","Evgeni Malkin","Holding ",2]
[null,"2018-10-25",2,"17:40:00","CGY","Michael Stone","Tripping ",2]
[null,"2018-10-27",1,"01:44:00","PIT","Casey DeSmith","Tripping ",2]
[null,"2018-10-27",1,"10:48:00","PIT","Jamie Oleksiak","Holding ",2]
[null,"2018-10-27",2,"00:12:00","VAN","Antoine Roussel","Unsportsmanlike conduct ",2]
[null,"2018-10-27",2,"13:45:00","PIT","Evgeni Malkin","Hooking ",2]
[null,"2018-10-27",2,"17:59:00","VAN","Bo Horvat","Holding ",2]
[null,"2018-10-27",3,"00:20:00","VAN","Antoine Roussel","High Sticking - Double Minor ",4]
[null,"2018-10-27",3,"00:40:00","PIT","Kris Letang","Tripping ",2]
[null,"2018-10-30",1,"06:23:00","NYI","Josh Bailey","Slashing ",2]
[null,"2018-10-30",1,"18:40:00","PIT","Jack Johnson","Holding ",2]
[null,"2018-10-30",2,"03:37:00","NYI","Andrew Ladd","Slashing ",2]
[null,"2018-10-30",2,"10:47:00","PIT","Jake Guentzel","Interference ",2]
[null,"2018-10-30",3,"10:15:00","PIT","Juuso Riikola","Hooking ",2]
[null,"2018-10-30",3,"14:53:00","NYI","Thomas Hickey","Interference ",2]
[null,"2018-11-01",1,"01:34:00","NYI","Leo Komarov","Holding ",2]
[null,"2018-11-01",1,"01:34:00","PIT","Jamie Oleksiak","Roughing ",2]
[null,"2018-11-01",1,"04:30:00","NYI","Mathew Barzal","Hooking ",2]
[null,"2018-11-01",1,"13:18:00","PIT","Jack Johnson","Hooking ",2]
[null,"2018-11-01",2,"12:19:00","PIT","Brian Dumoulin","Holding ",2]
[null,"2018-11-01",2,"12:33:00","NYI","Josh Bailey","Hooking ",2]
[null,"2018-11-01",2,"13:42:00","NYI","Adam Pelech","Interference ",2]
[null,"2018-11-01",3,"11:01:00","NYI","Anders Lee","Slashing ",2]
[null,"2018-11-03",1,"04:46:00","TOR","Patrick Marleau","Hooking ",2]
[null,"2018-11-03",2,"01:21:00","TOR","Igor Ozhiganov","Tripping ",2]
[null,"2018-11-03",2,"03:22:00","TOR","Nazem Kadri","High sticking ",2]
[null,"2018-11-03",2,"09:37:00","PIT","Jamie Oleksiak","Hooking ",2]
[null,"2018-11-03",2,"15:38:00","PIT","Bryan Rust","Roughing ",2]
[null,"2018-11-03",3,"03:32:00","TOR","Igor Ozhiganov","Holding ",2]
[null,"2018-11-03",3,"14:42:00","PIT","Carl Hagelin","Slashing ",2]
[null,"2018-11-03",3,"19:11:00","TOR","Connor Brown","Interference ",2]
[null,"2018-11-05",1,"03:09:00","PIT","Kris Letang","Cross checking ",2]
[null,"2018-11-05",1,"16:55:00","NJD","Taylor Hall","Tripping ",2]
[null,"2018-11-05",2,"07:31:00","PIT","Olli Maatta","Hooking ",2]
[null,"2018-11-05",2,"09:44:00","NJD","Joey Anderson","Slashing ",2]
[null,"2018-11-05",2,"19:08:00","PIT","Patric Hornqvist","High sticking ",2]
[null,"2018-11-05",2,"19:08:00","PIT","Jack Johnson","Roughing ",2]
[null,"2018-11-05",2,"19:08:00","NJD","Mirco Mueller","Roughing ",2]
[null,"2018-11-05",3,"11:27:00","PIT","Evgeni Malkin","Holding ",2]
[null,"2018-11-05",3,"18:20:00","NJD","Brian Boyle","Hooking ",2]
[null,"2018-11-07",1,"02:17:00","PIT","Jamie Oleksiak","Slashing ",2]
[null,"2018-11-07",1,"11:33:00","WSH","Jakub Vrana","Tripping ",2]
[null,"2018-11-07",1,"15:09:00","PIT","Carl Hagelin","Goaltender interference ",2]
[null,"2018-11-07",2,"06:33:00","PIT","Sidney Crosby","Hooking ",2]
[null,"2018-11-07",2,"09:35:00","WSH","Michal Kempny","Tripping ",2]
[null,"2018-11-07",2,"11:27:00","PIT","Jake Guentzel","Tripping ",2]
[null,"2018-11-07",2,"15:05:00","PIT","Evgeni Malkin","Roughing ",2]
[null,"2018-11-07",3,"02:36:00","WSH","Travis Boyd","Holding ",2]
[null,"2018-11-07",3,"03:27:00","PIT","Evgeni Malkin","Match penalty ",10]
[null,"2018-11-10",1,"06:43:00","ARI","Brad Richardson","Slashing ",2]
[null,"2018-11-10",1,"12:49:00","PIT","Phil Kessel","Slashing ",2]
[null,"2018-11-10",1,"19:20:00","PIT","Evgeni Malkin","Slashing ",2]
[null,"2018-11-10",1,"19:20:00","ARI","Brad Richardson","Roughing ",2]
[null,"2018-11-10",2,"14:26:00","PIT","Phil Kessel","High Sticking - Double Minor ",4]
[null,"2018-11-10",2,"17:34:00","ARI","Jordan Oesterle","Holding ",2]
[null,"2018-11-10",3,"11:23:00","PIT","Bryan Rust","Holding ",2]
[null,"2018-11-13",1,"06:04:00","PIT","Evgeni Malkin","Hooking ",2]
[null,"2018-11-13",1,"13:12:00","NJD","Stefan Noesen","High sticking ",2]
[null,"2018-11-13",1,"17:09:00","NJD","Andy Greene","Tripping ",2]
[null,"2018-11-13",2,"04:48:00","NJD","Ben Lovejoy","Delay of game ",2]
[null,"2018-11-13",2,"14:20:00","PIT","Phil Kessel","Roughing ",2]
[null,"2018-11-13",2,"14:20:00","PIT","Phil Kessel","Roughing ",2]
[null,"2018-11-13",2,"14:20:00","NJD","Brett Seney","Roughing ",2]
[null,"2018-11-15",1,"07:04:00","TBL","Nikita Kucherov","Tripping ",2]
[null,"2018-11-15",1,"09:25:00","TBL","Steven Stamkos","Hooking ",2]
[null,"2018-11-15",1,"11:56:00","TBL","Cedric Paquette","Roughing ",2]
[null,"2018-11-15",1,"11:56:00","PIT","Jamie Oleksiak","Roughing ",2]
[null,"2018-11-15",1,"12:05:00","TBL","Mikhail Sergachev","Delay of game ",2]
[null,"2018-11-15",1,"13:11:00","TBL","Ryan Callahan","High sticking ",2]
[null,"2018-11-15",1,"13:11:00","PIT","Kris Letang","High sticking ",2]
[null,"2018-11-15",1,"19:37:00","PIT","Evgeni Malkin","Tripping ",2]
[null,"2018-11-15",1,"19:37:00","PIT","Phil Kessel","Slashing ",2]
[null,"2018-11-15",1,"19:47:00","PIT","Matt Cullen","Tripping ",2]
[null,"2018-11-15",2,"06:27:00","PIT","Garrett Wilson","Goaltender interference ",2]
[null,"2018-11-15",2,"11:18:00","PIT","Evgeni Malkin","Slashing ",2]
[null,"2018-11-15",2,"14:33:00","TBL","Mathieu Joseph","High sticking ",2]
[null,"2018-11-15",2,"16:52:00","PIT","Jamie Oleksiak","Boarding ",2]
[null,"2018-11-15",3,"19:53:00","PIT","Kris Letang","Slashing ",2]
[null,"2018-11-17",1,"05:38:00","OTT","Drake Batherson","Tripping ",2]
[null,"2018-11-17",1,"08:23:00","PIT","Matt Cullen","High sticking ",2]
[null,"2018-11-17",1,"10:49:00","OTT","Magnus Paajarvi","Roughing ",2]
[null,"2018-11-17",2,"02:41:00","PIT","Matt Cullen","Holding ",2]
[null,"2018-11-17",2,"10:23:00","PIT","Evgeni Malkin","Slashing ",2]
[null,"2018-11-17",2,"14:59:00","OTT","Mark Borowiecki","High sticking ",2]
[null,"2018-11-17",2,"18:44:00","OTT","Mark Borowiecki","Roughing ",2]
[null,"2018-11-17",2,"18:44:00","PIT","Jamie Oleksiak","Roughing ",2]
[null,"2018-11-17",2,"18:44:00","OTT","Chris Wideman","Cross checking ",2]
[null,"2018-11-19",1,"04:16:00","PIT","Olli Maatta","High sticking ",2]
[null,"2018-11-19",1,"16:50:00","BUF","Jake McCabe","Boarding ",2]
[null,"2018-11-19",1,"16:50:00","BUF","Jake McCabe","Fighting ",5]
[null,"2018-11-19",1,"16:50:00","PIT","Riley Sheahan","Fighting ",5]
[null,"2018-11-19",2,"05:42:00","BUF","Zach Bogosian","Hooking ",2]
[null,"2018-11-19",2,"07:13:00","BUF","Marco Scandella","High sticking ",2]
[null,"2018-11-19",3,"02:44:00","PIT","Derick Brassard","Hooking ",2]
[null,"2018-11-19",3,"13:40:00","PIT","Chad Ruhwedel","Hooking ",2]
[null,"2018-11-21",1,"05:30:00","DAL","Alexander Radulov","Hooking ",2]
[null,"2018-11-21",2,"00:24:00","DAL","Brett Ritchie","Tripping ",2]
[null,"2018-11-21",2,"04:55:00","DAL","Brett Ritchie","Boarding ",2]
[null,"2018-11-21",2,"05:47:00","PIT","Kris Letang","Tripping ",2]
[null,"2018-11-21",3,"15:54:00","PIT","Jamie Oleksiak","Tripping ",2]
[null,"2018-11-23",2,"05:05:00","BOS","David Krejci","Tripping",2]
[null,"2018-11-23",3,"10:41:00","BOS","Kevan Miller","Delay of game",2]
[null,"2018-11-24",3,"09:47:00","CBJ","Nick Foligno","Slashing",2]
[null,"2018-11-24",3,"17:48:00","PIT","Bryan Rust","Tripping",2]
[null,"2018-11-27",1,"02:29:00","PIT","Brian Dumoulin","Tripping ",2]
[null,"2018-11-27",1,"06:47:00","WPG","Bryan Little","Hooking ",2]
[null,"2018-11-27",1,"15:21:00","PIT","Brian Dumoulin","Tripping ",2]
[null,"2018-11-28",2,"00:49:00","PIT","Sidney Crosby","Holding the stick ",2]
[null,"2018-11-28",2,"01:08:00","COL","Alexander Kerfoot","High sticking ",2]
[null,"2018-11-28",2,"11:58:00","COL","Vladislav Kamenev","Hooking ",2]
[null,"2018-11-28",2,"19:45:00","COL","Patrik Nemeth","Holding ",2]
[null,"2018-11-28",3,"07:38:00","COL","Carl Soderberg","Tripping ",2]
[null,"2018-12-01",1,"01:54:00","PIT","Jamie Oleksiak","Fighting ",5]
[null,"2018-12-01",1,"01:54:00","PHI","Wayne Simmonds","Fighting ",5]
[null,"2018-12-01",1,"18:47:00","PIT","Evgeni Malkin","Unsportsmanlike conduct ",2]
[null,"2018-12-01",1,"18:47:00","PHI","Dale Weise","Unsportsmanlike conduct ",2]
[null,"2018-12-01",2,"10:42:00","PIT","Dominik Simon","Roughing ",2]
[null,"2018-12-01",2,"20:00:00","PHI","Radko Gudas","Roughing ",2]
[null,"2018-12-01",3,"06:34:00","PIT","Kris Letang","Tripping ",2]
[null,"2018-12-01",3,"09:04:00","PIT","Kris Letang","Tripping ",2]
[null,"2018-12-04",1,"12:47:00","PIT","Dominik Simon","Hooking ",2]
[null,"2018-12-04",2,"06:42:00","PIT","Kris Letang","Interference ",2]
[null,"2018-12-04",2,"10:59:00","PIT","Sidney Crosby","Tripping ",2]
[null,"2018-12-04",2,"11:44:00","COL","Mikko Rantanen","Interference ",2]
[null,"2018-12-04",3,"05:47:00","COL","Patrik Nemeth","Slashing ",2]
[null,"2018-12-04",3,"14:48:00","COL","J.T. Compher","Roughing ",2]
[null,"2018-12-04",3,"14:48:00","PIT","Jack Johnson","Roughing ",2]
[null,"2018-12-04",3,"17:01:00","COL","Nathan MacKinnon","Tripping ",2]
[null,"2018-12-06",1,"09:53:00","PIT","Derek Grant","Slashing ",2]
[null,"2018-12-06",1,"12:57:00","NYI","Leo Komarov","Hooking ",2]
[null,"2018-12-06",1,"15:49:00","NYI","Mathew Barzal","High sticking ",2]
[null,"2018-12-06",2,"03:07:00","PIT","Marcus Pettersson","Holding ",2]
[null,"2018-12-06",2,"10:30:00","NYI","Cal Clutterbuck","Holding ",2]
[null,"2018-12-06",3,"17:42:00","NYI","Tom Kuhnhackl","Roughing ",2]
[null,"2018-12-06",3,"17:42:00","PIT","Bryan Rust","High sticking ",2]
[null,"2018-12-08",1,"07:53:00","OTT","Maxime Lajoie","Tripping ",2]
[null,"2018-12-08",2,"09:41:00","PIT","Derick Brassard","Tripping ",2]
[null,"2018-12-08",2,"19:27:00","PIT","Riley Sheahan","Boarding ",2]
[null,"2018-12-08",3,"01:45:00","PIT","Brian Dumoulin","Tripping ",2]
[null,"2018-12-08",3,"05:06:00","OTT","Zack Smith","Illegal Check to head ",2]
[null,"2018-12-08",3,"08:57:00","PIT","Kris Letang","Cross checking ",2]
[null,"2018-12-08",3,"14:30:00","PIT","Kris Letang","Tripping ",2]
[null,"2018-12-08",3,"14:30:00","OTT","Brady Tkachuk","Roughing ",2]
[null,"2018-12-08",4,"00:58:00","PIT","Bench Penalty","Too many men on ice",2]
[null,"2018-12-10",1,"03:14:00","PIT","Jamie Oleksiak","Slashing ",2]
[null,"2018-12-10",1,"08:52:00","PIT","Evgeni Malkin","Holding ",2]
[null,"2018-12-10",1,"13:00:00","PIT","Jack Johnson","Interference ",2]
[null,"2018-12-10",1,"16:00:00","NYI","Anders Lee","High Sticking - Double Minor ",4]
[null,"2018-12-10",2,"08:31:00","NYI","Thomas Hickey","Interference ",2]
[null,"2018-12-10",3,"11:02:00","NYI","Mathew Barzal","Hooking ",2]
[null,"2018-12-10",3,"12:29:00","NYI","Cal Clutterbuck","Cross checking ",2]
[null,"2018-12-10",3,"12:29:00","PIT","Kris Letang","Roughing ",2]
[null,"2018-12-10",4,"02:12:00","PIT","Derick Brassard","Tripping ",2]
[null,"2018-12-12",2,"02:35:00","CHI","Brandon Saad","Tripping",2]
[null,"2018-12-12",2,"15:06:00","PIT","Jean-Sebastien Dea","Holding",2]
[null,"2018-12-12",3,"01:39:00","PIT","Evgeni Malkin","Hooking",2]
[null,"2018-12-12",3,"04:04:00","CHI","Jonathan Toews","Tripping",2]
[null,"2018-12-14",1,"02:24:00","BOS","Brandon Carlo","Holding ",2]
[null,"2018-12-14",2,"09:00:00","PIT","Jake Guentzel","Slashing ",2]
[null,"2018-12-14",2,"17:22:00","PIT","Jake Guentzel","Tripping ",2]
[null,"2018-12-15",1,"02:19:00","PIT","Derek Grant","Slashing ",2]
[null,"2018-12-15",1,"05:22:00","PIT","Olli Maatta","Interference ",2]
[null,"2018-12-15",1,"10:02:00","LAK","Bench Penalty","Too many men on ice",2]
[null,"2018-12-15",1,"18:40:00","LAK","Dustin Brown","High sticking ",2]
[null,"2018-12-15",2,"10:39:00","PIT","Garrett Wilson","Hooking ",2]
[null,"2018-12-15",3,"03:25:00","LAK","Brendan Leipsic","Slashing ",2]
[null,"2018-12-17",1,"08:47:00","ANA","Joshua Mahura","Slashing ",2]
[null,"2018-12-17",2,"00:13:00","PIT","Zach Aston-Reese","Hooking ",2]
[null,"2018-12-17",2,"03:02:00","PIT","Sidney Crosby","Tripping ",2]
[null,"2018-12-17",2,"12:50:00","ANA","Carter Rowney","Holding ",2]
[null,"2018-12-17",3,"04:11:00","ANA","Ondrej Kase","Hooking ",2]
[null,"2018-12-17",3,"05:54:00","ANA","Josh Manson","Interference ",2]
[null,"2018-12-19",1,"00:55:00","WSH","Tom Wilson","Fighting ",5]
[null,"2018-12-19",1,"00:55:00","PIT","Jamie Oleksiak","Fighting ",5]
[null,"2018-12-19",1,"04:05:00","WSH","Alex Ovechkin","Roughing ",2]
[null,"2018-12-19",1,"04:05:00","PIT","Kris Letang","Roughing ",2]
[null,"2018-12-19",1,"06:54:00","WSH","Jonas Siegenthaler","Holding ",2]
[null,"2018-12-19",1,"14:10:00","WSH","Michal Kempny","Cross checking ",2]
[null,"2018-12-19",2,"00:48:00","PIT","Bryan Rust","Holding ",2]
[null,"2018-12-19",2,"02:58:00","PIT","Marcus Pettersson","High sticking ",2]
[null,"2018-12-19",2,"08:06:00","WSH","Michal Kempny","Tripping ",2]
[null,"2018-12-19",2,"12:12:00","PIT","Jake Guentzel","Holding ",2]
[null,"2018-12-19",2,"20:00:00","PIT","Brian Dumoulin","Holding the stick ",2]
[null,"2018-12-19",3,"04:13:00","WSH","Matt Niskanen","Tripping ",2]
[null,"2018-12-19",3,"05:16:00","PIT","Phil Kessel","Tripping ",2]
[null,"2018-12-20",1,"08:09:00","MIN","Mikael Granlund","Tripping ",2]
[null,"2018-12-20",2,"11:17:00","PIT","Evgeni Malkin","Slashing ",2]
[null,"2018-12-20",3,"03:20:00","PIT","Jack Johnson","Roughing ",2]
[null,"2018-12-20",3,"03:20:00","MIN","Jason Zucker","Roughing ",2]
[null,"2018-12-20",3,"04:48:00","MIN","Jonas Brodin","Hooking ",2]
[null,"2018-12-20",3,"16:23:00","PIT","Juuso Riikola","Hooking ",2]
[null,"2018-12-20",3,"18:00:00","MIN","Bench Penalty","Too many men on ice",2]
[null,"2018-12-22",1,"14:13:00","PIT","Juuso Riikola","Delay of game ",2]
[null,"2018-12-22",2,"10:44:00","PIT","Derick Brassard","Slashing ",2]
[null,"2018-12-22",2,"12:20:00","CAR","Jordan Staal","Tripping ",2]
[null,"2018-12-22",2,"15:03:00","PIT","Riley Sheahan","Holding the stick ",2]
[null,"2018-12-22",3,"08:16:00","PIT","Marcus Pettersson","Tripping ",2]
[null,"2018-12-22",3,"19:21:00","CAR","Lucas Wallmark","Tripping ",2]
[null,"2018-12-27",1,"01:23:00","PIT","Juuso Riikola","Hooking ",2]
[null,"2018-12-27",2,"06:08:00","DET","Filip Hronek","Holding the stick ",2]
[null,"2018-12-27",2,"18:15:00","DET","Trevor Daley","Tripping ",2]
[null,"2018-12-27",3,"09:57:00","DET","Thomas Vanek","Tripping ",2]
[null,"2018-12-29",1,"00:09:00","STL","Alex Steen","High sticking ",2]
[null,"2018-12-29",1,"13:11:00","PIT","Marcus Pettersson","Holding ",2]
[null,"2018-12-29",2,"03:24:00","STL","Alex Steen","Interference ",2]
[null,"2018-12-29",2,"09:18:00","STL","Jay Bouwmeester","Hooking ",2]
[null,"2018-12-29",3,"03:05:00","PIT","Zach Aston-Reese","Fighting ",5]
[null,"2018-12-29",3,"03:05:00","STL","Joel Edmundson","Fighting ",5]
[null,"2018-12-29",3,"03:05:00","STL","Joel Edmundson","Roughing ",2]
[null,"2018-12-29",3,"09:56:00","PIT","Evgeni Malkin","Tripping ",2]
[null,"2018-12-31",1,"03:48:00","PIT","Riley Sheahan","Holding ",2]
[null,"2018-12-31",1,"14:45:00","MIN","Nate Prosser","Kneeing ",2]
[null,"2018-12-31",2,"08:08:00","PIT","Zach Aston-Reese","Roughing ",2]
[null,"2018-12-31",2,"08:08:00","MIN","Marcus Foligno","Roughing ",2]
[null,"2019-01-02",1,"02:55:00","PIT","Sidney Crosby","Tripping ",2]
[null,"2019-01-02",1,"12:48:00","NYR","Mats Zuccarello","Hooking ",2]
[null,"2019-01-02",2,"06:46:00","PIT","Jack Johnson","Tripping ",2]
[null,"2019-01-02",3,"03:16:00","NYR","Vladislav Namestnikov","Tripping ",2]
[null,"2019-01-04",1,"12:57:00","WPG","Bench Penalty","Too many men on ice",2]
[null,"2019-01-04",2,"06:38:00","PIT","Derick Brassard","Holding ",2]
[null,"2019-01-04",2,"15:55:00","WPG","Josh Morrissey","Closing hand on puck ",2]
[null,"2019-01-04",3,"03:26:00","WPG","Blake Wheeler","Hooking ",2]
[null,"2019-01-06",1,"16:02:00","PIT","Evgeni Malkin","Hooking ",2]
[null,"2019-01-06",1,"17:03:00","CHI","Connor Murphy","Cross checking ",2]
[null,"2019-01-06",1,"17:52:00","CHI","Duncan Keith","Slashing ",2]
[null,"2019-01-06",2,"14:57:00","PIT","Tanner Pearson","Tripping ",2]
[null,"2019-01-06",2,"19:41:00","PIT","Kris Letang","Tripping ",2]
[null,"2019-01-06",3,"08:02:00","CHI","Brendan Perlini","Hooking ",2]
[null,"2019-01-08",1,"07:10:00","FLA","Denis Malgin","High sticking ",2]
[null,"2019-01-08",1,"18:57:00","FLA","Jared McCann","Tripping ",2]
[null,"2019-01-08",2,"02:26:00","PIT","Dominik Simon","Hooking ",2]
[null,"2019-01-08",2,"05:18:00","FLA","Jonathan Huberdeau","Tripping ",2]
[null,"2019-01-08",2,"08:09:00","PIT","Jack Johnson","Interference ",2]
[null,"2019-01-08",2,"11:02:00","PIT","Sidney Crosby","Roughing ",2]
[null,"2019-01-08",2,"11:02:00","FLA","Bogdan Kiselevich","Roughing ",2]
[null,"2019-01-08",2,"17:02:00","FLA","MacKenzie Weegar","Fighting ",5]
[null,"2019-01-08",2,"17:02:00","PIT","Marcus Pettersson","Fighting ",5]
[null,"2019-01-08",3,"03:28:00","PIT","Zach Aston-Reese","Interference ",2]
[null,"2019-01-08",3,"05:49:00","FLA","Colton Sceviour","Fighting ",5]
[null,"2019-01-08",3,"05:49:00","PIT","Zach Aston-Reese","Fighting ",5]
[null,"2019-01-08",3,"12:24:00","FLA","Jayce Hawryluk","Roughing ",2]
[null,"2019-01-08",3,"13:13:00","PIT","Kris Letang","Holding ",2]
[null,"2019-01-11",1,"18:55:00","ANA","Josh Manson","High sticking ",2]
[null,"2019-01-11",2,"08:26:00","PIT","Jake Guentzel","Tripping ",2]
[null,"2019-01-11",2,"10:34:00","ANA","Josh Manson","Tripping ",2]
[null,"2019-01-11",2,"14:06:00","ANA","Andrew Cogliano","Tripping ",2]
[null,"2019-01-11",3,"11:55:00","PIT","Jamie Oleksiak","Cross checking ",2]
[null,"2019-01-12",1,"04:17:00","PIT","Evgeni Malkin","Slashing",2]
[null,"2019-01-12",1,"16:26:00","PIT","Derek Grant","High sticking",2]
[null,"2019-01-12",2,"11:13:00","LAK","Michael Amadio","Fighting",5]
[null,"2019-01-12",2,"11:13:00","PIT","Marcus Pettersson","Fighting",4]
[null,"2019-01-12",2,"14:41:00","LAK","Drew Doughty","Interference",2]
[null,"2019-01-12",3,"00:49:00","PIT","Chad Ruhwedel","Delay of game",2]
[null,"2019-01-12",3,"04:33:00","LAK","Dion Phaneuf","High sticking",2]
[null,"2019-01-12",3,"08:58:00","LAK","Anze Kopitar","Delay of game",2]
[null,"2019-01-12",3,"11:45:00","LAK","Drew Doughty","Interference",2]
[null,"2019-01-15",1,"18:30:00","PIT","Jake Guentzel","Hooking ",2]
[null,"2019-01-15",2,"14:52:00","SJS","Joonas Donskoi","Closing hand on puck ",2]
[null,"2019-01-15",2,"19:26:00","PIT","Jack Johnson","Tripping ",2]
[null,"2019-01-15",3,"09:44:00","SJS","Joe Thornton","Hooking ",2]
[null,"2019-01-18",1,"00:36:00","PIT","Sidney Crosby","Hooking ",2]
[null,"2019-01-18",1,"08:59:00","PIT","Riley Sheahan","Interference ",2]
[null,"2019-01-18",1,"11:23:00","PIT","Brian Dumoulin","Hooking ",2]
[null,"2019-01-18",1,"11:23:00","PIT","Matt Murray","Unsportsmanlike conduct ",2]
[null,"2019-01-18",1,"12:19:00","ARI","Alex Galchenyuk","Tripping ",2]
[null,"2019-01-18",1,"17:26:00","ARI","Jakob Chychrun","Tripping ",2]
[null,"2019-01-18",2,"03:09:00","ARI","Conor Garland","Interference ",2]
[null,"2019-01-18",4,"02:51:00","ARI","Richard Panik","Hooking ",2]
[null,"2019-02-02",1,"09:11:00","TOR","Connor Brown","High sticking ",2]
[null,"2019-02-02",1,"18:47:00","PIT","Marcus Pettersson","High sticking ",2]
[null,"2019-02-02",2,"18:23:00","PIT","Marcus Pettersson","Hooking ",2]
[null,"2019-02-05",1,"15:20:00","CAR","Lucas Wallmark","Hooking",2]
[null,"2019-02-05",2,"09:26:00","CAR","Jaccob Slavin","Hooking",2]
[null,"2019-02-05",2,"19:42:00","PIT","Marcus Pettersson","Tripping",2]
[null,"2019-02-05",3,"03:24:00","PIT","Tanner Pearson","Holding",2]
[null,"2019-02-07",1,"03:27:00","PIT","Marcus Pettersson","Interference ",2]
[null,"2019-02-07",1,"07:25:00","FLA","Vincent Trocheck","High sticking ",2]
[null,"2019-02-07",1,"19:14:00","FLA","Mike Matheson","Interference ",2]
[null,"2019-02-07",2,"00:17:00","FLA","Aaron Ekblad","Delay of game ",2]
[null,"2019-02-07",2,"12:08:00","PIT","Matt Cullen","Tripping ",2]
[null,"2019-02-07",2,"15:23:00","PIT","Bryan Rust","Slashing ",2]
[null,"2019-02-09",2,"07:19:00","TBL","Ondrej Palat","Tripping ",2]
[null,"2019-02-09",2,"07:45:00","PIT","Nick Bjugstad","High sticking ",2]
[null,"2019-02-09",2,"11:16:00","TBL","Adam Erne","Fighting ",5]
[null,"2019-02-09",2,"11:16:00","PIT","Teddy Blueger","Fighting ",5]
[null,"2019-02-09",2,"13:14:00","PIT","Sidney Crosby","Roughing ",2]
[null,"2019-02-09",2,"13:14:00","TBL","Tyler Johnson","Roughing ",2]
[null,"2019-02-09",2,"17:41:00","PIT","Jack Johnson","Fighting ",5]
[null,"2019-02-09",2,"17:41:00","TBL","Alex Killorn","Fighting ",5]
[null,"2019-02-09",3,"14:39:00","TBL","Adam Erne","Misconduct ",10]
[null,"2019-02-09",3,"14:39:00","PIT","Patric Hornqvist","Misconduct ",10]
[null,"2019-02-11",1,"01:17:00","PIT","Nick Bjugstad","Delay of game ",2]
[null,"2019-02-11",1,"09:12:00","PHI","Claude Giroux","Tripping ",2]
[null,"2019-02-11",2,"04:38:00","PIT","Patric Hornqvist","Delay of game ",2]
[null,"2019-02-11",2,"10:55:00","PIT","Jake Guentzel","Tripping ",2]
[null,"2019-02-11",3,"15:06:00","PIT","Evgeni Malkin","Match penalty ",10]
[null,"2019-02-11",3,"18:46:00","PHI","Claude Giroux","Slashing ",2]
[null,"2019-02-11",3,"18:46:00","PIT","Jake Guentzel","Roughing ",2]
[null,"2019-02-13",2,"01:55:00","PIT","Tanner Pearson","Closing hand on puck ",2]
[null,"2019-02-13",2,"11:48:00","PIT","Bryan Rust","Holding ",2]
[null,"2019-02-13",2,"15:24:00","EDM","Adam Larsson","Elbowing ",2]
[null,"2019-02-16",1,"15:36:00","PIT","Marcus Pettersson","Fighting ",5]
[null,"2019-02-16",1,"15:36:00","CGY","Sam Bennett","Roughing ",2]
[null,"2019-02-16",1,"15:36:00","CGY","Sam Bennett","Fighting ",5]
[null,"2019-02-16",2,"05:39:00","CGY","Travis Hamonic","Tripping ",2]
[null,"2019-02-16",2,"16:43:00","PIT","Zach Aston-Reese","Roughing ",2]
[null,"2019-02-16",2,"20:00:00","PIT","Jared McCann","Fighting ",5]
[null,"2019-02-16",2,"20:00:00","PIT","Jared McCann","Cross checking ",2]
[null,"2019-02-16",2,"20:00:00","PIT","Patric Hornqvist","Roughing ",2]
[null,"2019-02-16",2,"20:00:00","CGY","Johnny Gaudreau","Roughing ",2]
[null,"2019-02-16",2,"20:00:00","CGY","Rasmus Andersson","Fighting ",5]
[null,"2019-02-16",3,"03:57:00","CGY","Travis Hamonic","Hooking ",2]
[null,"2019-02-16",3,"08:38:00","PIT","Zach Aston-Reese","Hooking ",2]
[null,"2019-02-16",3,"14:30:00","CGY","Sam Bennett","Slashing ",2]
[null,"2019-02-17",1,"07:16:00","NYR","Kevin Shattenkirk","Hooking ",2]
[null,"2019-02-17",1,"18:41:00","PIT","Bryan Rust","Roughing ",2]
[null,"2019-02-17",2,"02:45:00","NYR","Neal Pionk","Tripping ",2]
[null,"2019-02-17",2,"05:53:00","NYR","Bench Penalty","Too many men on ice",2]
[null,"2019-02-17",2,"09:55:00","NYR","Mika Zibanejad","Holding ",2]
[null,"2019-02-17",2,"19:47:00","PIT","Sidney Crosby","High Sticking - Double Minor ",4]
[null,"2019-02-19",1,"07:17:00","PIT","Evgeni Malkin","Goaltender interference ",2]
[null,"2019-02-19",1,"16:30:00","NJD","Brett Seney","Tripping ",2]
[null,"2019-02-19",3,"05:42:00","PIT","Phil Kessel","Tripping ",2]
[null,"2019-02-19",3,"17:09:00","NJD","Blake Coleman","Tripping ",2]
[null,"2019-02-21",1,"00:56:00","PIT","Jack Johnson","Tripping",2]
[null,"2019-02-21",1,"08:37:00","SJS","Brenden Dillon","Cross checking",2]
[null,"2019-02-21",1,"11:55:00","PIT","Zach Aston-Reese","Tripping",2]
[null,"2019-02-21",2,"04:50:00","PIT","Evgeni Malkin","Hooking",2]
[null,"2019-02-21",2,"14:39:00","PIT","Zach Aston-Reese","Holding",2]
[null,"2019-02-21",2,"19:39:00","SJS","Evander Kane","Tripping",2]
[null,"2019-02-21",3,"02:20:00","SJS","Tomas Hertl","Roughing ",2]
[null,"2019-02-21",3,"02:20:00","PIT","Tanner Pearson","Roughing",2]
[null,"2019-02-21",3,"15:24:00","PIT","Tanner Pearson","Fighting",5]
[null,"2019-02-21",3,"15:24:00","SJS","Evander Kane","Fighting",5]
[null,"2019-02-21",3,"15:24:00","PIT","Evander Kane","Game misconduct",10]
[null,"2019-02-21",3,"15:24:00","SJS","Micheal Haley","Misconduct",10]
[null,"2019-02-21",3,"15:24:00","SJS","Brenden Dillon","Misconduct",10]
[null,"2019-02-21",3,"15:24:00","PIT","Sidney Crosby","Misconduct",10]
[null,"2019-02-21",3,"15:24:00","PIT","Marcus Pettersson","Misconduct",10]
[null,"2019-02-21",3,"15:26:00","PIT","Phil Kessel","High sticking",2]
[null,"2019-02-21",3,"15:57:00","PIT","Kris Letang","Cross checking",2]
[null,"2019-02-21",3,"18:47:00","PIT","Evgeni Malkin","Misconduct",10]
[null,"2019-02-26",1,"15:56:00","CBJ","Scott Harrington","Tripping ",2]
[null,"2019-02-26",2,"06:58:00","PIT","Chad Ruhwedel","Tripping ",2]
[null,"2019-02-26",2,"19:47:00","PIT","Dominik Simon","Holding ",2]
[null,"2019-02-26",3,"15:41:00","PIT","Marcus Pettersson","Holding ",2]
[null,"2019-02-26",3,"17:12:00","CBJ","Seth Jones","Slashing ",2]
[null,"2019-03-01",1,"11:02:00","PIT","Garrett Wilson","Roughing ",2]
[null,"2019-03-01",1,"17:02:00","PIT","Evgeni Malkin","Slashing ",2]
[null,"2019-03-01",1,"17:02:00","BUF","Brandon Montour","Slashing ",2]
[null,"2019-03-01",1,"19:59:00","BUF","Matt Hunwick","Hooking ",2]
[null,"2019-03-01",2,"13:37:00","BUF","Matt Hunwick","Interference ",2]
[null,"2019-03-01",2,"16:25:00","BUF","Scott Wilson","High Sticking - Double Minor ",4]
[null,"2019-03-01",3,"11:47:00","PIT","Patric Hornqvist","High sticking ",2]
[null,"2019-03-02",1,"03:34:00","MTL","Jeff Petry","Holding ",2]
[null,"2019-03-02",1,"10:22:00","PIT","Jack Johnson","Roughing ",2]
[null,"2019-03-02",1,"13:42:00","PIT","Phil Kessel","Slashing ",2]
[null,"2019-03-02",2,"03:13:00","MTL","Brendan Gallagher","Interference ",2]
[null,"2019-03-02",2,"13:11:00","MTL","Andrew Shaw","Interference ",2]
[null,"2019-03-02",2,"14:30:00","PIT","Marcus Pettersson","Holding ",2]
[null,"2019-03-05",1,"00:37:00","PIT","Evgeni Malkin","Tripping ",2]
[null,"2019-03-05",2,"03:31:00","PIT","Erik Gudbranson","Illegal Check to head ",2]
[null,"2019-03-05",2,"09:22:00","FLA","Jamie McGinn","Interference ",2]
[null,"2019-03-05",3,"10:43:00","PIT","Evgeni Malkin","Tripping ",2]
[null,"2019-03-05",3,"14:25:00","FLA","Keith Yandle","Holding ",2]
[null,"2019-03-07",1,"02:04:00","CBJ","Scott Harrington","Tripping ",2]
[null,"2019-03-07",1,"12:50:00","CBJ","Adam McQuaid","High sticking ",2]
[null,"2019-03-07",1,"19:49:00","PIT","Justin Schultz","Interference ",2]
[null,"2019-03-07",2,"05:31:00","PIT","Jake Guentzel","High sticking ",2]
[null,"2019-03-07",2,"10:17:00","PIT","Garrett Wilson","Fighting ",5]
[null,"2019-03-07",2,"10:17:00","CBJ","Nick Foligno","Fighting ",5]
[null,"2019-03-07",2,"15:40:00","CBJ","Pierre-Luc Dubois","Roughing ",2]
[null,"2019-03-07",2,"15:40:00","PIT","Nick Bjugstad","Roughing ",2]
[null,"2019-03-07",3,"02:47:00","CBJ","Nick Foligno","Elbowing ",2]
[null,"2019-03-07",3,"02:52:00","CBJ","Boone Jenner","High Sticking - Double Minor ",4]
[null,"2019-03-07",3,"13:01:00","PIT","Patric Hornqvist","High sticking ",2]
[null,"2019-03-09",1,"00:20:00","CBJ","Boone Jenner","Slashing",2]
[null,"2019-03-09",1,"07:20:00","PIT","Patric Hornqvist","Roughing",2]
[null,"2019-03-09",1,"07:20:00","CBJ","Adam McQuaid","Roughing",2]
[null,"2019-03-09",1,"08:35:00","CBJ","David Savard","Interference",2]
[null,"2019-03-09",1,"13:14:00","PIT","Zach Aston-Reese","Slashing",2]
[null,"2019-03-09",1,"19:14:00","PIT","Nick Bjugstad","Hooking",2]
[null,"2019-03-09",2,"01:47:00","CBJ","Seth Jones","Tripping",2]
[null,"2019-03-09",3,"12:36:00","PIT","Jake Guentzel","Interference",2]
[null,"2019-03-09",3,"20:00:00","PIT","Jared McCann","Holding",2]
[null,"2019-03-10",1,"03:41:00","BOS","Bench","Too many men on ice",2]
[null,"2019-03-10",1,"09:01:00","BOS","Matt Grzelcyk","Hooking",2]
[null,"2019-03-10",1,"13:07:00","PIT","Justin Schultz","Delay of game",2]
[null,"2019-03-10",1,"15:19:00","BOS","Chris Wagner","Tripping",2]
[null,"2019-03-10",1,"16:12:00","PIT","Evgeni Malkin","Tripping",2]
[null,"2019-03-10",1,"19:26:00","PIT","Jared McCann","Interference",2]
[null,"2019-03-10",2,"03:31:00","PIT","Zach Trotman","Slashing",2]
[null,"2019-03-10",2,"06:43:00","BOS","Patrice Bergeron","Delay of game",2]
[null,"2019-03-10",2,"16:10:00","BOS","Brandon Carlo","Tripping",2]
[null,"2019-03-10",3,"04:33:00","PIT","Zach Trotman","Interference",2]
[null,"2019-03-12",1,"00:50:00","PIT","Jake Guentzel","Holding",2]
[null,"2019-03-12",1,"02:33:00","WSH","Lars Eller","Kneeing",2]
[null,"2019-03-12",2,"01:37:00","WSH","Alex Ovechkin","High sticking",2]
[null,"2019-03-12",2,"13:55:00","WSH","Nicklas Backstrom","Tripping",2]
[null,"2019-03-12",3,"04:06:00","PIT","Erik Gudbranson","Roughing",2]
[null,"2019-03-12",3,"04:06:00","WSH","Tom Wilson","Roughing",2]
[null,"2019-03-12",3,"10:33:00","WSH","Bench","Too many men on ice",2]
[null,"2019-03-12",3,"12:56:00","PIT","Bench","Too many men on ice",2]
[null,"2019-03-14",1,"10:47:00","PIT","Marcus Pettersson","Cross checking",2]
[null,"2019-03-14",2,"04:55:00","BUF","Casey Nelson","Interference",2]
[null,"2019-03-14",2,"08:45:00","PIT","Teddy Blueger","Interference",2]
[null,"2019-03-14",2,"16:25:00","BUF","Marco Scandella","Hooking",2]
[null,"2019-03-14",3,"11:57:00","BUF","Johan Larsson","Roughing",2]
[null,"2019-03-14",3,"11:57:00","PIT","Evgeni Malkin","Roughing",2]
[null,"2019-03-14",3,"13:41:00","BUF","Jeff Skinner","Hooking",2]
[null,"2019-03-14",3,"16:37:00","BUF","Rasmus Dahlin","Slashing",2]
[null,"2019-03-16",1,"05:37:00","STL","David Perron","Slashing",2]
[null,"2019-03-16",1,"08:08:00","STL","Tyler Bozak","Interference",2]
[null,"2019-03-16",2,"14:11:00","STL","Vince Dunn","High sticking",2]
[null,"2019-03-16",2,"17:08:00","PIT","Dominik Simon","Slashing",2]
[null,"2019-03-16",3,"10:09:00","STL","Ivan Barbashev","Interference",2]
[null,"2019-03-16",3,"13:02:00","PIT","Phil Kessel","High sticking",2]
[null,"2019-03-17",1,"06:50:00","PHI","Bench","Too many men on ice",2]
[null,"2019-03-17",2,"00:44:00","PIT","Nick Bjugstad","Holding",2]
[null,"2019-03-17",3,"02:57:00","PHI","Radko Gudas","Cross checking",2]
[null,"2019-03-17",3,"03:56:00","PIT","Phil Kessel","Slashing",2]
[null,"2019-03-17",3,"07:27:00","PHI","Phil Varone","Hooking",2]
[null,"2019-03-17",3,"12:35:00","PHI","Bench","Too many men on ice",2]
[null,"2019-03-17",3,"14:17:00","PIT","Bench","Too many men on ice",2]
[null,"2019-03-19",2,"03:03:00","PIT","Sidney Crosby","Tripping",2]
[null,"2019-03-19",2,"03:03:00","CAR","Justin Williams","High sticking",2]
[null,"2019-03-19",2,"12:58:00","CAR","Brett Pesce","High sticking",2]
[null,"2019-03-19",2,"12:58:00","PIT","Bryan Rust","Interference",2]
[null,"2019-03-19",3,"05:03:00","CAR","Justin Faulk","Interference",2]
[null,"2019-03-19",3,"18:16:00","PIT","Jack Johnson","Roughing",2]
[null,"2019-03-19",1,"02:56:00","PIT","Kris Letang","Slashing",2]
[null,"2019-03-19",4,"02:56:00","PIT","Kris Letang","Misconduct",10]
[null,"2019-03-21",1,"17:45:00","PIT","Teddy Blueger","Tripping",2]
[null,"2019-03-21",2,"07:04:00","PIT","Nick Bjugstad","Tripping",2]
[null,"2019-03-21",2,"11:17:00","NSH","Mikael Granlund","Hooking",2]
[null,"2019-03-21",2,"13:38:00","PIT","Sidney Crosby","Tripping",2]
[null,"2019-03-21",3,"08:07:00","NSH","Rocco Grimaldi","High sticking",2]
[null,"2019-03-23",1,"14:34:00","DAL","Alexander Radulov","Slashing",2]
[null,"2019-03-23",2,"06:43:00","PIT","Kris Letang","Tripping",2]
[null,"2019-03-23",3,"03:34:00","PIT","Jack Johnson","Holding",2]
[null,"2019-03-23",3,"18:40:00","PIT","Bryan Rust","Holding",2]
[null,"2019-03-25",1,"13:58:00","PIT","Marcus Pettersson","Hooking",2]
[null,"2019-03-25",2,"00:27:00","NYR","Brady Skjei","High sticking",2]
[null,"2019-03-25",2,"09:02:00","PIT","Jack Johnson","Holding",2]
[null,"2019-03-25",2,"11:54:00","PIT","Patric Hornqvist","High sticking",2]
[null,"2019-03-25",2,"15:05:00","NYR","Brett Howden","Holding",2]
[null,"2019-03-25",3,"07:38:00","NYR","Bench","Delay of game",2]
[null,"2019-03-29",1,"12:28:00","NSH","Filip Forsberg","Interference",2]
[null,"2019-03-29",2,"00:21:00","NSH","Viktor Arvidsson","Tripping",2]
[null,"2019-03-29",2,"07:34:00","NSH","Colton Sissons","Hooking",2]
[null,"2019-03-29",2,"16:09:00","PIT","Teddy Blueger","Interference",2]
[null,"2019-03-29",3,"05:42:00","NSH","Colton Sissons","Hooking",2]
[null,"2019-03-29",3,"10:10:00","PIT","Dominik Simon","Interference",2]
[null,"2019-03-31",1,"19:25:00","PIT","Patric Hornqvist","Roughing",2]
[null,"2019-03-31",1,"19:25:00","CAR","Justin Williams","Roughing",2]
[null,"2019-03-31",1,"19:33:00","CAR","Justin Faulk","Tripping",2]
[null,"2019-03-31",2,"05:33:00","PIT","Olli Maatta","Boarding",2]
[null,"2019-03-31",3,"10:49:00","PIT","Jack Johnson","Cross checking",2]
[null,"2019-03-31",3,"19:27:00","PIT","Brian Dumoulin","Delay of game",2]
[null,"2019-03-31",3,"19:27:00","CAR","Dougie Hamilton","Slashing",2]

{"sheet":"All Shootouts 2018_19","index":9,"n_rows":99,"n_cols":7,"rows_kept":99,"cut":false,"hidden":true,"merged":[[0,1,0,6]]}
[null,"Shootout Statistics"]
[null,"Date","Attempt","Team","Shooter","Goalie","Goal (1)/Save(0)"]
[null,"2018-10-13",1,"MTL","Casey DeSmith","Paul Byron",1]
[null,"2018-10-13",2,"PIT","Antti Niemi","Evgeni Malkin",0]
[null,"2018-10-13",3,"MTL","Casey DeSmith","Jonathan Drouin",1]
[null,"2018-10-13",4,"PIT","Antti Niemi","Sidney Crosby",0]
[null,"2018-11-01",1,"NYI","Matt Murray","Jordan Eberle",0]
[null,"2018-11-01",2,"PIT","Thomas Greiss","Evgeni Malkin",0]
[null,"2018-11-01",3,"NYI","Matt Murray","Brock Nelson",0]
[null,"2018-11-01",4,"PIT","Thomas Greiss","Sidney Crosby",0]
[null,"2018-11-01",5,"NYI","Matt Murray","Josh Bailey",1]
[null,"2018-11-01",6,"PIT","Thomas Greiss","Kris Letang",0]
[null,"2018-12-10",1,"NYI","Mathew Barzal","Casey DeSmith",0]
[null,"2018-12-10",2,"PIT","Phil Kessel","Robin Lehner",1]
[null,"2018-12-10",3,"NYI","Leo Komarov","Casey DeSmith",0]
[null,"2018-12-10",4,"PIT","Sidney Crosby","Robin Lehner",0]
[null,"2018-12-10",5,"NYI","Josh Bailey","Casey DeSmith",1]
[null,"2018-12-10",6,"PIT","Evgeni Malkin","Robin Lehner",0]
[null,"2018-12-10",7,"NYI","Anthony Beauvillier","Casey DeSmith",0]
[null,"2018-12-10",8,"PIT","Kris Letang","Robin Lehner",0]
[null,"2018-12-10",9,"NYI","Valtteri Filppula","Casey DeSmith",0]
[null,"2018-12-10",10,"PIT","Jake Guentzel","Robin Lehner",1]
[null,"2019-03-19",1,"CAR","Dougie Hamilton","Matt Murray",1]
[null,"2019-03-19",2,"PIT","Phil Kessel","Petr Mrazek",0]
[null,"2019-03-19",3,"CAR","Sebastian Aho","Matt Murray",0]
[null,"2019-03-19",4,"PIT","Sidney Crosby","Petr Mrazek",0]
[null,"2019-03-19",5,"CAR","Jaccob Slavin","Matt Murray",0]
[null,"2019-03-19",6,"PIT","Jake Guentzel","Petr Mrazek",0]
[null,"2019-03-21",1,"NSH","Ryan Johansen","Matt Murray",0]
[null,"2019-03-21",2,"PIT","Phil Kessel","Pekka Rinne",0]
[null,"2019-03-21",3,"NSH","Ryan Ellis","Matt Murray",0]
[null,"2019-03-21",4,"PIT","Sidney Crosby","Pekka Rinne",1]
[null,"2019-03-21",5,"NSH","Brian Boyle","Matt Murray",0]
[]
[]
[]
[]
[]
[]
[]
[]
[]
[]
[]
[]
[]
[]
[]
[]
[]
[]
[]
[]
[]
[]
[]
[]
[]
[]
[]
[]
[]
[]
[]
[]
[]
[]
[]
[]
[]
[]
[]
[]
[]
[]
[]
[]
[]
[]
[]
[]
[]
[]
[]
[]
[]
[]
[]
[]
[]
[]
[]
[]
[]
[]
[]
[]
[]
["2016-10-13"]

{"sheet":"All Goalies 2018_19","index":10,"n_rows":163,"n_cols":10,"rows_kept":163,"cut":false,"hidden":true,"merged":[[0,11,0,26],[0,1,0,9]]}
[null,"Goalie Statistics"]
[null,"Date","Team","Goalie","Dec (W/L)","GA","SOG","SV","SO","TOI"]
[null,"2018-10-04","WSH","Braden Holtby","OTL",7,41,34,0,2.5555555555555558]
[null,"2018-10-04","PIT","Matt Murray","Win",6,36,30,0,2.5555555555555558]
[null,"2018-10-06","MTL","Carey Price","Win",1,22,21,0,2.5]
[null,"2018-10-06","PIT","Matt Murray","Loss",5,29,24,0,2.4708333333333332]
[null,"2018-10-11","VEG","Malcolm Subban","Loss",4,22,18,0,2.4534722222222221]
[null,"2018-10-11","PIT","Casey DeSmith","Win",2,37,35,0,2.5]
[null,"2018-10-13","PIT","Casey DeSmith","OTL",3,40,37,0,2.7083333333333335]
[null,"2018-10-13","MTL","Antti Niemi","Win",3,28,25,0,2.7083333333333335]
[null,"2018-10-16","VAN","Anders Nilsson","Win",2,28,26,0,2.5236111111111112]
[null,"2018-10-16","PIT","Casey DeSmith","OTL",3,26,23,0,2.5236111111111112]
[null,"2018-10-18","PIT","Matt Murray","Win",0,38,38,1,2.5]
[null,"2018-10-18","TOR","Frederik Andersen","Loss",1,37,36,0,2.4270833333333335]
[null,"2018-10-23","PIT","Matt Murray","Win",5,46,41,0,2.5916666666666668]
[null,"2018-10-23","EDM","Cam Talbot","OTL",6,31,25,0,2.5847222222222221]
[null,"2018-10-25","PIT","Matt Murray","Win",1,39,38,0,2.5]
[null,"2018-10-25","CGY","David Rittich","ND",3,15,12,0,1.2784722222222222]
[null,"2018-10-25","CGY","Mike Smith","Loss",6,21,15,0,1.2215277777777778]
[null,"2018-10-27","PIT","Casey DeSmith","Win",0,29,29,1,2.5]
[null,"2018-10-27","VAN","Jacob Markstrom","Loss",5,35,30,0,2.5]
[null,"2018-10-30","NYI","Robin Lehner","Win",2,25,23,0,1.6666666666666667]
[null,"2018-10-30","NYI","Thomas Greiss","ND",1,13,12,0,0.83333333333333337]
[null,"2018-10-30","PIT","Casey DeSmith","ND",2,16,14,0,1.0034722222222221]
[null,"2018-10-30","PIT","Matt Murray","Loss",4,9,5,0,1.3305555555555555]
[null,"2018-11-01","PIT","Matt Murray","OTL",2,26,24,0,2.7048611111111112]
[null,"2018-11-01","NYI","Thomas Greiss","Win",2,31,29,0,2.7076388888888889]
[null,"2018-11-03","TOR","Frederik Andersen","Win",0,31,31,1,2.4972222222222222]
[null,"2018-11-03","PIT","Matt Murray","Loss",5,31,26,0,2.3659722222222221]
[null,"2018-11-03","PIT","Casey DeSmith","ND",0,2,2,0,0.13402777777777777]
[null,"2018-11-05","PIT","Matt Murray","Loss",4,27,23,0,1.6666666666666667]
[null,"2018-11-05","PIT","Casey DeSmith","ND",1,12,11,0,0.83333333333333337]
[null,"2018-11-05","NJD","Keith Kinkaid","Win",1,36,35,0,2.5]
[null,"2018-11-07","PIT","Casey DeSmith","Loss",2,22,20,0,2.4604166666666667]
[null,"2018-11-07","WSH","Braden Holtby","Win",1,42,41,0,2.5]
[null,"2018-11-10","ARI","Darcy Kuemper","Loss",4,32,28,0,2.5]
[null,"2018-11-10","PIT","Casey DeSmith","Win",0,39,39,1,2.5]
[null,"2018-11-13","PIT","Casey DeSmith","Loss",3,34,31,0,2.4430555555555555]
[null,"2018-11-13","NJD","Keith Kinkaid","Win",2,31,29,0,2.5]
[null,"2018-11-15","TBL","Louis Domingue","Win",3,31,28,0,2.4972222222222222]
[null,"2018-11-15","PIT","Matt Murray","Loss",4,26,22,0,2.3888888888888888]
[null,"2018-11-17","PIT","Casey DeSmith","Loss",3,15,12,0,1.534027777777778]
[null,"2018-11-17","PIT","Matt Murray","ND",3,10,7,0,0.83333333333333337]
[null,"2018-11-17","OTT","Craig Anderson","Win",4,35,31,0,2.4979166666666668]
[null,"2018-11-19","BUF","Carter Hutton","Win",4,40,36,0,2.53125]
[null,"2018-11-19","PIT","Casey DeSmith","OTL",5,40,35,0,2.53125]
[null,"2018-11-21","DAL","Anton Khudobin","Loss",5,16,11,0,1.2034722222222223]
[null,"2018-11-21","DAL","Ben Bishop","ND",0,14,14,0,1.2972222222222223]
[null,"2018-11-21","PIT","Casey DeSmith","Win",1,19,18,0,2.4972222222222222]
[null,"2018-11-23","PIT","Tristan Jarry","OTL",2,37,35,0,2.5708333333333333]
[null,"2018-11-23","BOS","Jaroslav Halak","Win",1,37,36,0,2.5812500000000003]
[null,"2018-11-24","PIT","Casey DeSmith","Win",2,39,37,0,2.5]
[null,"2018-11-24","CBJ","Joonas Korpisalo","Loss",4,36,32,0,2.4083333333333332]
[null,"2018-11-27","PIT","Casey DeSmith","Win",3,27,24,0,2.5]
[null,"2018-11-27","WPG","Connor Hellebuyck","Loss",4,30,26,0,2.411111111111111]
[null,"2018-11-28","PIT","Tristan Jarry","Loss",5,25,20,0,2.4312499999999999]
[null,"2018-11-28","COL","Philipp Grubauer","Win",3,25,22,0,2.5]
[null,"2018-12-01","PHI","Anthony Stolarz","Win",2,32,30,0,2.5]
[null,"2018-12-01","PIT","Casey DeSmith","Loss",3,25,22,0,2.4541666666666666]
[null,"2018-12-04","COL","Semyon Varlamov","Loss",6,32,26,0,2.4076388888888887]
[null,"2018-12-04","PIT","Casey DeSmith","Win",3,45,42,0,2.5]
[null,"2018-12-06","NYI","Thomas Greiss","Loss",5,21,16,0,1.6548611111111111]
[null,"2018-12-06","NYI","Robin Lehner","ND",1,7,6,0,0.83333333333333337]
[null,"2018-12-06","PIT","Casey DeSmith","Win",2,24,22,0,2.5]
[null,"2018-12-08","PIT","Casey DeSmith","OTL",2,29,27,0,2.5555555555555558]
[null,"2018-12-08","OTT","Craig Anderson","Win",1,36,35,0,2.5555555555555558]
[null,"2018-12-10","PIT","Casey DeSmith","Win",1,26,25,0,2.7083333333333335]
[null,"2018-12-10","NYI","Robin Lehner","SOL",1,24,23,0,2.6909722222222219]
[null,"2018-12-12","PIT","Casey DeSmith","Loss",4,27,23,0,2.4243055555555553]
[null,"2018-12-12","CHI","Corey Crawford","Win",3,43,40,0,2.5]
[null,"2018-12-14","BOS","Jaroslav Halak","Loss",4,27,23,0,2.4409722222222223]
[null,"2018-12-14","PIT","Casey DeSmith","Win",3,51,48,0,2.5]
[null,"2018-12-15","LAK","Jonathan Quick","OTL",4,36,32,0,2.6659722222222224]
[null,"2018-12-15","PIT","Matt Murray","Win",3,41,38,0,2.6631944444444442]
[null,"2018-12-17","ANA","John Gibson","Win",2,30,28,0,2.5]
[null,"2018-12-17","PIT","Casey DeSmith","Loss",3,35,32,0,2.4673611111111113]
[null,"2018-12-19","PIT","Matt Murray","Win",1,32,31,0,2.5]
[null,"2018-12-19","WSH","Braden Holtby","Loss",2,30,28,0,2.4048611111111113]
[null,"2018-12-20","MIN","Devan Dubnyk","Loss",2,37,35,0,2.4805555555555556]
[null,"2018-12-20","PIT","Casey DeSmith","Win",1,41,40,0,2.4923611111111112]
[null,"2018-12-22","PIT","Matt Murray","Win",0,39,39,1,2.5]
[null,"2018-12-22","CAR","Curtis McElhinney","Loss",3,32,29,0,2.5]
[null,"2018-12-27","DET","Jimmy Howard","Loss",4,39,35,0,"58:53"]
[null,"2018-12-27","PIT","Matt Murray","Win",2,29,27,0,"60:00"]
[null,"2018-12-29","PIT","Matt Murray","Win",1,31,30,0,"60:00"]
[null,"2018-12-29","STL","Jordan Binnington","ND",2,13,11,0,"30:35"]
[null,"2018-12-29","STL","Jake Allen","Loss",4,17,13,0,"29:25"]
[null,"2018-12-31","PIT","Casey DeSmith","Win",2,33,31,0,"60:00"]
[null,"2018-12-31","MIN","Devan Dubnyk","Loss",3,32,29,0,"58:01"]
[null,"2019-01-02","PIT","Matt Murray","Win",2,30,28,0,"59:47"]
[null,"2019-01-02","NYR","Henrik Lundqvist","Loss",6,18,12,0,"44:40"]
[null,"2019-01-02","NYR","Alexandar Georgiev","ND",1,7,6,0,"15:20"]
[null,"2019-01-04","WPG","Connor Hellebuyck","Loss",3,32,29,0,"58:26"]
[null,"2019-01-04","PIT","Matt Murray","Win",0,33,33,1,"59:50"]
[null,"2019-01-06","CHI","Cam Ward","Win",3,34,31,0,"60:00"]
[null,"2019-01-06","PIT","Casey DeSmith","Loss",4,30,26,0,"59:07"]
[null,"2019-01-08","FLA","James Reimer","ND",1,15,14,0,"31:04"]
[null,"2019-01-08","FLA","Roberto Luongo","Loss",4,16,12,0,"28:56"]
[null,"2019-01-08","PIT","Matt Murray","Win",1,37,36,0,"59:44"]
[null,"2019-01-11","PIT","Matt Murray","Win",4,25,21,0,"60:00"]
[null,"2019-01-11","ANA","John Gibson","Loss",6,35,29,0,"59:43"]
[null,"2019-01-12","PIT","Casey DeSmith","Loss",4,24,20,0,2.4409722222222223]
[null,"2019-01-12","LAK","Jonathan Quick","Win",2,40,38,0,2.5]
[null,"2019-01-15","PIT","Matt Murray","Loss",4,28,24,0,"57:06"]
[null,"2019-01-15","SJS","Martin Jones","Win",2,24,22,0,"59:59"]
[null,"2019-01-18","PIT","Matt Murray","Win",2,33,31,0,"64:10"]
[null,"2019-01-18","ARI","Darcy Kuemper","OTL",3,35,32,0,"64:10"]
[null,"2019-02-02","PIT","Matt Murray","Loss",3,33,30,0,"58:32"]
[null,"2019-02-02","TOR","Garret Sparks","Win",2,30,28,0,"59:56"]
[null,"2019-02-05","PIT","Matt Murray","Loss",3,31,28,0,2.473611111111111]
[null,"2019-02-05","CAR","Curtis McElhinney","Win",0,23,23,1,2.5]
[null,"2019-02-07","PIT","Casey DeSmith","O",3,42,39,0,"64:14"]
[null,"2019-02-07","FLA","Roberto Luongo","Win",2,31,29,0,"64:14"]
[null,"2019-02-09","PIT","Casey DeSmith","Loss",5,34,29,0,"58:25"]
[null,"2019-02-09","TBL","Andrei Vasilevskiy","Win",4,32,28,0,"60:00"]
[null,"2019-02-11","PIT","Matt Murray","Win",1,51,50,0,"60:00"]
[null,"2019-02-11","PHI","Carter Hart","Loss",3,27,24,0,"57:26"]
[null,"2019-02-13","EMD","Mikko Koskinen","Loss",2,33,31,0,"59:43"]
[null,"2019-02-13","PIT","Matt Murray","Win",1,39,38,0,"60:00"]
[null,"2019-02-16","CGY","Mike Smith","Win",4,38,34,0,"60:00"]
[null,"2019-02-16","PIT","Matt Murray","Loss",5,24,19,0,"40:00"]
[null,"2019-02-16","PIT","Casey DeSmith","ND",0,7,7,0,"18:32"]
[null,"2019-02-17","NYR","Alexandar Georgiev","Loss",6,41,35,0,"57:34"]
[null,"2019-02-17","PIT","Casey DeSmith","Win",5,44,39,0,"60:00"]
[null,"2019-02-19","PIT","Matt Murray","Win",3,36,33,0,"60:00"]
[null,"2019-02-19","NJD","Keith Kinkaid","Loss",4,28,24,0,"59:23"]
[null,"2019-02-21","SJS","Martin Jones","Win",0,26,26,1,2.5]
[null,"2019-02-21","PIT","Casey DeSmith","Loss",4,33,29,0,2.4986111111111113]
[null,"2019-02-26","PIT","Matt Murray","Win",2,23,21,0,"60:00"]
[null,"2019-02-26","CBJ","Sergei Bobrovsky","Loss",4,26,22,0,"59:10"]
[null,"2019-03-01","PIT","Matt Murray","O",4,30,26,0,"63:48"]
[null,"2019-03-01","BUF","Linus Ullmark","Win",3,44,41,0,"64:11"]
[null,"2019-03-02","PIT","Matt Murray","Win",1,37,36,0,"60:00"]
[null,"2019-03-02","MTL","Carey Price","Loss",4,24,20,0,"56:14"]
[null,"2019-03-05","FLA","Roberto Luongo","O",3,37,34,0,"62:34"]
[null,"2019-03-05","PIT","Matt Murray","Win",2,34,32,0,"62:44"]
[null,"2019-03-07","CBJ","Joonas Korpisalo","Loss",2,30,28,0,"57:48"]
[null,"2019-03-07","PIT","Matt Murray","Win",0,25,25,1,"60:00"]
[null,"2019-03-09","PIT","Matt Murray","Loss",3,32,29,0,"59:07"]
[null,"2019-03-09","CBJ","Sergei Bobrovsky","Win",1,29,28,0,"60:00"]
[null,"2019-03-10","BOS","Jaroslav Halak","Loss",3,36,33,0,"56:26"]
[null,"2019-03-10","PIT","Matt Murray","Win",2,41,39,0,"59:53"]
[null,"2019-03-12","WSH","Braden Holtby","Loss",4,29,25,0,"58:39"]
[null,"2019-03-12","PIT","Matt Murray","Win",3,41,38,0,"60:00"]
[null,"2019-03-14","PIT","Casey DeSmith","Win",0,26,26,1,"59:52"]
[null,"2019-03-14","BUF","Carter Hutton","Loss",5,28,23,0,"60:00"]
[null,"2019-03-16","STL","Jordan Binnington","Win",1,41,40,0,"60:00"]
[null,"2019-03-16","PIT","Casey DeSmith","ND",1,13,12,0,"37:19"]
[null,"2019-03-16","PIT","Matt Murray","Loss",4,13,9,0,"22:41"]
[null,"2019-03-17","PHI","Carter Hart","Win",1,42,41,0,"63:21"]
[null,"2019-03-17","PIT","Matt Murray","O",2,38,36,0,"64:41"]
[null,"2019-03-19","PIT","Matt Murray","SOL",2,39,37,0,"65:00"]
[null,"2019-03-19","CAR","Petr Mrazek","Win",2,38,36,0,"64:23"]
[null,"2019-03-21","PIT","Matt Murray","Win",1,29,28,0,"64:46"]
[null,"2019-03-21","NSH","Pekka Rinne","SOL",1,33,32,0,"65:00"]
[null,"2019-03-23","PIT","Matt Murray","Win",2,31,29,0,"60:00"]
[null,"2019-03-23","DAL","Anton Khudobin","Loss",3,30,27,0,"58:30"]
[null,"2019-03-25","PIT","Matt Murray","Win",2,35,33,0,"60:00"]
[null,"2019-03-25","NYR","Alexandar Georgiev","Loss",5,36,31,0,"60:00"]
[null,"2019-03-29","NSH","Pekka Rinne","Win",1,43,42,0,"60:00"]
[null,"2019-03-29","PIT","Matt Murray","Loss",3,26,23,0,"58:17"]
[null,"2019-03-31","CAR","Curtis McElhinney","Loss",3,28,25,0,"57:07"]
[null,"2019-03-31","PIT","Matt Murray","Win",1,38,37,0,"60:00"]

{"sheet":"Pens Roster","index":11,"n_rows":33,"n_cols":11,"rows_kept":33,"cut":false,"hidden":true,"merged":[]}
[]
["No.","Player","Citizenship","Position","Age","Height","Weight","Shoots","Years Exp","Birthday Date","Salary"]
[8,"Brian Dumoulin","USA","D",25,"6-4",207,"L",3,"2017-06-04",800000]
[17,"Bryan Rust","USA","RW",24,"5-11",192,"R",2,"2017-05-11",620000]
[24,"Cameron Gaunce","CAN","D",26,"6-1",210,"L",2,"2017-06-01",575000]
[62,"Carl Hagelin","SWE","LW",28,"5-11",186,"L",5,"2017-05-11",3667000]
[37,"Carter Rowney","CAN","RW",27,"6-2",200,"R",0,"2017-06-02",575000]
[2,"Chad Ruhwedel","USA","D",26,"5-11",191,"R",4,"2017-05-11",575000]
[14,"Chris Kunitz","CAN","LW",37,"6-0",195,"L",12,"2000-06-01",3550000]
[43,"Conor Sheary","USA","LW",24,"5-8",175,"L",1,"2017-05-08",667500]
[5,"David Warsofsky","USA","D",26,"5-9",170,"L",3,"2017-05-09",575000]
[51,"Derrick Pouliot","CAN","D",23,"6-0",208,"L",2,"2000-06-01",832500]
[16,"Eric Fehr","CAN","C",31,"6-4",212,"R",11,"2017-06-04",2000000]
[71,"Evgeni Malkin","RUS","C",30,"6-3",195,"L",10,"2017-06-03",9500000]
[28,"Ian Cole","USA","D",27,"6-1",219,"L",6,"2017-06-01",2300000]
[59,"Jake Guentzel","USA","C",22,"5-11",180,"L",0,"2017-05-11",667500]
[45,"Josh Archibald","CAN","RW",24,"5-10",176,"R",1,"2017-05-10",667500]
[4,"Justin Schultz","CAN","D",26,"6-2",193,"R",4,"2017-06-02",1400000]
[58,"Kris Letang","CAN","D",29,"6-0",201,"R",10,"2000-06-01",7250000]
[29,"Marc-Andre Fleury","CAN","G",32,"6-2",180,"N/A",12,"2017-06-02",5750000]
[7,"Matt Cullen","USA","C",40,"6-1",200,"L",18,"2017-06-01",1000000]
[30,"Matthew Murray","CAN","G",22,"6-4",178,"N/A",1,"2017-06-04",575000]
[1,"Mike Condon","USA","G",26,"6-2",197,"N/A",1,"2017-06-02","N/A"]
[13,"Nick Bonino","USA","C",28,"6-1",196,"L",7,"2017-06-01",2100000]
[3,"Olli Maatta","FIN","D",22,"6-2",206,"L",3,"2017-06-02",4083000]
[72,"Patric Hornqvist","SWE","RW",30,"5-11",189,"R",8,"2017-05-11",4750000]
[81,"Phil Kessel","USA","RW",29,"6-0",202,"R",10,"2000-06-01",7800000]
[23,"Scott Wilson","CAN","LW",24,"5-11",183,"L",2,"2017-05-11",590000]
[87,"Sidney Crosby","CAN","C",29,"5-11",200,"L",11,"2017-05-11",10900000]
[61,"Steven Oleksy","USA","D",30,"6-0",190,"R",3,"2000-06-01",575000]
[34,"Tom Kuhnhackl","GER","RW",25,"6-2",196,"L",1,"2017-06-02",590000]
[25,"Tom Sestito","USA","LW",29,"6-5",228,"L",8,"2017-06-05",575000]
[6,"Trevor Daley","CAN","D",33,"5-11",195,"L",12,"2017-05-11",2700000]